Workbook

Sheet Simulación Cliente
D4: SIMULADOR HIPOTECARIO MIVIVIENDA/EMPRENDEDOR
V6: Porcentaje %
V7: Valor
D8: Valor del Inmueble | E8: 70000
D9: Valor Cuota Inicial | E9: 7000
D10: Valor Asegurable aproximado | E10: =0.75*E8 -> 52500 | F10: Se usa como aproximación el 75% del valor del inmueble | W10: SD. Exonerado | X10: 0
D11: Bono Buen Pagador | E11: SI | F11: =IF(E11="NO",0,SUMPRODUCT(P27:P30,Q27:Q30)) -> 26900
D12: Bono Verde | E12: SI | F12: =IF(E12="NO",0,SUMPRODUCT(P27:P30,R27:R30)) -> 32900
D13: % Cuota Inicial | E13: =E9/$E$8 -> 0.1
D14: Monto a Financiar | E14: =E8-E9-F11-F12 -> 3200 | Q14: Columna1 | R14: Columna2 | W14: Columna1 | X14: Columna2
Q15: Seguro Desgravamen sin retorno Titular | R15: 0.03 | W15: SD. Exonerado | X15: 0
D16: Plazo (meses) | E16: 240 | Q16: Seguro Desgravamen con retorno Titular | R16: 0.051 | W16: Endosado | X16: 0
D17: Seg. Desgravamen (% mensual) | E17: Seguro Desgravamen sin retorno Titular | F17: =+VLOOKUP(E17,$Q$10:$R$47,2,0)/100 -> 0.0003 | Q17: Seguro Desgravamen sin retorno Titular + Cónyuge | R17: 0.06 | W17: SR Titular Premium | X17: 0.025
D18: Seg. Del Bien (% mensual) | E18: Seguro del Bien Hipotecario | F18: =+VLOOKUP(E18,$W$52:$X$53,2,0)/100 -> 0.00028 | Q18: Seguro Desgravamen con retorno Titular + Cónyuge | R18: 0.102 | W18: CR Titular Premium | X18: 0.047
D19: Portes | E19: 0 | Q19: Seguro Desgravamen sin retorno Titular c/sobretasa | R19: 0.057 | W19: SR Titular + Cony. Premium | X19: 0.0425
D20: TEA (Tasa efectiva anual) | E20: 0.14 | Q20: Seguro Desgravamen con retorno Titular c/sobretasa | R20: 0.102 | W20: CR Titular + Cony. Premium | X20: 0.0799
D21: TCEA (Tasa de costo efectivo anual) | E21: 0.1659541259 | Q21: Seguro Desgravamen sin retorno Titular + Cónyuge c/sobretasa | R21: 0.09 | W21: SR SD. Hipotecario CV/BF Titular CAMPAØA | X21: 0.0285
Q22: Seguro Desgravamen con retorno Titular + Cónyuge c/sobretasa | R22: 0.153 | W22: CR SD. Hipotecario CV/BF Titular CAMPAØA | X22: 0.0485
I23: Cuota Doble | Q23: SD. Exonerado | R23: 0 | W23: SR SD. Hipotecario CV/BF Tit.+ Cony.CAMP | X23: 0.0546
D24: Valor Cuota Simple | E24: =+'Simulador Detalle'!$C$17 -> 53.8788789 | G24: Valor Cuota con cuotas dobles | H24: =+'Simulador Detalle'!$Y$17 -> 46.3300313 | I24: =+H24*2 -> 92.66006261 | Q24: Endosado | R24: 0 | W24: CR SD. Hipotecario CV/BF Tit.+ Cony.CAMP | X24: 0.0928
D25: Valor Seg. Desgravamen (promedio mensual) | E25: =+AVERAGE('Simulador Detalle'!$I$22:$I$381) -> 0.6873769655 | G25: Valor Seg. Desgravamen (promedio mensual) | H25: =+AVERAGE('Simulador Detalle'!$AE$22:$AE$381) -> 0.691973501 | W25: SR Desgravamen TIT Sobretasa (100%) | X25: 0.057
D26: Valor Seg. Del Bien (mensual) | E26: =+'Simulador Detalle'!$J$22 -> 14.7 | G26: Valor Seg. Del Bien (mensual) | H26: =+'Simulador Detalle'!$AF$22 -> 14.7 | Q26: Bono Buen Pagador | R26: Bono Verde | W26: CR Desgravamen TIT Sobretasa (100%) | X26: 0.0969
N27: 67400 | O27: 96200 | P27: =AND($E$8>=N27,$E$8<=O27)*1 -> 1 | Q27: 26900 | R27: 32900 | W27: SR Desgravamen TIT + CONY Sobretasa (100 | X27: 0.0819
N28: 96200 | O28: 144000 | P28: =AND($E$8>N28,$E$8<=O28)*1 -> 0 | Q28: 22400 | R28: 28400 | W28: CR Desgravamen TIT + CONY Sobretasa (100 | X28: 0.1392
N29: 144000 | O29: 239800 | P29: =AND($E$8>N29,$E$8<=O29)*1 -> 0 | Q29: 20500 | R29: 26500 | W29: SR Degravamen TIT Sobretasa 50% | X29: 0.0428
D30: Simulaciones adicionales | N30: 239800 | O30: 355100 | P30: 0 | Q30: 7600 | R30: 13600 | W30: CR Degravamen TIT Sobretasa 50% | X30: 0.0728
D31: Plazo | E31: Valor Cuota Simple | F31: Valor Cuota con cuotas dobles | W31: SR Degravamen TIT Sobretasa(50%)+CONY | X31: 0.0683
D32: 180 meses | E32: =+'Simulador Detalle'!$AP$17 -> 56.74883089 | F32: =+'Simulador Detalle'!$BG$17 -> 48.79787774 | W32: CR Degravamen TIT Sobretasa(50%)+CONY | X32: 0.1161
D33: 240 meses | E33: =+'Simulador Detalle'!$BX$17 -> 53.8788789 | F33: =+'Simulador Detalle'!$CO$17 -> 46.3300313 | W33: SR Desgravamen TIT+ CONY Sobretasa (50%) | X33: 0.0683
I34: =+TODAY() -> 2024-07-02 | W34: CR Desgravamen TIT+ CONY Sobretasa (50%) | X34: 0.11
W35: SR Desgravamen TIT Sobretasa(100%)+CONY | X35: 0.0819
W36: CR Desgravamen TIT Sobretasa(100%)+CONY | X36: 0.13
D37: Importante: | W37: SR Desgravamen (TIT+CONY)Sobretasa (50%) | X37: 0.0819
D38: - Cargos mensuales que se incluyen: Seguro de desgravamen individual CARDIF BNP PARIBAS (sobre el monto del crédito adeudado a la fecha) y Seguro del bien Mapfre (sobre el valor asegurable). - Valores aproximados y referenciales. - Los términos y condiciones presentados son indicativos y vigentes en la medida que no ocurra cambios sustantivos en el mercado que afecten las condiciones existentes a la fecha de la presente propuesta. - Crédito sujeto a evaluación crediticia. | W38: CR Desgravamen (TIT+CONY)Sobretasa (50%) | X38: 0.1392
W39: SR Desgravamen (TIT+CONY ) Sobretasa (10 | X39: 0.1092
W40: CR Desgravamen (TIT+CONY ) Sobretasa (10 | X40: 0.1856
W41: SR SD Titul.Sobretasa100%+Cony.Sobretasa | X41: 0.0956
W42: CR SD Titul.Sobretasa100%+Cony.Sobretasa | X42: 0.1625
W43: SR SD Titul.Sobretasa50%+Cony.Sobretasa1 | X43: 0.0956
V44: Colaborador | W44: CR SD Titul.Sobretasa50%+Cony.Sobretasa1 | X44: 0.1625
V45: Colaborador | W45: CR Desgravamen TIT Sobretasa(100%)+CONY | X45: 0.13
V46: Colaborador | W46: CR Desgravamen (TIT+CONY)Sobretasa (50%) | X46: 0.1392
W47: CR SD. HIPOT. WP(Tit + Cony)Sobretasa (N | X47: 0.1392
W48: CR Desgravamen TIT + CONY Sobretasa (100 | X48: 0.1392
W49: CR SD Titul.Sobretasa50%+Cony.Sobretasa1 | X49: 0.1625
W50: CR SD Titul.Sobretasa100%+Cony.Sobretasa | X50: 0.1625
V51: CV | W51: CR Desgravamen (TIT+CONY ) Sobretasa (10 | X51: 0.18
V52: CV | W52: Seguro del Bien Hipotecario | X52: 0.028
V53: CV | W53: Seguro del Bien Exonerado | X53: 0
V54: LDGH

Sheet datos (hidden)
A1: Tarifa | B1: Tipo de Seguro | C1: Nombre Seguro | D1: TASA | F1: Nombre Seguro | G1: TASA
A2: Exonerado | B2: Exonerado | C2: SD. Exonerado | D2: 0 | F2: SD. Exonerado | G2: 0
A3: Titular | B3: Sin Retorno | C3: SR Titular Premium | D3: 0.02 | F3: Endosado | G3: 0
A4: Titular | B4: Sin Retorno | C4: SR SD. Hipotecario CV/BF Titular CAMPAØA | D4: 0.0285 | F4: SR Titular Premium | G4: 0.025
A5: Titular | B5: Sin Retorno | C5: SR Degravamen TIT Sobretasa 50% | D5: 0.0428 | F5: CR Titular Premium | G5: 0.047
A6: Titular | B6: Sin Retorno | C6: SR SD. HIPOT. WP Tit Sobretasa (Nvo) | D6: 0.0428 | F6: SR Titular + Cony. Premium | G6: 0.0425
A7: Titular | B7: Sin Retorno | C7: SR Desgravamen TIT Sobretasa (100%) | D7: 0.057 | F7: CR Titular + Cony. Premium | G7: 0.0799
A8: Titular + Cónyuge | B8: Sin Retorno | C8: SR Titular + Cony. Premium | D8: 0.047 | F8: SR SD. Hipotecario CV/BF Titular CAMPAØA | G8: 0.0285
A9: Titular + Cónyuge | B9: Sin Retorno | C9: SR SD. HIPOT. WP Tit Sobretasa + Cony (N | D9: 0.05 | F9: CR SD. Hipotecario CV/BF Titular CAMPAØA | G9: 0.0485
A10: Titular + Cónyuge | B10: Sin Retorno | C10: SR SD. Hipotecario CV/BF Tit.+ Cony.CAMP | D10: 0.0546 | F10: SR SD. Hipotecario CV/BF Tit.+ Cony.CAMP | G10: 0.0546
A11: Titular + Cónyuge | B11: Sin Retorno | C11: SR Desgravamen TIT+ CONY Sobretasa (50%) | D11: 0.06 | F11: CR SD. Hipotecario CV/BF Tit.+ Cony.CAMP | G11: 0.0928
A12: Titular + Cónyuge | B12: Sin Retorno | C12: SR Degravamen TIT Sobretasa(50%)+CONY | D12: 0.0683 | F12: SR Desgravamen TIT Sobretasa (100%) | G12: 0.057
A13: Titular + Cónyuge | B13: Sin Retorno | C13: SR SD. HIPOT. WP Tit + Cony Sobretasa (N | D13: 0.0683 | F13: CR Desgravamen TIT Sobretasa (100%) | G13: 0.0969
A14: Titular + Cónyuge | B14: Sin Retorno | C14: SR Desgravamen TIT Sobretasa(100%)+CONY | D14: 0.08 | F14: SR Desgravamen TIT + CONY Sobretasa (100 | G14: 0.0819
A15: Titular + Cónyuge | B15: Sin Retorno | C15: SR Desgravamen (TIT+CONY)Sobretasa (50%) | D15: 0.0819 | F15: CR Desgravamen TIT + CONY Sobretasa (100 | G15: 0.1392
A16: Titular + Cónyuge | B16: Sin Retorno | C16: SR SD. HIPOT. WP(Tit + Cony)Sobretasa (N | D16: 0.0819 | F16: SR Degravamen TIT Sobretasa 50% | G16: 0.0428
A17: Titular + Cónyuge | B17: Sin Retorno | C17: SR Desgravamen TIT + CONY Sobretasa (100 | D17: 0.0819 | F17: CR Degravamen TIT Sobretasa 50% | G17: 0.0728
A18: Titular + Cónyuge | B18: Sin Retorno | C18: SR SD Titul.Sobretasa50%+Cony.Sobretasa1 | D18: 0.0956 | F18: SR Degravamen TIT Sobretasa(50%)+CONY | G18: 0.0683
A19: Titular + Cónyuge | B19: Sin Retorno | C19: SR SD Titul.Sobretasa100%+Cony.Sobretasa | D19: 0.0956 | F19: CR Degravamen TIT Sobretasa(50%)+CONY | G19: 0.1161
A20: Titular + Cónyuge | B20: Sin Retorno | C20: SR Desgravamen (TIT+CONY ) Sobretasa (10 | D20: 0.1 | F20: SR Desgravamen TIT+ CONY Sobretasa (50%) | G20: 0.0683
A21: Titular | B21: Con Retorno | C21: CR Titular Premium | D21: 0.04 | F21: CR Desgravamen TIT+ CONY Sobretasa (50%) | G21: 0.11
A22: Titular | B22: Con Retorno | C22: CR SD. Hipotecario CV/BF Titular CAMPAØA | D22: 0.0485 | F22: SR Desgravamen TIT Sobretasa(100%)+CONY | G22: 0.0819
A23: Titular | B23: Con Retorno | C23: CR Degravamen TIT Sobretasa 50% | D23: 0.0728 | F23: CR Desgravamen TIT Sobretasa(100%)+CONY | G23: 0.13
A24: Titular | B24: Con Retorno | C24: CR SD. HIPOT. WP Tit Sobretasa (Nvo) | D24: 0.0728 | F24: SR Desgravamen (TIT+CONY)Sobretasa (50%) | G24: 0.0819
A25: Titular | B25: Con Retorno | C25: CR Desgravamen TIT Sobretasa (100%) | D25: 0.0969 | F25: CR Desgravamen (TIT+CONY)Sobretasa (50%) | G25: 0.1392
A26: Titular + Cónyuge | B26: Con Retorno | C26: CR Titular + Cony. Premium | D26: 0.0799 | F26: SR Desgravamen (TIT+CONY ) Sobretasa (10 | G26: 0.1092
A27: Titular + Cónyuge | B27: Con Retorno | C27: CR SD. Hipotecario CV/BF Tit.+ Cony.CAMP | D27: 0.09 | F27: CR Desgravamen (TIT+CONY ) Sobretasa (10 | G27: 0.1856
A28: Titular + Cónyuge | B28: Con Retorno | C28: CR SD. HIPOT. WP Tit Sobretasa + Cony (N | D28: 0.09 | F28: SR SD Titul.Sobretasa100%+Cony.Sobretasa | G28: 0.0956
A29: Titular + Cónyuge | B29: Con Retorno | C29: CR Desgravamen TIT+ CONY Sobretasa (50%) | D29: 0.11 | F29: CR SD Titul.Sobretasa100%+Cony.Sobretasa | G29: 0.1625
A30: Titular + Cónyuge | B30: Con Retorno | C30: CR Degravamen TIT Sobretasa(50%)+CONY | D30: 0.1161 | F30: SR SD Titul.Sobretasa50%+Cony.Sobretasa1 | G30: 0.0956
A31: Titular + Cónyuge | B31: Con Retorno | C31: CR SD. HIPOT. WP Tit + Cony Sobretasa (N | D31: 0.1161 | F31: CR SD Titul.Sobretasa50%+Cony.Sobretasa1 | G31: 0.1625
A32: Titular + Cónyuge | B32: Con Retorno | C32: CR Desgravamen TIT Sobretasa(100%)+CONY | D32: 0.13
A33: Titular + Cónyuge | B33: Con Retorno | C33: CR Desgravamen (TIT+CONY)Sobretasa (50%) | D33: 0.1392
A34: Titular + Cónyuge | B34: Con Retorno | C34: CR SD. HIPOT. WP(Tit + Cony)Sobretasa (N | D34: 0.1392
A35: Titular + Cónyuge | B35: Con Retorno | C35: CR Desgravamen TIT + CONY Sobretasa (100 | D35: 0.1392
A36: Titular + Cónyuge | B36: Con Retorno | C36: CR SD Titul.Sobretasa50%+Cony.Sobretasa1 | D36: 0.1625
A37: Titular + Cónyuge | B37: Con Retorno | C37: CR SD Titul.Sobretasa100%+Cony.Sobretasa | D37: 0.1625
A38: Titular + Cónyuge | B38: Con Retorno | C38: CR Desgravamen (TIT+CONY ) Sobretasa (10 | D38: 0.18

Sheet Simulador Detalle (hidden)
B1: simulacion con Cuota simple | X1: simulacion con CD | AO1: simulacion a 180 | BF1: simulacion a 180 con CD | BW1: simulacion a 240 | CN1: simulacion a 240 con CD
B3: MAF | C3: =+'Simulación Cliente'!$E$14 -> 3200 | X3: MAF | Y3: =+'Simulación Cliente'!$E$14 -> 3200 | AO3: MAF | AP3: =+'Simulación Cliente'!$E$14 -> 3200 | BF3: MAF | BG3: =+'Simulación Cliente'!$E$14 -> 3200 | BW3: MAF | BX3: =+'Simulación Cliente'!$E$14 -> 3200 | CN3: MAF | CO3: =+'Simulación Cliente'!$E$14 -> 3200
B4: Monto del Bien | C4: =+'Simulación Cliente'!$E$8 -> 70000 | D4: ='Simulación Cliente'!$E$10 -> 52500 | X4: Monto del Bien | Y4: =+'Simulación Cliente'!$E$8 -> 70000 | Z4: ='Simulación Cliente'!$E$10 -> 52500 | AO4: Monto del Bien | AP4: =+'Simulación Cliente'!$E$8 -> 70000 | AQ4: ='Simulación Cliente'!$E$10 -> 52500 | BF4: Monto del Bien | BG4: =+'Simulación Cliente'!$E$8 -> 70000 | BH4: ='Simulación Cliente'!$E$10 -> 52500 | BW4: Monto del Bien | BX4: =+'Simulación Cliente'!$E$8 -> 70000 | BY4: ='Simulación Cliente'!$E$10 -> 52500 | CN4: Monto del Bien | CO4: =+'Simulación Cliente'!$E$8 -> 70000 | CP4: ='Simulación Cliente'!$E$10 -> 52500
B5: Moneda | C5: Soles | X5: Moneda | Y5: Soles | AO5: Moneda | AP5: Soles | BF5: Moneda | BG5: Soles | BW5: Moneda | BX5: Soles | CN5: Moneda | CO5: Soles
B6: Plazo | C6: =+'Simulación Cliente'!$E$16 -> 240 | X6: Plazo | Y6: =+'Simulación Cliente'!$E$16 -> 240 | AO6: Plazo | AP6: 180 | BF6: Plazo | BG6: 180 | BW6: Plazo | BX6: 240 | CN6: Plazo | CO6: 240
B7: Fecha de Desembolso | C7: =TODAY() -> 2024-07-02 | X7: Fecha de Desembolso | Y7: =TODAY() -> 2024-07-02 | AO7: Fecha de Desembolso | AP7: =TODAY() -> 2024-07-02 | BF7: Fecha de Desembolso | BG7: =TODAY() -> 2024-07-02 | BW7: Fecha de Desembolso | BX7: =TODAY() -> 2024-07-02 | CN7: Fecha de Desembolso | CO7: =TODAY() -> 2024-07-02
B8: Fecha de 1er Pago | C8: =EDATE(C7,1) -> 2024-08-02 | X8: Fecha de 1er Pago | Y8: =EDATE(Y7,1) -> 2024-08-02 | AO8: Fecha de 1er Pago | AP8: =EDATE(AP7,1) -> 2024-08-02 | BF8: Fecha de 1er Pago | BG8: =EDATE(BG7,1) -> 2024-08-02 | BW8: Fecha de 1er Pago | BX8: =EDATE(BX7,1) -> 2024-08-02 | CN8: Fecha de 1er Pago | CO8: =EDATE(CO7,1) -> 2024-08-02
B9: Cuota Julio | C9: 1 | X9: Cuota Julio | Y9: 2 | AO9: Cuota Julio | AP9: 1 | BF9: Cuota Julio | BG9: 2 | BW9: Cuota Julio | BX9: 1 | CN9: Cuota Julio | CO9: 2
B10: Cuota Diciembre | C10: 1 | X10: Cuota Diciembre | Y10: 2 | AO10: Cuota Diciembre | AP10: 1 | BF10: Cuota Diciembre | BG10: 2 | BW10: Cuota Diciembre | BX10: 1 | CN10: Cuota Diciembre | CO10: 2
B11: TEA | C11: =+'Simulación Cliente'!$E$20 -> 0.14 | X11: TEA | Y11: =+'Simulación Cliente'!$E$20 -> 0.14 | AO11: TEA | AP11: =+'Simulación Cliente'!$E$20 -> 0.14 | BF11: TEA | BG11: =+'Simulación Cliente'!$E$20 -> 0.14 | BW11: TEA | BX11: =+'Simulación Cliente'!$E$20 -> 0.14 | CN11: TEA | CO11: =+'Simulación Cliente'!$E$20 -> 0.14
B12: Seguro de Desgravamen | C12: =+'Simulación Cliente'!$F$17 -> 0.0003 | X12: Seguro de Desgravamen | Y12: =+'Simulación Cliente'!$F$17 -> 0.0003 | AO12: Seguro de Desgravamen | AP12: =+'Simulación Cliente'!$F$17 -> 0.0003 | BF12: Seguro de Desgravamen | BG12: =+'Simulación Cliente'!$F$17 -> 0.0003 | BW12: Seguro de Desgravamen | BX12: =+'Simulación Cliente'!$F$17 -> 0.0003 | CN12: Seguro de Desgravamen | CO12: =+'Simulación Cliente'!$F$17 -> 0.0003
B13: TCEA | C13: =(1+(((1+C11)^(30/360)-1)+C12+C16))^12-1 -> 0.144066064 | X13: TCEA | Y13: =(1+(((1+Y11)^(30/360)-1)+Y12+Y16))^12-1 -> 0.144066064 | AO13: TCEA | AP13: =(1+(((1+AP11)^(30/360)-1)+AP12+AP16))^12-1 -> 0.144066064 | BF13: TCEA | BG13: =(1+(((1+BG11)^(30/360)-1)+BG12+BG16))^12-1 -> 0.144066064 | BW13: TCEA | BX13: =(1+(((1+BX11)^(30/360)-1)+BX12+BX16))^12-1 -> 0.144066064 | CN13: TCEA | CO13: =(1+(((1+CO11)^(30/360)-1)+CO12+CO16))^12-1 -> 0.144066064
B14: Seguro del Bien | C14: =+'Simulación Cliente'!$F$18 -> 0.00028 | X14: Seguro del Bien | Y14: =+'Simulación Cliente'!$F$18 -> 0.00028 | AO14: Seguro del Bien | AP14: =+'Simulación Cliente'!$F$18 -> 0.00028 | BF14: Seguro del Bien | BG14: =+'Simulación Cliente'!$F$18 -> 0.00028 | BW14: Seguro del Bien | BX14: =+'Simulación Cliente'!$F$18 -> 0.00028 | CN14: Seguro del Bien | CO14: =+'Simulación Cliente'!$F$18 -> 0.00028
B15: Portes | C15: =+'Simulación Cliente'!$E$19 -> 0 | X15: Portes | Y15: =+'Simulación Cliente'!$E$19 -> 0 | AO15: Portes | AP15: =+'Simulación Cliente'!$E$19 -> 0 | BF15: Portes | BG15: =+'Simulación Cliente'!$E$19 -> 0 | BW15: Portes | BX15: =+'Simulación Cliente'!$E$19 -> 0 | CN15: Portes | CO15: =+'Simulación Cliente'!$E$19 -> 0
B16: % Portes | C16: =C15/C3 -> 0 | X16: % Portes | Y16: =Y15/Y3 -> 0 | AO16: % Portes | AP16: =AP15/AP3 -> 0 | BF16: % Portes | BG16: =BG15/BG3 -> 0 | BW16: % Portes | BX16: =BX15/BX3 -> 0 | CN16: % Portes | CO16: =CO15/CO3 -> 0
B17: VALOR CUOTA | C17: =(C3+(C14*D4)*O20)/N20 -> 53.8788789 | X17: VALOR CUOTA | Y17: =(Y3+(Y14*Z4)*AK20)/AJ20 -> 46.3300313 | AO17: VALOR CUOTA | AP17: =(AP3+(AP14*AQ4)*BB20)/BA20 -> 56.74883089 | BF17: VALOR CUOTA | BG17: =(BG3+(BG14*BH4)*BS20)/BR20 -> 48.79787774 | BW17: VALOR CUOTA | BX17: =(BX3+(BX14*BY4)*CJ20)/CI20 -> 53.8788789 | CN17: VALOR CUOTA | CO17: =(CO3+(CO14*CP4)*DA20)/CZ20 -> 46.3300313
T19: ='Simulación Cliente'!E14-'Simulador Detalle'!T20 -> -740.12
N20: =SUM(N22:N381) -> 81.67666074 | O20: =SUM(O22:O381) -> 81.67666074 | T20: =SUM(T22:T381) -> 3940.12 | AJ20: =SUM(AJ22:AJ381) -> 94.98476018 | AK20: =SUM(AK22:AK381) -> 81.67666074 | BA20: =SUM(BA22:BA381) -> 76.10199695 | BB20: =SUM(BB22:BB381) -> 76.10199695 | BR20: =SUM(BR22:BR381) -> 88.50178646 | BS20: =SUM(BS22:BS381) -> 76.10199695 | CI20: =SUM(CI22:CI381) -> 81.67666074 | CJ20: =SUM(CJ22:CJ381) -> 81.67666074 | CZ20: =SUM(CZ22:CZ381) -> 94.98476018 | DA20: =SUM(DA22:DA381) -> 81.67666074
B21: N° Cuota | C21: Fecha de pago | D21: Días | E21: Dias Acumulados | F21: Saldo Inicial | G21: Amortización | H21: Interés | I21: Seguro Desgravamen | J21: Seguro del Bien | K21: Portes | L21: VALOR CUOTA | M21: Saldo Final | N21: Factor Cronograma | O21: Factor Cronograma 2 | Q21: Vector i,1 Cuota | R21: Vector i,2 Días Acum | S21: Vector i,3 Factor | T21: Vector i,4 Calculo VA | X21: N° Cuota | Y21: Fecha de pago | Z21: Días | AA21: Dias Acumulados | AB21: Saldo Inicial | AC21: Amortización | AD21: Interés | AE21: Seguro Desgravamen | AF21: Seguro del Bien | AG21: Portes | AH21: VALOR CUOTA | AI21: Saldo Final | AJ21: Factor Cronograma | AK21: Factor Cronograma 2 | AO21: N° Cuota | AP21: Fecha de pago | AQ21: Días | AR21: Dias Acumulados | AS21: Saldo Inicial | AT21: Amortización | AU21: Interés | AV21: Seguro Desgravamen | AW21: Seguro del Bien | AX21: Portes | AY21: VALOR CUOTA | AZ21: Saldo Final | BA21: Factor Cronograma | BB21: Factor Cronograma 2 | BF21: N° Cuota | BG21: Fecha de pago | BH21: Días | BI21: Dias Acumulados | BJ21: Saldo Inicial | BK21: Amortización | BL21: Interés | BM21: Seguro Desgravamen | BN21: Seguro del Bien | BO21: Portes | BP21: VALOR CUOTA | BQ21: Saldo Final | BR21: Factor Cronograma | BS21: Factor Cronograma 2 | BW21: N° Cuota | BX21: Fecha de pago | BY21: Días | BZ21: Dias Acumulados | CA21: Saldo Inicial | CB21: Amortización | CC21: Interés | CD21: Seguro Desgravamen | CE21: Seguro del Bien | CF21: Portes | CG21: VALOR CUOTA | CH21: Saldo Final | CI21: Factor Cronograma | CJ21: Factor Cronograma 2 | CN21: N° Cuota | CO21: Fecha de pago | CP21: Días | CQ21: Dias Acumulados | CR21: Saldo Inicial | CS21: Amortización | CT21: Interés | CU21: Seguro Desgravamen | CV21: Seguro del Bien | CW21: Portes | CX21: VALOR CUOTA | CY21: Saldo Final | CZ21: Factor Cronograma | DA21: Factor Cronograma 2
B22: 1 | C22: =C8 -> 2024-08-02 | D22: =C22-C7 -> 31 | E22: =D22 -> 31 | F22: =C3 -> 3200 | G22: =IF(B22>C$6,"",L22-K22-J22-I22-H22) -> 1.876850705 | H22: =IF(B22>C$6,"",((1+C$11)^(D22/360)-1)*F22) -> 36.31002324 | I22: =IF(B22>C$6,"",((1+C$12)^(D22/30)-1)*F22) -> 0.9920049595 | J22: =IF(B22>C$6,"",D$4*C$14) -> 14.7 | K22: =IF(B22>C$6,"",C$15) -> 0 | L22: =IF(B22>C$6,"",IF(B22=C$6,F22+H22+I22+J22+K22,IF(AND(C$9=2,MONTH(C22)=7),2*C$17,IF(AND(C$10=2,MONTH(C22)=12),2*C$17,C$17)))) -> 53.8788789 | M22: =IF(B22>C$6,"",F22-G22) -> 3198.123149 | N22: =IFERROR(IF(AND(MONTH(C22)=7,C$9=2),2/(1+C$13)^(E22/360),IF(AND(MONTH(C22)=12,C$10=2),2/(1+C$13)^(E22/360),1/(1+C$13)^(E22/360))),"") -> 0.9884773232 | O22: =IFERROR(1/(1+C$13)^(E22/360),"") -> 0.9884773232 | Q22: =IFERROR(G22+H22+I22+J22+K22,"") -> 53.8788789 | R22: =E22 -> 31 | S22: =IFERROR((1+'Simulación Cliente'!$E$21)^(R22/360),"") -> 1.013309268 | T22: =IFERROR(ROUND(Q22/S22,2),"") -> 53.17 | X22: 1 | Y22: =Y8 -> 2024-08-02 | Z22: =Y22-Y7 -> 31 | AA22: =Z22 -> 31 | AB22: =Y3 -> 3200 | AC22: =IF(X22>Y$6,"",AH22-AG22-AF22-AE22-AD22) -> -5.671996891 | AD22: =IF(X22>Y$6,"",((1+Y$11)^(Z22/360)-1)*AB22) -> 36.31002324 | AE22: =IF(X22>Y$6,"",((1+Y$12)^(Z22/30)-1)*AB22) -> 0.9920049595 | AF22: =IF(X22>Y$6,"",Z$4*Y$14) -> 14.7 | AG22: =IF(X22>Y$6,"",Y$15) -> 0 | AH22: =IF(X22>Y$6,"",IF(X22=Y$6,AB22+AD22+AE22+AF22+AG22,IF(AND(Y$9=2,MONTH(Y22)=7),2*Y$17,IF(AND(Y$10=2,MONTH(Y22)=12),2*Y$17,Y$17)))) -> 46.3300313 | AI22: =IF(X22>Y$6,"",AB22-AC22) -> 3205.671997 | AJ22: =IFERROR(IF(AND(MONTH(Y22)=7,Y$9=2),2/(1+Y$13)^(AA22/360),IF(AND(MONTH(Y22)=12,Y$10=2),2/(1+Y$13)^(AA22/360),1/(1+Y$13)^(AA22/360))),"") -> 0.9884773232 | AK22: =IFERROR(1/(1+Y$13)^(AA22/360),"") -> 0.9884773232 | AO22: 1 | AP22: =AP8 -> 2024-08-02 | AQ22: =AP22-AP7 -> 31 | AR22: =AQ22 -> 31 | AS22: =AP3 -> 3200 | AT22: =IF(AO22>AP$6,"",AY22-AX22-AW22-AV22-AU22) -> 4.746802691 | AU22: =IF(AO22>AP$6,"",((1+AP$11)^(AQ22/360)-1)*AS22) -> 36.31002324 | AV22: =IF(AO22>AP$6,"",((1+AP$12)^(AQ22/30)-1)*AS22) -> 0.9920049595 | AW22: =IF(AO22>AP$6,"",AQ$4*AP$14) -> 14.7 | AX22: =IF(AO22>AP$6,"",AP$15) -> 0 | AY22: =IF(AO22>AP$6,"",IF(AO22=AP$6,AS22+AU22+AV22+AW22+AX22,IF(AND(AP$9=2,MONTH(AP22)=7),2*AP$17,IF(AND(AP$10=2,MONTH(AP22)=12),2*AP$17,AP$17)))) -> 56.74883089 | AZ22: =IF(AO22>AP$6,"",AS22-AT22) -> 3195.253197 | BA22: =IFERROR(IF(AND(MONTH(AP22)=7,AP$9=2),2/(1+AP$13)^(AR22/360),IF(AND(MONTH(AP22)=12,AP$10=2),2/(1+AP$13)^(AR22/360),1/(1+AP$13)^(AR22/360))),"") -> 0.9884773232 | BB22: =IFERROR(1/(1+AP$13)^(AR22/360),"") -> 0.9884773232 | BF22: 1 | BG22: =BG8 -> 2024-08-02 | BH22: =BG22-BG7 -> 31 | BI22: =BH22 -> 31 | BJ22: =BG3 -> 3200 | BK22: =IF(BF22>BG$6,"",BP22-BO22-BN22-BM22-BL22) -> -3.204150457 | BL22: =IF(BF22>BG$6,"",((1+BG$11)^(BH22/360)-1)*BJ22) -> 36.31002324 | BM22: =IF(BF22>BG$6,"",((1+BG$12)^(BH22/30)-1)*BJ22) -> 0.9920049595 | BN22: =IF(BF22>BG$6,"",BH$4*BG$14) -> 14.7 | BO22: =IF(BF22>BG$6,"",BG$15) -> 0 | BP22: =IF(BF22>BG$6,"",IF(BF22=BG$6,BJ22+BL22+BM22+BN22+BO22,IF(AND(BG$9=2,MONTH(BG22)=7),2*BG$17,IF(AND(BG$10=2,MONTH(BG22)=12),2*BG$17,BG$17)))) -> 48.79787774 | BQ22: =IF(BF22>BG$6,"",BJ22-BK22) -> 3203.20415 | BR22: =IFERROR(IF(AND(MONTH(BG22)=7,BG$9=2),2/(1+BG$13)^(BI22/360),IF(AND(MONTH(BG22)=12,BG$10=2),2/(1+BG$13)^(BI22/360),1/(1+BG$13)^(BI22/360))),"") -> 0.9884773232 | BS22: =IFERROR(1/(1+BG$13)^(BI22/360),"") -> 0.9884773232 | BW22: 1 | BX22: =BX8 -> 2024-08-02 | BY22: =BX22-BX7 -> 31 | BZ22: =BY22 -> 31 | CA22: =BX3 -> 3200 | CB22: =IF(BW22>BX$6,"",CG22-CF22-CE22-CD22-CC22) -> 1.876850705 | CC22: =IF(BW22>BX$6,"",((1+BX$11)^(BY22/360)-1)*CA22) -> 36.31002324 | CD22: =IF(BW22>BX$6,"",((1+BX$12)^(BY22/30)-1)*CA22) -> 0.9920049595 | CE22: =IF(BW22>BX$6,"",BY$4*BX$14) -> 14.7 | CF22: =IF(BW22>BX$6,"",BX$15) -> 0 | CG22: =IF(BW22>BX$6,"",IF(BW22=BX$6,CA22+CC22+CD22+CE22+CF22,IF(AND(BX$9=2,MONTH(BX22)=7),2*BX$17,IF(AND(BX$10=2,MONTH(BX22)=12),2*BX$17,BX$17)))) -> 53.8788789 | CH22: =IF(BW22>BX$6,"",CA22-CB22) -> 3198.123149 | CI22: =IFERROR(IF(AND(MONTH(BX22)=7,BX$9=2),2/(1+BX$13)^(BZ22/360),IF(AND(MONTH(BX22)=12,BX$10=2),2/(1+BX$13)^(BZ22/360),1/(1+BX$13)^(BZ22/360))),"") -> 0.9884773232 | CJ22: =IFERROR(1/(1+BX$13)^(BZ22/360),"") -> 0.9884773232 | CN22: 1 | CO22: =CO8 -> 2024-08-02 | CP22: =CO22-CO7 -> 31 | CQ22: =CP22 -> 31 | CR22: =CO3 -> 3200 | CS22: =IF(CN22>CO$6,"",CX22-CW22-CV22-CU22-CT22) -> -5.671996891 | CT22: =IF(CN22>CO$6,"",((1+CO$11)^(CP22/360)-1)*CR22) -> 36.31002324 | CU22: =IF(CN22>CO$6,"",((1+CO$12)^(CP22/30)-1)*CR22) -> 0.9920049595 | CV22: =IF(CN22>CO$6,"",CP$4*CO$14) -> 14.7 | CW22: =IF(CN22>CO$6,"",CO$15) -> 0 | CX22: =IF(CN22>CO$6,"",IF(CN22=CO$6,CR22+CT22+CU22+CV22+CW22,IF(AND(CO$9=2,MONTH(CO22)=7),2*CO$17,IF(AND(CO$10=2,MONTH(CO22)=12),2*CO$17,CO$17)))) -> 46.3300313 | CY22: =IF(CN22>CO$6,"",CR22-CS22) -> 3205.671997 | CZ22: =IFERROR(IF(AND(MONTH(CO22)=7,CO$9=2),2/(1+CO$13)^(CQ22/360),IF(AND(MONTH(CO22)=12,CO$10=2),2/(1+CO$13)^(CQ22/360),1/(1+CO$13)^(CQ22/360))),"") -> 0.9884773232 | DA22: =IFERROR(1/(1+CO$13)^(CQ22/360),"") -> 0.9884773232
B23: 2 | C23: =IF(B23>C$6,"",EDATE(C$22,B22)) -> 2024-09-02 | D23: =IF(B23>C$6,"",C23-C22) -> 31 | E23: =IFERROR(D23+E22,"") -> 62 | F23: =IF(B23>C$6,"",M22) -> 3198.123149 | G23: 1.898728936 | H23: =IF(B23>C$6,"",((1+C$11)^(D23/360)-1)*F23) -> 36.28872683 | I23: =IF(B23>C$6,"",((1+C$12)^(D23/30)-1)*F23) -> 0.9914231329 | J23: =IF(B23>C$6,"",D$4*C$14) -> 14.7 | K23: 0 | L23: 53.8788789 | M23: =IF(B23>C$6,"",F23-G23) -> 3196.22442 | N23: =IFERROR(IF(AND(MONTH(C23)=7,C$9=2),2/(1+C$13)^(E23/360),IF(AND(MONTH(C23)=12,C$10=2),2/(1+C$13)^(E23/360),1/(1+C$13)^(E23/360))),"") -> 0.9770874184 | O23: =IFERROR(1/(1+C$13)^(E23/360),"") -> 0.9770874184 | Q23: =IFERROR(G23+H23+I23+J23+K23,"") -> 53.8788789 | R23: =E23 -> 62 | S23: =IFERROR((1+'Simulación Cliente'!$E$21)^(R23/360),"") -> 1.026795673 | T23: =IFERROR(ROUND(Q23/S23,2),"") -> 52.47 | X23: 2 | Y23: =IF(X23>Y$6,"",EDATE(Y$22,X22)) -> 2024-09-02 | Z23: =IF(X23>Y$6,"",Y23-Y22) -> 31 | AA23: =IFERROR(Z23+AA22,"") -> 62 | AB23: =IF(X23>Y$6,"",AI22) -> 3205.671997 | AC23: =IF(X23>Y$6,"",AH23-AG23-AF23-AE23-AD23) -> -5.7381147 | AD23: =IF(X23>Y$6,"",((1+Y$11)^(Z23/360)-1)*AB23) -> 36.37438272 | AE23: =IF(X23>Y$6,"",((1+Y$12)^(Z23/30)-1)*AB23) -> 0.9937632873 | AF23: =IF(X23>Y$6,"",Z$4*Y$14) -> 14.7 | AG23: 0 | AH23: 46.3300313 | AI23: 3211.410112 | AJ23: =IFERROR(IF(AND(MONTH(Y23)=7,Y$9=2),2/(1+Y$13)^(AA23/360),IF(AND(MONTH(Y23)=12,Y$10=2),2/(1+Y$13)^(AA23/360),1/(1+Y$13)^(AA23/360))),"") -> 0.9770874184 | AK23: =IFERROR(1/(1+Y$13)^(AA23/360),"") -> 0.9770874184 | AO23: 2 | AP23: =IF(AO23>AP$6,"",EDATE(AP$22,AO22)) -> 2024-09-02 | AQ23: =IF(AO23>AP$6,"",AP23-AP22) -> 31 | AR23: =IFERROR(AQ23+AR22,"") -> 62 | AS23: =IF(AO23>AP$6,"",AZ22) -> 3195.253197 | AT23: 4.802135619 | AU23: =IF(AO23>AP$6,"",((1+AP$11)^(AQ23/360)-1)*AS23) -> 36.25616183 | AV23: =IF(AO23>AP$6,"",((1+AP$12)^(AQ23/30)-1)*AS23) -> 0.9905334433 | AW23: =IF(AO23>AP$6,"",AQ$4*AP$14) -> 14.7 | AX23: 0 | AY23: 56.74883089 | AZ23: 3190.451062 | BA23: =IFERROR(IF(AND(MONTH(AP23)=7,AP$9=2),2/(1+AP$13)^(AR23/360),IF(AND(MONTH(AP23)=12,AP$10=2),2/(1+AP$13)^(AR23/360),1/(1+AP$13)^(AR23/360))),"") -> 0.9770874184 | BB23: =IFERROR(1/(1+AP$13)^(AR23/360),"") -> 0.9770874184 | BF23: 2 | BG23: =IF(BF23>BG$6,"",EDATE(BG$22,BF22)) -> 2024-09-02 | BH23: =IF(BF23>BG$6,"",BG23-BG22) -> 31 | BI23: =IFERROR(BH23+BI22,"") -> 62 | BJ23: =IF(BF23>BG$6,"",BQ22) -> 3203.20415 | BK23: -3.241500866 | BL23: =IF(BF23>BG$6,"",((1+BG$11)^(BH23/360)-1)*BJ23) -> 36.34638035 | BM23: 0.9929982511 | BN23: =IF(BF23>BG$6,"",BH$4*BG$14) -> 14.7 | BO23: 0 | BP23: 48.79787774 | BQ23: 3206.445651 | BR23: =IFERROR(IF(AND(MONTH(BG23)=7,BG$9=2),2/(1+BG$13)^(BI23/360),IF(AND(MONTH(BG23)=12,BG$10=2),2/(1+BG$13)^(BI23/360),1/(1+BG$13)^(BI23/360))),"") -> 0.9770874184 | BS23: =IFERROR(1/(1+BG$13)^(BI23/360),"") -> 0.9770874184 | BW23: 2 | BX23: =IF(BW23>BX$6,"",EDATE(BX$22,BW22)) -> 2024-09-02 | BY23: =IF(BW23>BX$6,"",BX23-BX22) -> 31 | BZ23: =IFERROR(BY23+BZ22,"") -> 62 | CA23: =IF(BW23>BX$6,"",CH22) -> 3198.123149 | CB23: 1.898728936 | CC23: =IF(BW23>BX$6,"",((1+BX$11)^(BY23/360)-1)*CA23) -> 36.28872683 | CD23: 0.9914231329 | CE23: =IF(BW23>BX$6,"",BY$4*BX$14) -> 14.7 | CF23: 0 | CG23: 53.8788789 | CH23: 3196.22442 | CI23: =IFERROR(IF(AND(MONTH(BX23)=7,BX$9=2),2/(1+BX$13)^(BZ23/360),IF(AND(MONTH(BX23)=12,BX$10=2),2/(1+BX$13)^(BZ23/360),1/(1+BX$13)^(BZ23/360))),"") -> 0.9770874184 | CJ23: =IFERROR(1/(1+BX$13)^(BZ23/360),"") -> 0.9770874184 | CN23: 2 | CO23: =IF(CN23>CO$6,"",EDATE(CO$22,CN22)) -> 2024-09-02 | CP23: =IF(CN23>CO$6,"",CO23-CO22) -> 31 | CQ23: =IFERROR(CP23+CQ22,"") -> 62 | CR23: =IF(CN23>CO$6,"",CY22) -> 3205.671997 | CS23: =IF(CN23>CO$6,"",CX23-CW23-CV23-CU23-CT23) -> -5.7381147 | CT23: =IF(CN23>CO$6,"",((1+CO$11)^(CP23/360)-1)*CR23) -> 36.37438272 | CU23: 0.9937632873 | CV23: =IF(CN23>CO$6,"",CP$4*CO$14) -> 14.7 | CW23: 0 | CX23: =IF(CN23>CO$6,"",IF(CN23=CO$6,CR23+CT23+CU23+CV23+CW23,IF(AND(CO$9=2,MONTH(CO23)=7),2*CO$17,IF(AND(CO$10=2,MONTH(CO23)=12),2*CO$17,CO$17)))) -> 46.3300313 | CY23: 3211.410112 | CZ23: =IFERROR(IF(AND(MONTH(CO23)=7,CO$9=2),2/(1+CO$13)^(CQ23/360),IF(AND(MONTH(CO23)=12,CO$10=2),2/(1+CO$13)^(CQ23/360),1/(1+CO$13)^(CQ23/360))),"") -> 0.9770874184 | DA23: =IFERROR(1/(1+CO$13)^(CQ23/360),"") -> 0.9770874184
B24: 3 | C24: 2024-10-02 | D24: =IF(B24>C$6,"",C24-C23) -> 30 | E24: 92 | F24: 3196.22442 | G24: =IF(B24>C$6,"",L24-K24-J24-I24-H24) -> 3.129136864 | H24: =IF(B24>C$6,"",((1+C$11)^(D24/360)-1)*F24) -> 35.09087471 | I24: 0.9588673261 | J24: 14.7 | K24: 0 | L24: 53.8788789 | M24: 3193.095283 | N24: 0.9661899055 | O24: 0.9661899055 | Q24: 53.8788789 | R24: 92 | S24: =IFERROR((1+'Simulación Cliente'!$E$21)^(R24/360),"") -> 1.04001791 | T24: 51.81 | X24: 3 | Y24: 2024-10-02 | Z24: =IF(X24>Y$6,"",Y24-Y23) -> 30 | AA24: 92 | AB24: 3211.410112 | AC24: =IF(X24>Y$6,"",AH24-AG24-AF24-AE24-AD24) -> -4.590987895 | AD24: =IF(X24>Y$6,"",((1+Y$11)^(Z24/360)-1)*AB24) -> 35.25759617 | AE24: 0.9634230335 | AF24: 14.7 | AG24: 0 | AH24: 46.3300313 | AI24: 3216.001099 | AJ24: 0.9661899055 | AK24: 0.9661899055 | AO24: 3 | AP24: 2024-10-02 | AQ24: =IF(AO24>AP$6,"",AP24-AP23) -> 30 | AR24: 92 | AS24: 3190.451062 | AT24: =IF(AO24>AP$6,"",AY24-AX24-AW24-AV24-AU24) -> 6.064205708 | AU24: =IF(AO24>AP$6,"",((1+AP$11)^(AQ24/360)-1)*AS24) -> 35.02748986 | AV24: =IF(AO24>AP$6,"",((1+AP$12)^(AQ24/30)-1)*AS24) -> 0.9571353185 | AW24: 14.7 | AX24: 0 | AY24: 56.74883089 | AZ24: 3184.386856 | BA24: 0.9661899055 | BB24: 0.9661899055 | BF24: 3 | BG24: 2024-10-02 | BH24: =IF(BF24>BG$6,"",BG24-BG23) -> 30 | BI24: 92 | BJ24: 3206.445651 | BK24: =IF(BF24>BG$6,"",BP24-BO24-BN24-BM24-BL24) -> -2.067148048 | BL24: =IF(BF24>BG$6,"",((1+BG$11)^(BH24/360)-1)*BJ24) -> 35.20309209 | BM24: 0.9619336954 | BN24: 14.7 | BO24: 0 | BP24: 48.79787774 | BQ24: 3208.512799 | BR24: 0.9661899055 | BS24: 0.9661899055 | BW24: 3 | BX24: 2024-10-02 | BY24: =IF(BW24>BX$6,"",BX24-BX23) -> 30 | BZ24: 92 | CA24: 3196.22442 | CB24: =IF(BW24>BX$6,"",CG24-CF24-CE24-CD24-CC24) -> 3.129136864 | CC24: =IF(BW24>BX$6,"",((1+BX$11)^(BY24/360)-1)*CA24) -> 35.09087471 | CD24: 0.9588673261 | CE24: 14.7 | CF24: 0 | CG24: 53.8788789 | CH24: 3193.095283 | CI24: 0.9661899055 | CJ24: 0.9661899055 | CN24: 3 | CO24: 2024-10-02 | CP24: =IF(CN24>CO$6,"",CO24-CO23) -> 30 | CQ24: 92 | CR24: 3211.410112 | CS24: =IF(CN24>CO$6,"",CX24-CW24-CV24-CU24-CT24) -> -4.590987895 | CT24: =IF(CN24>CO$6,"",((1+CO$11)^(CP24/360)-1)*CR24) -> 35.25759617 | CU24: 0.9634230335 | CV24: 14.7 | CW24: 0 | CX24: 46.3300313 | CY24: 3216.001099 | CZ24: 0.9661899055 | DA24: 0.9661899055
B25: 4 | C25: 2024-11-02 | D25: 31 | E25: 123 | F25: 3193.095283 | G25: 1.957338183 | H25: 36.23167623 | I25: 0.9898644867 | J25: 14.7 | K25: 0 | L25: 53.8788789 | M25: 3191.137945 | N25: 0.9550568115 | O25: 0.9550568115 | Q25: 53.8788789 | R25: 123 | S25: =IFERROR((1+'Simulación Cliente'!$E$21)^(R25/360),"") -> 1.053859788 | T25: 51.13 | X25: 4 | Y25: 2024-11-02 | Z25: =IF(X25>Y$6,"",Y25-Y24) -> 31 | AA25: 123 | AB25: 3216.001099 | AC25: =IF(X25>Y$6,"",AH25-AG25-AF25-AE25-AD25) -> -5.858519849 | AD25: 36.49158583 | AE25: 0.9969653252 | AF25: 14.7 | AG25: 0 | AH25: 46.3300313 | AI25: 3221.859619 | AJ25: 0.9550568115 | AK25: 0.9550568115 | AO25: 4 | AP25: 2024-11-02 | AQ25: =IF(AO25>AP$6,"",AP25-AP24) -> 31 | AR25: 123 | AS25: 3184.386856 | AT25: =IF(AO25>AP$6,"",AY25-AX25-AW25-AV25-AU25) -> 4.928803297 | AU25: 36.13286273 | AV25: 0.9871648607 | AW25: 14.7 | AX25: 0 | AY25: 56.74883089 | AZ25: 3179.458053 | BA25: 0.9550568115 | BB25: 0.9550568115 | BF25: 4 | BG25: 2024-11-02 | BH25: =IF(BF25>BG$6,"",BG25-BG24) -> 31 | BI25: 123 | BJ25: 3208.512799 | BK25: =IF(BF25>BG$6,"",BP25-BO25-BN25-BM25-BL25) -> -3.30338317 | BL25: 36.40661697 | BM25: 0.9946439405 | BN25: 14.7 | BO25: 0 | BP25: 48.79787774 | BQ25: 3211.816183 | BR25: 0.9550568115 | BS25: 0.9550568115 | BW25: 4 | BX25: 2024-11-02 | BY25: =IF(BW25>BX$6,"",BX25-BX24) -> 31 | BZ25: 123 | CA25: 3193.095283 | CB25: =IF(BW25>BX$6,"",CG25-CF25-CE25-CD25-CC25) -> 1.957338183 | CC25: 36.23167623 | CD25: 0.9898644867 | CE25: 14.7 | CF25: 0 | CG25: 53.8788789 | CH25: 3191.137945 | CI25: 0.9550568115 | CJ25: 0.9550568115 | CN25: 4 | CO25: 2024-11-02 | CP25: =IF(CN25>CO$6,"",CO25-CO24) -> 31 | CQ25: 123 | CR25: 3216.001099 | CS25: =IF(CN25>CO$6,"",CX25-CW25-CV25-CU25-CT25) -> -5.858519849 | CT25: 36.49158583 | CU25: 0.9969653252 | CV25: 14.7 | CW25: 0 | CX25: 46.3300313 | CY25: 3221.859619 | CZ25: 0.9550568115 | DA25: 0.9550568115
B26: 5 | C26: 2024-12-02 | D26: 30 | E26: 153 | F26: 3191.137945 | G26: 3.186506463 | H26: 35.03503105 | I26: 0.9573413836 | J26: 14.7 | K26: 0 | L26: 53.8788789 | M26: 3187.951439 | N26: 0.9444050072 | O26: 0.9444050072 | Q26: 53.8788789 | R26: 153 | S26: =IFERROR((1+'Simulación Cliente'!$E$21)^(R26/360),"") -> 1.067430535 | T26: 50.48 | X26: 5 | Y26: 2024-12-02 | Z26: 30 | AA26: 153 | AB26: 3221.859619 | AC26: 41.62118496 | AD26: 35.37231976 | AE26: 0.9665578858 | AF26: 14.7 | AG26: 0 | AH26: 92.66006261 | AI26: 3180.238434 | AJ26: 1.888810014 | AK26: 0.9444050072 | AO26: 5 | AP26: 2024-12-02 | AQ26: 30 | AR26: 153 | AS26: 3179.458053 | AT26: 6.188194229 | AU26: 34.90679924 | AV26: 0.9538374158 | AW26: 14.7 | AX26: 0 | AY26: 56.74883089 | AZ26: 3173.269858 | BA26: 0.9444050072 | BB26: 0.9444050072 | BF26: 5 | BG26: 2024-12-02 | BH26: 30 | BI26: 153 | BJ26: 3211.816183 | BK26: 46.67015626 | BL26: 35.26205436 | BM26: 0.9635448548 | BN26: 14.7 | BO26: 0 | BP26: 97.59575548 | BQ26: 3165.146026 | BR26: 1.888810014 | BS26: 0.9444050072 | BW26: 5 | BX26: 2024-12-02 | BY26: 30 | BZ26: 153 | CA26: 3191.137945 | CB26: 3.186506463 | CC26: 35.03503105 | CD26: 0.9573413836 | CE26: 14.7 | CF26: 0 | CG26: 53.8788789 | CH26: 3187.951439 | CI26: 0.9444050072 | CJ26: 0.9444050072 | CN26: 5 | CO26: 2024-12-02 | CP26: 30 | CQ26: 153 | CR26: 3221.859619 | CS26: 41.62118496 | CT26: 35.37231976 | CU26: 0.9665578858 | CV26: 14.7 | CW26: 0 | CX26: 92.66006261 | CY26: 3180.238434 | CZ26: 1.888810014 | DA26: 0.9444050072
B27: 6 | C27: 2025-01-02 | D27: 31 | E27: 184 | F27: 3187.951439 | G27: 2.017299383 | H27: 36.17330963 | I27: 0.9882698869 | J27: 14.7 | K27: 0 | L27: 53.8788789 | M27: 3185.934139 | N27: 0.9335229335 | O27: 0.9335229335 | Q27: 53.8788789 | R27: 184 | S27: =IFERROR((1+'Simulación Cliente'!$E$21)^(R27/360),"") -> 1.081637254 | T27: 49.81 | X27: 6 | Y27: 2025-01-02 | Z27: 31 | AA27: 184 | AB27: 3180.238434 | AC27: -5.441638617 | AD27: 36.08579108 | AE27: 0.9858788435 | AF27: 14.7 | AG27: 0 | AH27: 46.3300313 | AI27: 3185.680073 | AJ27: 0.9335229335 | AK27: 0.9335229335 | AO27: 6 | AP27: 2025-01-02 | AQ27: 31 | AR27: 184 | AS27: 3173.269858 | AT27: 5.058392846 | AU27: 36.00671947 | AV27: 0.9837185742 | AW27: 14.7 | AX27: 0 | AY27: 56.74883089 | AZ27: 3168.211466 | BA27: 0.9335229335 | BB27: 0.9335229335 | BF27: 6 | BG27: 2025-01-02 | BH27: 31 | BI27: 184 | BJ27: 3165.146026 | BK27: -2.797861734 | BL27: 35.9145393 | BM27: 0.9812001736 | BN27: 14.7 | BO27: 0 | BP27: 48.79787774 | BQ27: 3167.943888 | BR27: 0.9335229335 | BS27: 0.9335229335 | BW27: 6 | BX27: 2025-01-02 | BY27: 31 | BZ27: 184 | CA27: 3187.951439 | CB27: 2.017299383 | CC27: 36.17330963 | CD27: 0.9882698869 | CE27: 14.7 | CF27: 0 | CG27: 53.8788789 | CH27: 3185.934139 | CI27: 0.9335229335 | CJ27: 0.9335229335 | CN27: 6 | CO27: 2025-01-02 | CP27: 31 | CQ27: 184 | CR27: 3180.238434 | CS27: -5.441638617 | CT27: 36.08579108 | CU27: 0.9858788435 | CV27: 14.7 | CW27: 0 | CX27: 46.3300313 | CY27: 3185.680073 | CZ27: 0.9335229335 | DA27: 0.9335229335
B28: 7 | C28: 2025-02-02 | D28: 31 | E28: 215 | F28: 3185.934139 | G28: 2.040814807 | H28: 36.15041957 | I28: 0.987644521 | J28: 14.7 | K28: 0 | L28: 53.8788789 | M28: 3183.893325 | N28: 0.9227662504 | O28: 0.9227662504 | Q28: 53.8788789 | R28: 215 | S28: =IFERROR((1+'Simulación Cliente'!$E$21)^(R28/360),"") -> 1.096033054 | T28: 49.16 | X28: 7 | Y28: 2025-02-02 | Z28: 31 | AA28: 215 | AB28: 3185.680073 | AC28: -5.505071166 | AD28: 36.14753671 | AE28: 0.98756576 | AF28: 14.7 | AG28: 0 | AH28: 46.3300313 | AI28: 3191.185144 | AJ28: 0.9227662504 | AK28: 0.9227662504 | AO28: 7 | AP28: 2025-02-02 | AQ28: 31 | AR28: 215 | AS28: 3168.211466 | AT28: 5.117357943 | AU28: 35.94932248 | AV28: 0.9821504646 | AW28: 14.7 | AX28: 0 | AY28: 56.74883089 | AZ28: 3163.094108 | BA28: 0.9227662504 | BB28: 0.9227662504 | BF28: 7 | BG28: 2025-02-02 | BH28: 31 | BI28: 215 | BJ28: 3167.943888 | BK28: -2.830476084 | BL28: 35.94628631 | BM28: 0.9820675151 | BN28: 14.7 | BO28: 0 | BP28: 48.79787774 | BQ28: 3170.774364 | BR28: 0.9227662504 | BS28: 0.9227662504 | BW28: 7 | BX28: 2025-02-02 | BY28: 31 | BZ28: 215 | CA28: 3185.934139 | CB28: 2.040814807 | CC28: 36.15041957 | CD28: 0.987644521 | CE28: 14.7 | CF28: 0 | CG28: 53.8788789 | CH28: 3183.893325 | CI28: 0.9227662504 | CJ28: 0.9227662504 | CN28: 7 | CO28: 2025-02-02 | CP28: 31 | CQ28: 215 | CR28: 3185.680073 | CS28: -5.505071166 | CT28: 36.14753671 | CU28: 0.98756576 | CV28: 14.7 | CW28: 0 | CX28: 46.3300313 | CY28: 3191.185144 | CZ28: 0.9227662504 | DA28: 0.9227662504
B29: 8 | C29: 2025-03-02 | D29: 28 | E29: 243 | F29: 3183.893325 | G29: 5.67416368 | H29: 32.613234 | I29: 0.891481217 | J29: 14.7 | K29: 0 | L29: 53.8788789 | M29: 3178.219161 | N29: 0.9131571104 | O29: 0.9131571104 | Q29: 53.8788789 | R29: 243 | S29: =IFERROR((1+'Simulación Cliente'!$E$21)^(R29/360),"") -> 1.109200324 | T29: 48.57 | X29: 8 | Y29: 2025-03-02 | Z29: 28 | AA29: 243 | AB29: 3191.185144 | AC29: -1.95141712 | AD29: 32.68792552 | AE29: 0.893522906 | AF29: 14.7 | AG29: 0 | AH29: 46.3300313 | AI29: 3193.136561 | AJ29: 0.9131571104 | AK29: 0.9131571104 | AO29: 8 | AP29: 2025-03-02 | AQ29: 28 | AR29: 243 | AS29: 3163.094108 | AT29: 8.762989784 | AU29: 32.40018361 | AV29: 0.8856574944 | AW29: 14.7 | AX29: 0 | AY29: 56.74883089 | AZ29: 3154.331118 | BA29: 0.9131571104 | BB29: 0.9131571104 | BF29: 8 | BG29: 2025-03-02 | BH29: 28 | BI29: 243 | BJ29: 3170.774364 | BK29: 0.7312158365 | BL29: 32.47885396 | BM29: 0.8878079447 | BN29: 14.7 | BO29: 0 | BP29: 48.79787774 | BQ29: 3170.043148 | BR29: 0.9131571104 | BS29: 0.9131571104 | BW29: 8 | BX29: 2025-03-02 | BY29: 28 | BZ29: 243 | CA29: 3183.893325 | CB29: 5.67416368 | CC29: 32.613234 | CD29: 0.891481217 | CE29: 14.7 | CF29: 0 | CG29: 53.8788789 | CH29: 3178.219161 | CI29: 0.9131571104 | CJ29: 0.9131571104 | CN29: 8 | CO29: 2025-03-02 | CP29: 28 | CQ29: 243 | CR29: 3191.185144 | CS29: -1.95141712 | CT29: 32.68792552 | CU29: 0.893522906 | CV29: 14.7 | CW29: 0 | CX29: 46.3300313 | CY29: 3193.136561 | CZ29: 0.9131571104 | DA29: 0.9131571104
B30: 9 | C30: 2025-04-02 | D30: 31 | E30: 274 | F30: 3178.219161 | G30: 2.130747415 | H30: 36.06287862 | I30: 0.9852528657 | J30: 14.7 | K30: 0 | L30: 53.8788789 | M30: 3176.088414 | N30: 0.9026350961 | O30: 0.9026350961 | Q30: 53.8788789 | R30: 274 | S30: =IFERROR((1+'Simulación Cliente'!$E$21)^(R30/360),"") -> 1.123962969 | T30: 47.94 | X30: 9 | Y30: 2025-04-02 | Z30: 31 | AA30: 274 | AB30: 3193.136561 | AC30: -5.591990584 | AD30: 36.23214461 | AE30: 0.9898772829 | AF30: 14.7 | AG30: 0 | AH30: 46.3300313 | AI30: 3198.728552 | AJ30: 0.9026350961 | AK30: 0.9026350961 | AO30: 9 | AP30: 2025-04-02 | AQ30: 31 | AR30: 274 | AS30: 3154.331118 | AT30: 5.279159544 | AU30: 35.79182381 | AV30: 0.9778475353 | AW30: 14.7 | AX30: 0 | AY30: 56.74883089 | AZ30: 3149.051958 | BA30: 0.9026350961 | BB30: 0.9026350961 | BF30: 9 | BG30: 2025-04-02 | BH30: 31 | BI30: 274 | BJ30: 3170.043148 | BK30: -2.854946916 | BL30: 35.97010637 | BM30: 0.9827182891 | BN30: 14.7 | BO30: 0 | BP30: 48.79787774 | BQ30: 3172.898095 | BR30: 0.9026350961 | BS30: 0.9026350961 | BW30: 9 | BX30: 2025-04-02 | BY30: 31 | BZ30: 274 | CA30: 3178.219161 | CB30: 2.130747415 | CC30: 36.06287862 | CD30: 0.9852528657 | CE30: 14.7 | CF30: 0 | CG30: 53.8788789 | CH30: 3176.088414 | CI30: 0.9026350961 | CJ30: 0.9026350961 | CN30: 9 | CO30: 2025-04-02 | CP30: 31 | CQ30: 274 | CR30: 3193.136561 | CS30: -5.591990584 | CT30: 36.23214461 | CU30: 0.9898772829 | CV30: 14.7 | CW30: 0 | CX30: 46.3300313 | CY30: 3198.728552 | CZ30: 0.9026350961 | DA30: 0.9026350961
B31: 10 | C31: 2025-05-02 | D31: 30 | E31: 304 | F31: 3176.088414 | G31: 3.356247904 | H31: 34.86980447 | I31: 0.9528265241 | J31: 14.7 | K31: 0 | L31: 53.8788789 | M31: 3172.732166 | N31: 0.8925679543 | O31: 0.8925679543 | Q31: 53.8788789 | R31: =E31 -> 304 | S31: =IFERROR((1+'Simulación Cliente'!$E$21)^(R31/360),"") -> 1.138436448 | T31: 47.33 | X31: 10 | Y31: 2025-05-02 | Z31: 30 | AA31: 304 | AB31: 3198.728552 | AC31: -4.447954461 | AD31: 35.1183672 | AE31: 0.9596185656 | AF31: 14.7 | AG31: 0 | AH31: 46.3300313 | AI31: 3203.176506 | AJ31: 0.8925679543 | AK31: 0.8925679543 | AO31: 10 | AP31: 2025-05-02 | AQ31: 30 | AR31: 304 | AS31: 3149.051958 | AT31: 6.531140066 | AU31: 34.57297523 | AV31: 0.9447155875 | AW31: 14.7 | AX31: 0 | AY31: 56.74883089 | AZ31: 3142.520818 | BA31: 0.8925679543 | BB31: 0.8925679543 | BF31: 10 | BG31: 2025-05-02 | BH31: 30 | BI31: 304 | BJ31: 3172.898095 | BK31: -1.688770129 | BL31: 34.83477844 | BM31: 0.9518694286 | BN31: 14.7 | BO31: 0 | BP31: 48.79787774 | BQ31: 3174.586865 | BR31: 0.8925679543 | BS31: 0.8925679543 | BW31: 10 | BX31: 2025-05-02 | BY31: 30 | BZ31: 304 | CA31: 3176.088414 | CB31: 3.356247904 | CC31: 34.86980447 | CD31: 0.9528265241 | CE31: 14.7 | CF31: 0 | CG31: 53.8788789 | CH31: 3172.732166 | CI31: 0.8925679543 | CJ31: 0.8925679543 | CN31: 10 | CO31: 2025-05-02 | CP31: 30 | CQ31: 304 | CR31: 3198.728552 | CS31: -4.447954461 | CT31: 35.1183672 | CU31: 0.9596185656 | CV31: 14.7 | CW31: 0 | CX31: 46.3300313 | CY31: 3203.176506 | CZ31: 0.8925679543 | DA31: 0.8925679543
B32: 11 | C32: 2025-06-02 | D32: 31 | E32: 335 | F32: 3172.732166 | G32: 2.194708682 | H32: 36.00061833 | I32: 0.9835518886 | J32: 14.7 | K32: 0 | L32: 53.8788789 | M32: 3170.537457 | N32: 0.8822831822 | O32: 0.8822831822 | Q32: 53.8788789 | R32: 335 | S32: =IFERROR((1+'Simulación Cliente'!$E$21)^(R32/360),"") -> 1.153588204 | T32: 46.71 | X32: 11 | Y32: 2025-06-02 | Z32: 31 | AA32: 335 | AB32: 3203.176506 | AC32: -5.709025056 | AD32: 36.34606668 | AE32: 0.9929896814 | AF32: 14.7 | AG32: 0 | AH32: 46.3300313 | AI32: 3208.885531 | AJ32: 0.8822831822 | AK32: 0.8822831822 | AO32: 11 | AP32: 2025-06-02 | AQ32: 31 | AR32: 335 | AS32: 3142.520818 | AT32: 5.416830834 | AU32: 35.65781373 | AV32: 0.9741863241 | AW32: 14.7 | AX32: 0 | AY32: 56.74883089 | AZ32: 3137.103987 | BA32: 0.8822831822 | BB32: 0.8822831822 | BF32: 11 | BG32: 2025-06-02 | BH32: 31 | BI32: 335 | BJ32: 3174.586865 | BK32: -2.907912498 | BL32: 36.02166339 | BM32: 0.9841268484 | BN32: 14.7 | BO32: 0 | BP32: 48.79787774 | BQ32: 3177.494778 | BR32: 0.8822831822 | BS32: 0.8822831822 | BW32: 11 | BX32: 2025-06-02 | BY32: 31 | BZ32: 335 | CA32: 3172.732166 | CB32: 2.194708682 | CC32: 36.00061833 | CD32: 0.9835518886 | CE32: 14.7 | CF32: 0 | CG32: 53.8788789 | CH32: 3170.537457 | CI32: 0.8822831822 | CJ32: 0.8822831822 | CN32: 11 | CO32: 2025-06-02 | CP32: 31 | CQ32: 335 | CR32: 3203.176506 | CS32: -5.709025056 | CT32: 36.34606668 | CU32: 0.9929896814 | CV32: 14.7 | CW32: 0 | CX32: 46.3300313 | CY32: 3208.885531 | CZ32: 0.8822831822 | DA32: 0.8822831822
B33: 12 | C33: 2025-07-02 | D33: 30 | E33: 365 | F33: 3170.537457 | G33: 3.418856321 | H33: 34.80886134 | I33: 0.9511612371 | J33: 14.7 | K33: 0 | L33: 53.8788789 | M33: 3167.118601 | N33: 0.8724430265 | O33: 0.8724430265 | Q33: 53.8788789 | R33: 365 | S33: =IFERROR((1+'Simulación Cliente'!$E$21)^(R33/360),"") -> 1.168443172 | T33: 46.11 | X33: 12 | Y33: 2025-07-02 | Z33: 30 | AA33: 365 | AB33: 3208.885531 | AC33: 41.76751778 | AD33: 35.22987917 | AE33: 0.9626656594 | AF33: 14.7 | AG33: 0 | AH33: 92.66006261 | AI33: 3167.118014 | AJ33: 1.744886053 | AK33: 0.8724430265 | AO33: 12 | AP33: 2025-07-02 | AQ33: 30 | AR33: 365 | AS33: 3137.103987 | AT33: 6.665899461 | AU33: 34.44180023 | AV33: 0.9411311962 | AW33: 14.7 | AX33: 0 | AY33: 56.74883089 | AZ33: 3130.438088 | BA33: 0.8724430265 | BB33: 0.8724430265 | BF33: 12 | BG33: 2025-07-02 | BH33: 30 | BI33: 365 | BJ33: 3177.494778 | BK33: 47.05726231 | BL33: 34.88524474 | BM33: 0.9532484333 | BN33: 14.7 | BO33: 0 | BP33: 97.59575548 | BQ33: 3130.437515 | BR33: 1.744886053 | BS33: 0.8724430265 | BW33: 12 | BX33: 2025-07-02 | BY33: 30 | BZ33: 365 | CA33: 3170.537457 | CB33: 3.418856321 | CC33: 34.80886134 | CD33: 0.9511612371 | CE33: 14.7 | CF33: 0 | CG33: 53.8788789 | CH33: 3167.118601 | CI33: 0.8724430265 | CJ33: 0.8724430265 | CN33: 12 | CO33: 2025-07-02 | CP33: 30 | CQ33: 365 | CR33: 3208.885531 | CS33: 41.76751778 | CT33: 35.22987917 | CU33: 0.9626656594 | CV33: 14.7 | CW33: 0 | CX33: 92.66006261 | CY33: 3167.118014 | CZ33: 1.744886053 | DA33: 0.8724430265
B34: 13 | C34: 2025-08-02 | D34: 31 | E34: 396 | F34: 3167.118601 | G34: 2.260145357 | H34: 35.93692187 | I34: 0.9818116748 | J34: 14.7 | K34: 0 | L34: 53.8788789 | M34: 3164.858455 | N34: 0.8623901474 | O34: 0.8623901474 | Q34: 53.8788789 | R34: 396 | S34: =IFERROR((1+'Simulación Cliente'!$E$21)^(R34/360),"") -> 1.183994295 | T34: 45.51 | X34: 13 | Y34: 2025-08-02 | Z34: 31 | AA34: 396 | AB34: 3167.118014 | AC34: -5.288695396 | AD34: 35.93691521 | AE34: 0.9818114928 | AF34: 14.7 | AG34: 0 | AH34: 46.3300313 | AI34: 3172.406709 | AJ34: 0.8623901474 | AK34: 0.8623901474 | AO34: 13 | AP34: 2025-08-02 | AQ34: 31 | AR34: 396 | AS34: 3130.438088 | AT34: 5.557677817 | AU34: 35.52071241 | AV34: 0.970440659 | AW34: 14.7 | AX34: 0 | AY34: 56.74883089 | AZ34: 3124.88041 | BA34: 0.8623901474 | BB34: 0.8623901474 | BF34: 13 | BG34: 2025-08-02 | BH34: 31 | BI34: 396 | BJ34: 3130.437515 | BK34: -2.393268657 | BL34: 35.52070591 | BM34: 0.9704404815 | BN34: 14.7 | BO34: 0 | BP34: 48.79787774 | BQ34: 3132.830784 | BR34: 0.8623901474 | BS34: 0.8623901474 | BW34: 13 | BX34: 2025-08-02 | BY34: 31 | BZ34: 396 | CA34: 3167.118601 | CB34: 2.260145357 | CC34: 35.93692187 | CD34: 0.9818116748 | CE34: 14.7 | CF34: 0 | CG34: 53.8788789 | CH34: 3164.858455 | CI34: 0.8623901474 | CJ34: 0.8623901474 | CN34: 13 | CO34: 2025-08-02 | CP34: 31 | CQ34: 396 | CR34: 3167.118014 | CS34: -5.288695396 | CT34: 35.93691521 | CU34: 0.9818114928 | CV34: 14.7 | CW34: 0 | CX34: 46.3300313 | CY34: 3172.406709 | CZ34: 0.8623901474 | DA34: 0.8623901474
B35: 14 | C35: 2025-09-02 | D35: 31 | E35: 427 | F35: 3164.858455 | G35: 2.286491609 | H35: 35.91127627 | I35: 0.9811110262 | J35: 14.7 | K35: 0 | L35: 53.8788789 | M35: 3162.571964 | N35: 0.8524531045 | O35: 0.8524531045 | Q35: 53.8788789 | R35: 427 | S35: =IFERROR((1+'Simulación Cliente'!$E$21)^(R35/360),"") -> 1.199752393 | T35: 44.91 | X35: 14 | Y35: 2025-09-02 | Z35: 31 | AA35: 427 | AB35: 3172.406709 | AC35: -5.350345104 | AD35: 35.99692541 | AE35: 0.9834509965 | AF35: 14.7 | AG35: 0 | AH35: 46.3300313 | AI35: 3177.757054 | AJ35: 0.8524531045 | AK35: 0.8524531045 | AO35: 14 | AP35: 2025-09-02 | AQ35: 31 | AR35: 427 | AS35: 3124.88041 | AT35: 5.622463022 | AU35: 35.45765009 | AV35: 0.9687177702 | AW35: 14.7 | AX35: 0 | AY35: 56.74883089 | AZ35: 3119.257947 | BA35: 0.8524531045 | BB35: 0.8524531045 | BF35: 14 | BG35: 2025-09-02 | BH35: 31 | BI35: 427 | BJ35: 3132.830784 | BK35: -2.421166712 | BL35: 35.54786205 | BM35: 0.9711823985 | BN35: 14.7 | BO35: 0 | BP35: 48.79787774 | BQ35: 3135.251951 | BR35: 0.8524531045 | BS35: 0.8524531045 | BW35: 14 | BX35: 2025-09-02 | BY35: 31 | BZ35: 427 | CA35: 3164.858455 | CB35: 2.286491609 | CC35: 35.91127627 | CD35: 0.9811110262 | CE35: 14.7 | CF35: 0 | CG35: 53.8788789 | CH35: 3162.571964 | CI35: 0.8524531045 | CJ35: 0.8524531045 | CN35: 14 | CO35: 2025-09-02 | CP35: 31 | CQ35: 427 | CR35: 3172.406709 | CS35: -5.350345104 | CT35: 35.99692541 | CU35: 0.9834509965 | CV35: 14.7 | CW35: 0 | CX35: 46.3300313 | CY35: 3177.757054 | CZ35: 0.8524531045 | DA35: 0.8524531045
B36: 15 | C36: 2025-10-02 | D36: 30 | E36: 457 | F36: 3162.571964 | G36: 3.508697941 | H36: 34.72140937 | I36: 0.9487715891 | J36: 14.7 | K36: 0 | L36: 53.8788789 | M36: 3159.063266 | N36: 0.8429456453 | O36: 0.8429456453 | Q36: 53.8788789 | R36: 457 | S36: =IFERROR((1+'Simulación Cliente'!$E$21)^(R36/360),"") -> 1.215201826 | T36: 44.34 | X36: 15 | Y36: 2025-10-02 | Z36: 30 | AA36: 457 | AB36: 3177.757054 | AC36: -4.211420042 | AD36: 34.88812423 | AE36: 0.9533271162 | AF36: 14.7 | AG36: 0 | AH36: 46.3300313 | AI36: 3181.968474 | AJ36: 0.8429456453 | AK36: 0.8429456453 | AO36: 15 | AP36: 2025-10-02 | AQ36: 30 | AR36: 457 | AS36: 3119.257947 | AT36: 6.867182307 | AU36: 34.2458712 | AV36: 0.9357773841 | AW36: 14.7 | AX36: 0 | AY36: 56.74883089 | AZ36: 3112.390765 | BA36: 0.8429456453 | BB36: 0.8429456453 | BF36: 15 | BG36: 2025-10-02 | BH36: 30 | BI36: 457 | BJ36: 3135.251951 | BK36: -1.264164841 | BL36: 34.421467 | BM36: 0.9405755853 | BN36: 14.7 | BO36: 0 | BP36: 48.79787774 | BQ36: 3136.516116 | BR36: 0.8429456453 | BS36: 0.8429456453 | BW36: 15 | BX36: 2025-10-02 | BY36: 30 | BZ36: 457 | CA36: 3162.571964 | CB36: 3.508697941 | CC36: 34.72140937 | CD36: 0.9487715891 | CE36: 14.7 | CF36: 0 | CG36: 53.8788789 | CH36: 3159.063266 | CI36: 0.8429456453 | CJ36: 0.8429456453 | CN36: 15 | CO36: 2025-10-02 | CP36: 30 | CQ36: 457 | CR36: 3177.757054 | CS36: -4.211420042 | CT36: 34.88812423 | CU36: 0.9533271162 | CV36: 14.7 | CW36: 0 | CX36: 46.3300313 | CY36: 3181.968474 | CZ36: 0.8429456453 | DA36: 0.8429456453
B37: 16 | C37: 2025-11-02 | D37: 31 | E37: 488 | F37: 3159.063266 | G37: 2.35404546 | H37: 35.84551893 | I37: 0.9793145085 | J37: 14.7 | K37: 0 | L37: 53.8788789 | M37: 3156.70922 | N37: 0.8332326551 | O37: 0.8332326551 | Q37: 53.8788789 | R37: 488 | S37: =IFERROR((1+'Simulación Cliente'!$E$21)^(R37/360),"") -> 1.231375273 | T37: 43.76 | X37: 16 | Y37: 2025-11-02 | Z37: 31 | AA37: 488 | AB37: 3181.968474 | AC37: -5.46180549 | AD37: 36.10542164 | AE37: 0.9864151586 | AF37: 14.7 | AG37: 0 | AH37: 46.3300313 | AI37: 3187.43028 | AJ37: 0.8332326551 | AK37: 0.8332326551 | AO37: 16 | AP37: 2025-11-02 | AQ37: 31 | AR37: 488 | AS37: 3112.390765 | AT37: 5.768053366 | AU37: 35.31593156 | AV37: 0.9648459608 | AW37: 14.7 | AX37: 0 | AY37: 56.74883089 | AZ37: 3106.622711 | BA37: 0.8332326551 | BB37: 0.8332326551 | BF37: 16 | BG37: 2025-11-02 | BH37: 31 | BI37: 488 | BJ37: 3136.516116 | BK37: -2.464126193 | BL37: 35.58967908 | BM37: 0.972324857 | BN37: 14.7 | BO37: 0 | BP37: 48.79787774 | BQ37: 3138.980242 | BR37: 0.8332326551 | BS37: 0.8332326551 | BW37: 16 | BX37: 2025-11-02 | BY37: 31 | BZ37: 488 | CA37: 3159.063266 | CB37: 2.35404546 | CC37: 35.84551893 | CD37: 0.9793145085 | CE37: 14.7 | CF37: 0 | CG37: 53.8788789 | CH37: 3156.70922 | CI37: 0.8332326551 | CJ37: 0.8332326551 | CN37: 16 | CO37: 2025-11-02 | CP37: 31 | CQ37: 488 | CR37: 3181.968474 | CS37: -5.46180549 | CT37: 36.10542164 | CU37: 0.9864151586 | CV37: 14.7 | CW37: 0 | CX37: 46.3300313 | CY37: 3187.43028 | CZ37: 0.8332326551 | DA37: 0.8332326551
B38: 17 | C38: 2025-12-02 | D38: 30 | E38: 518 | F38: 3156.70922 | G38: 3.574822956 | H38: 34.65704318 | I38: 0.9470127661 | J38: 14.7 | K38: 0 | L38: 53.8788789 | M38: 3153.134397 | N38: 0.8239395627 | O38: 0.8239395627 | Q38: 53.8788789 | R38: 518 | S38: =IFERROR((1+'Simulación Cliente'!$E$21)^(R38/360),"") -> 1.24723192 | T38: 43.2 | X38: 17 | Y38: 2025-12-02 | Z38: 30 | AA38: 518 | AB38: 3187.43028 | AC38: 42.00950838 | AD38: 34.99432514 | AE38: 0.9562290839 | AF38: 14.7 | AG38: 0 | AH38: 92.66006261 | AI38: 3145.420771 | AJ38: 1.647879125 | AK38: 0.8239395627 | AO38: 17 | AP38: 2025-12-02 | AQ38: 30 | AR38: 518 | AS38: 3106.622711 | AT38: 7.009693259 | AU38: 34.10715081 | AV38: 0.9319868134 | AW38: 14.7 | AX38: 0 | AY38: 56.74883089 | AZ38: 3099.613018 | BA38: 0.8239395627 | BB38: 0.8239395627 | BF38: 17 | BG38: 2025-12-02 | BH38: 30 | BI38: 518 | BJ38: 3138.980242 | BK38: 47.49166206 | BL38: 34.46239935 | BM38: 0.9416940726 | BN38: 14.7 | BO38: 0 | BP38: 97.59575548 | BQ38: 3091.48858 | BR38: 1.647879125 | BS38: 0.8239395627 | BW38: 17 | BX38: 2025-12-02 | BY38: 30 | BZ38: 518 | CA38: 3156.70922 | CB38: 3.574822956 | CC38: 34.65704318 | CD38: 0.9470127661 | CE38: 14.7 | CF38: 0 | CG38: 53.8788789 | CH38: 3153.134397 | CI38: 0.8239395627 | CJ38: 0.8239395627 | CN38: 17 | CO38: 2025-12-02 | CP38: 30 | CQ38: 518 | CR38: 3187.43028 | CS38: 42.00950838 | CT38: 34.99432514 | CU38: 0.9562290839 | CV38: 14.7 | CW38: 0 | CX38: 92.66006261 | CY38: 3145.420771 | CZ38: 1.647879125 | DA38: 0.8239395627
B39: 18 | C39: 2026-01-02 | D39: 31 | E39: 549 | F39: 3153.134397 | G39: 2.42315759 | H39: 35.77824476 | I39: 0.9774765501 | J39: 14.7 | K39: 0 | L39: 53.8788789 | M39: 3150.71124 | N39: 0.8144455734 | O39: 0.8144455734 | Q39: 53.8788789 | R39: 549 | S39: =IFERROR((1+'Simulación Cliente'!$E$21)^(R39/360),"") -> 1.263831664 | T39: 42.63 | X39: 18 | Y39: 2026-01-02 | Z39: 31 | AA39: 549 | AB39: 3145.420771 | AC39: -5.035773163 | AD39: 35.69071915 | AE39: 0.975085314 | AF39: 14.7 | AG39: 0 | AH39: 46.3300313 | AI39: 3150.456544 | AJ39: 0.8144455734 | AK39: 0.8144455734 | AO39: 18 | AP39: 2026-01-02 | AQ39: 31 | AR39: 549 | AS39: 3099.613018 | AT39: 5.917002074 | AU39: 35.17094397 | AV39: 0.9608848396 | AW39: 14.7 | AX39: 0 | AY39: 56.74883089 | AZ39: 3093.696016 | BA39: 0.8144455734 | BB39: 0.8144455734 | BF39: 18 | BG39: 2026-01-02 | BH39: 31 | BI39: 549 | BJ39: 3091.48858 | BK39: -1.93924544 | BL39: 35.07875693 | BM39: 0.9583662511 | BN39: 14.7 | BO39: 0 | BP39: 48.79787774 | BQ39: 3093.427825 | BR39: 0.8144455734 | BS39: 0.8144455734 | BW39: 18 | BX39: 2026-01-02 | BY39: 31 | BZ39: 549 | CA39: 3153.134397 | CB39: 2.42315759 | CC39: 35.77824476 | CD39: 0.9774765501 | CE39: 14.7 | CF39: 0 | CG39: 53.8788789 | CH39: 3150.71124 | CI39: 0.8144455734 | CJ39: 0.8144455734 | CN39: 18 | CO39: 2026-01-02 | CP39: 31 | CQ39: 549 | CR39: 3145.420771 | CS39: -5.035773163 | CT39: 35.69071915 | CU39: 0.975085314 | CV39: 14.7 | CW39: 0 | CX39: 46.3300313 | CY39: 3150.456544 | CZ39: 0.8144455734 | DA39: 0.8144455734
B40: 19 | C40: 2026-02-02 | D40: 31 | E40: 580 | F40: 3150.71124 | G40: 2.451404057 | H40: 35.75074948 | I40: 0.9767253675 | J40: 14.7 | K40: 0 | L40: 53.8788789 | M40: 3148.259836 | N40: 0.8050609803 | O40: 0.8050609803 | Q40: 53.8788789 | R40: 580 | S40: =IFERROR((1+'Simulación Cliente'!$E$21)^(R40/360),"") -> 1.280652339 | T40: 42.07 | X40: 19 | Y40: 2026-02-02 | Z40: 31 | AA40: 580 | AB40: 3150.456544 | AC40: -5.094474586 | AD40: 35.74785948 | AE40: 0.9766464115 | AF40: 14.7 | AG40: 0 | AH40: 46.3300313 | AI40: 3155.551019 | AJ40: 0.8050609803 | AK40: 0.8050609803 | AO40: 19 | AP40: 2026-02-02 | AQ40: 31 | AR40: 580 | AS40: 3093.696016 | AT40: 5.98597588 | AU40: 35.10380445 | AV40: 0.9590505598 | AW40: 14.7 | AX40: 0 | AY40: 56.74883089 | AZ40: 3087.71004 | BA40: 0.8050609803 | BB40: 0.8050609803 | BF40: 19 | BG40: 2026-02-02 | BH40: 31 | BI40: 580 | BJ40: 3093.427825 | BK40: -1.961850998 | BL40: 35.10076132 | BM40: 0.9589674202 | BN40: 14.7 | BO40: 0 | BP40: 48.79787774 | BQ40: 3095.389676 | BR40: 0.8050609803 | BS40: 0.8050609803 | BW40: 19 | BX40: 2026-02-02 | BY40: 31 | BZ40: 580 | CA40: 3150.71124 | CB40: 2.451404057 | CC40: 35.75074948 | CD40: 0.9767253675 | CE40: 14.7 | CF40: 0 | CG40: 53.8788789 | CH40: 3148.259836 | CI40: 0.8050609803 | CJ40: 0.8050609803 | CN40: 19 | CO40: 2026-02-02 | CP40: 31 | CQ40: 580 | CR40: 3150.456544 | CS40: -5.094474586 | CT40: 35.74785948 | CU40: 0.9766464115 | CV40: 14.7 | CW40: 0 | CX40: 46.3300313 | CY40: 3155.551019 | CZ40: 0.8050609803 | DA40: 0.8050609803
B41: 20 | C41: 2026-03-02 | D41: 28 | E41: 608 | F41: 3148.259836 | G41: 6.049141664 | H41: 32.2482333 | I41: 0.8815039398 | J41: 14.7 | K41: 0 | L41: 53.8788789 | M41: 3142.210694 | N41: 0.7966775531 | O41: 0.7966775531 | Q41: 53.8788789 | R41: 608 | S41: =IFERROR((1+'Simulación Cliente'!$E$21)^(R41/360),"") -> 1.296037545 | T41: 41.57 | X41: 20 | Y41: 2026-03-02 | Z41: 28 | AA41: 608 | AB41: 3155.551019 | AC41: -1.576432442 | AD41: 32.3229183 | AE41: 0.8835454507 | AF41: 14.7 | AG41: 0 | AH41: 46.3300313 | AI41: 3157.127451 | AJ41: 0.7966775531 | AK41: 0.7966775531 | AO41: 20 | AP41: 2026-03-02 | AQ41: 28 | AR41: 608 | AS41: 3087.71004 | AT41: 9.556270668 | AU41: 31.62801005 | AV41: 0.8645501666 | AW41: 14.7 | AX41: 0 | AY41: 56.74883089 | AZ41: 3078.15377 | BA41: 0.7966775531 | BB41: 0.7966775531 | BF41: 20 | BG41: 2026-03-02 | BH41: 28 | BI41: 608 | BJ41: 3095.389676 | BK41: 1.524503249 | BL41: 31.70667405 | BM41: 0.8667004432 | BN41: 14.7 | BO41: 0 | BP41: 48.79787774 | BQ41: 3093.865173 | BR41: 0.7966775531 | BS41: 0.7966775531 | BW41: 20 | BX41: 2026-03-02 | BY41: 28 | BZ41: 608 | CA41: 3148.259836 | CB41: 6.049141664 | CC41: 32.2482333 | CD41: 0.8815039398 | CE41: 14.7 | CF41: 0 | CG41: 53.8788789 | CH41: 3142.210694 | CI41: 0.7966775531 | CJ41: 0.7966775531 | CN41: 20 | CO41: 2026-03-02 | CP41: 28 | CQ41: 608 | CR41: 3155.551019 | CS41: -1.576432442 | CT41: 32.3229183 | CU41: 0.8835454507 | CV41: 14.7 | CW41: 0 | CX41: 46.3300313 | CY41: 3157.127451 | CZ41: 0.7966775531 | DA41: 0.7966775531
B42: 21 | C42: 2026-04-02 | D42: 31 | E42: 639 | F42: 3142.210694 | G42: 2.550493931 | H42: 35.65429479 | I42: 0.9740901851 | J42: 14.7 | K42: 0 | L42: 53.8788789 | M42: 3139.6602 | N42: 0.7874976951 | O42: 0.7874976951 | Q42: 53.8788789 | R42: 639 | S42: =IFERROR((1+'Simulación Cliente'!$E$21)^(R42/360),"") -> 1.313286857 | T42: 41.03 | X42: 21 | Y42: 2026-04-02 | Z42: 31 | AA42: 639 | AB42: 3157.127451 | AC42: -5.172236574 | AD42: 35.82355348 | AE42: 0.978714403 | AF42: 14.7 | AG42: 0 | AH42: 46.3300313 | AI42: 3162.299688 | AJ42: 0.7874976951 | AK42: 0.7874976951 | AO42: 21 | AP42: 2026-04-02 | AQ42: 31 | AR42: 639 | AS42: 3078.15377 | AT42: 6.167150042 | AU42: 34.92744841 | AV42: 0.9542324392 | AW42: 14.7 | AX42: 0 | AY42: 56.74883089 | AZ42: 3071.98662 | BA42: 0.7874976951 | BB42: 0.7874976951 | BF42: 21 | BG42: 2026-04-02 | BH42: 31 | BI42: 639 | BJ42: 3093.865173 | BK42: -1.96694911 | BL42: 35.10572385 | BM42: 0.9591029987 | BN42: 14.7 | BO42: 0 | BP42: 48.79787774 | BQ42: 3095.832122 | BR42: 0.7874976951 | BS42: 0.7874976951 | BW42: 21 | BX42: 2026-04-02 | BY42: 31 | BZ42: 639 | CA42: 3142.210694 | CB42: 2.550493931 | CC42: 35.65429479 | CD42: 0.9740901851 | CE42: 14.7 | CF42: 0 | CG42: 53.8788789 | CH42: 3139.6602 | CI42: 0.7874976951 | CJ42: 0.7874976951 | CN42: 21 | CO42: 2026-04-02 | CP42: 31 | CQ42: 639 | CR42: 3157.127451 | CS42: -5.172236574 | CT42: 35.82355348 | CU42: 0.978714403 | CV42: 14.7 | CW42: 0 | CX42: 46.3300313 | CY42: 3162.299688 | CZ42: 0.7874976951 | DA42: 0.7874976951
B43: 22 | C43: 2026-05-02 | D43: 30 | E43: 669 | F43: 3139.6602 | G43: 3.76711633 | H43: 34.46986451 | I43: 0.94189806 | J43: 14.7 | K43: 0 | L43: 53.8788789 | M43: 3135.893084 | N43: 0.7787146874 | O43: 0.7787146874 | Q43: 53.8788789 | R43: 669 | S43: =IFERROR((1+'Simulación Cliente'!$E$21)^(R43/360),"") -> 1.330198294 | T43: 40.5 | X43: 22 | Y43: 2026-05-02 | Z43: 30 | AA43: 669 | AB43: 3162.299688 | AC43: -4.037078699 | AD43: 34.7184201 | AE43: 0.9486899064 | AF43: 14.7 | AG43: 0 | AH43: 46.3300313 | AI43: 3166.336767 | AJ43: 0.7787146874 | AK43: 0.7787146874 | AO43: 22 | AP43: 2026-05-02 | AQ43: 30 | AR43: 669 | AS43: 3071.98662 | AT43: 7.400348612 | AU43: 33.72688629 | AV43: 0.9215959859 | AW43: 14.7 | AX43: 0 | AY43: 56.74883089 | AZ43: 3064.586271 | BA43: 0.7787146874 | BB43: 0.7787146874 | BF43: 22 | BG43: 2026-05-02 | BH43: 30 | BI43: 669 | BJ43: 3095.832122 | BK43: -0.8195544289 | BL43: 33.98868253 | BM43: 0.9287496366 | BN43: 14.7 | BO43: 0 | BP43: 48.79787774 | BQ43: 3096.651677 | BR43: 0.7787146874 | BS43: 0.7787146874 | BW43: 22 | BX43: 2026-05-02 | BY43: 30 | BZ43: 669 | CA43: 3139.6602 | CB43: 3.76711633 | CC43: 34.46986451 | CD43: 0.94189806 | CE43: 14.7 | CF43: 0 | CG43: 53.8788789 | CH43: 3135.893084 | CI43: 0.7787146874 | CJ43: 0.7787146874 | CN43: 22 | CO43: 2026-05-02 | CP43: 30 | CQ43: 669 | CR43: 3162.299688 | CS43: -4.037078699 | CT43: 34.7184201 | CU43: 0.9486899064 | CV43: 14.7 | CW43: 0 | CX43: 46.3300313 | CY43: 3166.336767 | CZ43: 0.7787146874 | DA43: 0.7787146874
B44: 23 | C44: 2026-06-02 | D44: 31 | E44: 700 | F44: 3135.893084 | G44: 2.624137579 | H44: 35.58260961 | I44: 0.9721317161 | J44: 14.7 | K44: 0 | L44: 53.8788789 | M44: 3133.268946 | N44: 0.7697418097 | O44: 0.7697418097 | Q44: 53.8788789 | R44: 700 | S44: =IFERROR((1+'Simulación Cliente'!$E$21)^(R44/360),"") -> 1.34790226 | T44: 39.97 | X44: 23 | Y44: 2026-06-02 | Z44: 31 | AA44: 700 | AB44: 3166.336767 | AC44: -5.279588492 | AD44: 35.92805049 | AE44: 0.981569305 | AF44: 14.7 | AG44: 0 | AH44: 46.3300313 | AI44: 3171.616355 | AJ44: 0.7697418097 | AK44: 0.7697418097 | AO44: 23 | AP44: 2026-06-02 | AQ44: 31 | AR44: 700 | AS44: 3064.586271 | AT44: 6.325304798 | AU44: 34.7734996 | AV44: 0.9500264936 | AW44: 14.7 | AX44: 0 | AY44: 56.74883089 | AZ44: 3058.260966 | BA44: 0.7697418097 | BB44: 0.7697418097 | BF44: 23 | BG44: 2026-06-02 | BH44: 31 | BI44: 700 | BJ44: 3096.651677 | BK44: -1.999431058 | BL44: 35.13734198 | BM44: 0.9599668191 | BN44: 14.7 | BO44: 0 | BP44: 48.79787774 | BQ44: 3098.651108 | BR44: 0.7697418097 | BS44: 0.7697418097 | BW44: 23 | BX44: 2026-06-02 | BY44: 31 | BZ44: 700 | CA44: 3135.893084 | CB44: 2.624137579 | CC44: 35.58260961 | CD44: 0.9721317161 | CE44: 14.7 | CF44: 0 | CG44: 53.8788789 | CH44: 3133.268946 | CI44: 0.7697418097 | CJ44: 0.7697418097 | CN44: 23 | CO44: 2026-06-02 | CP44: 31 | CQ44: 700 | CR44: 3166.336767 | CS44: -5.279588492 | CT44: 35.92805049 | CU44: 0.981569305 | CV44: 14.7 | CW44: 0 | CX44: 46.3300313 | CY44: 3171.616355 | CZ44: 0.7697418097 | DA44: 0.7697418097
B45: 24 | C45: 2026-07-02 | D45: 30 | E45: 730 | F45: 3133.268946 | G45: 3.839202337 | H45: 34.39969588 | I45: 0.9399806839 | J45: 14.7 | K45: 0 | L45: 53.8788789 | M45: 3129.429744 | N45: 0.7611568345 | O45: 0.7611568345 | Q45: 53.8788789 | R45: 730 | S45: =IFERROR((1+'Simulación Cliente'!$E$21)^(R45/360),"") -> 1.365259446 | T45: 39.46 | X45: 24 | Y45: 2026-07-02 | Z45: 30 | AA45: 730 | AB45: 3171.616355 | AC45: 42.1878713 | AD45: 34.82070641 | AE45: 0.9514849066 | AF45: 14.7 | AG45: 0 | AH45: 92.66006261 | AI45: 3129.428484 | AJ45: 1.522313669 | AK45: 0.7611568345 | AO45: 24 | AP45: 2026-07-02 | AQ45: 30 | AR45: 730 | AS45: 3058.260966 | AT45: 7.555158225 | AU45: 33.57619437 | AV45: 0.9174782898 | AW45: 14.7 | AX45: 0 | AY45: 56.74883089 | AZ45: 3050.705808 | BA45: 0.7611568345 | BB45: 0.7611568345 | BF45: 24 | BG45: 2026-07-02 | BH45: 30 | BI45: 730 | BJ45: 3098.651108 | BK45: 47.94652839 | BL45: 34.01963176 | BM45: 0.9295953323 | BN45: 14.7 | BO45: 0 | BP45: 97.59575548 | BQ45: 3050.704579 | BR45: 1.522313669 | BS45: 0.7611568345 | BW45: 24 | BX45: 2026-07-02 | BY45: 30 | BZ45: 730 | CA45: 3133.268946 | CB45: 3.839202337 | CC45: 34.39969588 | CD45: 0.9399806839 | CE45: 14.7 | CF45: 0 | CG45: 53.8788789 | CH45: 3129.429744 | CI45: 0.7611568345 | CJ45: 0.7611568345 | CN45: 24 | CO45: 2026-07-02 | CP45: 30 | CQ45: 730 | CR45: 3171.616355 | CS45: 42.1878713 | CT45: 34.82070641 | CU45: 0.9514849066 | CV45: 14.7 | CW45: 0 | CX45: 92.66006261 | CY45: 3129.428484 | CZ45: 1.522313669 | DA45: 0.7611568345
B46: 25 | C46: 2026-08-02 | D46: 31 | E46: 761 | F46: 3129.429744 | G46: 2.699479982 | H46: 35.50927085 | I46: 0.9701280707 | J46: 14.7 | K46: 0 | L46: 53.8788789 | M46: 3126.730264 | N46: 0.7523862703 | O46: 0.7523862703 | Q46: 53.8788789 | R46: 761 | S46: =IFERROR((1+'Simulación Cliente'!$E$21)^(R46/360),"") -> 1.38343005 | T46: 38.95 | X46: 25 | Y46: 2026-08-02 | Z46: 31 | AA46: 761 | AB46: 3129.428484 | AC46: -4.849352928 | AD46: 35.50925655 | AE46: 0.9701276802 | AF46: 14.7 | AG46: 0 | AH46: 46.3300313 | AI46: 3134.277837 | AJ46: 0.7523862703 | AK46: 0.7523862703 | AO46: 25 | AP46: 2026-08-02 | AQ46: 31 | AR46: 761 | AS46: 3050.705808 | AT46: 6.487107742 | AU46: 34.61599962 | AV46: 0.9457235286 | AW46: 14.7 | AX46: 0 | AY46: 56.74883089 | AZ46: 3044.2187 | BA46: 0.7523862703 | BB46: 0.7523862703 | BF46: 25 | BG46: 2026-08-02 | BH46: 31 | BI46: 761 | BJ46: 3050.704579 | BK46: -1.463831083 | BL46: 34.61598567 | BM46: 0.9457231477 | BN46: 14.7 | BO46: 0 | BP46: 48.79787774 | BQ46: 3052.16841 | BR46: 0.7523862703 | BS46: 0.7523862703 | BW46: 25 | BX46: 2026-08-02 | BY46: 31 | BZ46: 761 | CA46: 3129.429744 | CB46: 2.699479982 | CC46: 35.50927085 | CD46: 0.9701280707 | CE46: 14.7 | CF46: 0 | CG46: 53.8788789 | CH46: 3126.730264 | CI46: 0.7523862703 | CJ46: 0.7523862703 | CN46: 25 | CO46: 2026-08-02 | CP46: 31 | CQ46: 761 | CR46: 3129.428484 | CS46: -4.849352928 | CT46: 35.50925655 | CU46: 0.9701276802 | CV46: 14.7 | CW46: 0 | CX46: 46.3300313 | CY46: 3134.277837 | CZ46: 0.7523862703 | DA46: 0.7523862703
B47: 26 | C47: 2026-09-02 | D47: 31 | E47: 792 | F47: 3126.730264 | G47: 2.730947506 | H47: 35.47864017 | I47: 0.9692912278 | J47: 14.7 | K47: 0 | L47: 53.8788789 | M47: 3123.999316 | N47: 0.7437167664 | O47: 0.7437167664 | Q47: 53.8788789 | R47: 792 | S47: =IFERROR((1+'Simulación Cliente'!$E$21)^(R47/360),"") -> 1.401842492 | T47: 38.43 | X47: 26 | Y47: 2026-09-02 | Z47: 31 | AA47: 792 | AB47: 3134.277837 | AC47: -4.905881272 | AD47: 35.56428159 | AE47: 0.9716309871 | AF47: 14.7 | AG47: 0 | AH47: 46.3300313 | AI47: 3139.183718 | AJ47: 0.7437167664 | AK47: 0.7437167664 | AO47: 26 | AP47: 2026-09-02 | AQ47: 31 | AR47: 792 | AS47: 3044.2187 | AT47: 6.562727203 | AU47: 34.54239117 | AV47: 0.9437125151 | AW47: 14.7 | AX47: 0 | AY47: 56.74883089 | AZ47: 3037.655973 | BA47: 0.7437167664 | BB47: 0.7437167664 | BF47: 26 | BG47: 2026-09-02 | BH47: 31 | BI47: 792 | BJ47: 3052.16841 | BK47: -1.480894792 | BL47: 34.63259559 | BM47: 0.9461769376 | BN47: 14.7 | BO47: 0 | BP47: 48.79787774 | BQ47: 3053.649305 | BR47: 0.7437167664 | BS47: 0.7437167664 | BW47: 26 | BX47: 2026-09-02 | BY47: 31 | BZ47: 792 | CA47: 3126.730264 | CB47: 2.730947506 | CC47: 35.47864017 | CD47: 0.9692912278 | CE47: 14.7 | CF47: 0 | CG47: 53.8788789 | CH47: 3123.999316 | CI47: 0.7437167664 | CJ47: 0.7437167664 | CN47: 26 | CO47: 2026-09-02 | CP47: 31 | CQ47: 792 | CR47: 3134.277837 | CS47: -4.905881272 | CT47: 35.56428159 | CU47: 0.9716309871 | CV47: 14.7 | CW47: 0 | CX47: 46.3300313 | CY47: 3139.183718 | CZ47: 0.7437167664 | DA47: 0.7437167664
B48: 27 | C48: 2026-10-02 | D48: 30 | E48: 822 | F48: 3123.999316 | G48: 3.943753119 | H48: 34.29792599 | I48: 0.9371997949 | J48: 14.7 | K48: 0 | L48: 53.8788789 | M48: 3120.055563 | N48: 0.73542205 | O48: 0.73542205 | Q48: 53.8788789 | R48: 822 | S48: =IFERROR((1+'Simulación Cliente'!$E$21)^(R48/360),"") -> 1.419894276 | T48: 37.95 | X48: 27 | Y48: 2026-10-02 | Z48: 30 | AA48: 822 | AB48: 3139.183718 | AC48: -3.776357097 | AD48: 34.46463329 | AE48: 0.9417551154 | AF48: 14.7 | AG48: 0 | AH48: 46.3300313 | AI48: 3142.960075 | AJ48: 0.73542205 | AK48: 0.73542205 | AO48: 27 | AP48: 2026-10-02 | AQ48: 30 | AR48: 822 | AS48: 3037.655973 | AT48: 7.787558893 | AU48: 33.3499752 | AV48: 0.9112967919 | AW48: 14.7 | AX48: 0 | AY48: 56.74883089 | AZ48: 3029.868414 | BA48: 0.73542205 | BB48: 0.73542205 | BF48: 27 | BG48: 2026-10-02 | BH48: 30 | BI48: 822 | BJ48: 3053.649305 | BK48: -0.3437806808 | BL48: 33.52556363 | BM48: 0.9160947915 | BN48: 14.7 | BO48: 0 | BP48: 48.79787774 | BQ48: 3053.993086 | BR48: 0.73542205 | BS48: 0.73542205 | BW48: 27 | BX48: 2026-10-02 | BY48: 30 | BZ48: 822 | CA48: 3123.999316 | CB48: 3.943753119 | CC48: 34.29792599 | CD48: 0.9371997949 | CE48: 14.7 | CF48: 0 | CG48: 53.8788789 | CH48: 3120.055563 | CI48: 0.73542205 | CJ48: 0.73542205 | CN48: 27 | CO48: 2026-10-02 | CP48: 30 | CQ48: 822 | CR48: 3139.183718 | CS48: -3.776357097 | CT48: 34.46463329 | CU48: 0.9417551154 | CV48: 14.7 | CW48: 0 | CX48: 46.3300313 | CY48: 3142.960075 | CZ48: 0.73542205 | DA48: 0.73542205
B49: 28 | C49: 2026-11-02 | D49: 31 | E49: 853 | F49: 3120.055563 | G49: 2.808753716 | H49: 35.40290312 | I49: 0.9672220602 | J49: 14.7 | K49: 0 | L49: 53.8788789 | M49: 3117.24681 | N49: 0.7269480194 | O49: 0.7269480194 | Q49: 53.8788789 | R49: 853 | S49: =IFERROR((1+'Simulación Cliente'!$E$21)^(R49/360),"") -> 1.43879203 | T49: 37.45 | X49: 28 | Y49: 2026-11-02 | Z49: 31 | AA49: 853 | AB49: 3142.960075 | AC49: -5.007089115 | AD49: 35.66279793 | AE49: 0.9743224944 | AF49: 14.7 | AG49: 0 | AH49: 46.3300313 | AI49: 3147.967164 | AJ49: 0.7269480194 | AK49: 0.7269480194 | AO49: 28 | AP49: 2026-11-02 | AQ49: 31 | AR49: 853 | AS49: 3029.868414 | AT49: 6.730006821 | AU49: 34.37956016 | AV49: 0.9392639042 | AW49: 14.7 | AX49: 0 | AY49: 56.74883089 | AZ49: 3023.138407 | BA49: 0.7269480194 | BB49: 0.7269480194 | BF49: 28 | BG49: 2026-11-02 | BH49: 31 | BI49: 853 | BJ49: 3053.993086 | BK49: -1.502164822 | BL49: 34.65329997 | BM49: 0.9467425898 | BN49: 14.7 | BO49: 0 | BP49: 48.79787774 | BQ49: 3055.495251 | BR49: 0.7269480194 | BS49: 0.7269480194 | BW49: 28 | BX49: 2026-11-02 | BY49: 31 | BZ49: 853 | CA49: 3120.055563 | CB49: 2.808753716 | CC49: 35.40290312 | CD49: 0.9672220602 | CE49: 14.7 | CF49: 0 | CG49: 53.8788789 | CH49: 3117.24681 | CI49: 0.7269480194 | CJ49: 0.7269480194 | CN49: 28 | CO49: 2026-11-02 | CP49: 31 | CQ49: 853 | CR49: 3142.960075 | CS49: -5.007089115 | CT49: 35.66279793 | CU49: 0.9743224944 | CV49: 14.7 | CW49: 0 | CX49: 46.3300313 | CY49: 3147.967164 | CZ49: 0.7269480194 | DA49: 0.7269480194
B50: 29 | C50: 2026-12-02 | D50: 30 | E50: 883 | F50: 3117.24681 | G50: 4.019913644 | H50: 34.22379121 | I50: 0.9351740429 | J50: 14.7 | K50: 0 | L50: 53.8788789 | M50: 3113.226896 | N50: 0.7188403257 | O50: 0.7188403257 | Q50: 53.8788789 | R50: 883 | S50: =IFERROR((1+'Simulación Cliente'!$E$21)^(R50/360),"") -> 1.457319621 | T50: 36.97 | X50: 29 | Y50: 2026-12-02 | Z50: 30 | AA50: 883 | AB50: 3147.967164 | AC50: 42.45460702 | AD50: 34.56106544 | AE50: 0.9443901493 | AF50: 14.7 | AG50: 0 | AH50: 92.66006261 | AI50: 3105.512557 | AJ50: 1.437680651 | AK50: 0.7188403257 | AO50: 29 | AP50: 2026-12-02 | AQ50: 30 | AR50: 883 | AS50: 3023.138407 | AT50: 7.951300367 | AU50: 33.190589 | AV50: 0.9069415222 | AW50: 14.7 | AX50: 0 | AY50: 56.74883089 | AZ50: 3015.187107 | BA50: 0.7188403257 | BB50: 0.7188403257 | BF50: 29 | BG50: 2026-12-02 | BH50: 30 | BI50: 883 | BJ50: 3055.495251 | BK50: 48.43327691 | BL50: 33.54582999 | BM50: 0.9166485752 | BN50: 14.7 | BO50: 0 | BP50: 97.59575548 | BQ50: 3007.061974 | BR50: 1.437680651 | BS50: 0.7188403257 | BW50: 29 | BX50: 2026-12-02 | BY50: 30 | BZ50: 883 | CA50: 3117.24681 | CB50: 4.019913644 | CC50: 34.22379121 | CD50: 0.9351740429 | CE50: 14.7 | CF50: 0 | CG50: 53.8788789 | CH50: 3113.226896 | CI50: 0.7188403257 | CJ50: 0.7188403257 | CN50: 29 | CO50: 2026-12-02 | CP50: 30 | CQ50: 883 | CR50: 3147.967164 | CS50: 42.45460702 | CT50: 34.56106544 | CU50: 0.9443901493 | CV50: 14.7 | CW50: 0 | CX50: 92.66006261 | CY50: 3105.512557 | CZ50: 1.437680651 | DA50: 0.7188403257
B51: 30 | C51: 2027-01-02 | D51: 31 | E51: 914 | F51: 3113.226896 | G51: 2.888354698 | H51: 35.32541904 | I51: 0.9651051628 | J51: 14.7 | K51: 0 | L51: 53.8788789 | M51: 3110.338541 | N51: 0.710557361 | O51: 0.710557361 | Q51: 53.8788789 | R51: 914 | S51: =IFERROR((1+'Simulación Cliente'!$E$21)^(R51/360),"") -> 1.476715478 | T51: 36.49 | X51: 30 | Y51: 2027-01-02 | Z51: 31 | AA51: 914 | AB51: 3105.512557 | AC51: -4.57056775 | AD51: 35.23788535 | AE51: 0.9627137058 | AF51: 14.7 | AG51: 0 | AH51: 46.3300313 | AI51: 3110.083125 | AJ51: 0.710557361 | AK51: 0.710557361 | AO51: 30 | AP51: 2027-01-02 | AQ51: 31 | AR51: 914 | AS51: 3015.187107 | AT51: 6.901145113 | AU51: 34.2129731 | AV51: 0.9347126762 | AW51: 14.7 | AX51: 0 | AY51: 56.74883089 | AZ51: 3008.285962 | BA51: 0.710557361 | BB51: 0.710557361 | BF51: 30 | BG51: 2027-01-02 | BH51: 31 | BI51: 914 | BJ51: 3007.061974 | BK51: -0.9550943012 | BL51: 34.12077817 | BM51: 0.9321938723 | BN51: 14.7 | BO51: 0 | BP51: 48.79787774 | BQ51: 3008.017068 | BR51: 0.710557361 | BS51: 0.710557361 | BW51: 30 | BX51: 2027-01-02 | BY51: 31 | BZ51: 914 | CA51: 3113.226896 | CB51: 2.888354698 | CC51: 35.32541904 | CD51: 0.9651051628 | CE51: 14.7 | CF51: 0 | CG51: 53.8788789 | CH51: 3110.338541 | CI51: 0.710557361 | CJ51: 0.710557361 | CN51: 30 | CO51: 2027-01-02 | CP51: 31 | CQ51: 914 | CR51: 3105.512557 | CS51: -4.57056775 | CT51: 35.23788535 | CU51: 0.9627137058 | CV51: 14.7 | CW51: 0 | CX51: 46.3300313 | CY51: 3110.083125 | CZ51: 0.710557361 | DA51: 0.710557361
B52: 31 | C52: 2027-02-02 | D52: 31 | E52: 945 | F52: 3110.338541 | G52: 2.922023913 | H52: 35.29264522 | I52: 0.9642097683 | J52: 14.7 | K52: 0 | L52: 53.8788789 | M52: 3107.416517 | N52: 0.7023698381 | O52: 0.7023698381 | Q52: 53.8788789 | R52: 945 | S52: =IFERROR((1+'Simulación Cliente'!$E$21)^(R52/360),"") -> 1.496369481 | T52: 36.01 | X52: 31 | Y52: 2027-02-02 | Z52: 31 | AA52: 945 | AB52: 3110.083125 | AC52: -4.623846327 | AD52: 35.28974704 | AE52: 0.9641305889 | AF52: 14.7 | AG52: 0 | AH52: 46.3300313 | AI52: 3114.706971 | AJ52: 0.7023698381 | AK52: 0.7023698381 | AO52: 31 | AP52: 2027-02-02 | AQ52: 31 | AR52: 945 | AS52: 3008.285962 | AT52: 6.98159096 | AU52: 34.13466662 | AV52: 0.9325733105 | AW52: 14.7 | AX52: 0 | AY52: 56.74883089 | AZ52: 3001.304371 | BA52: 0.7023698381 | BB52: 0.7023698381 | BF52: 31 | BG52: 2027-02-02 | BH52: 31 | BI52: 945 | BJ52: 3008.017068 | BK52: -0.9662277245 | BL52: 34.13161551 | BM52: 0.9324899531 | BN52: 14.7 | BO52: 0 | BP52: 48.79787774 | BQ52: 3008.983296 | BR52: 0.7023698381 | BS52: 0.7023698381 | BW52: 31 | BX52: 2027-02-02 | BY52: 31 | BZ52: 945 | CA52: 3110.338541 | CB52: 2.922023913 | CC52: 35.29264522 | CD52: 0.9642097683 | CE52: 14.7 | CF52: 0 | CG52: 53.8788789 | CH52: 3107.416517 | CI52: 0.7023698381 | CJ52: 0.7023698381 | CN52: 31 | CO52: 2027-02-02 | CP52: 31 | CQ52: 945 | CR52: 3110.083125 | CS52: -4.623846327 | CT52: 35.28974704 | CU52: 0.9641305889 | CV52: 14.7 | CW52: 0 | CX52: 46.3300313 | CY52: 3114.706971 | CZ52: 0.7023698381 | DA52: 0.7023698381
B53: 32 | C53: 2027-03-02 | D53: 28 | E53: 973 | F53: 3107.416517 | G53: 6.478943675 | H53: 31.8298673 | I53: 0.870067925 | J53: 14.7 | K53: 0 | L53: 53.8788789 | M53: 3100.937574 | N53: 0.6950557756 | O53: 0.6950557756 | Q53: 53.8788789 | R53: 973 | S53: =IFERROR((1+'Simulación Cliente'!$E$21)^(R53/360),"") -> 1.51434622 | T53: 35.58 | X53: 32 | Y53: 2027-03-02 | Z53: 28 | AA53: 973 | AB53: 3114.706971 | AC53: -1.146622758 | AD53: 31.90454483 | AE53: 0.8721092317 | AF53: 14.7 | AG53: 0 | AH53: 46.3300313 | AI53: 3115.853594 | AJ53: 0.6950557756 | AK53: 0.6950557756 | AO53: 32 | AP53: 2027-03-02 | AQ53: 28 | AR53: 973 | AS53: 3001.304371 | AT53: 10.46553397 | AU53: 30.7429401 | AV53: 0.8403568211 | AW53: 14.7 | AX53: 0 | AY53: 56.74883089 | AZ53: 2990.838837 | BA53: 0.6950557756 | BB53: 0.6950557756 | BF53: 32 | BG53: 2027-03-02 | BH53: 28 | BI53: 973 | BJ53: 3008.983296 | BK53: 2.433774031 | BL53: 30.82159681 | BM53: 0.8425068985 | BN53: 14.7 | BO53: 0 | BP53: 48.79787774 | BQ53: 3006.549522 | BR53: 0.6950557756 | BS53: 0.6950557756 | BW53: 32 | BX53: 2027-03-02 | BY53: 28 | BZ53: 973 | CA53: 3107.416517 | CB53: 6.478943675 | CC53: 31.8298673 | CD53: 0.870067925 | CE53: 14.7 | CF53: 0 | CG53: 53.8788789 | CH53: 3100.937574 | CI53: 0.6950557756 | CJ53: 0.6950557756 | CN53: 32 | CO53: 2027-03-02 | CP53: 28 | CQ53: 973 | CR53: 3114.706971 | CS53: -1.146622758 | CT53: 31.90454483 | CU53: 0.8721092317 | CV53: 14.7 | CW53: 0 | CX53: 46.3300313 | CY53: 3115.853594 | CZ53: 0.6950557756 | DA53: 0.6950557756
B54: 33 | C54: 2027-04-02 | D54: 31 | E54: 1004 | F54: 3100.937574 | G54: 3.0316099 | H54: 35.18597355 | I54: 0.9612954538 | J54: 14.7 | K54: 0 | L54: 53.8788789 | M54: 3097.905964 | N54: 0.6870468725 | O54: 0.6870468725 | Q54: 53.8788789 | R54: 1004 | S54: =IFERROR((1+'Simulación Cliente'!$E$21)^(R54/360),"") -> 1.53450106 | T54: 35.11 | X54: 33 | Y54: 2027-04-02 | Z54: 31 | AA54: 1004 | AB54: 3115.853594 | AC54: -4.691112015 | AD54: 35.35522388 | AE54: 0.9659194433 | AF54: 14.7 | AG54: 0 | AH54: 46.3300313 | AI54: 3120.544706 | AJ54: 0.6870468725 | AK54: 0.6870468725 | AO54: 33 | AP54: 2027-04-02 | AQ54: 31 | AR54: 1004 | AS54: 2990.838837 | AT54: 7.184970068 | AU54: 33.93669614 | AV54: 0.9271646748 | AW54: 14.7 | AX54: 0 | AY54: 56.74883089 | AZ54: 2983.653867 | BA54: 0.6870468725 | BB54: 0.6870468725 | BF54: 33 | BG54: 2027-04-02 | BH54: 31 | BI54: 1004 | BJ54: 3006.549522 | BK54: -0.9491207077 | BL54: 34.11496344 | BM54: 0.9320350114 | BN54: 14.7 | BO54: 0 | BP54: 48.79787774 | BQ54: 3007.498642 | BR54: 0.6870468725 | BS54: 0.6870468725 | BW54: 33 | BX54: 2027-04-02 | BY54: 31 | BZ54: 1004 | CA54: 3100.937574 | CB54: 3.0316099 | CC54: 35.18597355 | CD54: 0.9612954538 | CE54: 14.7 | CF54: 0 | CG54: 53.8788789 | CH54: 3097.905964 | CI54: 0.6870468725 | CJ54: 0.6870468725 | CN54: 33 | CO54: 2027-04-02 | CP54: 31 | CQ54: 1004 | CR54: 3115.853594 | CS54: -4.691112015 | CT54: 35.35522388 | CU54: 0.9659194433 | CV54: 14.7 | CW54: 0 | CX54: 46.3300313 | CY54: 3120.544706 | CZ54: 0.6870468725 | DA54: 0.6870468725
B55: 34 | C55: 2027-05-02 | D55: 30 | E55: 1034 | F55: 3097.905964 | G55: 4.238056181 | H55: 34.01145093 | I55: 0.9293717891 | J55: 14.7 | K55: 0 | L55: 53.8788789 | M55: 3093.667908 | N55: 0.6793841987 | O55: 0.6793841987 | Q55: 53.8788789 | R55: 1034 | S55: =IFERROR((1+'Simulación Cliente'!$E$21)^(R55/360),"") -> 1.554261114 | T55: 34.67 | X55: 34 | Y55: 2027-05-02 | Z55: 30 | AA55: 1034 | AB55: 3120.544706 | AC55: -3.56613044 | AD55: 34.25999833 | AE55: 0.9361634118 | AF55: 14.7 | AG55: 0 | AH55: 46.3300313 | AI55: 3124.110837 | AJ55: 0.6793841987 | AK55: 0.6793841987 | AO55: 34 | AP55: 2027-05-02 | AQ55: 30 | AR55: 1034 | AS55: 2983.653867 | AT55: 8.396640653 | AU55: 32.75709407 | AV55: 0.89509616 | AW55: 14.7 | AX55: 0 | AY55: 56.74883089 | AZ55: 2975.257226 | BA55: 0.6793841987 | BB55: 0.6793841987 | BF55: 34 | BG55: 2027-05-02 | BH55: 30 | BI55: 1034 | BJ55: 3007.498642 | BK55: 0.1767458113 | BL55: 33.01888234 | BM55: 0.9022495927 | BN55: 14.7 | BO55: 0 | BP55: 48.79787774 | BQ55: 3007.321897 | BR55: 0.6793841987 | BS55: 0.6793841987 | BW55: 34 | BX55: 2027-05-02 | BY55: 30 | BZ55: 1034 | CA55: 3097.905964 | CB55: 4.238056181 | CC55: 34.01145093 | CD55: 0.9293717891 | CE55: 14.7 | CF55: 0 | CG55: 53.8788789 | CH55: 3093.667908 | CI55: 0.6793841987 | CJ55: 0.6793841987 | CN55: 34 | CO55: 2027-05-02 | CP55: 30 | CQ55: 1034 | CR55: 3120.544706 | CS55: -3.56613044 | CT55: 34.25999833 | CU55: 0.9361634118 | CV55: 14.7 | CW55: 0 | CX55: 46.3300313 | CY55: 3124.110837 | CZ55: 0.6793841987 | DA55: 0.6793841987
B56: 35 | C56: 2027-06-02 | D56: 31 | E56: 1065 | F56: 3093.667908 | G56: 3.116351553 | H56: 35.1034855 | I56: 0.959041846 | J56: 14.7 | K56: 0 | L56: 53.8788789 | M56: 3090.551556 | N56: 0.6715558741 | O56: 0.6715558741 | Q56: 53.8788789 | R56: 1065 | S56: =IFERROR((1+'Simulación Cliente'!$E$21)^(R56/360),"") -> 1.574947192 | T56: 34.21 | X56: 35 | Y56: 2027-06-02 | Z56: 31 | AA56: 1065 | AB56: 3124.110837 | AC56: -4.787365731 | AD56: 35.44891783 | AE56: 0.9684792012 | AF56: 14.7 | AG56: 0 | AH56: 46.3300313 | AI56: 3128.898202 | AJ56: 0.6715558741 | AK56: 0.6715558741 | AO56: 35 | AP56: 2027-06-02 | AQ56: 31 | AR56: 1065 | AS56: 2975.257226 | AT56: 7.366603094 | AU56: 33.75989344 | AV56: 0.9223343513 | AW56: 14.7 | AX56: 0 | AY56: 56.74883089 | AZ56: 2967.890623 | BA56: 0.6715558741 | BB56: 0.6715558741 | BF56: 35 | BG56: 2027-06-02 | BH56: 31 | BI56: 1065 | BJ56: 3007.321897 | BK56: -0.9581241922 | BL56: 34.12372748 | BM56: 0.9322744488 | BN56: 14.7 | BO56: 0 | BP56: 48.79787774 | BQ56: 3008.280021 | BR56: 0.6715558741 | BS56: 0.6715558741 | BW56: 35 | BX56: 2027-06-02 | BY56: 31 | BZ56: 1065 | CA56: 3093.667908 | CB56: 3.116351553 | CC56: 35.1034855 | CD56: 0.959041846 | CE56: 14.7 | CF56: 0 | CG56: 53.8788789 | CH56: 3090.551556 | CI56: 0.6715558741 | CJ56: 0.6715558741 | CN56: 35 | CO56: 2027-06-02 | CP56: 31 | CQ56: 1065 | CR56: 3124.110837 | CS56: -4.787365731 | CT56: 35.44891783 | CU56: 0.9684792012 | CV56: 14.7 | CW56: 0 | CX56: 46.3300313 | CY56: 3128.898202 | CZ56: 0.6715558741 | DA56: 0.6715558741
B57: 36 | C57: 2027-07-02 | D57: 30 | E57: 1095 | F57: 3090.551556 | G57: 4.321005457 | H57: 33.93070798 | I57: 0.9271654668 | J57: 14.7 | K57: 0 | L57: 53.8788789 | M57: 3086.230551 | N57: 0.6640659723 | O57: 0.6640659723 | Q57: 53.8788789 | R57: 1095 | S57: =IFERROR((1+'Simulación Cliente'!$E$21)^(R57/360),"") -> 1.595228078 | T57: 33.78 | X57: 36 | Y57: 2027-07-02 | Z57: 30 | AA57: 1095 | AB57: 3128.898202 | AC57: 42.66968302 | AD57: 34.35171013 | AE57: 0.9386694607 | AF57: 14.7 | AG57: 0 | AH57: 92.66006261 | AI57: 3086.228519 | AJ57: 1.328131945 | AK57: 0.6640659723 | AO57: 36 | AP57: 2027-07-02 | AQ57: 30 | AR57: 1095 | AS57: 2967.890623 | AT57: 8.574431946 | AU57: 32.58403175 | AV57: 0.8903671869 | AW57: 14.7 | AX57: 0 | AY57: 56.74883089 | AZ57: 2959.316191 | BA57: 0.6640659723 | BB57: 0.6640659723 | BF57: 36 | BG57: 2027-07-02 | BH57: 30 | BI57: 1095 | BJ57: 3008.280021 | BK57: 48.9658105 | BL57: 33.02746097 | BM57: 0.9024840062 | BN57: 14.7 | BO57: 0 | BP57: 97.59575548 | BQ57: 2959.31421 | BR57: 1.328131945 | BS57: 0.6640659723 | BW57: 36 | BX57: 2027-07-02 | BY57: 30 | BZ57: 1095 | CA57: 3090.551556 | CB57: 4.321005457 | CC57: 33.93070798 | CD57: 0.9271654668 | CE57: 14.7 | CF57: 0 | CG57: 53.8788789 | CH57: 3086.230551 | CI57: 0.6640659723 | CJ57: 0.6640659723 | CN57: 36 | CO57: 2027-07-02 | CP57: 30 | CQ57: 1095 | CR57: 3128.898202 | CS57: 42.66968302 | CT57: 34.35171013 | CU57: 0.9386694607 | CV57: 14.7 | CW57: 0 | CX57: 92.66006261 | CY57: 3086.228519 | CZ57: 1.328131945 | DA57: 0.6640659723
B58: 37 | C58: 2027-08-02 | D58: 31 | E58: 1126 | F58: 3086.230551 | G58: 3.203047959 | H58: 35.01909469 | I58: 0.9567362538 | J58: 14.7 | K58: 0 | L58: 53.8788789 | M58: 3083.027503 | N58: 0.6564141547 | O58: 0.6564141547 | Q58: 53.8788789 | R58: 1126 | S58: =IFERROR((1+'Simulación Cliente'!$E$21)^(R58/360),"") -> 1.616459396 | T58: 33.33 | X58: 37 | Y58: 2027-08-02 | Z58: 31 | AA58: 1126 | AB58: 3086.228519 | AC58: -4.34577596 | AD58: 35.01907164 | AE58: 0.9567356242 | AF58: 14.7 | AG58: 0 | AH58: 46.3300313 | AI58: 3090.574295 | AJ58: 0.6564141547 | AK58: 0.6564141547 | AO58: 37 | AP58: 2027-08-02 | AQ58: 31 | AR58: 1126 | AS58: 2959.316191 | AT58: 7.552425887 | AU58: 33.57901239 | AV58: 0.9173926057 | AW58: 14.7 | AX58: 0 | AY58: 56.74883089 | AZ58: 2951.763765 | BA58: 0.6564141547 | BB58: 0.6564141547 | BF58: 37 | BG58: 2027-08-02 | BH58: 31 | BI58: 1126 | BJ58: 2959.31421 | BK58: -0.3985041708 | BL58: 33.57898992 | BM58: 0.9173919917 | BN58: 14.7 | BO58: 0 | BP58: 48.79787774 | BQ58: 2959.712714 | BR58: 0.6564141547 | BS58: 0.6564141547 | BW58: 37 | BX58: 2027-08-02 | BY58: 31 | BZ58: 1126 | CA58: 3086.230551 | CB58: 3.203047959 | CC58: 35.01909469 | CD58: 0.9567362538 | CE58: 14.7 | CF58: 0 | CG58: 53.8788789 | CH58: 3083.027503 | CI58: 0.6564141547 | CJ58: 0.6564141547 | CN58: 37 | CO58: 2027-08-02 | CP58: 31 | CQ58: 1126 | CR58: 3086.228519 | CS58: -4.34577596 | CT58: 35.01907164 | CU58: 0.9567356242 | CV58: 14.7 | CW58: 0 | CX58: 46.3300313 | CY58: 3090.574295 | CZ58: 0.6564141547 | DA58: 0.6564141547
B59: 38 | C59: 2027-09-02 | D59: 31 | E59: 1157 | F59: 3083.027503 | G59: 3.240385517 | H59: 34.98275008 | I59: 0.955743304 | J59: 14.7 | K59: 0 | L59: 53.8788789 | M59: 3079.787117 | N59: 0.6488505065 | O59: 0.6488505065 | Q59: 53.8788789 | R59: 1157 | S59: =IFERROR((1+'Simulación Cliente'!$E$21)^(R59/360),"") -> 1.637973287 | T59: 32.89 | X59: 38 | Y59: 2027-09-02 | Z59: 31 | AA59: 1157 | AB59: 3090.574295 | AC59: -4.396434165 | AD59: 35.06838265 | AE59: 0.9580828215 | AF59: 14.7 | AG59: 0 | AH59: 46.3300313 | AI59: 3094.970729 | AJ59: 0.6488505065 | AK59: 0.6488505065 | AO59: 38 | AP59: 2027-09-02 | AQ59: 31 | AR59: 1157 | AS59: 2951.763765 | AT59: 7.640463638 | AU59: 33.49331591 | AV59: 0.915051342 | AW59: 14.7 | AX59: 0 | AY59: 56.74883089 | AZ59: 2944.123302 | BA59: 0.6488505065 | BB59: 0.6488505065 | BF59: 38 | BG59: 2027-09-02 | BH59: 31 | BI59: 1157 | BJ59: 2959.712714 | BK59: -0.4031494876 | BL59: 33.5835117 | BM59: 0.9175155286 | BN59: 14.7 | BO59: 0 | BP59: 48.79787774 | BQ59: 2960.115864 | BR59: 0.6488505065 | BS59: 0.6488505065 | BW59: 38 | BX59: 2027-09-02 | BY59: 31 | BZ59: 1157 | CA59: 3083.027503 | CB59: 3.240385517 | CC59: 34.98275008 | CD59: 0.955743304 | CE59: 14.7 | CF59: 0 | CG59: 53.8788789 | CH59: 3079.787117 | CI59: 0.6488505065 | CJ59: 0.6488505065 | CN59: 38 | CO59: 2027-09-02 | CP59: 31 | CQ59: 1157 | CR59: 3090.574295 | CS59: -4.396434165 | CT59: 35.06838265 | CU59: 0.9580828215 | CV59: 14.7 | CW59: 0 | CX59: 46.3300313 | CY59: 3094.970729 | CZ59: 0.6488505065 | DA59: 0.6488505065
B60: 39 | C60: 2027-10-02 | D60: 30 | E60: 1187 | F60: 3079.787117 | G60: 4.44241597 | H60: 33.8125268 | I60: 0.9239361351 | J60: 14.7 | K60: 0 | L60: 53.8788789 | M60: 3075.344701 | N60: 0.641613839 | O60: 0.641613839 | Q60: 53.8788789 | R60: 1187 | S60: =IFERROR((1+'Simulación Cliente'!$E$21)^(R60/360),"") -> 1.659065772 | T60: 32.48 | X60: 39 | Y60: 2027-10-02 | Z60: 30 | AA60: 1187 | AB60: 3094.970729 | AC60: -3.277685343 | AD60: 33.97922543 | AE60: 0.9284912188 | AF60: 14.7 | AG60: 0 | AH60: 46.3300313 | AI60: 3098.248415 | AJ60: 0.641613839 | AK60: 0.641613839 | AO60: 39 | AP60: 2027-10-02 | AQ60: 30 | AR60: 1187 | AS60: 2944.123302 | AT60: 8.842500046 | AU60: 32.32309385 | AV60: 0.8832369905 | AW60: 14.7 | AX60: 0 | AY60: 56.74883089 | AZ60: 2935.280802 | BA60: 0.641613839 | BB60: 0.641613839 | BF60: 39 | BG60: 2027-10-02 | BH60: 30 | BI60: 1187 | BJ60: 2960.115864 | BK60: 0.7111691545 | BL60: 32.49867383 | BM60: 0.8880347592 | BN60: 14.7 | BO60: 0 | BP60: 48.79787774 | BQ60: 2959.404695 | BR60: 0.641613839 | BS60: 0.641613839 | BW60: 39 | BX60: 2027-10-02 | BY60: 30 | BZ60: 1187 | CA60: 3079.787117 | CB60: 4.44241597 | CC60: 33.8125268 | CD60: 0.9239361351 | CE60: 14.7 | CF60: 0 | CG60: 53.8788789 | CH60: 3075.344701 | CI60: 0.641613839 | CJ60: 0.641613839 | CN60: 39 | CO60: 2027-10-02 | CP60: 30 | CQ60: 1187 | CR60: 3094.970729 | CS60: -3.277685343 | CT60: 33.97922543 | CU60: 0.9284912188 | CV60: 14.7 | CW60: 0 | CX60: 46.3300313 | CY60: 3098.248415 | CZ60: 0.641613839 | DA60: 0.641613839
B61: 40 | C61: 2027-11-02 | D61: 31 | E61: 1218 | F61: 3075.344701 | G61: 3.329943041 | H61: 34.89557424 | I61: 0.9533616236 | J61: 14.7 | K61: 0 | L61: 53.8788789 | M61: 3072.014758 | N61: 0.6342207301 | O61: 0.6342207301 | Q61: 53.8788789 | R61: 1218 | S61: =IFERROR((1+'Simulación Cliente'!$E$21)^(R61/360),"") -> 1.681146723 | T61: 32.05 | X61: 40 | Y61: 2027-11-02 | Z61: 31 | AA61: 1218 | AB61: 3098.248415 | AC61: -4.485890485 | AD61: 35.15545998 | AE61: 0.9604618104 | AF61: 14.7 | AG61: 0 | AH61: 46.3300313 | AI61: 3102.734305 | AJ61: 0.6342207301 | AK61: 0.6342207301 | AO61: 40 | AP61: 2027-11-02 | AQ61: 31 | AR61: 1218 | AS61: 2935.280802 | AT61: 7.832603631 | AU61: 33.30628566 | AV61: 0.9099415977 | AW61: 14.7 | AX61: 0 | AY61: 56.74883089 | AZ61: 2927.448198 | BA61: 0.6342207301 | BB61: 0.6342207301 | BF61: 40 | BG61: 2027-11-02 | BH61: 31 | BI61: 1218 | BJ61: 2959.404695 | BK61: -0.3995589382 | BL61: 33.58001664 | BM61: 0.917420042 | BN61: 14.7 | BO61: 0 | BP61: 48.79787774 | BQ61: 2959.804254 | BR61: 0.6342207301 | BS61: 0.6342207301 | BW61: 40 | BX61: 2027-11-02 | BY61: 31 | BZ61: 1218 | CA61: 3075.344701 | CB61: 3.329943041 | CC61: 34.89557424 | CD61: 0.9533616236 | CE61: 14.7 | CF61: 0 | CG61: 53.8788789 | CH61: 3072.014758 | CI61: 0.6342207301 | CJ61: 0.6342207301 | CN61: 40 | CO61: 2027-11-02 | CP61: 31 | CQ61: 1218 | CR61: 3098.248415 | CS61: -4.485890485 | CT61: 35.15545998 | CU61: 0.9604618104 | CV61: 14.7 | CW61: 0 | CX61: 46.3300313 | CY61: 3102.734305 | CZ61: 0.6342207301 | DA61: 0.6342207301
B62: 41 | C62: 2027-12-02 | D62: 30 | E62: 1248 | F62: 3072.014758 | G62: 4.530079257 | H62: 33.72719522 | I62: 0.9216044274 | J62: 14.7 | K62: 0 | L62: 53.8788789 | M62: 3067.484679 | N62: 0.6271472294 | O62: 0.6271472294 | Q62: 53.8788789 | R62: 1248 | S62: =IFERROR((1+'Simulación Cliente'!$E$21)^(R62/360),"") -> 1.70279516 | T62: 31.64 | X62: 41 | Y62: 2027-12-02 | Z62: 30 | AA62: 1248 | AB62: 3102.734305 | AC62: 42.96478174 | AD62: 34.06446058 | AE62: 0.9308202916 | AF62: 14.7 | AG62: 0 | AH62: 92.66006261 | AI62: 3059.769524 | AJ62: 1.254294459 | AK62: 0.6271472294 | AO62: 41 | AP62: 2027-12-02 | AQ62: 30 | AR62: 1248 | AS62: 2927.448198 | AT62: 9.030576072 | AU62: 32.14002036 | AV62: 0.8782344594 | AW62: 14.7 | AX62: 0 | AY62: 56.74883089 | AZ62: 2918.417622 | BA62: 0.6271472294 | BB62: 0.6271472294 | BF62: 41 | BG62: 2027-12-02 | BH62: 30 | BI62: 1248 | BJ62: 2959.804254 | BK62: 49.5125615 | BL62: 32.4952527 | BM62: 0.8879412761 | BN62: 14.7 | BO62: 0 | BP62: 97.59575548 | BQ62: 2910.291692 | BR62: 1.254294459 | BS62: 0.6271472294 | BW62: 41 | BX62: 2027-12-02 | BY62: 30 | BZ62: 1248 | CA62: 3072.014758 | CB62: 4.530079257 | CC62: 33.72719522 | CD62: 0.9216044274 | CE62: 14.7 | CF62: 0 | CG62: 53.8788789 | CH62: 3067.484679 | CI62: 0.6271472294 | CJ62: 0.6271472294 | CN62: 41 | CO62: 2027-12-02 | CP62: 30 | CQ62: 1248 | CR62: 3102.734305 | CS62: 42.96478174 | CT62: 34.06446058 | CU62: 0.9308202916 | CV62: 14.7 | CW62: 0 | CX62: 92.66006261 | CY62: 3059.769524 | CZ62: 1.254294459 | DA62: 0.6271472294
B63: 42 | C63: 2028-01-02 | D63: 31 | E63: 1279 | F63: 3067.484679 | G63: 3.421566408 | H63: 34.80638749 | I63: 0.9509250046 | J63: 14.7 | K63: 0 | L63: 53.8788789 | M63: 3064.063112 | N63: 0.6199208145 | O63: 0.6199208145 | Q63: 53.8788789 | R63: 1279 | S63: =IFERROR((1+'Simulación Cliente'!$E$21)^(R63/360),"") -> 1.725458117 | T63: 31.23 | X63: 42 | Y63: 2028-01-02 | Z63: 31 | AA63: 1279 | AB63: 3059.769524 | AC63: -4.03734652 | AD63: 34.71884453 | AE63: 0.9485332945 | AF63: 14.7 | AG63: 0 | AH63: 46.3300313 | AI63: 3063.80687 | AJ63: 0.6199208145 | AK63: 0.6199208145 | AO63: 42 | AP63: 2028-01-02 | AQ63: 31 | AR63: 1279 | AS63: 2918.417622 | AT63: 8.029175757 | AU63: 33.11494114 | AV63: 0.9047139859 | AW63: 14.7 | AX63: 0 | AY63: 56.74883089 | AZ63: 2910.388446 | BA63: 0.6199208145 | BB63: 0.6199208145 | BF63: 42 | BG63: 2028-01-02 | BH63: 31 | BI63: 1279 | BJ63: 2910.291692 | BK63: 0.1729456263 | BL63: 33.02273718 | BM63: 0.9021949351 | BN63: 14.7 | BO63: 0 | BP63: 48.79787774 | BQ63: 2910.118747 | BR63: 0.6199208145 | BS63: 0.6199208145 | BW63: 42 | BX63: 2028-01-02 | BY63: 31 | BZ63: 1279 | CA63: 3067.484679 | CB63: 3.421566408 | CC63: 34.80638749 | CD63: 0.9509250046 | CE63: 14.7 | CF63: 0 | CG63: 53.8788789 | CH63: 3064.063112 | CI63: 0.6199208145 | CJ63: 0.6199208145 | CN63: 42 | CO63: 2028-01-02 | CP63: 31 | CQ63: 1279 | CR63: 3059.769524 | CS63: -4.03734652 | CT63: 34.71884453 | CU63: 0.9485332945 | CV63: 14.7 | CW63: 0 | CX63: 46.3300313 | CY63: 3063.80687 | CZ63: 0.6199208145 | DA63: 0.6199208145
B64: 43 | C64: 2028-02-02 | D64: 31 | E64: 1310 | F64: 3064.063112 | G64: 3.46145121 | H64: 34.76756338 | I64: 0.9498643137 | J64: 14.7 | K64: 0 | L64: 53.8788789 | M64: 3060.601661 | N64: 0.6127776673 | O64: 0.6127776673 | Q64: 53.8788789 | R64: 1310 | S64: =IFERROR((1+'Simulación Cliente'!$E$21)^(R64/360),"") -> 1.748422702 | T64: 30.82 | X64: 43 | Y64: 2028-02-02 | Z64: 31 | AA64: 1310 | AB64: 3063.80687 | AC64: -4.0844094 | AD64: 34.76465583 | AE64: 0.9497848782 | AF64: 14.7 | AG64: 0 | AH64: 46.3300313 | AI64: 3067.891279 | AJ64: 0.6127776673 | AK64: 0.6127776673 | AO64: 43 | AP64: 2028-02-02 | AQ64: 31 | AR64: 1310 | AS64: 2910.388446 | AT64: 8.122770926 | AU64: 33.02383503 | AV64: 0.9022249289 | AW64: 14.7 | AX64: 0 | AY64: 56.74883089 | AZ64: 2902.265675 | BA64: 0.6127776673 | BB64: 0.6127776673 | BF64: 43 | BG64: 2028-02-02 | BH64: 31 | BI64: 1310 | BJ64: 2910.118747 | BK64: 0.1749616334 | BL64: 33.02077478 | BM64: 0.9021413217 | BN64: 14.7 | BO64: 0 | BP64: 48.79787774 | BQ64: 2909.943785 | BR64: 0.6127776673 | BS64: 0.6127776673 | BW64: 43 | BX64: 2028-02-02 | BY64: 31 | BZ64: 1310 | CA64: 3064.063112 | CB64: 3.46145121 | CC64: 34.76756338 | CD64: 0.9498643137 | CE64: 14.7 | CF64: 0 | CG64: 53.8788789 | CH64: 3060.601661 | CI64: 0.6127776673 | CJ64: 0.6127776673 | CN64: 43 | CO64: 2028-02-02 | CP64: 31 | CQ64: 1310 | CR64: 3063.80687 | CS64: -4.0844094 | CT64: 34.76465583 | CU64: 0.9497848782 | CV64: 14.7 | CW64: 0 | CX64: 46.3300313 | CY64: 3067.891279 | CZ64: 0.6127776673 | DA64: 0.6127776673
B65: 44 | C65: 2028-03-02 | D65: 29 | E65: 1339 | F65: 3060.601661 | G65: 5.815400626 | H65: 32.47590823 | I65: 0.8875700443 | J65: 14.7 | K65: 0 | L65: 53.8788789 | M65: 3054.786261 | N65: 0.606169901 | O65: 0.606169901 | Q65: 53.8788789 | R65: 1339 | S65: =IFERROR((1+'Simulación Cliente'!$E$21)^(R65/360),"") -> 1.770182322 | T65: 30.44 | X65: 44 | Y65: 2028-03-02 | Z65: 29 | AA65: 1339 | AB65: 3067.891279 | AC65: -1.812910765 | AD65: 32.55325805 | AE65: 0.8896840231 | AF65: 14.7 | AG65: 0 | AH65: 46.3300313 | AI65: 3069.70419 | AJ65: 0.606169901 | AK65: 0.606169901 | AO65: 44 | AP65: 2028-03-02 | AQ65: 29 | AR65: 1339 | AS65: 2902.265675 | AT65: 10.41136593 | AU65: 30.79581212 | AV65: 0.8416528379 | AW65: 14.7 | AX65: 0 | AY65: 56.74883089 | AZ65: 2891.854309 | BA65: 0.606169901 | BB65: 0.606169901 | BF65: 44 | BG65: 2028-03-02 | BH65: 29 | BI65: 1339 | BJ65: 2909.943785 | BK65: 2.37671406 | BL65: 30.8772842 | BM65: 0.8438794787 | BN65: 14.7 | BO65: 0 | BP65: 48.79787774 | BQ65: 2907.567071 | BR65: 0.606169901 | BS65: 0.606169901 | BW65: 44 | BX65: 2028-03-02 | BY65: 29 | BZ65: 1339 | CA65: 3060.601661 | CB65: 5.815400626 | CC65: 32.47590823 | CD65: 0.8875700443 | CE65: 14.7 | CF65: 0 | CG65: 53.8788789 | CH65: 3054.786261 | CI65: 0.606169901 | CJ65: 0.606169901 | CN65: 44 | CO65: 2028-03-02 | CP65: 29 | CQ65: 1339 | CR65: 3067.891279 | CS65: -1.812910765 | CT65: 32.55325805 | CU65: 0.8896840231 | CV65: 14.7 | CW65: 0 | CX65: 46.3300313 | CY65: 3069.70419 | CZ65: 0.606169901 | DA65: 0.606169901
B66: 45 | C66: 2028-04-02 | D66: 31 | E66: 1370 | F66: 3054.786261 | G66: 3.569590394 | H66: 34.66230003 | I66: 0.9469884752 | J66: 14.7 | K66: 0 | L66: 53.8788789 | M66: 3051.21667 | N66: 0.5991852011 | O66: 0.5991852011 | Q66: 53.8788789 | R66: 1370 | S66: =IFERROR((1+'Simulación Cliente'!$E$21)^(R66/360),"") -> 1.793742153 | T66: 30.04 | X66: 45 | Y66: 2028-04-02 | Z66: 31 | AA66: 1370 | AB66: 3069.70419 | AC66: -4.153153776 | AD66: 34.83157202 | AE66: 0.9516130565 | AF66: 14.7 | AG66: 0 | AH66: 46.3300313 | AI66: 3073.857344 | AJ66: 0.5991852011 | AK66: 0.5991852011 | AO66: 45 | AP66: 2028-04-02 | AQ66: 31 | AR66: 1370 | AS66: 2891.854309 | AT66: 8.338821206 | AU66: 32.81353036 | AV66: 0.8964793178 | AW66: 14.7 | AX66: 0 | AY66: 56.74883089 | AZ66: 2883.515488 | BA66: 0.5991852011 | BB66: 0.5991852011 | BF66: 45 | BG66: 2028-04-02 | BH66: 31 | BI66: 1370 | BJ66: 2907.567071 | BK66: 0.2047062205 | BL66: 32.99182122 | BM66: 0.9013502983 | BN66: 14.7 | BO66: 0 | BP66: 48.79787774 | BQ66: 2907.362365 | BR66: 0.5991852011 | BS66: 0.5991852011 | BW66: 45 | BX66: 2028-04-02 | BY66: 31 | BZ66: 1370 | CA66: 3054.786261 | CB66: 3.569590394 | CC66: 34.66230003 | CD66: 0.9469884752 | CE66: 14.7 | CF66: 0 | CG66: 53.8788789 | CH66: 3051.21667 | CI66: 0.5991852011 | CJ66: 0.5991852011 | CN66: 45 | CO66: 2028-04-02 | CP66: 31 | CQ66: 1370 | CR66: 3069.70419 | CS66: -4.153153776 | CT66: 34.83157202 | CU66: 0.9516130565 | CV66: 14.7 | CW66: 0 | CX66: 46.3300313 | CY66: 3073.857344 | CZ66: 0.5991852011 | DA66: 0.5991852011
B67: 46 | C67: 2028-05-02 | D67: 30 | E67: 1400 | F67: 3051.21667 | G67: 4.764657811 | H67: 33.49885609 | I67: 0.915365001 | J67: 14.7 | K67: 0 | L67: 53.8788789 | M67: 3046.452012 | N67: 0.5925024536 | O67: 0.5925024536 | Q67: 53.8788789 | R67: 1400 | S67: =IFERROR((1+'Simulación Cliente'!$E$21)^(R67/360),"") -> 1.816840502 | T67: 29.66 | X67: 46 | Y67: 2028-05-02 | Z67: 30 | AA67: 1400 | AB67: 3073.857344 | AC67: -3.039550594 | AD67: 33.7474247 | AE67: 0.9221572032 | AF67: 14.7 | AG67: 0 | AH67: 46.3300313 | AI67: 3076.896895 | AJ67: 0.5925024536 | AK67: 0.5925024536 | AO67: 46 | AP67: 2028-05-02 | AQ67: 30 | AR67: 1400 | AS67: 2883.515488 | AT67: 9.526086602 | AU67: 31.65768964 | AV67: 0.8650546464 | AW67: 14.7 | AX67: 0 | AY67: 56.74883089 | AZ67: 2873.989401 | BA67: 0.5925024536 | BB67: 0.5925024536 | BF67: 46 | BG67: 2028-05-02 | BH67: 30 | BI67: 1400 | BJ67: 2907.362365 | BK67: 1.306168062 | BL67: 31.91950097 | BM67: 0.8722087094 | BN67: 14.7 | BO67: 0 | BP67: 48.79787774 | BQ67: 2906.056197 | BR67: 0.5925024536 | BS67: 0.5925024536 | BW67: 46 | BX67: 2028-05-02 | BY67: 30 | BZ67: 1400 | CA67: 3051.21667 | CB67: 4.764657811 | CC67: 33.49885609 | CD67: 0.915365001 | CE67: 14.7 | CF67: 0 | CG67: 53.8788789 | CH67: 3046.452012 | CI67: 0.5925024536 | CJ67: 0.5925024536 | CN67: 46 | CO67: 2028-05-02 | CP67: 30 | CQ67: 1400 | CR67: 3073.857344 | CS67: -3.039550594 | CT67: 33.7474247 | CU67: 0.9221572032 | CV67: 14.7 | CW67: 0 | CX67: 46.3300313 | CY67: 3076.896895 | CZ67: 0.5925024536 | DA67: 0.5925024536
B68: 47 | C68: 2028-06-02 | D68: 31 | E68: 1431 | F68: 3046.452012 | G68: 3.666741757 | H68: 34.5677323 | I68: 0.9444048454 | J68: 14.7 | K68: 0 | L68: 53.8788789 | M68: 3042.785271 | N68: 0.5856752393 | O68: 0.5856752393 | Q68: 53.8788789 | R68: 1431 | S68: =IFERROR((1+'Simulación Cliente'!$E$21)^(R68/360),"") -> 1.841021319 | T68: 29.27 | X68: 47 | Y68: 2028-06-02 | Z68: 31 | AA68: 1431 | AB68: 3076.896895 | AC68: -4.236998295 | AD68: 34.91318679 | AE68: 0.953842806 | AF68: 14.7 | AG68: 0 | AH68: 46.3300313 | AI68: 3081.133893 | AJ68: 0.5856752393 | AK68: 0.5856752393 | AO68: 47 | AP68: 2028-06-02 | AQ68: 31 | AR68: 1431 | AS68: 2873.989401 | AT68: 8.547070361 | AU68: 32.61081936 | AV68: 0.8909411687 | AW68: 14.7 | AX68: 0 | AY68: 56.74883089 | AZ68: 2865.442331 | BA68: 0.5856752393 | BB68: 0.5856752393 | BF68: 47 | BG68: 2028-06-02 | BH68: 31 | BI68: 1431 | BJ68: 2906.056197 | BK68: 0.2223183064 | BL68: 32.97467751 | BM68: 0.9008819249 | BN68: 14.7 | BO68: 0 | BP68: 48.79787774 | BQ68: 2905.833878 | BR68: 0.5856752393 | BS68: 0.5856752393 | BW68: 47 | BX68: 2028-06-02 | BY68: 31 | BZ68: 1431 | CA68: 3046.452012 | CB68: 3.666741757 | CC68: 34.5677323 | CD68: 0.9444048454 | CE68: 14.7 | CF68: 0 | CG68: 53.8788789 | CH68: 3042.785271 | CI68: 0.5856752393 | CJ68: 0.5856752393 | CN68: 47 | CO68: 2028-06-02 | CP68: 31 | CQ68: 1431 | CR68: 3076.896895 | CS68: -4.236998295 | CT68: 34.91318679 | CU68: 0.953842806 | CV68: 14.7 | CW68: 0 | CX68: 46.3300313 | CY68: 3081.133893 | CZ68: 0.5856752393 | DA68: 0.5856752393
B69: 48 | C69: 2028-07-02 | D69: 30 | E69: 1461 | F69: 3042.785271 | G69: 4.859754318 | H69: 33.406289 | I69: 0.9128355812 | J69: 14.7 | K69: 0 | L69: 53.8788789 | M69: 3037.925516 | N69: 0.5791431693 | O69: 0.5791431693 | Q69: 53.8788789 | R69: 1461 | S69: =IFERROR((1+'Simulación Cliente'!$E$21)^(R69/360),"") -> 1.864728491 | T69: 28.89 | X69: 48 | Y69: 2028-07-02 | Z69: 30 | AA69: 1461 | AB69: 3081.133893 | AC69: 43.20840959 | AD69: 33.82731285 | AE69: 0.9243401679 | AF69: 14.7 | AG69: 0 | AH69: 92.66006261 | AI69: 3037.925483 | AJ69: 1.158286339 | AK69: 0.5791431693 | AO69: 48 | AP69: 2028-07-02 | AQ69: 30 | AR69: 1461 | AS69: 2865.442331 | AT69: 9.729931064 | AU69: 31.45926712 | AV69: 0.8596326993 | AW69: 14.7 | AX69: 0 | AY69: 56.74883089 | AZ69: 2855.7124 | BA69: 0.5791431693 | BB69: 0.5791431693 | BF69: 48 | BG69: 2028-07-02 | BH69: 30 | BI69: 1461 | BJ69: 2905.833878 | BK69: 50.12128537 | BL69: 31.90271994 | BM69: 0.8717501635 | BN69: 14.7 | BO69: 0 | BP69: 97.59575548 | BQ69: 2855.712593 | BR69: 1.158286339 | BS69: 0.5791431693 | BW69: 48 | BX69: 2028-07-02 | BY69: 30 | BZ69: 1461 | CA69: 3042.785271 | CB69: 4.859754318 | CC69: 33.406289 | CD69: 0.9128355812 | CE69: 14.7 | CF69: 0 | CG69: 53.8788789 | CH69: 3037.925516 | CI69: 0.5791431693 | CJ69: 0.5791431693 | CN69: 48 | CO69: 2028-07-02 | CP69: 30 | CQ69: 1461 | CR69: 3081.133893 | CS69: 43.20840959 | CT69: 33.82731285 | CU69: 0.9243401679 | CV69: 14.7 | CW69: 0 | CX69: 92.66006261 | CY69: 3037.925483 | CZ69: 1.158286339 | DA69: 0.5791431693
B70: 49 | C70: 2028-08-02 | D70: 31 | E70: 1492 | F70: 3037.925516 | G70: 3.766134131 | H70: 34.47098315 | I70: 0.9417616184 | J70: 14.7 | K70: 0 | L70: 53.8788789 | M70: 3034.159382 | N70: 0.5724698897 | O70: 0.5724698897 | Q70: 53.8788789 | R70: 1492 | S70: =IFERROR((1+'Simulación Cliente'!$E$21)^(R70/360),"") -> 1.889546662 | T70: 28.51 | X70: 49 | Y70: 2028-08-02 | Z70: 31 | AA70: 1492 | AB70: 3037.925483 | AC70: -3.782713081 | AD70: 34.47098278 | AE70: 0.9417616081 | AF70: 14.7 | AG70: 0 | AH70: 46.3300313 | AI70: 3041.708196 | AJ70: 0.5724698897 | AK70: 0.5724698897 | AO70: 49 | AP70: 2028-08-02 | AQ70: 31 | AR70: 1492 | AS70: 2855.7124 | AT70: 8.760123243 | AU70: 32.40343237 | AV70: 0.8852752699 | AW70: 14.7 | AX70: 0 | AY70: 56.74883089 | AZ70: 2846.952277 | BA70: 0.5724698897 | BB70: 0.5724698897 | BF70: 49 | BG70: 2028-08-02 | BH70: 31 | BI70: 1492 | BJ70: 2855.712593 | BK70: 0.8091678452 | BL70: 32.40343456 | BM70: 0.8852753297 | BN70: 14.7 | BO70: 0 | BP70: 48.79787774 | BQ70: 2854.903425 | BR70: 0.5724698897 | BS70: 0.5724698897 | BW70: 49 | BX70: 2028-08-02 | BY70: 31 | BZ70: 1492 | CA70: 3037.925516 | CB70: 3.766134131 | CC70: 34.47098315 | CD70: 0.9417616184 | CE70: 14.7 | CF70: 0 | CG70: 53.8788789 | CH70: 3034.159382 | CI70: 0.5724698897 | CJ70: 0.5724698897 | CN70: 49 | CO70: 2028-08-02 | CP70: 31 | CQ70: 1492 | CR70: 3037.925483 | CS70: -3.782713081 | CT70: 34.47098278 | CU70: 0.9417616081 | CV70: 14.7 | CW70: 0 | CX70: 46.3300313 | CY70: 3041.708196 | CZ70: 0.5724698897 | DA70: 0.5724698897
B71: 50 | C71: 2028-09-02 | D71: 31 | E71: 1523 | F71: 3034.159382 | G71: 3.810035519 | H71: 34.42824927 | I71: 0.9405941109 | J71: 14.7 | K71: 0 | L71: 53.8788789 | M71: 3030.349347 | N71: 0.5658735042 | O71: 0.5658735042 | Q71: 53.8788789 | R71: 1523 | S71: =IFERROR((1+'Simulación Cliente'!$E$21)^(R71/360),"") -> 1.914695146 | T71: 28.14 | X71: 50 | Y71: 2028-09-02 | Z71: 31 | AA71: 1523 | AB71: 3041.708196 | AC71: -3.826807728 | AD71: 34.51390478 | AE71: 0.9429342551 | AF71: 14.7 | AG71: 0 | AH71: 46.3300313 | AI71: 3045.535004 | AJ71: 0.5658735042 | AK71: 0.5658735042 | AO71: 50 | AP71: 2028-09-02 | AQ71: 31 | AR71: 1523 | AS71: 2846.952277 | AT71: 8.862238981 | AU71: 32.30403229 | AV71: 0.8825596181 | AW71: 14.7 | AX71: 0 | AY71: 56.74883089 | AZ71: 2838.090038 | BA71: 0.5658735042 | BB71: 0.5658735042 | BF71: 50 | BG71: 2028-09-02 | BH71: 31 | BI71: 1523 | BJ71: 2854.903425 | BK71: 0.8186002207 | BL71: 32.39425303 | BM71: 0.8850244865 | BN71: 14.7 | BO71: 0 | BP71: 48.79787774 | BQ71: 2854.084825 | BR71: 0.5658735042 | BS71: 0.5658735042 | BW71: 50 | BX71: 2028-09-02 | BY71: 31 | BZ71: 1523 | CA71: 3034.159382 | CB71: 3.810035519 | CC71: 34.42824927 | CD71: 0.9405941109 | CE71: 14.7 | CF71: 0 | CG71: 53.8788789 | CH71: 3030.349347 | CI71: 0.5658735042 | CJ71: 0.5658735042 | CN71: 50 | CO71: 2028-09-02 | CP71: 31 | CQ71: 1523 | CR71: 3041.708196 | CS71: -3.826807728 | CT71: 34.51390478 | CU71: 0.9429342551 | CV71: 14.7 | CW71: 0 | CX71: 46.3300313 | CY71: 3045.535004 | CZ71: 0.5658735042 | DA71: 0.5658735042
B72: 51 | C72: 2028-10-02 | D72: 30 | E72: 1553 | F72: 3030.349347 | G72: 5.000017264 | H72: 33.26975683 | I72: 0.909104804 | J72: 14.7 | K72: 0 | L72: 53.8788789 | M72: 3025.349329 | N72: 0.559562284 | O72: 0.559562284 | Q72: 53.8788789 | R72: 1553 | S72: =IFERROR((1+'Simulación Cliente'!$E$21)^(R72/360),"") -> 1.939351028 | T72: 27.78 | X72: 51 | Y72: 2028-10-02 | Z72: 30 | AA72: 1553 | AB72: 3045.535004 | AC72: -2.720107116 | AD72: 33.43647792 | AE72: 0.9136605012 | AF72: 14.7 | AG72: 0 | AH72: 46.3300313 | AI72: 3048.255111 | AJ72: 0.559562284 | AK72: 0.559562284 | AO72: 51 | AP72: 2028-10-02 | AQ72: 30 | AR72: 1553 | AS72: 2838.090038 | AT72: 10.03843353 | AU72: 31.15897035 | AV72: 0.8514270113 | AW72: 14.7 | AX72: 0 | AY72: 56.74883089 | AZ72: 2828.051604 | BA72: 0.559562284 | BB72: 0.559562284 | BF72: 51 | BG72: 2028-10-02 | BH72: 30 | BI72: 1553 | BJ72: 2854.084825 | BK72: 1.907077546 | BL72: 31.33457475 | BM72: 0.8562254475 | BN72: 14.7 | BO72: 0 | BP72: 48.79787774 | BQ72: 2852.177747 | BR72: 0.559562284 | BS72: 0.559562284 | BW72: 51 | BX72: 2028-10-02 | BY72: 30 | BZ72: 1553 | CA72: 3030.349347 | CB72: 5.000017264 | CC72: 33.26975683 | CD72: 0.909104804 | CE72: 14.7 | CF72: 0 | CG72: 53.8788789 | CH72: 3025.349329 | CI72: 0.559562284 | CJ72: 0.559562284 | CN72: 51 | CO72: 2028-10-02 | CP72: 30 | CQ72: 1553 | CR72: 3045.535004 | CS72: -2.720107116 | CT72: 33.43647792 | CU72: 0.9136605012 | CV72: 14.7 | CW72: 0 | CX72: 46.3300313 | CY72: 3048.255111 | CZ72: 0.559562284 | DA72: 0.559562284
B73: 52 | C73: 2028-11-02 | D73: 31 | E73: 1584 | F73: 3025.349329 | G73: 3.912733281 | H73: 34.32828264 | I73: 0.9378629809 | J73: 14.7 | K73: 0 | L73: 53.8788789 | M73: 3021.436596 | N73: 0.5531146286 | O73: 0.5531146286 | Q73: 53.8788789 | R73: 1584 | S73: =IFERROR((1+'Simulación Cliente'!$E$21)^(R73/360),"") -> 1.965162371 | T73: 27.42 | X73: 52 | Y73: 2028-11-02 | Z73: 31 | AA73: 1584 | AB73: 3048.255111 | AC73: -3.903124354 | AD73: 34.58819185 | AE73: 0.9449638088 | AF73: 14.7 | AG73: 0 | AH73: 46.3300313 | AI73: 3052.158236 | AJ73: 0.5531146286 | AK73: 0.5531146286 | AO73: 52 | AP73: 2028-11-02 | AQ73: 31 | AR73: 1584 | AS73: 2828.051604 | AT73: 9.082561925 | AU73: 32.08956858 | AV73: 0.8767003804 | AW73: 14.7 | AX73: 0 | AY73: 56.74883089 | AZ73: 2818.969042 | BA73: 0.5531146286 | BB73: 0.5531146286 | BF73: 52 | BG73: 2028-11-02 | BH73: 31 | BI73: 1584 | BJ73: 2852.177747 | BK73: 0.8503731297 | BL73: 32.36332509 | BM73: 0.8841795221 | BN73: 14.7 | BO73: 0 | BP73: 48.79787774 | BQ73: 2851.327374 | BR73: 0.5531146286 | BS73: 0.5531146286 | BW73: 52 | BX73: 2028-11-02 | BY73: 31 | BZ73: 1584 | CA73: 3025.349329 | CB73: 3.912733281 | CC73: 34.32828264 | CD73: 0.9378629809 | CE73: 14.7 | CF73: 0 | CG73: 53.8788789 | CH73: 3021.436596 | CI73: 0.5531146286 | CJ73: 0.5531146286 | CN73: 52 | CO73: 2028-11-02 | CP73: 31 | CQ73: 1584 | CR73: 3048.255111 | CS73: -3.903124354 | CT73: 34.58819185 | CU73: 0.9449638088 | CV73: 14.7 | CW73: 0 | CX73: 46.3300313 | CY73: 3052.158236 | CZ73: 0.5531146286 | DA73: 0.5531146286
B74: 53 | C74: 2028-12-02 | D74: 30 | E74: 1614 | F74: 3021.436596 | G74: 5.100542858 | H74: 33.17190506 | I74: 0.9064309788 | J74: 14.7 | K74: 0 | L74: 53.8788789 | M74: 3016.336053 | N74: 0.546945709 | O74: 0.546945709 | Q74: 53.8788789 | R74: 1614 | S74: =IFERROR((1+'Simulación Cliente'!$E$21)^(R74/360),"") -> 1.99046813 | T74: 27.07 | X74: 53 | Y74: 2028-12-02 | Z74: 30 | AA74: 1614 | AB74: 3052.158236 | AC74: 43.53522174 | AD74: 33.5091934 | AE74: 0.9156474707 | AF74: 14.7 | AG74: 0 | AH74: 92.66006261 | AI74: 3008.623014 | AJ74: 1.093891418 | AK74: 0.546945709 | AO74: 53 | AP74: 2028-12-02 | AQ74: 30 | AR74: 1614 | AS74: 2818.969042 | AT74: 10.25409641 | AU74: 30.94904377 | AV74: 0.8456907127 | AW74: 14.7 | AX74: 0 | AY74: 56.74883089 | AZ74: 2808.714946 | BA74: 0.546945709 | BB74: 0.546945709 | BF74: 53 | BG74: 2028-12-02 | BH74: 30 | BI74: 1614 | BJ74: 2851.327374 | BK74: 50.73605616 | BL74: 31.3043011 | BM74: 0.8553982123 | BN74: 14.7 | BO74: 0 | BP74: 97.59575548 | BQ74: 2800.591318 | BR74: 1.093891418 | BS74: 0.546945709 | BW74: 53 | BX74: 2028-12-02 | BY74: 30 | BZ74: 1614 | CA74: 3021.436596 | CB74: 5.100542858 | CC74: 33.17190506 | CD74: 0.9064309788 | CE74: 14.7 | CF74: 0 | CG74: 53.8788789 | CH74: 3016.336053 | CI74: 0.546945709 | CJ74: 0.546945709 | CN74: 53 | CO74: 2028-12-02 | CP74: 30 | CQ74: 1614 | CR74: 3052.158236 | CS74: 43.53522174 | CT74: 33.5091934 | CU74: 0.9156474707 | CV74: 14.7 | CW74: 0 | CX74: 92.66006261 | CY74: 3008.623014 | CZ74: 1.093891418 | DA74: 0.546945709
B75: 54 | C75: 2029-01-02 | D75: 31 | E75: 1645 | F75: 3016.336053 | G75: 4.017799994 | H75: 34.22601006 | I75: 0.9350688514 | J75: 14.7 | K75: 0 | L75: 53.8788789 | M75: 3012.318253 | N75: 0.5406434303 | O75: 0.5406434303 | Q75: 53.8788789 | R75: 1645 | S75: =IFERROR((1+'Simulación Cliente'!$E$21)^(R75/360),"") -> 2.016959804 | T75: 26.71 | X75: 54 | Y75: 2029-01-02 | Z75: 31 | AA75: 1645 | AB75: 3008.623014 | AC75: -3.441137599 | AD75: 34.13849111 | AE75: 0.9326777972 | AF75: 14.7 | AG75: 0 | AH75: 46.3300313 | AI75: 3012.064151 | AJ75: 0.5406434303 | AK75: 0.5406434303 | AO75: 54 | AP75: 2029-01-02 | AQ75: 31 | AR75: 1645 | AS75: 2808.714946 | AT75: 9.307967104 | AU75: 31.8701578 | AV75: 0.8707059863 | AW75: 14.7 | AX75: 0 | AY75: 56.74883089 | AZ75: 2799.406979 | BA75: 0.5406434303 | BB75: 0.5406434303 | BF75: 54 | BG75: 2029-01-02 | BH75: 31 | BI75: 1645 | BJ75: 2800.591318 | BK75: 1.451710142 | BL75: 31.77797995 | BM75: 0.8681876491 | BN75: 14.7 | BO75: 0 | BP75: 48.79787774 | BQ75: 2799.139608 | BR75: 0.5406434303 | BS75: 0.5406434303 | BW75: 54 | BX75: 2029-01-02 | BY75: 31 | BZ75: 1645 | CA75: 3016.336053 | CB75: 4.017799994 | CC75: 34.22601006 | CD75: 0.9350688514 | CE75: 14.7 | CF75: 0 | CG75: 53.8788789 | CH75: 3012.318253 | CI75: 0.5406434303 | CJ75: 0.5406434303 | CN75: 54 | CO75: 2029-01-02 | CP75: 31 | CQ75: 1645 | CR75: 3008.623014 | CS75: -3.441137599 | CT75: 34.13849111 | CU75: 0.9326777972 | CV75: 14.7 | CW75: 0 | CX75: 46.3300313 | CY75: 3012.064151 | CZ75: 0.5406434303 | DA75: 0.5406434303
B76: 55 | C76: 2029-02-02 | D76: 31 | E76: 1676 | F76: 3012.318253 | G76: 4.064635021 | H76: 34.18042055 | I76: 0.9338233271 | J76: 14.7 | K76: 0 | L76: 53.8788789 | M76: 3008.253618 | N76: 0.5344137708 | O76: 0.5344137708 | Q76: 53.8788789 | R76: 1676 | S76: =IFERROR((1+'Simulación Cliente'!$E$21)^(R76/360),"") -> 2.043804063 | T76: 26.36 | X76: 55 | Y76: 2029-02-02 | Z76: 31 | AA76: 1676 | AB76: 3012.064151 | AC76: -3.48125054 | AD76: 34.17753729 | AE76: 0.9337445552 | AF76: 14.7 | AG76: 0 | AH76: 46.3300313 | AI76: 3015.545402 | AJ76: 0.5344137708 | AK76: 0.5344137708 | AO76: 55 | AP76: 2029-02-02 | AQ76: 31 | AR76: 1676 | AS76: 2799.406979 | AT76: 9.416468995 | AU76: 31.76454139 | AV76: 0.8678205021 | AW76: 14.7 | AX76: 0 | AY76: 56.74883089 | AZ76: 2789.99051 | BA76: 0.5344137708 | BB76: 0.5344137708 | BF76: 55 | BG76: 2029-02-02 | BH76: 31 | BI76: 1676 | BJ76: 2799.139608 | BK76: 1.468632559 | BL76: 31.76150756 | BM76: 0.8677376167 | BN76: 14.7 | BO76: 0 | BP76: 48.79787774 | BQ76: 2797.670975 | BR76: 0.5344137708 | BS76: 0.5344137708 | BW76: 55 | BX76: 2029-02-02 | BY76: 31 | BZ76: 1676 | CA76: 3012.318253 | CB76: 4.064635021 | CC76: 34.18042055 | CD76: 0.9338233271 | CE76: 14.7 | CF76: 0 | CG76: 53.8788789 | CH76: 3008.253618 | CI76: 0.5344137708 | CJ76: 0.5344137708 | CN76: 55 | CO76: 2029-02-02 | CP76: 31 | CQ76: 1676 | CR76: 3012.064151 | CS76: -3.48125054 | CT76: 34.17753729 | CU76: 0.9337445552 | CV76: 14.7 | CW76: 0 | CX76: 46.3300313 | CY76: 3015.545402 | CZ76: 0.5344137708 | DA76: 0.5344137708
B77: 56 | C77: 2029-03-02 | D77: 28 | E77: 1704 | F77: 3008.253618 | G77: 7.522453729 | H77: 30.81412258 | I77: 0.8423025909 | J77: 14.7 | K77: 0 | L77: 53.8788789 | M77: 3000.731164 | N77: 0.528848703 | O77: 0.528848703 | Q77: 53.8788789 | R77: 1704 | S77: =IFERROR((1+'Simulación Cliente'!$E$21)^(R77/360),"") -> 2.068357447 | T77: 26.05 | X77: 56 | Y77: 2029-03-02 | Z77: 28 | AA77: 1704 | AB77: 3015.545402 | AC77: -0.103126696 | AD77: 30.88881373 | AE77: 0.8443442699 | AF77: 14.7 | AG77: 0 | AH77: 46.3300313 | AI77: 3015.648529 | AJ77: 0.528848703 | AK77: 0.528848703 | AO77: 56 | AP77: 2029-03-02 | AQ77: 28 | AR77: 1704 | AS77: 2789.99051 | AT77: 12.68922993 | AU77: 28.57841142 | AV77: 0.7811895316 | AW77: 14.7 | AX77: 0 | AY77: 56.74883089 | AZ77: 2777.30128 | BA77: 0.528848703 | BB77: 0.528848703 | BF77: 56 | BG77: 2029-03-02 | BH77: 28 | BI77: 1704 | BJ77: 2797.670975 | BK77: 4.657453783 | BL77: 28.65708392 | BM77: 0.7833400405 | BN77: 14.7 | BO77: 0 | BP77: 48.79787774 | BQ77: 2793.013522 | BR77: 0.528848703 | BS77: 0.528848703 | BW77: 56 | BX77: 2029-03-02 | BY77: 28 | BZ77: 1704 | CA77: 3008.253618 | CB77: 7.522453729 | CC77: 30.81412258 | CD77: 0.8423025909 | CE77: 14.7 | CF77: 0 | CG77: 53.8788789 | CH77: 3000.731164 | CI77: 0.528848703 | CJ77: 0.528848703 | CN77: 56 | CO77: 2029-03-02 | CP77: 28 | CQ77: 1704 | CR77: 3015.545402 | CS77: -0.103126696 | CT77: 30.88881373 | CU77: 0.8443442699 | CV77: 14.7 | CW77: 0 | CX77: 46.3300313 | CY77: 3015.648529 | CZ77: 0.528848703 | DA77: 0.528848703
B78: 57 | C78: 2029-04-02 | D78: 31 | E78: 1735 | F78: 3000.731164 | G78: 4.199704369 | H78: 34.04894322 | I78: 0.9302313117 | J78: 14.7 | K78: 0 | L78: 53.8788789 | M78: 2996.53146 | N78: 0.5227549503 | O78: 0.5227549503 | Q78: 53.8788789 | R78: 1735 | S78: =IFERROR((1+'Simulación Cliente'!$E$21)^(R78/360),"") -> 2.095885771 | T78: 25.71 | X78: 57 | Y78: 2029-04-02 | Z78: 31 | AA78: 1735 | AB78: 3015.648529 | AC78: -3.523033209 | AD78: 34.2182088 | AE78: 0.9348557177 | AF78: 14.7 | AG78: 0 | AH78: 46.3300313 | AI78: 3019.171562 | AJ78: 0.5227549503 | AK78: 0.5227549503 | AO78: 57 | AP78: 2029-04-02 | AQ78: 31 | AR78: 1735 | AS78: 2777.30128 | AT78: 9.674152559 | AU78: 31.51371063 | AV78: 0.8609677012 | AW78: 14.7 | AX78: 0 | AY78: 56.74883089 | AZ78: 2767.627127 | BA78: 0.5227549503 | BB78: 0.5227549503 | BF78: 57 | BG78: 2029-04-02 | BH78: 31 | BI78: 1735 | BJ78: 2793.013522 | BK78: 1.540043635 | BL78: 31.69199558 | BM78: 0.8658385204 | BN78: 14.7 | BO78: 0 | BP78: 48.79787774 | BQ78: 2791.473478 | BR78: 0.5227549503 | BS78: 0.5227549503 | BW78: 57 | BX78: 2029-04-02 | BY78: 31 | BZ78: 1735 | CA78: 3000.731164 | CB78: 4.199704369 | CC78: 34.04894322 | CD78: 0.9302313117 | CE78: 14.7 | CF78: 0 | CG78: 53.8788789 | CH78: 2996.53146 | CI78: 0.5227549503 | CJ78: 0.5227549503 | CN78: 57 | CO78: 2029-04-02 | CP78: 31 | CQ78: 1735 | CR78: 3015.648529 | CS78: -3.523033209 | CT78: 34.2182088 | CU78: 0.9348557177 | CV78: 14.7 | CW78: 0 | CX78: 46.3300313 | CY78: 3019.171562 | CZ78: 0.5227549503 | DA78: 0.5227549503
B79: 58 | C79: 2029-05-02 | D79: 30 | E79: 1765 | F79: 2996.53146 | G79: 5.381444199 | H79: 32.89847526 | I79: 0.898959438 | J79: 14.7 | K79: 0 | L79: 53.8788789 | M79: 2991.150016 | N79: 0.5169246339 | O79: 0.5169246339 | Q79: 53.8788789 | R79: 1765 | S79: =IFERROR((1+'Simulación Cliente'!$E$21)^(R79/360),"") -> 2.122874879 | T79: 25.38 | X79: 58 | Y79: 2029-05-02 | Z79: 30 | AA79: 1765 | AB79: 3019.171562 | AC79: -2.422757754 | AD79: 33.14703759 | AE79: 0.9057514686 | AF79: 14.7 | AG79: 0 | AH79: 46.3300313 | AI79: 3021.59432 | AJ79: 0.5169246339 | AK79: 0.5169246339 | AO79: 58 | AP79: 2029-05-02 | AQ79: 30 | AR79: 1765 | AS79: 2767.627127 | AT79: 10.83317427 | AU79: 30.38536848 | AV79: 0.8302881382 | AW79: 14.7 | AX79: 0 | AY79: 56.74883089 | AZ79: 2756.793953 | BA79: 0.5169246339 | BB79: 0.5169246339 | BF79: 58 | BG79: 2029-05-02 | BH79: 30 | BI79: 1765 | BJ79: 2791.473478 | BK79: 2.613261659 | BL79: 30.64717404 | BM79: 0.8374420434 | BN79: 14.7 | BO79: 0 | BP79: 48.79787774 | BQ79: 2788.860216 | BR79: 0.5169246339 | BS79: 0.5169246339 | BW79: 58 | BX79: 2029-05-02 | BY79: 30 | BZ79: 1765 | CA79: 2996.53146 | CB79: 5.381444199 | CC79: 32.89847526 | CD79: 0.898959438 | CE79: 14.7 | CF79: 0 | CG79: 53.8788789 | CH79: 2991.150016 | CI79: 0.5169246339 | CJ79: 0.5169246339 | CN79: 58 | CO79: 2029-05-02 | CP79: 30 | CQ79: 1765 | CR79: 3019.171562 | CS79: -2.422757754 | CT79: 33.14703759 | CU79: 0.9057514686 | CV79: 14.7 | CW79: 0 | CX79: 46.3300313 | CY79: 3021.59432 | CZ79: 0.5169246339 | DA79: 0.5169246339
B80: 59 | C80: 2029-06-02 | D80: 31 | E80: 1796 | F80: 2991.150016 | G80: 4.311390704 | H80: 33.94022706 | I80: 0.9272611408 | J80: 14.7 | K80: 0 | L80: 53.8788789 | M80: 2986.838625 | N80: 0.5109682784 | O80: 0.5109682784 | Q80: 53.8788789 | R80: 1796 | S80: =IFERROR((1+'Simulación Cliente'!$E$21)^(R80/360),"") -> 2.15112879 | T80: 25.05 | X80: 59 | Y80: 2029-06-02 | Z80: 31 | AA80: 1796 | AB80: 3021.59432 | AC80: -3.592342604 | AD80: 34.28567499 | AE80: 0.9366989221 | AF80: 14.7 | AG80: 0 | AH80: 46.3300313 | AI80: 3025.186662 | AJ80: 0.5109682784 | AK80: 0.5109682784 | AO80: 59 | AP80: 2029-06-02 | AQ80: 31 | AR80: 1796 | AS80: 2756.793953 | AT80: 9.913204085 | AU80: 31.2810164 | AV80: 0.8546103981 | AW80: 14.7 | AX80: 0 | AY80: 56.74883089 | AZ80: 2746.880749 | BA80: 0.5109682784 | BB80: 0.5109682784 | BF80: 59 | BG80: 2029-06-02 | BH80: 31 | BI80: 1796 | BJ80: 2788.860216 | BK80: 1.588458233 | BL80: 31.64486852 | BM80: 0.8645509894 | BN80: 14.7 | BO80: 0 | BP80: 48.79787774 | BQ80: 2787.271758 | BR80: 0.5109682784 | BS80: 0.5109682784 | BW80: 59 | BX80: 2029-06-02 | BY80: 31 | BZ80: 1796 | CA80: 2991.150016 | CB80: 4.311390704 | CC80: 33.94022706 | CD80: 0.9272611408 | CE80: 14.7 | CF80: 0 | CG80: 53.8788789 | CH80: 2986.838625 | CI80: 0.5109682784 | CJ80: 0.5109682784 | CN80: 59 | CO80: 2029-06-02 | CP80: 31 | CQ80: 1796 | CR80: 3021.59432 | CS80: -3.592342604 | CT80: 34.28567499 | CU80: 0.9366989221 | CV80: 14.7 | CW80: 0 | CX80: 46.3300313 | CY80: 3025.186662 | CZ80: 0.5109682784 | DA80: 0.5109682784
B81: 60 | C81: 2029-07-02 | D81: 30 | E81: 1826 | F81: 2986.838625 | G81: 5.490768249 | H81: 32.79205906 | I81: 0.8960515875 | J81: 14.7 | K81: 0 | L81: 53.8788789 | M81: 2981.347857 | N81: 0.5052694194 | O81: 0.5052694194 | Q81: 53.8788789 | R81: 1826 | S81: =IFERROR((1+'Simulación Cliente'!$E$21)^(R81/360),"") -> 2.178829273 | T81: 24.73 | X81: 60 | Y81: 2029-07-02 | Z81: 30 | AA81: 1826 | AB81: 3025.186662 | AC81: 43.83943012 | AD81: 33.21307649 | AE81: 0.9075559987 | AF81: 14.7 | AG81: 0 | AH81: 92.66006261 | AI81: 2981.347232 | AJ81: 1.010538839 | AK81: 0.5052694194 | AO81: 60 | AP81: 2029-07-02 | AQ81: 30 | AR81: 1826 | AS81: 2746.880749 | AT81: 11.0671696 | AU81: 30.15759707 | AV81: 0.8240642247 | AW81: 14.7 | AX81: 0 | AY81: 56.74883089 | AZ81: 2735.813579 | BA81: 0.5052694194 | BB81: 0.5052694194 | BF81: 60 | BG81: 2029-07-02 | BH81: 30 | BI81: 1826 | BJ81: 2787.271758 | BK81: 51.45852997 | BL81: 30.60104398 | BM81: 0.8361815274 | BN81: 14.7 | BO81: 0 | BP81: 97.59575548 | BQ81: 2735.813228 | BR81: 1.010538839 | BS81: 0.5052694194 | BW81: 60 | BX81: 2029-07-02 | BY81: 30 | BZ81: 1826 | CA81: 2986.838625 | CB81: 5.490768249 | CC81: 32.79205906 | CD81: 0.8960515875 | CE81: 14.7 | CF81: 0 | CG81: 53.8788789 | CH81: 2981.347857 | CI81: 0.5052694194 | CJ81: 0.5052694194 | CN81: 60 | CO81: 2029-07-02 | CP81: 30 | CQ81: 1826 | CR81: 3025.186662 | CS81: 43.83943012 | CT81: 33.21307649 | CU81: 0.9075559987 | CV81: 14.7 | CW81: 0 | CX81: 92.66006261 | CY81: 2981.347232 | CZ81: 1.010538839 | DA81: 0.5052694194
B82: 61 | C82: 2029-08-02 | D82: 31 | E82: 1857 | F82: 2981.347857 | G82: 4.425653332 | H82: 33.82900311 | I82: 0.9242224563 | J82: 14.7 | K82: 0 | L82: 53.8788789 | M82: 2976.922204 | N82: 0.4994473631 | O82: 0.4994473631 | Q82: 53.8788789 | R82: 1857 | S82: =IFERROR((1+'Simulación Cliente'!$E$21)^(R82/360),"") -> 2.207827896 | T82: 24.4 | X82: 61 | Y82: 2029-08-02 | Z82: 31 | AA82: 1857 | AB82: 2981.347232 | AC82: -3.123186981 | AD82: 33.82899602 | AE82: 0.9242222626 | AF82: 14.7 | AG82: 0 | AH82: 46.3300313 | AI82: 2984.470419 | AJ82: 0.4994473631 | AK82: 0.4994473631 | AO82: 61 | AP82: 2029-08-02 | AQ82: 31 | AR82: 1857 | AS82: 2735.813579 | AT82: 10.15776986 | AU82: 31.04295457 | AV82: 0.8481064497 | AW82: 14.7 | AX82: 0 | AY82: 56.74883089 | AZ82: 2725.655809 | BA82: 0.4994473631 | BB82: 0.4994473631 | BF82: 61 | BG82: 2029-08-02 | BH82: 31 | BI82: 1857 | BJ82: 2735.813228 | BK82: 2.206820811 | BL82: 31.04295059 | BM82: 0.8481063408 | BN82: 14.7 | BO82: 0 | BP82: 48.79787774 | BQ82: 2733.606407 | BR82: 0.4994473631 | BS82: 0.4994473631 | BW82: 61 | BX82: 2029-08-02 | BY82: 31 | BZ82: 1857 | CA82: 2981.347857 | CB82: 4.425653332 | CC82: 33.82900311 | CD82: 0.9242224563 | CE82: 14.7 | CF82: 0 | CG82: 53.8788789 | CH82: 2976.922204 | CI82: 0.4994473631 | CJ82: 0.4994473631 | CN82: 61 | CO82: 2029-08-02 | CP82: 31 | CQ82: 1857 | CR82: 2981.347232 | CS82: -3.123186981 | CT82: 33.82899602 | CU82: 0.9242222626 | CV82: 14.7 | CW82: 0 | CX82: 46.3300313 | CY82: 2984.470419 | CZ82: 0.4994473631 | DA82: 0.4994473631
B83: 62 | C83: 2029-09-02 | D83: 31 | E83: 1888 | F83: 2976.922204 | G83: 4.477242659 | H83: 33.77878575 | I83: 0.9228504969 | J83: 14.7 | K83: 0 | L83: 53.8788789 | M83: 2972.444961 | N83: 0.4936923926 | O83: 0.4936923926 | Q83: 53.8788789 | R83: 1888 | S83: =IFERROR((1+'Simulación Cliente'!$E$21)^(R83/360),"") -> 2.237212469 | T83: 24.08 | X83: 62 | Y83: 2029-09-02 | Z83: 31 | AA83: 1888 | AB83: 2984.470419 | AC83: -3.159593609 | AD83: 33.86443446 | AE83: 0.9251904554 | AF83: 14.7 | AG83: 0 | AH83: 46.3300313 | AI83: 2987.630013 | AJ83: 0.4936923926 | AK83: 0.4936923926 | AO83: 62 | AP83: 2029-09-02 | AQ83: 31 | AR83: 1888 | AS83: 2725.655809 | AT83: 10.27617781 | AU83: 30.92769556 | AV83: 0.8449575253 | AW83: 14.7 | AX83: 0 | AY83: 56.74883089 | AZ83: 2715.379632 | BA83: 0.4936923926 | BB83: 0.4936923926 | BF83: 62 | BG83: 2029-09-02 | BH83: 31 | BI83: 1888 | BJ83: 2733.606407 | BK83: 2.232545465 | BL83: 31.01791005 | BM83: 0.8474222229 | BN83: 14.7 | BO83: 0 | BP83: 48.79787774 | BQ83: 2731.373862 | BR83: 0.4936923926 | BS83: 0.4936923926 | BW83: 62 | BX83: 2029-09-02 | BY83: 31 | BZ83: 1888 | CA83: 2976.922204 | CB83: 4.477242659 | CC83: 33.77878575 | CD83: 0.9228504969 | CE83: 14.7 | CF83: 0 | CG83: 53.8788789 | CH83: 2972.444961 | CI83: 0.4936923926 | CJ83: 0.4936923926 | CN83: 62 | CO83: 2029-09-02 | CP83: 31 | CQ83: 1888 | CR83: 2984.470419 | CS83: -3.159593609 | CT83: 33.86443446 | CU83: 0.9251904554 | CV83: 14.7 | CW83: 0 | CX83: 46.3300313 | CY83: 2987.630013 | CZ83: 0.4936923926 | DA83: 0.4936923926
B84: 63 | C84: 2029-10-02 | D84: 30 | E84: 1918 | F84: 2972.444961 | G84: 5.653112257 | H84: 32.63403316 | I84: 0.8917334883 | J84: 14.7 | K84: 0 | L84: 53.8788789 | M84: 2966.791849 | N84: 0.4881862126 | O84: 0.4881862126 | Q84: 53.8788789 | R84: 1918 | S84: =IFERROR((1+'Simulación Cliente'!$E$21)^(R84/360),"") -> 2.266021467 | T84: 23.78 | X84: 63 | Y84: 2029-10-02 | Z84: 30 | AA84: 1918 | AB84: 2987.630013 | AC84: -2.06700529 | AD84: 32.80074759 | AE84: 0.8962890038 | AF84: 14.7 | AG84: 0 | AH84: 46.3300313 | AI84: 2989.697018 | AJ84: 0.4881862126 | AK84: 0.4881862126 | AO84: 63 | AP84: 2029-10-02 | AQ84: 30 | AR84: 1918 | AS84: 2715.379632 | AT84: 11.42246603 | AU84: 29.81175096 | AV84: 0.8146138895 | AW84: 14.7 | AX84: 0 | AY84: 56.74883089 | AZ84: 2703.957166 | BA84: 0.4881862126 | BB84: 0.4881862126 | BF84: 63 | BG84: 2029-10-02 | BH84: 30 | BI84: 1918 | BJ84: 2731.373862 | BK84: 3.291116332 | BL84: 29.98734925 | BM84: 0.8194121585 | BN84: 14.7 | BO84: 0 | BP84: 48.79787774 | BQ84: 2728.082745 | BR84: 0.4881862126 | BS84: 0.4881862126 | BW84: 63 | BX84: 2029-10-02 | BY84: 30 | BZ84: 1918 | CA84: 2972.444961 | CB84: 5.653112257 | CC84: 32.63403316 | CD84: 0.8917334883 | CE84: 14.7 | CF84: 0 | CG84: 53.8788789 | CH84: 2966.791849 | CI84: 0.4881862126 | CJ84: 0.4881862126 | CN84: 63 | CO84: 2029-10-02 | CP84: 30 | CQ84: 1918 | CR84: 2987.630013 | CS84: -2.06700529 | CT84: 32.80074759 | CU84: 0.8962890038 | CV84: 14.7 | CW84: 0 | CX84: 46.3300313 | CY84: 2989.697018 | CZ84: 0.4881862126 | DA84: 0.4881862126
B85: 64 | C85: 2029-11-02 | D85: 31 | E85: 1949 | F85: 2966.791849 | G85: 4.595331029 | H85: 33.6638378 | I85: 0.9197100712 | J85: 14.7 | K85: 0 | L85: 53.8788789 | M85: 2962.196518 | N85: 0.4825610006 | O85: 0.4825610006 | Q85: 53.8788789 | R85: 1949 | S85: =IFERROR((1+'Simulación Cliente'!$E$21)^(R85/360),"") -> 2.296180555 | T85: 23.46 | X85: 64 | Y85: 2029-11-02 | Z85: 31 | AA85: 1949 | AB85: 2989.697018 | AC85: -3.220519465 | AD85: 33.92374006 | AE85: 0.9268107092 | AF85: 14.7 | AG85: 0 | AH85: 46.3300313 | AI85: 2992.917537 | AJ85: 0.4825610006 | AK85: 0.4825610006 | AO85: 64 | AP85: 2029-11-02 | AQ85: 31 | AR85: 1949 | AS85: 2703.957166 | AT85: 10.52911638 | AU85: 30.6814836 | AV85: 0.8382309121 | AW85: 14.7 | AX85: 0 | AY85: 56.74883089 | AZ85: 2693.428049 | BA85: 0.4825610006 | BB85: 0.4825610006 | BF85: 64 | BG85: 2029-11-02 | BH85: 31 | BI85: 1949 | BJ85: 2728.082745 | BK85: 2.296934148 | BL85: 30.95523371 | BM85: 0.8457098792 | BN85: 14.7 | BO85: 0 | BP85: 48.79787774 | BQ85: 2725.785811 | BR85: 0.4825610006 | BS85: 0.4825610006 | BW85: 64 | BX85: 2029-11-02 | BY85: 31 | BZ85: 1949 | CA85: 2966.791849 | CB85: 4.595331029 | CC85: 33.6638378 | CD85: 0.9197100712 | CE85: 14.7 | CF85: 0 | CG85: 53.8788789 | CH85: 2962.196518 | CI85: 0.4825610006 | CJ85: 0.4825610006 | CN85: 64 | CO85: 2029-11-02 | CP85: 31 | CQ85: 1949 | CR85: 2989.697018 | CS85: -3.220519465 | CT85: 33.92374006 | CU85: 0.9268107092 | CV85: 14.7 | CW85: 0 | CX85: 46.3300313 | CY85: 2992.917537 | CZ85: 0.4825610006 | DA85: 0.4825610006
B86: 65 | C86: 2029-12-02 | D86: 30 | E86: 1979 | F86: 2962.196518 | G86: =IF(B86>C$6,"",L86-K86-J86-I86-H86) -> 5.768702931 | H86: 32.52151701 | I86: =IF(B86>C$6,"",((1+C$12)^(D86/30)-1)*F86) -> 0.8886589553 | J86: 14.7 | K86: =IF(B86>C$6,"",C$15) -> 0 | L86: =IF(B86>C$6,"",IF(B86=C$6,F86+H86+I86+J86+K86,IF(AND(C$9=2,MONTH(C86)=7),2*C$17,IF(AND(C$10=2,MONTH(C86)=12),2*C$17,C$17)))) -> 53.8788789 | M86: =IF(B86>C$6,"",F86-G86) -> 2956.427815 | N86: 0.4771789696 | O86: 0.4771789696 | Q86: 53.8788789 | R86: 1979 | S86: =IFERROR((1+'Simulación Cliente'!$E$21)^(R86/360),"") -> 2.325748896 | T86: 23.17 | X86: 65 | Y86: 2029-12-02 | Z86: 30 | AA86: 1979 | AB86: 2992.917537 | AC86: 44.20338881 | AD86: 32.85879854 | AE86: =IF(X86>Y$6,"",((1+Y$12)^(Z86/30)-1)*AB86) -> 0.8978752612 | AF86: 14.7 | AG86: =IF(X86>Y$6,"",Y$15) -> 0 | AH86: =IF(X86>Y$6,"",IF(X86=Y$6,AB86+AD86+AE86+AF86+AG86,IF(AND(Y$9=2,MONTH(Y86)=7),2*Y$17,IF(AND(Y$10=2,MONTH(Y86)=12),2*Y$17,Y$17)))) -> 92.66006261 | AI86: =IF(X86>Y$6,"",AB86-AC86) -> 2948.714149 | AJ86: 0.9543579393 | AK86: 0.4771789696 | AO86: 65 | AP86: 2029-12-02 | AQ86: 30 | AR86: 1979 | AS86: 2693.428049 | AT86: 11.67005468 | AU86: 29.57074779 | AV86: =IF(AO86>AP$6,"",((1+AP$12)^(AQ86/30)-1)*AS86) -> 0.8080284148 | AW86: 14.7 | AX86: =IF(AO86>AP$6,"",AP$15) -> 0 | AY86: =IF(AO86>AP$6,"",IF(AO86=AP$6,AS86+AU86+AV86+AW86+AX86,IF(AND(AP$9=2,MONTH(AP86)=7),2*AP$17,IF(AND(AP$10=2,MONTH(AP86)=12),2*AP$17,AP$17)))) -> 56.74883089 | AZ86: =IF(AO86>AP$6,"",AS86-AT86) -> 2681.757995 | BA86: 0.4771789696 | BB86: 0.4771789696 | BF86: 65 | BG86: 2029-12-02 | BH86: 30 | BI86: 1979 | BJ86: 2725.785811 | BK86: 52.15202087 | BL86: 29.92599887 | BM86: =IF(BF86>BG$6,"",((1+BG$12)^(BH86/30)-1)*BJ86) -> 0.8177357434 | BN86: 14.7 | BO86: =IF(BF86>BG$6,"",BG$15) -> 0 | BP86: =IF(BF86>BG$6,"",IF(BF86=BG$6,BJ86+BL86+BM86+BN86+BO86,IF(AND(BG$9=2,MONTH(BG86)=7),2*BG$17,IF(AND(BG$10=2,MONTH(BG86)=12),2*BG$17,BG$17)))) -> 97.59575548 | BQ86: =IF(BF86>BG$6,"",BJ86-BK86) -> 2673.63379 | BR86: 0.9543579393 | BS86: 0.4771789696 | BW86: 65 | BX86: 2029-12-02 | BY86: 30 | BZ86: 1979 | CA86: 2962.196518 | CB86: 5.768702931 | CC86: 32.52151701 | CD86: =IF(BW86>BX$6,"",((1+BX$12)^(BY86/30)-1)*CA86) -> 0.8886589553 | CE86: 14.7 | CF86: =IF(BW86>BX$6,"",BX$15) -> 0 | CG86: =IF(BW86>BX$6,"",IF(BW86=BX$6,CA86+CC86+CD86+CE86+CF86,IF(AND(BX$9=2,MONTH(BX86)=7),2*BX$17,IF(AND(BX$10=2,MONTH(BX86)=12),2*BX$17,BX$17)))) -> 53.8788789 | CH86: =IF(BW86>BX$6,"",CA86-CB86) -> 2956.427815 | CI86: 0.4771789696 | CJ86: 0.4771789696 | CN86: 65 | CO86: 2029-12-02 | CP86: 30 | CQ86: 1979 | CR86: 2992.917537 | CS86: 44.20338881 | CT86: 32.85879854 | CU86: =IF(CN86>CO$6,"",((1+CO$12)^(CP86/30)-1)*CR86) -> 0.8978752612 | CV86: 14.7 | CW86: =IF(CN86>CO$6,"",CO$15) -> 0 | CX86: =IF(CN86>CO$6,"",IF(CN86=CO$6,CR86+CT86+CU86+CV86+CW86,IF(AND(CO$9=2,MONTH(CO86)=7),2*CO$17,IF(AND(CO$10=2,MONTH(CO86)=12),2*CO$17,CO$17)))) -> 92.66006261 | CY86: =IF(CN86>CO$6,"",CR86-CS86) -> 2948.714149 | CZ86: 0.9543579393 | DA86: 0.4771789696
B87: 66 | C87: =IF(B87>C$6,"",EDATE(C$22,B86)) -> 2030-01-02 | D87: =IF(B87>C$6,"",C87-C86) -> 31 | E87: =IFERROR(D87+E86,"") -> 2010 | F87: =IF(B87>C$6,"",M86) -> 2956.427815 | G87: 4.716143369 | H87: 33.54623833 | I87: 0.9164972046 | J87: =IF(B87>C$6,"",D$4*C$14) -> 14.7 | K87: 0 | L87: 53.8788789 | M87: 2951.711671 | N87: =IFERROR(IF(AND(MONTH(C87)=7,C$9=2),2/(1+C$13)^(E87/360),IF(AND(MONTH(C87)=12,C$10=2),2/(1+C$13)^(E87/360),1/(1+C$13)^(E87/360))),"") -> 0.4716805906 | O87: =IFERROR(1/(1+C$13)^(E87/360),"") -> 0.4716805906 | Q87: =IFERROR(G87+H87+I87+J87+K87,"") -> 53.8788789 | R87: =E87 -> 2010 | S87: =IFERROR((1+'Simulación Cliente'!$E$21)^(R87/360),"") -> 2.356702911 | T87: =IFERROR(ROUND(Q87/S87,2),"") -> 22.86 | X87: 66 | Y87: =IF(X87>Y$6,"",EDATE(Y$22,X86)) -> 2030-01-02 | Z87: 31 | AA87: =IFERROR(Z87+AA86,"") -> 2010 | AB87: =IF(X87>Y$6,"",AI86) -> 2948.714149 | AC87: -2.742786919 | AD87: 33.45871227 | AE87: 0.9141059561 | AF87: =IF(X87>Y$6,"",Z$4*Y$14) -> 14.7 | AG87: 0 | AH87: 46.3300313 | AI87: 2951.456936 | AJ87: =IFERROR(IF(AND(MONTH(Y87)=7,Y$9=2),2/(1+Y$13)^(AA87/360),IF(AND(MONTH(Y87)=12,Y$10=2),2/(1+Y$13)^(AA87/360),1/(1+Y$13)^(AA87/360))),"") -> 0.4716805906 | AK87: =IFERROR(1/(1+Y$13)^(AA87/360),"") -> 0.4716805906 | AO87: 66 | AP87: =IF(AO87>AP$6,"",EDATE(AP$22,AO86)) -> 2030-01-02 | AQ87: 31 | AR87: =IFERROR(AQ87+AR86,"") -> 2010 | AS87: =IF(AO87>AP$6,"",AZ86) -> 2681.757995 | AT87: 10.78788953 | AU87: 30.42959222 | AV87: 0.8313491346 | AW87: =IF(AO87>AP$6,"",AQ$4*AP$14) -> 14.7 | AX87: 0 | AY87: 56.74883089 | AZ87: 2670.970105 | BA87: =IFERROR(IF(AND(MONTH(AP87)=7,AP$9=2),2/(1+AP$13)^(AR87/360),IF(AND(MONTH(AP87)=12,AP$10=2),2/(1+AP$13)^(AR87/360),1/(1+AP$13)^(AR87/360))),"") -> 0.4716805906 | BB87: =IFERROR(1/(1+AP$13)^(AR87/360),"") -> 0.4716805906 | BF87: 66 | BG87: =IF(BF87>BG$6,"",EDATE(BG$22,BF86)) -> 2030-01-02 | BH87: 31 | BI87: =IFERROR(BH87+BI86,"") -> 2010 | BJ87: =IF(BF87>BG$6,"",BQ86) -> 2673.63379 | BK87: 2.931639291 | BL87: 30.33740783 | BM87: 0.8288306188 | BN87: =IF(BF87>BG$6,"",BH$4*BG$14) -> 14.7 | BO87: 0 | BP87: 48.79787774 | BQ87: 2670.702151 | BR87: =IFERROR(IF(AND(MONTH(BG87)=7,BG$9=2),2/(1+BG$13)^(BI87/360),IF(AND(MONTH(BG87)=12,BG$10=2),2/(1+BG$13)^(BI87/360),1/(1+BG$13)^(BI87/360))),"") -> 0.4716805906 | BS87: =IFERROR(1/(1+BG$13)^(BI87/360),"") -> 0.4716805906 | BW87: 66 | BX87: =IF(BW87>BX$6,"",EDATE(BX$22,BW86)) -> 2030-01-02 | BY87: 31 | BZ87: =IFERROR(BY87+BZ86,"") -> 2010 | CA87: =IF(BW87>BX$6,"",CH86) -> 2956.427815 | CB87: 4.716143369 | CC87: 33.54623833 | CD87: 0.9164972046 | CE87: =IF(BW87>BX$6,"",BY$4*BX$14) -> 14.7 | CF87: 0 | CG87: 53.8788789 | CH87: 2951.711671 | CI87: =IFERROR(IF(AND(MONTH(BX87)=7,BX$9=2),2/(1+BX$13)^(BZ87/360),IF(AND(MONTH(BX87)=12,BX$10=2),2/(1+BX$13)^(BZ87/360),1/(1+BX$13)^(BZ87/360))),"") -> 0.4716805906 | CJ87: =IFERROR(1/(1+BX$13)^(BZ87/360),"") -> 0.4716805906 | CN87: 66 | CO87: =IF(CN87>CO$6,"",EDATE(CO$22,CN86)) -> 2030-01-02 | CP87: 31 | CQ87: =IFERROR(CP87+CQ86,"") -> 2010 | CR87: =IF(CN87>CO$6,"",CY86) -> 2948.714149 | CS87: -2.742786919 | CT87: 33.45871227 | CU87: 0.9141059561 | CV87: =IF(CN87>CO$6,"",CP$4*CO$14) -> 14.7 | CW87: 0 | CX87: 46.3300313 | CY87: 2951.456936 | CZ87: =IFERROR(IF(AND(MONTH(CO87)=7,CO$9=2),2/(1+CO$13)^(CQ87/360),IF(AND(MONTH(CO87)=12,CO$10=2),2/(1+CO$13)^(CQ87/360),1/(1+CO$13)^(CQ87/360))),"") -> 0.4716805906 | DA87: =IFERROR(1/(1+CO$13)^(CQ87/360),"") -> 0.4716805906
B88: 67 | C88: 2030-02-02 | D88: 31 | E88: 2041 | F88: 2951.711671 | G88: 4.771118904 | H88: =IF(B88>C$6,"",((1+C$11)^(D88/360)-1)*F88) -> 33.4927248 | I88: 0.9150351928 | J88: 14.7 | K88: 0 | L88: 53.8788789 | M88: 2946.940552 | N88: 0.4662455676 | O88: 0.4662455676 | Q88: 53.8788789 | R88: 2041 | S88: =IFERROR((1+'Simulación Cliente'!$E$21)^(R88/360),"") -> 2.388068902 | T88: 22.56 | X88: 67 | Y88: 2030-02-02 | Z88: 31 | AA88: 2041 | AB88: 2951.456936 | AC88: -2.774759267 | AD88: =IF(X88>Y$6,"",((1+Y$11)^(Z88/360)-1)*AB88) -> 33.48983435 | AE88: 0.9149562243 | AF88: 14.7 | AG88: 0 | AH88: 46.3300313 | AI88: 2954.231695 | AJ88: 0.4662455676 | AK88: 0.4662455676 | AO88: 67 | AP88: 2030-02-02 | AQ88: 31 | AR88: 2041 | AS88: 2670.970105 | AT88: 10.91364271 | AU88: =IF(AO88>AP$6,"",((1+AP$11)^(AQ88/360)-1)*AS88) -> 30.30718331 | AV88: 0.8280048722 | AW88: 14.7 | AX88: 0 | AY88: 56.74883089 | AZ88: 2660.056462 | BA88: 0.4662455676 | BB88: 0.4662455676 | BF88: 67 | BG88: 2030-02-02 | BH88: 31 | BI88: 2041 | BJ88: 2670.702151 | BK88: 2.965813069 | BL88: =IF(BF88>BG$6,"",((1+BG$11)^(BH88/360)-1)*BJ88) -> 30.30414286 | BM88: 0.827921806 | BN88: 14.7 | BO88: 0 | BP88: 48.79787774 | BQ88: 2667.736338 | BR88: 0.4662455676 | BS88: 0.4662455676 | BW88: 67 | BX88: 2030-02-02 | BY88: 31 | BZ88: 2041 | CA88: 2951.711671 | CB88: 4.771118904 | CC88: =IF(BW88>BX$6,"",((1+BX$11)^(BY88/360)-1)*CA88) -> 33.4927248 | CD88: 0.9150351928 | CE88: 14.7 | CF88: 0 | CG88: 53.8788789 | CH88: 2946.940552 | CI88: 0.4662455676 | CJ88: 0.4662455676 | CN88: 67 | CO88: 2030-02-02 | CP88: 31 | CQ88: 2041 | CR88: 2951.456936 | CS88: -2.774759267 | CT88: =IF(CN88>CO$6,"",((1+CO$11)^(CP88/360)-1)*CR88) -> 33.48983435 | CU88: 0.9149562243 | CV88: 14.7 | CW88: 0 | CX88: 46.3300313 | CY88: 2954.231695 | CZ88: 0.4662455676 | DA88: 0.4662455676
B89: 68 | C89: 2030-03-02 | D89: 28 | E89: 2069 | F89: 2946.940552 | G89: 8.167662785 | H89: 30.18608101 | I89: 0.8251351041 | J89: 14.7 | K89: 0 | L89: 53.8788789 | M89: 2938.77289 | N89: 0.461390363 | O89: 0.461390363 | Q89: 53.8788789 | R89: 2069 | S89: =IFERROR((1+'Simulación Cliente'!$E$21)^(R89/360),"") -> 2.416758136 | T89: 22.29 | X89: 68 | Y89: 2030-03-02 | Z89: =IF(X89>Y$6,"",Y89-Y88) -> 28 | AA89: 2069 | AB89: 2954.231695 | AC89: =IF(X89>Y$6,"",AH89-AG89-AF89-AE89-AD89) -> 0.5420891096 | AD89: 30.26076559 | AE89: 0.8271766036 | AF89: 14.7 | AG89: 0 | AH89: 46.3300313 | AI89: 2953.689606 | AJ89: 0.461390363 | AK89: 0.461390363 | AO89: 68 | AP89: 2030-03-02 | AQ89: =IF(AO89>AP$6,"",AP89-AP88) -> 28 | AR89: 2069 | AS89: 2660.056462 | AT89: =IF(AO89>AP$6,"",AY89-AX89-AW89-AV89-AU89) -> 14.05655063 | AU89: 27.24747189 | AV89: 0.7448083621 | AW89: 14.7 | AX89: 0 | AY89: 56.74883089 | AZ89: 2645.999912 | BA89: 0.461390363 | BB89: 0.461390363 | BF89: 68 | BG89: 2030-03-02 | BH89: =IF(BF89>BG$6,"",BG89-BG88) -> 28 | BI89: 2069 | BJ89: 2667.736338 | BK89: =IF(BF89>BG$6,"",BP89-BO89-BN89-BM89-BL89) -> 6.024780692 | BL89: 27.32613834 | BM89: 0.7469587058 | BN89: 14.7 | BO89: 0 | BP89: 48.79787774 | BQ89: 2661.711557 | BR89: 0.461390363 | BS89: 0.461390363 | BW89: 68 | BX89: 2030-03-02 | BY89: =IF(BW89>BX$6,"",BX89-BX88) -> 28 | BZ89: 2069 | CA89: 2946.940552 | CB89: =IF(BW89>BX$6,"",CG89-CF89-CE89-CD89-CC89) -> 8.167662785 | CC89: 30.18608101 | CD89: 0.8251351041 | CE89: 14.7 | CF89: 0 | CG89: 53.8788789 | CH89: 2938.77289 | CI89: 0.461390363 | CJ89: 0.461390363 | CN89: 68 | CO89: 2030-03-02 | CP89: =IF(CN89>CO$6,"",CO89-CO88) -> 28 | CQ89: 2069 | CR89: 2954.231695 | CS89: =IF(CN89>CO$6,"",CX89-CW89-CV89-CU89-CT89) -> 0.5420891096 | CT89: 30.26076559 | CU89: 0.8271766036 | CV89: 14.7 | CW89: 0 | CX89: 46.3300313 | CY89: 2953.689606 | CZ89: 0.461390363 | DA89: 0.461390363
B90: 69 | C90: 2030-04-02 | D90: 31 | E90: 2100 | F90: 2938.77289 | G90: 4.921944779 | H90: 33.34590997 | I90: 0.9110241504 | J90: 14.7 | K90: 0 | L90: 53.8788789 | M90: 2933.850945 | N90: 0.4560739109 | O90: 0.4560739109 | Q90: 53.8788789 | R90: 2100 | S90: =IFERROR((1+'Simulación Cliente'!$E$21)^(R90/360),"") -> 2.448923418 | T90: 22 | X90: 69 | Y90: 2030-04-02 | Z90: 31 | AA90: 2100 | AB90: 2953.689606 | AC90: -2.800785244 | AD90: 33.51516819 | AE90: 0.9156483555 | AF90: 14.7 | AG90: 0 | AH90: 46.3300313 | AI90: 2956.490391 | AJ90: 0.4560739109 | AK90: 0.4560739109 | AO90: 69 | AP90: 2030-04-02 | AQ90: 31 | AR90: 2100 | AS90: 2645.999912 | AT90: 11.20471735 | AU90: 30.02384946 | AV90: 0.8202640735 | AW90: 14.7 | AX90: 0 | AY90: 56.74883089 | AZ90: 2634.795194 | BA90: 0.4560739109 | BB90: 0.4560739109 | BF90: 69 | BG90: 2030-04-02 | BH90: 31 | BI90: 2100 | BJ90: 2661.711557 | BK90: 3.070615376 | BL90: 30.20212766 | BM90: 0.825134708 | BN90: 14.7 | BO90: 0 | BP90: 48.79787774 | BQ90: 2658.640942 | BR90: 0.4560739109 | BS90: 0.4560739109 | BW90: 69 | BX90: 2030-04-02 | BY90: 31 | BZ90: 2100 | CA90: 2938.77289 | CB90: 4.921944779 | CC90: 33.34590997 | CD90: 0.9110241504 | CE90: 14.7 | CF90: 0 | CG90: 53.8788789 | CH90: 2933.850945 | CI90: 0.4560739109 | CJ90: 0.4560739109 | CN90: 69 | CO90: 2030-04-02 | CP90: 31 | CQ90: 2100 | CR90: 2953.689606 | CS90: -2.800785244 | CT90: 33.51516819 | CU90: 0.9156483555 | CV90: 14.7 | CW90: 0 | CX90: 46.3300313 | CY90: 2956.490391 | CZ90: 0.4560739109 | DA90: 0.4560739109
B91: 70 | C91: 2030-05-02 | D91: 30 | E91: 2130 | F91: 2933.850945 | G91: 6.08840845 | H91: 32.21031517 | I91: 0.8801552835 | J91: 14.7 | K91: 0 | L91: 53.8788789 | M91: 2927.762536 | N91: 0.450987292 | O91: 0.450987292 | Q91: 53.8788789 | R91: 2130 | S91: =IFERROR((1+'Simulación Cliente'!$E$21)^(R91/360),"") -> 2.480458657 | T91: 21.72 | X91: 70 | Y91: 2030-05-02 | Z91: 30 | AA91: 2130 | AB91: 2956.490391 | AC91: -1.715786107 | AD91: 32.45887029 | AE91: 0.8869471173 | AF91: 14.7 | AG91: 0 | AH91: 46.3300313 | AI91: 2958.206177 | AJ91: 0.450987292 | AK91: 0.450987292 | AO91: 70 | AP91: 2030-05-02 | AQ91: 30 | AR91: 2130 | AS91: 2634.795194 | AT91: 12.33136597 | AU91: 28.92702636 | AV91: 0.7904385583 | AW91: 14.7 | AX91: 0 | AY91: 56.74883089 | AZ91: 2622.463828 | BA91: 0.450987292 | BB91: 0.450987292 | BF91: 70 | BG91: 2030-05-02 | BH91: 30 | BI91: 2130 | BJ91: 2658.640942 | BK91: 4.111460166 | BL91: 29.18882529 | BM91: 0.7975922826 | BN91: 14.7 | BO91: 0 | BP91: 48.79787774 | BQ91: 2654.529482 | BR91: 0.450987292 | BS91: 0.450987292 | BW91: 70 | BX91: 2030-05-02 | BY91: 30 | BZ91: 2130 | CA91: 2933.850945 | CB91: 6.08840845 | CC91: 32.21031517 | CD91: 0.8801552835 | CE91: 14.7 | CF91: 0 | CG91: 53.8788789 | CH91: 2927.762536 | CI91: 0.450987292 | CJ91: 0.450987292 | CN91: 70 | CO91: 2030-05-02 | CP91: 30 | CQ91: 2130 | CR91: 2956.490391 | CS91: -1.715786107 | CT91: 32.45887029 | CU91: 0.8869471173 | CV91: 14.7 | CW91: 0 | CX91: 46.3300313 | CY91: 2958.206177 | CZ91: 0.450987292 | DA91: 0.450987292
B92: 71 | C92: 2030-06-02 | D92: 31 | E92: 2161 | F92: 2927.762536 | G92: 5.050291187 | H92: 33.22097679 | I92: 0.9076109239 | J92: 14.7 | K92: 0 | L92: 53.8788789 | M92: 2922.712245 | N92: 0.4457907112 | O92: 0.4457907112 | Q92: 53.8788789 | R92: 2161 | S92: =IFERROR((1+'Simulación Cliente'!$E$21)^(R92/360),"") -> 2.513471746 | T92: 21.44 | X92: 71 | Y92: 2030-06-02 | Z92: 31 | AA92: 2161 | AB92: 2958.206177 | AC92: -2.853434391 | AD92: 33.5664172 | AE92: 0.9170484997 | AF92: 14.7 | AG92: 0 | AH92: 46.3300313 | AI92: 2961.059611 | AJ92: 0.4457907112 | AK92: 0.4457907112 | AO92: 71 | AP92: 2030-06-02 | AQ92: 31 | AR92: 2161 | AS92: 2622.463828 | AT92: 11.47907474 | AU92: 29.7567883 | AV92: 0.8129678512 | AW92: 14.7 | AX92: 0 | AY92: 56.74883089 | AZ92: 2610.984754 | BA92: 0.4457907112 | BB92: 0.4457907112 | BF92: 71 | BG92: 2030-06-02 | BH92: 31 | BI92: 2161 | BJ92: 2654.529482 | BK92: 3.154335996 | BL92: 30.12063349 | BM92: 0.8229082535 | BN92: 14.7 | BO92: 0 | BP92: 48.79787774 | BQ92: 2651.375146 | BR92: 0.4457907112 | BS92: 0.4457907112 | BW92: 71 | BX92: 2030-06-02 | BY92: 31 | BZ92: 2161 | CA92: 2927.762536 | CB92: 5.050291187 | CC92: 33.22097679 | CD92: 0.9076109239 | CE92: 14.7 | CF92: 0 | CG92: 53.8788789 | CH92: 2922.712245 | CI92: 0.4457907112 | CJ92: 0.4457907112 | CN92: 71 | CO92: 2030-06-02 | CP92: 31 | CQ92: 2161 | CR92: 2958.206177 | CS92: -2.853434391 | CT92: 33.5664172 | CU92: 0.9170484997 | CV92: 14.7 | CW92: 0 | CX92: 46.3300313 | CY92: 2961.059611 | CZ92: 0.4457907112 | DA92: 0.4457907112
B93: 72 | C93: 2030-07-02 | D93: 30 | E93: 2191 | F93: 2922.712245 | G93: 6.214040194 | H93: 32.08802503 | I93: 0.8768136736 | J93: 14.7 | K93: 0 | L93: 53.8788789 | M93: 2916.498205 | N93: 0.4408187814 | O93: 0.4408187814 | Q93: 53.8788789 | R93: 2191 | S93: =IFERROR((1+'Simulación Cliente'!$E$21)^(R93/360),"") -> 2.545838186 | T93: 21.16 | X93: 72 | Y93: 2030-07-02 | Z93: 30 | AA93: 2191 | AB93: 2961.059611 | AC93: 44.56270964 | AD93: 32.50903509 | AE93: 0.8883178834 | AF93: 14.7 | AG93: 0 | AH93: 92.66006261 | AI93: 2916.496902 | AJ93: 0.8816375629 | AK93: 0.4408187814 | AO93: 72 | AP93: 2030-07-02 | AQ93: 30 | AR93: 2191 | AS93: 2610.984754 | AT93: 12.59992041 | AU93: 28.66561505 | AV93: 0.7832954261 | AW93: 14.7 | AX93: 0 | AY93: 56.74883089 | AZ93: 2598.384833 | BA93: 0.4408187814 | BB93: 0.4408187814 | BF93: 72 | BG93: 2030-07-02 | BH93: 30 | BI93: 2191 | BJ93: 2651.375146 | BK93: 52.99128774 | BL93: 29.10905519 | BM93: 0.7954125438 | BN93: 14.7 | BO93: 0 | BP93: 97.59575548 | BQ93: 2598.383858 | BR93: 0.8816375629 | BS93: 0.4408187814 | BW93: 72 | BX93: 2030-07-02 | BY93: 30 | BZ93: 2191 | CA93: 2922.712245 | CB93: 6.214040194 | CC93: 32.08802503 | CD93: 0.8768136736 | CE93: 14.7 | CF93: 0 | CG93: 53.8788789 | CH93: 2916.498205 | CI93: 0.4408187814 | CJ93: 0.4408187814 | CN93: 72 | CO93: 2030-07-02 | CP93: 30 | CQ93: 2191 | CR93: 2961.059611 | CS93: 44.56270964 | CT93: 32.50903509 | CU93: 0.8883178834 | CV93: 14.7 | CW93: 0 | CX93: 92.66006261 | CY93: 2916.496902 | CZ93: 0.8816375629 | DA93: 0.4408187814
B94: 73 | C94: 2030-08-02 | D94: 31 | E94: 2222 | F94: 2916.498205 | G94: 5.181598189 | H94: 33.09316175 | I94: 0.9041189637 | J94: 14.7 | K94: 0 | L94: 53.8788789 | M94: 2911.316607 | N94: 0.4357393691 | O94: 0.4357393691 | Q94: 53.8788789 | R94: 2222 | S94: =IFERROR((1+'Simulación Cliente'!$E$21)^(R94/360),"") -> 2.579721429 | T94: 20.89 | X94: 73 | Y94: 2030-08-02 | Z94: 31 | AA94: 2222 | AB94: 2916.496902 | AC94: -2.367234216 | AD94: 33.09314696 | AE94: 0.9041185597 | AF94: 14.7 | AG94: 0 | AH94: 46.3300313 | AI94: 2918.864136 | AJ94: 0.4357393691 | AK94: 0.4357393691 | AO94: 73 | AP94: 2030-08-02 | AQ94: 31 | AR94: 2222 | AS94: 2598.384833 | AT94: 11.75976079 | AU94: 29.48356677 | AV94: 0.8055033254 | AW94: 14.7 | AX94: 0 | AY94: 56.74883089 | AZ94: 2586.625072 | BA94: 0.4357393691 | BB94: 0.4357393691 | BF94: 73 | BG94: 2030-08-02 | BH94: 31 | BI94: 2222 | BJ94: 2598.383858 | BK94: 3.808819009 | BL94: 29.48355571 | BM94: 0.8055030231 | BN94: 14.7 | BO94: 0 | BP94: 48.79787774 | BQ94: 2594.575039 | BR94: 0.4357393691 | BS94: 0.4357393691 | BW94: 73 | BX94: 2030-08-02 | BY94: 31 | BZ94: 2222 | CA94: 2916.498205 | CB94: 5.181598189 | CC94: 33.09316175 | CD94: 0.9041189637 | CE94: 14.7 | CF94: 0 | CG94: 53.8788789 | CH94: 2911.316607 | CI94: 0.4357393691 | CJ94: 0.4357393691 | CN94: 73 | CO94: 2030-08-02 | CP94: 31 | CQ94: 2222 | CR94: 2916.496902 | CS94: -2.367234216 | CT94: 33.09314696 | CU94: 0.9041185597 | CV94: 14.7 | CW94: 0 | CX94: 46.3300313 | CY94: 2918.864136 | CZ94: 0.4357393691 | DA94: 0.4357393691
B95: 74 | C95: 2030-09-02 | D95: 31 | E95: 2253 | F95: 2911.316607 | G95: 5.241999477 | H95: 33.03436676 | I95: 0.9025126602 | J95: 14.7 | K95: 0 | L95: 53.8788789 | M95: 2906.074607 | N95: 0.4307184851 | O95: 0.4307184851 | Q95: 53.8788789 | R95: 2253 | S95: =IFERROR((1+'Simulación Cliente'!$E$21)^(R95/360),"") -> 2.614055634 | T95: 20.61 | X95: 74 | Y95: 2030-09-02 | Z95: 31 | AA95: 2253 | AB95: 2918.864136 | AC95: -2.39482879 | AD95: 33.12000769 | AE95: 0.904852406 | AF95: 14.7 | AG95: 0 | AH95: 46.3300313 | AI95: 2921.258965 | AJ95: 0.4307184851 | AK95: 0.4307184851 | AO95: 74 | AP95: 2030-09-02 | AQ95: 31 | AR95: 2253 | AS95: 2586.625072 | AT95: 11.89684295 | AU95: 29.35013015 | AV95: 0.8018577813 | AW95: 14.7 | AX95: 0 | AY95: 56.74883089 | AZ95: 2574.728229 | BA95: 0.4307184851 | BB95: 0.4307184851 | BF95: 74 | BG95: 2030-09-02 | BH95: 31 | BI95: 2253 | BJ95: 2594.575039 | BK95: 3.853217969 | BL95: 29.44033749 | BM95: 0.8043222833 | BN95: 14.7 | BO95: 0 | BP95: 48.79787774 | BQ95: 2590.721821 | BR95: 0.4307184851 | BS95: 0.4307184851 | BW95: 74 | BX95: 2030-09-02 | BY95: 31 | BZ95: 2253 | CA95: 2911.316607 | CB95: 5.241999477 | CC95: 33.03436676 | CD95: 0.9025126602 | CE95: 14.7 | CF95: 0 | CG95: 53.8788789 | CH95: 2906.074607 | CI95: 0.4307184851 | CJ95: 0.4307184851 | CN95: 74 | CO95: 2030-09-02 | CP95: 31 | CQ95: 2253 | CR95: 2918.864136 | CS95: -2.39482879 | CT95: 33.12000769 | CU95: 0.904852406 | CV95: 14.7 | CW95: 0 | CX95: 46.3300313 | CY95: 2921.258965 | CZ95: 0.4307184851 | DA95: 0.4307184851
B96: 75 | C96: 2030-10-02 | D96: 30 | E96: 2283 | F96: 2906.074607 | G96: 6.401693648 | H96: 31.90536287 | I96: 0.8718223822 | J96: 14.7 | K96: 0 | L96: 53.8788789 | M96: 2899.672914 | N96: 0.4259146568 | O96: 0.4259146568 | Q96: 53.8788789 | R96: 2283 | S96: =IFERROR((1+'Simulación Cliente'!$E$21)^(R96/360),"") -> 2.647717311 | T96: 20.35 | X96: 75 | Y96: 2030-10-02 | Z96: 30 | AA96: 2283 | AB96: 2921.258965 | AC96: -1.318416068 | AD96: 32.07206968 | AE96: 0.8763776894 | AF96: 14.7 | AG96: 0 | AH96: 46.3300313 | AI96: 2922.577381 | AJ96: 0.4259146568 | AK96: 0.4259146568 | AO96: 75 | AP96: 2030-10-02 | AQ96: 30 | AR96: 2283 | AS96: 2574.728229 | AT96: 13.00885237 | AU96: 28.26756004 | AV96: 0.7724184688 | AW96: 14.7 | AX96: 0 | AY96: 56.74883089 | AZ96: 2561.719377 | BA96: 0.4259146568 | BB96: 0.4259146568 | BF96: 75 | BG96: 2030-10-02 | BH96: 30 | BI96: 2283 | BJ96: 2590.721821 | BK96: 4.877509875 | BL96: 28.44315132 | BM96: 0.7772165463 | BN96: 14.7 | BO96: 0 | BP96: 48.79787774 | BQ96: 2585.844311 | BR96: 0.4259146568 | BS96: 0.4259146568 | BW96: 75 | BX96: 2030-10-02 | BY96: 30 | BZ96: 2283 | CA96: 2906.074607 | CB96: 6.401693648 | CC96: 31.90536287 | CD96: 0.8718223822 | CE96: 14.7 | CF96: 0 | CG96: 53.8788789 | CH96: 2899.672914 | CI96: 0.4259146568 | CJ96: 0.4259146568 | CN96: 75 | CO96: 2030-10-02 | CP96: 30 | CQ96: 2283 | CR96: 2921.258965 | CS96: -1.318416068 | CT96: 32.07206968 | CU96: 0.8763776894 | CV96: 14.7 | CW96: 0 | CX96: 46.3300313 | CY96: 2922.577381 | CZ96: 0.4259146568 | DA96: 0.4259146568
B97: 76 | C97: 2030-11-02 | D97: 31 | E97: 2314 | F97: 2899.672914 | G97: 5.377728655 | H97: 32.90224715 | I97: 0.8989030973 | J97: 14.7 | K97: 0 | L97: 53.8788789 | M97: 2894.295185 | N97: 0.4210069798 | O97: 0.4210069798 | Q97: 53.8788789 | R97: 2314 | S97: =IFERROR((1+'Simulación Cliente'!$E$21)^(R97/360),"") -> 2.682956491 | T97: 20.08 | X97: 76 | Y97: 2030-11-02 | Z97: 31 | AA97: 2314 | AB97: 2922.577381 | AC97: -2.438113654 | AD97: 33.16214144 | AE97: 0.9060035176 | AF97: 14.7 | AG97: 0 | AH97: 46.3300313 | AI97: 2925.015495 | AJ97: 0.4210069798 | AK97: 0.4210069798 | AO97: 76 | AP97: 2030-11-02 | AQ97: 31 | AR97: 2314 | AS97: 2561.719377 | AT97: 12.18716575 | AU97: 29.06752816 | AV97: 0.7941369772 | AW97: 14.7 | AX97: 0 | AY97: 56.74883089 | AZ97: 2549.532211 | BA97: 0.4210069798 | BB97: 0.4210069798 | BF97: 76 | BG97: 2030-11-02 | BH97: 31 | BI97: 2314 | BJ97: 2585.844311 | BK97: 3.954991049 | BL97: 29.34127095 | BM97: 0.8016157442 | BN97: 14.7 | BO97: 0 | BP97: 48.79787774 | BQ97: 2581.88932 | BR97: 0.4210069798 | BS97: 0.4210069798 | BW97: 76 | BX97: 2030-11-02 | BY97: 31 | BZ97: 2314 | CA97: 2899.672914 | CB97: 5.377728655 | CC97: 32.90224715 | CD97: 0.8989030973 | CE97: 14.7 | CF97: 0 | CG97: 53.8788789 | CH97: 2894.295185 | CI97: 0.4210069798 | CJ97: 0.4210069798 | CN97: 76 | CO97: 2030-11-02 | CP97: 31 | CQ97: 2314 | CR97: 2922.577381 | CS97: -2.438113654 | CT97: 33.16214144 | CU97: 0.9060035176 | CV97: 14.7 | CW97: 0 | CX97: 46.3300313 | CY97: 2925.015495 | CZ97: 0.4210069798 | DA97: 0.4210069798
B98: 77 | C98: 2030-12-02 | D98: 30 | E98: 2344 | F98: 2894.295185 | G98: 6.534552009 | H98: 31.77603834 | I98: 0.8682885555 | J98: 14.7 | K98: 0 | L98: 53.8788789 | M98: 2887.760633 | N98: 0.4163114645 | O98: 0.4163114645 | Q98: 53.8788789 | R98: 2344 | S98: =IFERROR((1+'Simulación Cliente'!$E$21)^(R98/360),"") -> 2.717505417 | T98: 19.83 | X98: 77 | Y98: 2030-12-02 | Z98: 30 | AA98: 2344 | AB98: 2925.015495 | AC98: 44.96924589 | AD98: 32.11331207 | AE98: 0.8775046484 | AF98: 14.7 | AG98: 0 | AH98: 92.66006261 | AI98: 2880.046249 | AJ98: 0.8326229289 | AK98: 0.4163114645 | AO98: 77 | AP98: 2030-12-02 | AQ98: 30 | AR98: 2344 | AS98: 2549.532211 | AT98: 13.29303453 | AU98: 27.99093669 | AV98: 0.7648596634 | AW98: 14.7 | AX98: 0 | AY98: 56.74883089 | AZ98: 2536.239177 | BA98: 0.4163114645 | BB98: 0.4163114645 | BF98: 77 | BG98: 2030-12-02 | BH98: 30 | BI98: 2344 | BJ98: 2581.88932 | BK98: 53.77500808 | BL98: 28.3461806 | BM98: 0.7745667961 | BN98: 14.7 | BO98: 0 | BP98: 97.59575548 | BQ98: 2528.114312 | BR98: 0.8326229289 | BS98: 0.4163114645 | BW98: 77 | BX98: 2030-12-02 | BY98: 30 | BZ98: 2344 | CA98: 2894.295185 | CB98: 6.534552009 | CC98: 31.77603834 | CD98: 0.8682885555 | CE98: 14.7 | CF98: 0 | CG98: 53.8788789 | CH98: 2887.760633 | CI98: 0.4163114645 | CJ98: 0.4163114645 | CN98: 77 | CO98: 2030-12-02 | CP98: 30 | CQ98: 2344 | CR98: 2925.015495 | CS98: 44.96924589 | CT98: 32.11331207 | CU98: 0.8775046484 | CV98: 14.7 | CW98: 0 | CX98: 92.66006261 | CY98: 2880.046249 | CZ98: 0.8326229289 | DA98: 0.4163114645
B99: 78 | C99: 2031-01-02 | D99: 31 | E99: 2375 | F99: 2887.760633 | G99: 5.516588727 | H99: 32.7670799 | I99: 0.8952102718 | J99: 14.7 | K99: 0 | L99: 53.8788789 | M99: 2882.244044 | N99: 0.411514442 | O99: 0.411514442 | Q99: 53.8788789 | R99: 2375 | S99: =IFERROR((1+'Simulación Cliente'!$E$21)^(R99/360),"") -> 2.753673425 | T99: 19.57 | X99: 78 | Y99: 2031-01-02 | Z99: 31 | AA99: 2375 | AB99: 2880.046249 | AC99: -1.942333187 | AD99: 32.67954569 | AE99: 0.8928188007 | AF99: 14.7 | AG99: 0 | AH99: 46.3300313 | AI99: 2881.988582 | AJ99: 0.411514442 | AK99: 0.411514442 | AO99: 78 | AP99: 2031-01-02 | AQ99: 31 | AR99: 2375 | AS99: 2536.239177 | AT99: 12.48418549 | AU99: 28.77840733 | AV99: 0.7862380756 | AW99: 14.7 | AX99: 0 | AY99: 56.74883089 | AZ99: 2523.754991 | BA99: 0.411514442 | BB99: 0.411514442 | BF99: 78 | BG99: 2031-01-02 | BH99: 31 | BI99: 2375 | BJ99: 2528.114312 | BK99: 4.627942942 | BL99: 28.68621544 | BM99: 0.783719355 | BN99: 14.7 | BO99: 0 | BP99: 48.79787774 | BQ99: 2523.486369 | BR99: 0.411514442 | BS99: 0.411514442 | BW99: 78 | BX99: 2031-01-02 | BY99: 31 | BZ99: 2375 | CA99: 2887.760633 | CB99: 5.516588727 | CC99: 32.7670799 | CD99: 0.8952102718 | CE99: 14.7 | CF99: 0 | CG99: 53.8788789 | CH99: 2882.244044 | CI99: 0.411514442 | CJ99: 0.411514442 | CN99: 78 | CO99: 2031-01-02 | CP99: 31 | CQ99: 2375 | CR99: 2880.046249 | CS99: -1.942333187 | CT99: 32.67954569 | CU99: 0.8928188007 | CV99: 14.7 | CW99: 0 | CX99: 46.3300313 | CY99: 2881.988582 | CZ99: 0.411514442 | DA99: 0.411514442
B100: 79 | C100: 2031-02-02 | D100: 31 | E100: 2406 | F100: 2882.244044 | G100: 5.580894961 | H100: 32.70448382 | I100: 0.8935001208 | J100: 14.7 | K100: 0 | L100: 53.8788789 | M100: 2876.663149 | N100: 0.4067726941 | O100: 0.4067726941 | Q100: 53.8788789 | R100: 2406 | S100: =IFERROR((1+'Simulación Cliente'!$E$21)^(R100/360),"") -> 2.790322803 | T100: 19.31 | X100: 79 | Y100: 2031-02-02 | Z100: 31 | AA100: 2406 | AB100: 2881.988582 | AC100: -1.964974739 | AD100: 32.70158512 | AE100: 0.893420927 | AF100: 14.7 | AG100: 0 | AH100: 46.3300313 | AI100: 2883.953557 | AJ100: 0.4067726941 | AK100: 0.4067726941 | AO100: 79 | AP100: 2031-02-02 | AQ100: 31 | AR100: 2406 | AS100: 2523.754991 | AT100: 12.62971219 | AU100: 28.63675074 | AV100: 0.7823679588 | AW100: 14.7 | AX100: 0 | AY100: 56.74883089 | AZ100: 2511.125279 | BA100: 0.4067726941 | BB100: 0.4067726941 | BF100: 79 | BG100: 2031-02-02 | BH100: 31 | BI100: 2406 | BJ100: 2523.486369 | BK100: 4.681890335 | BL100: 28.63370272 | BM100: 0.7822846855 | BN100: 14.7 | BO100: 0 | BP100: 48.79787774 | BQ100: 2518.804479 | BR100: 0.4067726941 | BS100: 0.4067726941 | BW100: 79 | BX100: 2031-02-02 | BY100: 31 | BZ100: 2406 | CA100: 2882.244044 | CB100: 5.580894961 | CC100: 32.70448382 | CD100: 0.8935001208 | CE100: 14.7 | CF100: 0 | CG100: 53.8788789 | CH100: 2876.663149 | CI100: 0.4067726941 | CJ100: 0.4067726941 | CN100: 79 | CO100: 2031-02-02 | CP100: 31 | CQ100: 2406 | CR100: 2881.988582 | CS100: -1.964974739 | CT100: 32.70158512 | CU100: 0.893420927 | CV100: 14.7 | CW100: 0 | CX100: 46.3300313 | CY100: 2883.953557 | CZ100: 0.4067726941 | DA100: 0.4067726941
B101: 80 | C101: 2031-03-02 | D101: 28 | E101: 2434 | F101: 2876.663149 | G101: 8.907205268 | H101: 29.466216 | I101: 0.805457628 | J101: 14.7 | K101: 0 | L101: 53.8788789 | M101: 2867.755944 | N101: 0.4025368047 | O101: 0.4025368047 | Q101: 53.8788789 | R101: 2434 | S101: =IFERROR((1+'Simulación Cliente'!$E$21)^(R101/360),"") -> 2.823844542 | T101: 19.08 | X101: 80 | Y101: 2031-03-02 | Z101: 28 | AA101: 2434 | AB101: 2883.953557 | AC101: 1.281639329 | AD101: 29.54089305 | AE101: 0.8074989216 | AF101: 14.7 | AG101: 0 | AH101: 46.3300313 | AI101: 2882.671917 | AJ101: 0.4025368047 | AK101: 0.4025368047 | AO101: 80 | AP101: 2031-03-02 | AQ101: 28 | AR101: 2434 | AS101: 2511.125279 | AT101: 15.62378181 | AU101: 25.72194103 | AV101: 0.7031080478 | AW101: 14.7 | AX101: 0 | AY101: 56.74883089 | AZ101: 2495.501497 | BA101: 0.4025368047 | BB101: 0.4025368047 | BF101: 80 | BG101: 2031-03-02 | BH101: 28 | BI101: 2434 | BJ101: 2518.804479 | BK101: 7.592018982 | BL101: 25.80060055 | BM101: 0.7052582022 | BN101: 14.7 | BO101: 0 | BP101: 48.79787774 | BQ101: 2511.21246 | BR101: 0.4025368047 | BS101: 0.4025368047 | BW101: 80 | BX101: 2031-03-02 | BY101: 28 | BZ101: 2434 | CA101: 2876.663149 | CB101: 8.907205268 | CC101: 29.466216 | CD101: 0.805457628 | CE101: 14.7 | CF101: 0 | CG101: 53.8788789 | CH101: 2867.755944 | CI101: 0.4025368047 | CJ101: 0.4025368047 | CN101: 80 | CO101: 2031-03-02 | CP101: 28 | CQ101: 2434 | CR101: 2883.953557 | CS101: 1.281639329 | CT101: 29.54089305 | CU101: 0.8074989216 | CV101: 14.7 | CW101: 0 | CX101: 46.3300313 | CY101: 2882.671917 | CZ101: 0.4025368047 | DA101: 0.4025368047
B102: 81 | C102: 2031-04-02 | D102: 31 | E102: 2465 | F102: 2867.755944 | G102: 5.749781062 | H102: 32.54008905 | I102: 0.8890087873 | J102: 14.7 | K102: 0 | L102: 53.8788789 | M102: 2862.006163 | N102: 0.3978985032 | O102: 0.3978985032 | Q102: 53.8788789 | R102: 2465 | S102: =IFERROR((1+'Simulación Cliente'!$E$21)^(R102/360),"") -> 2.861427846 | T102: 18.83 | X102: 81 | Y102: 2031-04-02 | Z102: 31 | AA102: 2465 | AB102: 2882.671917 | AC102: -1.972940301 | AD102: 32.70933884 | AE102: 0.8936327621 | AF102: 14.7 | AG102: 0 | AH102: 46.3300313 | AI102: 2884.644858 | AJ102: 0.3978985032 | AK102: 0.3978985032 | AO102: 81 | AP102: 2031-04-02 | AQ102: 31 | AR102: 2465 | AS102: 2495.501497 | AT102: 12.95905988 | AU102: 28.31616167 | AV102: 0.7736093318 | AW102: 14.7 | AX102: 0 | AY102: 56.74883089 | AZ102: 2482.542437 | BA102: 0.3978985032 | BB102: 0.3978985032 | BF102: 81 | BG102: 2031-04-02 | BH102: 31 | BI102: 2465 | BJ102: 2511.21246 | BK102: 4.82496587 | BL102: 28.49443212 | BM102: 0.7784797546 | BN102: 14.7 | BO102: 0 | BP102: 48.79787774 | BQ102: 2506.387494 | BR102: 0.3978985032 | BS102: 0.3978985032 | BW102: 81 | BX102: 2031-04-02 | BY102: 31 | BZ102: 2465 | CA102: 2867.755944 | CB102: 5.749781062 | CC102: 32.54008905 | CD102: 0.8890087873 | CE102: 14.7 | CF102: 0 | CG102: 53.8788789 | CH102: 2862.006163 | CI102: 0.3978985032 | CJ102: 0.3978985032 | CN102: 81 | CO102: 2031-04-02 | CP102: 31 | CQ102: 2465 | CR102: 2882.671917 | CS102: -1.972940301 | CT102: 32.70933884 | CU102: 0.8936327621 | CV102: 14.7 | CW102: 0 | CX102: 46.3300313 | CY102: 2884.644858 | CZ102: 0.3978985032 | DA102: 0.3978985032
B103: 82 | C103: 2031-05-02 | D103: 30 | E103: 2495 | F103: 2862.006163 | G103: 6.898735108 | H103: 31.42154194 | I103: 0.8586018489 | J103: 14.7 | K103: 0 | L103: 53.8788789 | M103: 2855.107428 | N103: 0.393460718 | O103: 0.393460718 | Q103: 53.8788789 | R103: 2495 | S103: =IFERROR((1+'Simulación Cliente'!$E$21)^(R103/360),"") -> 2.898274981 | T103: 18.59 | X103: 82 | Y103: 2031-05-02 | Z103: 30 | AA103: 2495 | AB103: 2884.644858 | AC103: -0.9054509726 | AD103: 31.67008882 | AE103: 0.8653934573 | AF103: 14.7 | AG103: 0 | AH103: 46.3300313 | AI103: 2885.550309 | AJ103: 0.393460718 | AK103: 0.393460718 | AO103: 82 | AP103: 2031-05-02 | AQ103: 30 | AR103: 2495 | AS103: 2482.542437 | AT103: 14.04860228 | AU103: 27.25546588 | AV103: 0.7447627312 | AW103: 14.7 | AX103: 0 | AY103: 56.74883089 | AZ103: 2468.493835 | BA103: 0.393460718 | BB103: 0.393460718 | BF103: 82 | BG103: 2031-05-02 | BH103: 30 | BI103: 2495 | BJ103: 2506.387494 | BK103: 5.828704265 | BL103: 27.51725723 | BM103: 0.7519162482 | BN103: 14.7 | BO103: 0 | BP103: 48.79787774 | BQ103: 2500.55879 | BR103: 0.393460718 | BS103: 0.393460718 | BW103: 82 | BX103: 2031-05-02 | BY103: 30 | BZ103: 2495 | CA103: 2862.006163 | CB103: 6.898735108 | CC103: 31.42154194 | CD103: 0.8586018489 | CE103: 14.7 | CF103: 0 | CG103: 53.8788789 | CH103: 2855.107428 | CI103: 0.393460718 | CJ103: 0.393460718 | CN103: 82 | CO103: 2031-05-02 | CP103: 30 | CQ103: 2495 | CR103: 2884.644858 | CS103: -0.9054509726 | CT103: 31.67008882 | CU103: 0.8653934573 | CV103: 14.7 | CW103: 0 | CX103: 46.3300313 | CY103: 2885.550309 | CZ103: 0.393460718 | DA103: 0.393460718
B104: 83 | C104: 2031-06-02 | D104: 31 | E104: 2526 | F104: 2855.107428 | G104: 5.897223345 | H104: 32.39656783 | I104: 0.8850877276 | J104: 14.7 | K104: 0 | L104: 53.8788789 | M104: 2849.210205 | N104: 0.3889269973 | O104: 0.3889269973 | Q104: 53.8788789 | R104: 2526 | S104: =IFERROR((1+'Simulación Cliente'!$E$21)^(R104/360),"") -> 2.9368489 | T104: 18.35 | X104: 83 | Y104: 2031-06-02 | Z104: 31 | AA104: 2526 | AB104: 2885.550309 | AC104: -2.006493373 | AD104: 32.74199961 | AE104: 0.8945250678 | AF104: 14.7 | AG104: 0 | AH104: 46.3300313 | AI104: 2887.556802 | AJ104: 0.3889269973 | AK104: 0.3889269973 | AO104: 83 | AP104: 2031-06-02 | AQ104: 31 | AR104: 2526 | AS104: 2468.493835 | AT104: 13.27388506 | AU104: 28.00970891 | AV104: 0.7652369147 | AW104: 14.7 | AX104: 0 | AY104: 56.74883089 | AZ104: 2455.21995 | BA104: 0.3889269973 | BB104: 0.3889269973 | BF104: 83 | BG104: 2031-06-02 | BH104: 31 | BI104: 2526 | BJ104: 2500.55879 | BK104: 4.949154464 | BL104: 28.37354617 | BM104: 0.7751771003 | BN104: 14.7 | BO104: 0 | BP104: 48.79787774 | BQ104: 2495.609635 | BR104: 0.3889269973 | BS104: 0.3889269973 | BW104: 83 | BX104: 2031-06-02 | BY104: 31 | BZ104: 2526 | CA104: 2855.107428 | CB104: 5.897223345 | CC104: 32.39656783 | CD104: 0.8850877276 | CE104: 14.7 | CF104: 0 | CG104: 53.8788789 | CH104: 2849.210205 | CI104: 0.3889269973 | CJ104: 0.3889269973 | CN104: 83 | CO104: 2031-06-02 | CP104: 31 | CQ104: 2526 | CR104: 2885.550309 | CS104: -2.006493373 | CT104: 32.74199961 | CU104: 0.8945250678 | CV104: 14.7 | CW104: 0 | CX104: 46.3300313 | CY104: 2887.556802 | CZ104: 0.3889269973 | DA104: 0.3889269973
B105: 84 | C105: 2031-07-02 | D105: 30 | E105: 2556 | F105: 2849.210205 | G105: 7.043058829 | H105: 31.28105701 | I105: 0.8547630614 | J105: 14.7 | K105: 0 | L105: 53.8788789 | M105: 2842.167146 | N105: 0.3845892718 | O105: 0.3845892718 | Q105: 53.8788789 | R105: 2556 | S105: =IFERROR((1+'Simulación Cliente'!$E$21)^(R105/360),"") -> 2.974667246 | T105: 18.11 | X105: 84 | Y105: 2031-07-02 | Z105: 30 | AA105: 2556 | AB105: 2887.556802 | AC105: 45.39173694 | AD105: 31.70205863 | AE105: 0.8662670406 | AF105: 14.7 | AG105: 0 | AH105: 92.66006261 | AI105: 2842.165065 | AJ105: 0.7691785436 | AK105: 0.3845892718 | AO105: 84 | AP105: 2031-07-02 | AQ105: 30 | AR105: 2556 | AS105: 2455.21995 | AT105: 14.35676856 | AU105: 26.95549634 | AV105: 0.736565985 | AW105: 14.7 | AX105: 0 | AY105: 56.74883089 | AZ105: 2440.863182 | BA105: 0.3845892718 | BB105: 0.3845892718 | BF105: 84 | BG105: 2031-07-02 | BH105: 30 | BI105: 2556 | BJ105: 2495.609635 | BK105: 54.74814388 | BL105: 27.39892871 | BM105: 0.7486828906 | BN105: 14.7 | BO105: 0 | BP105: 97.59575548 | BQ105: 2440.861491 | BR105: 0.7691785436 | BS105: 0.3845892718 | BW105: 84 | BX105: 2031-07-02 | BY105: 30 | BZ105: 2556 | CA105: 2849.210205 | CB105: 7.043058829 | CC105: 31.28105701 | CD105: 0.8547630614 | CE105: 14.7 | CF105: 0 | CG105: 53.8788789 | CH105: 2842.167146 | CI105: 0.3845892718 | CJ105: 0.3845892718 | CN105: 84 | CO105: 2031-07-02 | CP105: 30 | CQ105: 2556 | CR105: 2887.556802 | CS105: 45.39173694 | CT105: 31.70205863 | CU105: 0.8662670406 | CV105: 14.7 | CW105: 0 | CX105: 92.66006261 | CY105: 2842.165065 | CZ105: 0.7691785436 | DA105: 0.3845892718
B106: 85 | C106: 2031-08-02 | D106: 31 | E106: 2587 | F106: 2842.167146 | G106: 6.048066711 | H106: 32.24973597 | I106: 0.8810762201 | J106: 14.7 | K106: 0 | L106: 53.8788789 | M106: 2836.119079 | N106: 0.3801577739 | O106: 0.3801577739 | Q106: 53.8788789 | R106: 2587 | S106: =IFERROR((1+'Simulación Cliente'!$E$21)^(R106/360),"") -> 3.01425789 | T106: 17.87 | X106: 85 | Y106: 2031-08-02 | Z106: 31 | AA106: 2587 | AB106: 2842.165065 | AC106: -1.50075663 | AD106: 32.24971236 | AE106: 0.8810755751 | AF106: 14.7 | AG106: 0 | AH106: 46.3300313 | AI106: 2843.665822 | AJ106: 0.3801577739 | AK106: 0.3801577739 | AO106: 85 | AP106: 2031-08-02 | AQ106: 31 | AR106: 2587 | AS106: 2440.863182 | AT106: 13.59597238 | AU106: 27.69618714 | AV106: 0.7566713693 | AW106: 14.7 | AX106: 0 | AY106: 56.74883089 | AZ106: 2427.267209 | BA106: 0.3801577739 | BB106: 0.3801577739 | BF106: 85 | BG106: 2031-08-02 | BH106: 31 | BI106: 2587 | BJ106: 2440.861491 | BK106: 5.645038935 | BL106: 27.69616796 | BM106: 0.7566708453 | BN106: 14.7 | BO106: 0 | BP106: 48.79787774 | BQ106: 2435.216452 | BR106: 0.3801577739 | BS106: 0.3801577739 | BW106: 85 | BX106: 2031-08-02 | BY106: 31 | BZ106: 2587 | CA106: 2842.167146 | CB106: 6.048066711 | CC106: 32.24973597 | CD106: 0.8810762201 | CE106: 14.7 | CF106: 0 | CG106: 53.8788789 | CH106: 2836.119079 | CI106: 0.3801577739 | CJ106: 0.3801577739 | CN106: 85 | CO106: 2031-08-02 | CP106: 31 | CQ106: 2587 | CR106: 2842.165065 | CS106: -1.50075663 | CT106: 32.24971236 | CU106: 0.8810755751 | CV106: 14.7 | CW106: 0 | CX106: 46.3300313 | CY106: 2843.665822 | CZ106: 0.3801577739 | DA106: 0.3801577739
B107: 86 | C107: 2031-09-02 | D107: 31 | E107: 2618 | F107: 2836.119079 | G107: 6.118568322 | H107: 32.18110927 | I107: 0.8792013101 | J107: 14.7 | K107: 0 | L107: 53.8788789 | M107: 2830.000511 | N107: 0.3757773387 | O107: 0.3757773387 | Q107: 53.8788789 | R107: 2618 | S107: =IFERROR((1+'Simulación Cliente'!$E$21)^(R107/360),"") -> 3.054375456 | T107: 17.64 | X107: 86 | Y107: 2031-09-02 | Z107: 31 | AA107: 2618 | AB107: 2843.665822 | AC107: -1.518250776 | AD107: 32.26674127 | AE107: 0.8815408119 | AF107: 14.7 | AG107: 0 | AH107: 46.3300313 | AI107: 2845.184072 | AJ107: 0.3757773387 | AK107: 0.3757773387 | AO107: 86 | AP107: 2031-09-02 | AQ107: 31 | AR107: 2618 | AS107: 2427.267209 | AT107: 13.75445905 | AU107: 27.54191524 | AV107: 0.7524565967 | AW107: 14.7 | AX107: 0 | AY107: 56.74883089 | AZ107: 2413.51275 | BA107: 0.3757773387 | BB107: 0.3757773387 | BF107: 86 | BG107: 2031-09-02 | BH107: 31 | BI107: 2618 | BJ107: 2435.216452 | BK107: 5.710842498 | BL107: 27.63211437 | BM107: 0.7549208745 | BN107: 14.7 | BO107: 0 | BP107: 48.79787774 | BQ107: 2429.50561 | BR107: 0.3757773387 | BS107: 0.3757773387 | BW107: 86 | BX107: 2031-09-02 | BY107: 31 | BZ107: 2618 | CA107: 2836.119079 | CB107: 6.118568322 | CC107: 32.18110927 | CD107: 0.8792013101 | CE107: 14.7 | CF107: 0 | CG107: 53.8788789 | CH107: 2830.000511 | CI107: 0.3757773387 | CJ107: 0.3757773387 | CN107: 86 | CO107: 2031-09-02 | CP107: 31 | CQ107: 2618 | CR107: 2843.665822 | CS107: -1.518250776 | CT107: 32.26674127 | CU107: 0.8815408119 | CV107: 14.7 | CW107: 0 | CX107: 46.3300313 | CY107: 2845.184072 | CZ107: 0.3757773387 | DA107: 0.3757773387
B108: 87 | C108: 2031-10-02 | D108: 30 | E108: 2648 | F108: 2830.000511 | G108: 7.259722122 | H108: 31.07015663 | I108: 0.8490001532 | J108: 14.7 | K108: 0 | L108: 53.8788789 | M108: 2822.740789 | N108: 0.3715862722 | O108: 0.3715862722 | Q108: 53.8788789 | R108: 2648 | S108: =IFERROR((1+'Simulación Cliente'!$E$21)^(R108/360),"") -> 3.093707213 | T108: 17.42 | X108: 87 | Y108: 2031-10-02 | Z108: 30 | AA108: 2648 | AB108: 2845.184072 | AC108: -0.4603786186 | AD108: 31.2368547 | AE108: 0.8535552217 | AF108: 14.7 | AG108: 0 | AH108: 46.3300313 | AI108: 2845.644451 | AJ108: 0.3715862722 | AK108: 0.3715862722 | AO108: 87 | AP108: 2031-10-02 | AQ108: 30 | AR108: 2648 | AS108: 2413.51275 | AT108: 14.8271779 | AU108: 26.49759916 | AV108: 0.724053825 | AW108: 14.7 | AX108: 0 | AY108: 56.74883089 | AZ108: 2398.685572 | BA108: 0.3715862722 | BB108: 0.3715862722 | BF108: 87 | BG108: 2031-10-02 | BH108: 30 | BI108: 2648 | BJ108: 2429.50561 | BK108: 6.695843653 | BL108: 26.6731824 | BM108: 0.728851683 | BN108: 14.7 | BO108: 0 | BP108: 48.79787774 | BQ108: 2422.809766 | BR108: 0.3715862722 | BS108: 0.3715862722 | BW108: 87 | BX108: 2031-10-02 | BY108: 30 | BZ108: 2648 | CA108: 2830.000511 | CB108: 7.259722122 | CC108: 31.07015663 | CD108: 0.8490001532 | CE108: 14.7 | CF108: 0 | CG108: 53.8788789 | CH108: 2822.740789 | CI108: 0.3715862722 | CJ108: 0.3715862722 | CN108: 87 | CO108: 2031-10-02 | CP108: 30 | CQ108: 2648 | CR108: 2845.184072 | CS108: -0.4603786186 | CT108: 31.2368547 | CU108: 0.8535552217 | CV108: 14.7 | CW108: 0 | CX108: 46.3300313 | CY108: 2845.644451 | CZ108: 0.3715862722 | DA108: 0.3715862722
B109: 88 | C109: 2031-11-02 | D109: 31 | E109: 2679 | F109: 2822.740789 | G109: 6.274517499 | H109: 32.02930738 | I109: 0.8750540193 | J109: 14.7 | K109: 0 | L109: 53.8788789 | M109: 2816.466271 | N109: 0.3673046037 | O109: 0.3673046037 | Q109: 53.8788789 | R109: 2679 | S109: =IFERROR((1+'Simulación Cliente'!$E$21)^(R109/360),"") -> 3.134882192 | T109: 17.19 | X109: 88 | Y109: 2031-11-02 | Z109: 31 | AA109: 2679 | AB109: 2845.644451 | AC109: -1.541315429 | AD109: 32.28919254 | AE109: 0.8821541901 | AF109: 14.7 | AG109: 0 | AH109: 46.3300313 | AI109: 2847.185766 | AJ109: 0.3673046037 | AK109: 0.3673046037 | AO109: 88 | AP109: 2031-11-02 | AQ109: 31 | AR109: 2679 | AS109: 2398.685572 | AT109: 14.08763187 | AU109: 27.21760277 | AV109: 0.743596245 | AW109: 14.7 | AX109: 0 | AY109: 56.74883089 | AZ109: 2384.59794 | BA109: 0.3673046037 | BB109: 0.3673046037 | BF109: 88 | BG109: 2031-11-02 | BH109: 31 | BI109: 2679 | BJ109: 2422.809766 | BK109: 5.855465797 | BL109: 27.49133716 | BM109: 0.7510747825 | BN109: 14.7 | BO109: 0 | BP109: 48.79787774 | BQ109: 2416.9543 | BR109: 0.3673046037 | BS109: 0.3673046037 | BW109: 88 | BX109: 2031-11-02 | BY109: 31 | BZ109: 2679 | CA109: 2822.740789 | CB109: 6.274517499 | CC109: 32.02930738 | CD109: 0.8750540193 | CE109: 14.7 | CF109: 0 | CG109: 53.8788789 | CH109: 2816.466271 | CI109: 0.3673046037 | CJ109: 0.3673046037 | CN109: 88 | CO109: 2031-11-02 | CP109: 31 | CQ109: 2679 | CR109: 2845.644451 | CS109: -1.541315429 | CT109: 32.28919254 | CU109: 0.8821541901 | CV109: 14.7 | CW109: 0 | CX109: 46.3300313 | CY109: 2847.185766 | CZ109: 0.3673046037 | DA109: 0.3673046037
B110: 89 | C110: 2031-12-02 | D110: 30 | E110: 2709 | F110: 2816.466271 | G110: 7.412372807 | H110: 30.92156621 | I110: 0.8449398813 | J110: 14.7 | K110: 0 | L110: 53.8788789 | M110: 2809.053898 | N110: 0.363208034 | O110: 0.363208034 | Q110: 53.8788789 | R110: 2709 | S110: =IFERROR((1+'Simulación Cliente'!$E$21)^(R110/360),"") -> 3.175250649 | T110: 16.97 | X110: 89 | Y110: 2031-12-02 | Z110: 30 | AA110: 2709 | AB110: 2847.185766 | AC110: 45.84707588 | AD110: 31.258831 | AE110: 0.8541557299 | AF110: 14.7 | AG110: 0 | AH110: 92.66006261 | AI110: 2801.338691 | AJ110: 0.726416068 | AK110: 0.363208034 | AO110: 89 | AP110: 2031-12-02 | AQ110: 30 | AR110: 2709 | AS110: 2384.59794 | AT110: 15.15330376 | AU110: 26.18014775 | AV110: 0.7153793821 | AW110: 14.7 | AX110: 0 | AY110: 56.74883089 | AZ110: 2369.444637 | BA110: 0.363208034 | BB110: 0.363208034 | BF110: 89 | BG110: 2031-12-02 | BH110: 30 | BI110: 2709 | BJ110: 2416.9543 | BK110: 55.63528575 | BL110: 26.53538344 | BM110: 0.7250862901 | BN110: 14.7 | BO110: 0 | BP110: 97.59575548 | BQ110: 2361.319015 | BR110: 0.726416068 | BS110: 0.363208034 | BW110: 89 | BX110: 2031-12-02 | BY110: 30 | BZ110: 2709 | CA110: 2816.466271 | CB110: 7.412372807 | CC110: 30.92156621 | CD110: 0.8449398813 | CE110: 14.7 | CF110: 0 | CG110: 53.8788789 | CH110: 2809.053898 | CI110: 0.363208034 | CJ110: 0.363208034 | CN110: 89 | CO110: 2031-12-02 | CP110: 30 | CQ110: 2709 | CR110: 2847.185766 | CS110: 45.84707588 | CT110: 31.258831 | CU110: 0.8541557299 | CV110: 14.7 | CW110: 0 | CX110: 92.66006261 | CY110: 2801.338691 | CZ110: 0.726416068 | DA110: 0.363208034
B111: 90 | C111: 2032-01-02 | D111: 31 | E111: 2740 | F111: 2809.053898 | G111: 6.434063989 | H111: 31.87400385 | I111: 0.8708110621 | J111: 14.7 | K111: 0 | L111: 53.8788789 | M111: 2802.619834 | N111: 0.3590229052 | O111: 0.3590229052 | Q111: 53.8788789 | R111: 2740 | S111: =IFERROR((1+'Simulación Cliente'!$E$21)^(R111/360),"") -> 3.217510911 | T111: 16.75 | X111: 90 | Y111: 2032-01-02 | Z111: 31 | AA111: 2740 | AB111: 2801.338691 | AC111: -1.024848327 | AD111: 31.7864603 | AE111: 0.8684193357 | AF111: 14.7 | AG111: 0 | AH111: 46.3300313 | AI111: 2802.363539 | AJ111: 0.3590229052 | AK111: 0.3590229052 | AO111: 90 | AP111: 2032-01-02 | AQ111: 31 | AR111: 2740 | AS111: 2369.444637 | AT111: 14.42849006 | AU111: 26.88580932 | AV111: 0.7345315096 | AW111: 14.7 | AX111: 0 | AY111: 56.74883089 | AZ111: 2355.016147 | BA111: 0.3590229052 | BB111: 0.3590229052 | BF111: 90 | BG111: 2032-01-02 | BH111: 31 | BI111: 2740 | BJ111: 2361.319015 | BK111: 6.572256343 | BL111: 26.79360884 | BM111: 0.7320125543 | BN111: 14.7 | BO111: 0 | BP111: 48.79787774 | BQ111: 2354.746758 | BR111: 0.3590229052 | BS111: 0.3590229052 | BW111: 90 | BX111: 2032-01-02 | BY111: 31 | BZ111: 2740 | CA111: 2809.053898 | CB111: 6.434063989 | CC111: 31.87400385 | CD111: 0.8708110621 | CE111: 14.7 | CF111: 0 | CG111: 53.8788789 | CH111: 2802.619834 | CI111: 0.3590229052 | CJ111: 0.3590229052 | CN111: 90 | CO111: 2032-01-02 | CP111: 31 | CQ111: 2740 | CR111: 2801.338691 | CS111: -1.024848327 | CT111: 31.7864603 | CU111: 0.8684193357 | CV111: 14.7 | CW111: 0 | CX111: 46.3300313 | CY111: 2802.363539 | CZ111: 0.3590229052 | DA111: 0.3590229052
B112: 91 | C112: 2032-02-02 | D112: 31 | E112: 2771 | F112: 2802.619834 | G112: 6.509065126 | H112: 31.80099728 | I112: 0.8688164923 | J112: 14.7 | K112: 0 | L112: 53.8788789 | M112: 2796.110769 | N112: 0.3548860003 | O112: 0.3548860003 | Q112: 53.8788789 | R112: 2771 | S112: =IFERROR((1+'Simulación Cliente'!$E$21)^(R112/360),"") -> 3.260333627 | T112: 16.53 | X112: 91 | Y112: 2032-02-02 | Z112: 31 | AA112: 2771 | AB112: 2802.363539 | AC112: -1.036794865 | AD112: 31.79808913 | AE112: 0.8687370403 | AF112: 14.7 | AG112: 0 | AH112: 46.3300313 | AI112: 2803.400334 | AJ112: 0.3548860003 | AK112: 0.3548860003 | AO112: 91 | AP112: 2032-02-02 | AQ112: 31 | AR112: 2771 | AS112: 2355.016147 | AT112: 14.59668129 | AU112: 26.72209094 | AV112: 0.7300586553 | AW112: 14.7 | AX112: 0 | AY112: 56.74883089 | AZ112: 2340.419465 | BA112: 0.3548860003 | BB112: 0.3548860003 | BF112: 91 | BG112: 2032-02-02 | BH112: 31 | BI112: 2771 | BJ112: 2354.746758 | BK112: 6.648868372 | BL112: 26.71903422 | BM112: 0.7299751446 | BN112: 14.7 | BO112: 0 | BP112: 48.79787774 | BQ112: 2348.09789 | BR112: 0.3548860003 | BS112: 0.3548860003 | BW112: 91 | BX112: 2032-02-02 | BY112: 31 | BZ112: 2771 | CA112: 2802.619834 | CB112: 6.509065126 | CC112: 31.80099728 | CD112: 0.8688164923 | CE112: 14.7 | CF112: 0 | CG112: 53.8788789 | CH112: 2796.110769 | CI112: 0.3548860003 | CJ112: 0.3548860003 | CN112: 91 | CO112: 2032-02-02 | CP112: 31 | CQ112: 2771 | CR112: 2802.363539 | CS112: -1.036794865 | CT112: 31.79808913 | CU112: 0.8687370403 | CV112: 14.7 | CW112: 0 | CX112: 46.3300313 | CY112: 2803.400334 | CZ112: 0.3548860003 | DA112: 0.3548860003
B113: 92 | C113: 2032-03-02 | D113: 29 | E113: 2800 | F113: 2796.110769 | G113: 8.698603703 | H113: 29.66940713 | I113: 0.8108680691 | J113: 14.7 | K113: 0 | L113: 53.8788789 | M113: 2787.412165 | N113: 0.3510591576 | O113: 0.3510591576 | Q113: 53.8788789 | R113: 2800 | S113: =IFERROR((1+'Simulación Cliente'!$E$21)^(R113/360),"") -> 3.300909409 | T113: 16.32 | X113: 92 | Y113: 2032-03-02 | Z113: 29 | AA113: 2800 | AB113: 2803.400334 | AC113: 1.070292898 | AD113: 29.74675637 | AE113: 0.8129820323 | AF113: 14.7 | AG113: 0 | AH113: 46.3300313 | AI113: 2802.330041 | AJ113: 0.3510591576 | AK113: 0.3510591576 | AO113: 92 | AP113: 2032-03-02 | AQ113: 29 | AR113: 2800 | AS113: 2340.419465 | AT113: 16.53602568 | AU113: 24.83408695 | AV113: 0.6787182517 | AW113: 14.7 | AX113: 0 | AY113: 56.74883089 | AZ113: 2323.88344 | BA113: 0.3510591576 | BB113: 0.3510591576 | BF113: 92 | BG113: 2032-03-02 | BH113: 29 | BI113: 2800 | BJ113: 2348.09789 | BK113: 8.501370381 | BL113: 24.91556237 | BM113: 0.6809449837 | BN113: 14.7 | BO113: 0 | BP113: 48.79787774 | BQ113: 2339.59652 | BR113: 0.3510591576 | BS113: 0.3510591576 | BW113: 92 | BX113: 2032-03-02 | BY113: 29 | BZ113: 2800 | CA113: 2796.110769 | CB113: 8.698603703 | CC113: 29.66940713 | CD113: 0.8108680691 | CE113: 14.7 | CF113: 0 | CG113: 53.8788789 | CH113: 2787.412165 | CI113: 0.3510591576 | CJ113: 0.3510591576 | CN113: 92 | CO113: 2032-03-02 | CP113: 29 | CQ113: 2800 | CR113: 2803.400334 | CS113: 1.070292898 | CT113: 29.74675637 | CU113: 0.8129820323 | CV113: 14.7 | CW113: 0 | CX113: 46.3300313 | CY113: 2802.330041 | CZ113: 0.3510591576 | DA113: 0.3510591576
B114: 93 | C114: 2032-04-02 | D114: 31 | E114: 2831 | F114: 2787.412165 | G114: 6.686339154 | H114: 31.62843766 | I114: 0.8641020914 | J114: 14.7 | K114: 0 | L114: 53.8788789 | M114: 2780.725826 | N114: 0.3470140163 | O114: 0.3470140163 | Q114: 53.8788789 | R114: 2831 | S114: =IFERROR((1+'Simulación Cliente'!$E$21)^(R114/360),"") -> 3.344842098 | T114: 16.11 | X114: 93 | Y114: 2032-04-02 | Z114: 31 | AA114: 2831 | AB114: 2802.330041 | AC114: -1.036404382 | AD114: 31.79770903 | AE114: 0.8687266558 | AF114: 14.7 | AG114: 0 | AH114: 46.3300313 | AI114: 2803.366445 | AJ114: 0.3470140163 | AK114: 0.3470140163 | AO114: 93 | AP114: 2032-04-02 | AQ114: 31 | AR114: 2831 | AS114: 2323.88344 | AT114: 14.95959164 | AU114: 26.36883178 | AV114: 0.7204074679 | AW114: 14.7 | AX114: 0 | AY114: 56.74883089 | AZ114: 2308.923848 | BA114: 0.3470140163 | BB114: 0.3470140163 | BF114: 93 | BG114: 2032-04-02 | BH114: 31 | BI114: 2831 | BJ114: 2339.59652 | BK114: 6.825472945 | BL114: 26.54712625 | BM114: 0.7252785471 | BN114: 14.7 | BO114: 0 | BP114: 48.79787774 | BQ114: 2332.771047 | BR114: 0.3470140163 | BS114: 0.3470140163 | BW114: 93 | BX114: 2032-04-02 | BY114: 31 | BZ114: 2831 | CA114: 2787.412165 | CB114: 6.686339154 | CC114: 31.62843766 | CD114: 0.8641020914 | CE114: 14.7 | CF114: 0 | CG114: 53.8788789 | CH114: 2780.725826 | CI114: 0.3470140163 | CJ114: 0.3470140163 | CN114: 93 | CO114: 2032-04-02 | CP114: 31 | CQ114: 2831 | CR114: 2802.330041 | CS114: -1.036404382 | CT114: 31.79770903 | CU114: 0.8687266558 | CV114: 14.7 | CW114: 0 | CX114: 46.3300313 | CY114: 2803.366445 | CZ114: 0.3470140163 | DA114: 0.3470140163
B115: 94 | C115: 2032-05-02 | D115: 30 | E115: 2861 | F115: 2780.725826 | G115: 7.815483992 | H115: 30.52917716 | I115: 0.8342177479 | J115: 14.7 | K115: 0 | L115: 53.8788789 | M115: 2772.910342 | N115: 0.3431437488 | O115: 0.3431437488 | Q115: 53.8788789 | R115: 2861 | S115: =IFERROR((1+'Simulación Cliente'!$E$21)^(R115/360),"") -> 3.387914247 | T115: 15.9 | X115: 94 | Y115: 2032-05-02 | Z115: 30 | AA115: 2861 | AB115: 2803.366445 | AC115: 0.01127620693 | AD115: 30.77774516 | AE115: 0.8410099336 | AF115: 14.7 | AG115: 0 | AH115: 46.3300313 | AI115: 2803.355169 | AJ115: 0.3431437488 | AK115: 0.3431437488 | AO115: 94 | AP115: 2032-05-02 | AQ115: 30 | AR115: 2861 | AS115: 2308.923848 | AT115: 16.00682064 | AU115: 25.34933309 | AV115: 0.6926771544 | AW115: 14.7 | AX115: 0 | AY115: 56.74883089 | AZ115: 2292.917027 | BA115: 0.3431437488 | BB115: 0.3431437488 | BF115: 94 | BG115: 2032-05-02 | BH115: 30 | BI115: 2861 | BJ115: 2332.771047 | BK115: 7.78689847 | BL115: 25.61114796 | BM115: 0.699831314 | BN115: 14.7 | BO115: 0 | BP115: 48.79787774 | BQ115: 2324.984148 | BR115: 0.3431437488 | BS115: 0.3431437488 | BW115: 94 | BX115: 2032-05-02 | BY115: 30 | BZ115: 2861 | CA115: 2780.725826 | CB115: 7.815483992 | CC115: 30.52917716 | CD115: 0.8342177479 | CE115: 14.7 | CF115: 0 | CG115: 53.8788789 | CH115: 2772.910342 | CI115: 0.3431437488 | CJ115: 0.3431437488 | CN115: 94 | CO115: 2032-05-02 | CP115: 30 | CQ115: 2861 | CR115: 2803.366445 | CS115: 0.01127620693 | CT115: 30.77774516 | CU115: 0.8410099336 | CV115: 14.7 | CW115: 0 | CX115: 46.3300313 | CY115: 2803.355169 | CZ115: 0.3431437488 | DA115: 0.3431437488
B116: 95 | C116: 2032-06-02 | D116: 31 | E116: 2892 | F116: 2772.910342 | G116: 6.855385222 | H116: 31.46388718 | I116: 0.8596065037 | J116: 14.7 | K116: 0 | L116: 53.8788789 | M116: 2766.054957 | N116: 0.3391898143 | O116: 0.3391898143 | Q116: 53.8788789 | R116: 2892 | S116: =IFERROR((1+'Simulación Cliente'!$E$21)^(R116/360),"") -> 3.433004906 | T116: 15.69 | X116: 95 | Y116: 2032-06-02 | Z116: 31 | AA116: 2892 | AB116: 2803.355169 | AC116: -1.048354182 | AD116: 31.80934104 | AE116: 0.8690444472 | AF116: 14.7 | AG116: 0 | AH116: 46.3300313 | AI116: 2804.403523 | AJ116: 0.3391898143 | AK116: 0.3391898143 | AO116: 95 | AP116: 2032-06-02 | AQ116: 31 | AR116: 2892 | AS116: 2292.917027 | AT116: 15.32056351 | AU116: 26.01745954 | AV116: 0.7108078321 | AW116: 14.7 | AX116: 0 | AY116: 56.74883089 | AZ116: 2277.596464 | BA116: 0.3391898143 | BB116: 0.3391898143 | BF116: 95 | BG116: 2032-06-02 | BH116: 31 | BI116: 2892 | BJ116: 2324.984148 | BK116: 6.99580766 | BL116: 26.38132139 | BM116: 0.7207486893 | BN116: 14.7 | BO116: 0 | BP116: 48.79787774 | BQ116: 2317.988341 | BR116: 0.3391898143 | BS116: 0.3391898143 | BW116: 95 | BX116: 2032-06-02 | BY116: 31 | BZ116: 2892 | CA116: 2772.910342 | CB116: 6.855385222 | CC116: 31.46388718 | CD116: 0.8596065037 | CE116: 14.7 | CF116: 0 | CG116: 53.8788789 | CH116: 2766.054957 | CI116: 0.3391898143 | CJ116: 0.3391898143 | CN116: 95 | CO116: 2032-06-02 | CP116: 31 | CQ116: 2892 | CR116: 2803.355169 | CS116: -1.048354182 | CT116: 31.80934104 | CU116: 0.8690444472 | CV116: 14.7 | CW116: 0 | CX116: 46.3300313 | CY116: 2804.403523 | CZ116: 0.3391898143 | DA116: 0.3391898143
B117: 96 | C117: 2032-07-02 | D117: 30 | E117: 2922 | F117: 2766.054957 | G117: 7.980954554 | H117: 30.36810786 | I117: 0.8298164871 | J117: 14.7 | K117: 0 | L117: 53.8788789 | M117: 2758.074003 | N117: 0.3354068105 | O117: 0.3354068105 | Q117: 53.8788789 | R117: 2922 | S117: =IFERROR((1+'Simulación Cliente'!$E$21)^(R117/360),"") -> 3.477212344 | T117: 15.49 | X117: 96 | Y117: 2032-07-02 | Z117: 30 | AA117: 2922 | AB117: 2804.403523 | AC117: 46.32961046 | AD117: 30.78913109 | AE117: 0.841321057 | AF117: 14.7 | AG117: 0 | AH117: 92.66006261 | AI117: 2758.073913 | AJ117: 0.670813621 | AK117: 0.3354068105 | AO117: 96 | AP117: 2032-07-02 | AQ117: 30 | AR117: 2922 | AS117: 2277.596464 | AT117: 16.36015757 | AU117: 25.00539438 | AV117: 0.6832789391 | AW117: 14.7 | AX117: 0 | AY117: 56.74883089 | AZ117: 2261.236306 | BA117: 0.3354068105 | BB117: 0.3354068105 | BF117: 96 | BG117: 2032-07-02 | BH117: 30 | BI117: 2922 | BJ117: 2317.988341 | BK117: 56.75150816 | BL117: 25.44885081 | BM117: 0.6953965022 | BN117: 14.7 | BO117: 0 | BP117: 97.59575548 | BQ117: 2261.236832 | BR117: 0.670813621 | BS117: 0.3354068105 | BW117: 96 | BX117: 2032-07-02 | BY117: 30 | BZ117: 2922 | CA117: 2766.054957 | CB117: 7.980954554 | CC117: 30.36810786 | CD117: 0.8298164871 | CE117: 14.7 | CF117: 0 | CG117: 53.8788789 | CH117: 2758.074003 | CI117: 0.3354068105 | CJ117: 0.3354068105 | CN117: 96 | CO117: 2032-07-02 | CP117: 30 | CQ117: 2922 | CR117: 2804.403523 | CS117: 46.32961046 | CT117: 30.78913109 | CU117: 0.841321057 | CV117: 14.7 | CW117: 0 | CX117: 92.66006261 | CY117: 2758.073913 | CZ117: 0.670813621 | DA117: 0.3354068105
B118: 97 | C118: 2032-08-02 | D118: 31 | E118: 2953 | F118: 2758.074003 | G118: 7.028330711 | H118: 31.29554098 | I118: 0.8550072154 | J118: 14.7 | K118: 0 | L118: 53.8788789 | M118: 2751.045672 | N118: 0.3315420262 | O118: 0.3315420262 | Q118: 53.8788789 | R118: 2953 | S118: =IFERROR((1+'Simulación Cliente'!$E$21)^(R118/360),"") -> 3.523491496 | T118: 15.29 | X118: 97 | Y118: 2032-08-02 | Z118: 31 | AA118: 2953 | AB118: 2758.073913 | AC118: -0.5205158388 | AD118: 31.29553996 | AE118: 0.8550071875 | AF118: 14.7 | AG118: 0 | AH118: 46.3300313 | AI118: 2758.594429 | AJ118: 0.3315420262 | AK118: 0.3315420262 | AO118: 97 | AP118: 2032-08-02 | AQ118: 31 | AR118: 2953 | AS118: 2261.236306 | AT118: 15.689862 | AU118: 25.65798213 | AV118: 0.7009867595 | AW118: 14.7 | AX118: 0 | AY118: 56.74883089 | AZ118: 2245.546444 | BA118: 0.3315420262 | BB118: 0.3315420262 | BF118: 97 | BG118: 2032-08-02 | BH118: 31 | BI118: 2953 | BJ118: 2261.236832 | BK118: 7.738902714 | BL118: 25.6579881 | BM118: 0.7009869226 | BN118: 14.7 | BO118: 0 | BP118: 48.79787774 | BQ118: 2253.49793 | BR118: 0.3315420262 | BS118: 0.3315420262 | BW118: 97 | BX118: 2032-08-02 | BY118: 31 | BZ118: 2953 | CA118: 2758.074003 | CB118: 7.028330711 | CC118: 31.29554098 | CD118: 0.8550072154 | CE118: 14.7 | CF118: 0 | CG118: 53.8788789 | CH118: 2751.045672 | CI118: 0.3315420262 | CJ118: 0.3315420262 | CN118: 97 | CO118: 2032-08-02 | CP118: 31 | CQ118: 2953 | CR118: 2758.073913 | CS118: -0.5205158388 | CT118: 31.29553996 | CU118: 0.8550071875 | CV118: 14.7 | CW118: 0 | CX118: 46.3300313 | CY118: 2758.594429 | CZ118: 0.3315420262 | DA118: 0.3315420262
B119: 98 | C119: 2032-09-02 | D119: 31 | E119: 2984 | F119: 2751.045672 | G119: 7.110259145 | H119: 31.21579133 | I119: 0.852828422 | J119: 14.7 | K119: 0 | L119: 53.8788789 | M119: 2743.935413 | N119: 0.3277217746 | O119: 0.3277217746 | Q119: 53.8788789 | R119: 2984 | S119: =IFERROR((1+'Simulación Cliente'!$E$21)^(R119/360),"") -> 3.570386589 | T119: 15.09 | X119: 98 | Y119: 2032-09-02 | Z119: 31 | AA119: 2984 | AB119: 2758.594429 | AC119: -0.5265834314 | AD119: 31.30144619 | AE119: 0.8551685483 | AF119: 14.7 | AG119: 0 | AH119: 46.3300313 | AI119: 2759.121012 | AJ119: 0.3277217746 | AK119: 0.3277217746 | AO119: 98 | AP119: 2032-09-02 | AQ119: 31 | AR119: 2984 | AS119: 2245.546444 | AT119: 15.87275689 | AU119: 25.47995111 | AV119: 0.696122878 | AW119: 14.7 | AX119: 0 | AY119: 56.74883089 | AZ119: 2229.673687 | BA119: 0.3277217746 | BB119: 0.3277217746 | BF119: 98 | BG119: 2032-09-02 | BH119: 31 | BI119: 2984 | BJ119: 2253.49793 | BK119: 7.829114204 | BL119: 25.57017568 | BM119: 0.6985878508 | BN119: 14.7 | BO119: 0 | BP119: 48.79787774 | BQ119: 2245.668815 | BR119: 0.3277217746 | BS119: 0.3277217746 | BW119: 98 | BX119: 2032-09-02 | BY119: 31 | BZ119: 2984 | CA119: 2751.045672 | CB119: 7.110259145 | CC119: 31.21579133 | CD119: 0.852828422 | CE119: 14.7 | CF119: 0 | CG119: 53.8788789 | CH119: 2743.935413 | CI119: 0.3277217746 | CJ119: 0.3277217746 | CN119: 98 | CO119: 2032-09-02 | CP119: 31 | CQ119: 2984 | CR119: 2758.594429 | CS119: -0.5265834314 | CT119: 31.30144619 | CU119: 0.8551685483 | CV119: 14.7 | CW119: 0 | CX119: 46.3300313 | CY119: 2759.121012 | CZ119: 0.3277217746 | DA119: 0.3277217746
B120: 99 | C120: 2032-10-02 | D120: 30 | E120: 3014 | F120: 2743.935413 | G120: 8.23043762 | H120: 30.12526066 | I120: 0.8231806238 | J120: 14.7 | K120: 0 | L120: 53.8788789 | M120: 2735.704975 | N120: 0.3240666746 | O120: 0.3240666746 | Q120: 53.8788789 | R120: 3014 | S120: =IFERROR((1+'Simulación Cliente'!$E$21)^(R120/360),"") -> 3.616363116 | T120: 14.9 | X120: 99 | Y120: 2032-10-02 | Z120: 30 | AA120: 3014 | AB120: 2759.121012 | AC120: 0.5103138977 | AD120: 30.2919811 | AE120: 0.8277363036 | AF120: 14.7 | AG120: 0 | AH120: 46.3300313 | AI120: 2758.610698 | AJ120: 0.3240666746 | AK120: 0.3240666746 | AO120: 99 | AP120: 2032-10-02 | AQ120: 30 | AR120: 3014 | AS120: 2229.673687 | AT120: 16.90067147 | AU120: 24.47925731 | AV120: 0.6689021062 | AW120: 14.7 | AX120: 0 | AY120: 56.74883089 | AZ120: 2212.773016 | BA120: 0.3240666746 | BB120: 0.3240666746 | BF120: 99 | BG120: 2032-10-02 | BH120: 30 | BI120: 3014 | BJ120: 2245.668815 | BK120: 8.76931164 | BL120: 24.65486545 | BM120: 0.6737006446 | BN120: 14.7 | BO120: 0 | BP120: 48.79787774 | BQ120: 2236.899504 | BR120: 0.3240666746 | BS120: 0.3240666746 | BW120: 99 | BX120: 2032-10-02 | BY120: 30 | BZ120: 3014 | CA120: 2743.935413 | CB120: 8.23043762 | CC120: 30.12526066 | CD120: 0.8231806238 | CE120: 14.7 | CF120: 0 | CG120: 53.8788789 | CH120: 2735.704975 | CI120: 0.3240666746 | CJ120: 0.3240666746 | CN120: 99 | CO120: 2032-10-02 | CP120: 30 | CQ120: 3014 | CR120: 2759.121012 | CS120: 0.5103138977 | CT120: 30.2919811 | CU120: 0.8277363036 | CV120: 14.7 | CW120: 0 | CX120: 46.3300313 | CY120: 2758.610698 | CZ120: 0.3240666746 | DA120: 0.3240666746
B121: 100 | C121: 2032-11-02 | D121: 31 | E121: 3045 | F121: 2735.704975 | G121: 7.289083865 | H121: 31.04172225 | I121: 0.8480727822 | J121: 14.7 | K121: 0 | L121: 53.8788789 | M121: 2728.415891 | N121: 0.320332559 | O121: 0.320332559 | Q121: 53.8788789 | R121: 3045 | S121: =IFERROR((1+'Simulación Cliente'!$E$21)^(R121/360),"") -> 3.664494263 | T121: 14.7 | X121: 100 | Y121: 2032-11-02 | Z121: 31 | AA121: 3045 | AB121: 2758.610698 | AC121: -0.5267730835 | AD121: 31.3016308 | AE121: 0.8551735918 | AF121: 14.7 | AG121: 0 | AH121: 46.3300313 | AI121: 2759.137471 | AJ121: 0.320332559 | AK121: 0.320332559 | AO121: 100 | AP121: 2032-11-02 | AQ121: 31 | AR121: 3045 | AS121: 2212.773016 | AT121: 16.25479294 | AU121: 25.10807488 | AV121: 0.6859630644 | AW121: 14.7 | AX121: 0 | AY121: 56.74883089 | AZ121: 2196.518223 | BA121: 0.320332559 | BB121: 0.320332559 | BF121: 100 | BG121: 2032-11-02 | BH121: 31 | BI121: 3045 | BJ121: 2236.899504 | BK121: 8.022600126 | BL121: 25.3818353 | BM121: 0.6934423131 | BN121: 14.7 | BO121: 0 | BP121: 48.79787774 | BQ121: 2228.876904 | BR121: 0.320332559 | BS121: 0.320332559 | BW121: 100 | BX121: 2032-11-02 | BY121: 31 | BZ121: 3045 | CA121: 2735.704975 | CB121: 7.289083865 | CC121: 31.04172225 | CD121: 0.8480727822 | CE121: 14.7 | CF121: 0 | CG121: 53.8788789 | CH121: 2728.415891 | CI121: 0.320332559 | CJ121: 0.320332559 | CN121: 100 | CO121: 2032-11-02 | CP121: 31 | CQ121: 3045 | CR121: 2758.610698 | CS121: -0.5267730835 | CT121: 31.3016308 | CU121: 0.8551735918 | CV121: 14.7 | CW121: 0 | CX121: 46.3300313 | CY121: 2759.137471 | CZ121: 0.320332559 | DA121: 0.320332559
B122: 101 | C122: 2032-12-02 | D122: 30 | E122: 3075 | F122: 2728.415891 | G122: 8.405480006 | H122: 29.95487413 | I122: 0.8185247674 | J122: 14.7 | K122: 0 | L122: 53.8788789 | M122: 2720.010411 | N122: 0.3167598713 | O122: 0.3167598713 | Q122: 53.8788789 | R122: 3075 | S122: =IFERROR((1+'Simulación Cliente'!$E$21)^(R122/360),"") -> 3.711682632 | T122: 14.52 | X122: 101 | Y122: 2032-12-02 | Z122: 30 | AA122: 3075 | AB122: 2759.137471 | AC122: 46.84015956 | AD122: 30.29216181 | AE122: 0.8277412414 | AF122: 14.7 | AG122: 0 | AH122: 92.66006261 | AI122: 2712.297312 | AJ122: 0.6335197426 | AK122: 0.3167598713 | AO122: 101 | AP122: 2032-12-02 | AQ122: 30 | AR122: 3075 | AS122: 2196.518223 | AT122: 17.27462705 | AU122: 24.11524838 | AV122: 0.6589554669 | AW122: 14.7 | AX122: 0 | AY122: 56.74883089 | AZ122: 2179.243596 | BA122: 0.3167598713 | BB122: 0.3167598713 | BF122: 101 | BG122: 2032-12-02 | BH122: 30 | BI122: 3075 | BJ122: 2228.876904 | BK122: 57.75658287 | BL122: 24.47050954 | BM122: 0.6686630711 | BN122: 14.7 | BO122: 0 | BP122: 97.59575548 | BQ122: 2171.120321 | BR122: 0.6335197426 | BS122: 0.3167598713 | BW122: 101 | BX122: 2032-12-02 | BY122: 30 | BZ122: 3075 | CA122: 2728.415891 | CB122: 8.405480006 | CC122: 29.95487413 | CD122: 0.8185247674 | CE122: 14.7 | CF122: 0 | CG122: 53.8788789 | CH122: 2720.010411 | CI122: 0.3167598713 | CJ122: 0.3167598713 | CN122: 101 | CO122: 2032-12-02 | CP122: 30 | CQ122: 3075 | CR122: 2759.137471 | CS122: 46.84015956 | CT122: 30.29216181 | CU122: 0.8277412414 | CV122: 14.7 | CW122: 0 | CX122: 92.66006261 | CY122: 2712.297312 | CZ122: 0.6335197426 | DA122: 0.3167598713
B123: 102 | C123: 2033-01-02 | D123: 31 | E123: 3106 | F123: 2720.010411 | G123: 7.472033572 | H123: 30.86363789 | I123: 0.8432074431 | J123: 14.7 | K123: 0 | L123: 53.8788789 | M123: 2712.538378 | N123: 0.3131099497 | O123: 0.3131099497 | Q123: 53.8788789 | R123: 3106 | S123: =IFERROR((1+'Simulación Cliente'!$E$21)^(R123/360),"") -> 3.761082412 | T123: 14.33 | X123: 102 | Y123: 2033-01-02 | Z123: 31 | AA123: 3106 | AB123: 2712.297312 | AC123: 0.01309668159 | AD123: 30.77611825 | AE123: 0.8408163703 | AF123: 14.7 | AG123: 0 | AH123: 46.3300313 | AI123: 2712.284215 | AJ123: 0.3131099497 | AK123: 0.3131099497 | AO123: 102 | AP123: 2033-01-02 | AQ123: 31 | AR123: 3106 | AS123: 2179.243596 | AT123: 16.64564149 | AU123: 24.7276205 | AV123: 0.6755688922 | AW123: 14.7 | AX123: 0 | AY123: 56.74883089 | AZ123: 2162.597954 | BA123: 0.3131099497 | BB123: 0.3131099497 | BF123: 102 | BG123: 2033-01-02 | BH123: 31 | BI123: 3106 | BJ123: 2171.120321 | BK123: 8.789380419 | BL123: 24.63544666 | BM123: 0.6730506644 | BN123: 14.7 | BO123: 0 | BP123: 48.79787774 | BQ123: 2162.33094 | BR123: 0.3131099497 | BS123: 0.3131099497 | BW123: 102 | BX123: 2033-01-02 | BY123: 31 | BZ123: 3106 | CA123: 2720.010411 | CB123: 7.472033572 | CC123: 30.86363789 | CD123: 0.8432074431 | CE123: 14.7 | CF123: 0 | CG123: 53.8788789 | CH123: 2712.538378 | CI123: 0.3131099497 | CJ123: 0.3131099497 | CN123: 102 | CO123: 2033-01-02 | CP123: 31 | CQ123: 3106 | CR123: 2712.297312 | CS123: 0.01309668159 | CT123: 30.77611825 | CU123: 0.8408163703 | CV123: 14.7 | CW123: 0 | CX123: 46.3300313 | CY123: 2712.284215 | CZ123: 0.3131099497 | DA123: 0.3131099497
B124: 103 | C124: 2033-02-02 | D124: 31 | E124: 3137 | F124: 2712.538378 | G124: 7.5591342 | H124: 30.7788536 | I124: 0.8408911011 | J124: 14.7 | K124: 0 | L124: 53.8788789 | M124: 2704.979243 | N124: 0.3095020849 | O124: 0.3095020849 | Q124: 53.8788789 | R124: 3137 | S124: =IFERROR((1+'Simulación Cliente'!$E$21)^(R124/360),"") -> 3.811139666 | T124: 14.14 | X124: 103 | Y124: 2033-02-02 | Z124: 31 | AA124: 3137 | AB124: 2712.284215 | AC124: 0.01324934808 | AD124: 30.77596965 | AE124: 0.8408123103 | AF124: 14.7 | AG124: 0 | AH124: 46.3300313 | AI124: 2712.270966 | AJ124: 0.3095020849 | AK124: 0.3095020849 | AO124: 103 | AP124: 2033-02-02 | AQ124: 31 | AR124: 3137 | AS124: 2162.597954 | AT124: 16.8396778 | AU124: 24.53874437 | AV124: 0.6704087176 | AW124: 14.7 | AX124: 0 | AY124: 56.74883089 | AZ124: 2145.758277 | BA124: 0.3095020849 | BB124: 0.3095020849 | BF124: 103 | BG124: 2033-02-02 | BH124: 31 | BI124: 3137 | BJ124: 2162.33094 | BK124: 8.891837205 | BL124: 24.53571459 | BM124: 0.6703259428 | BN124: 14.7 | BO124: 0 | BP124: 48.79787774 | BQ124: 2153.439103 | BR124: 0.3095020849 | BS124: 0.3095020849 | BW124: 103 | BX124: 2033-02-02 | BY124: 31 | BZ124: 3137 | CA124: 2712.538378 | CB124: 7.5591342 | CC124: 30.7788536 | CD124: 0.8408911011 | CE124: 14.7 | CF124: 0 | CG124: 53.8788789 | CH124: 2704.979243 | CI124: 0.3095020849 | CJ124: 0.3095020849 | CN124: 103 | CO124: 2033-02-02 | CP124: 31 | CQ124: 3137 | CR124: 2712.284215 | CS124: 0.01324934808 | CT124: 30.77596965 | CU124: 0.8408123103 | CV124: 14.7 | CW124: 0 | CX124: 46.3300313 | CY124: 2712.270966 | CZ124: 0.3095020849 | DA124: 0.3095020849
B125: 104 | C125: 2033-03-02 | D125: 28 | E125: 3165 | F125: 2704.979243 | G125: 10.71386767 | H125: 27.70762461 | I125: 0.757386615 | J125: 14.7 | K125: 0 | L125: 53.8788789 | M125: 2694.265376 | N125: 0.3062791139 | O125: 0.3062791139 | Q125: 53.8788789 | R125: 3165 | S125: =IFERROR((1+'Simulación Cliente'!$E$21)^(R125/360),"") -> 3.85692506 | T125: 13.97 | X125: 104 | Y125: 2033-03-02 | Z125: 28 | AA125: 3165 | AB125: 2712.270966 | AC125: 3.088287899 | AD125: 27.78231513 | AE125: 0.7594282768 | AF125: 14.7 | AG125: 0 | AH125: 46.3300313 | AI125: 2709.182678 | AJ125: 0.3062791139 | AK125: 0.3062791139 | AO125: 104 | AP125: 2033-03-02 | AQ125: 28 | AR125: 3165 | AS125: 2145.758277 | AT125: 19.46860829 | AU125: 21.97941628 | AV125: 0.60080631 | AW125: 14.7 | AX125: 0 | AY125: 56.74883089 | AZ125: 2126.289668 | BA125: 0.3062791139 | BB125: 0.3062791139 | BF125: 104 | BG125: 2033-03-02 | BH125: 28 | BI125: 3165 | BJ125: 2153.439103 | BK125: 11.43682834 | BL125: 22.05809248 | BM125: 0.6029569199 | BN125: 14.7 | BO125: 0 | BP125: 48.79787774 | BQ125: 2142.002275 | BR125: 0.3062791139 | BS125: 0.3062791139 | BW125: 104 | BX125: 2033-03-02 | BY125: 28 | BZ125: 3165 | CA125: 2704.979243 | CB125: 10.71386767 | CC125: 27.70762461 | CD125: 0.757386615 | CE125: 14.7 | CF125: 0 | CG125: 53.8788789 | CH125: 2694.265376 | CI125: 0.3062791139 | CJ125: 0.3062791139 | CN125: 104 | CO125: 2033-03-02 | CP125: 28 | CQ125: 3165 | CR125: 2712.270966 | CS125: 3.088287899 | CT125: 27.78231513 | CU125: 0.7594282768 | CV125: 14.7 | CW125: 0 | CX125: 46.3300313 | CY125: 2709.182678 | CZ125: 0.3062791139 | DA125: 0.3062791139
B126: 105 | C126: 2033-04-02 | D126: 31 | E126: 3196 | F126: 2694.265376 | G126: 7.772140459 | H126: 30.571512 | I126: 0.8352264422 | J126: 14.7 | K126: 0 | L126: 53.8788789 | M126: 2686.493235 | N126: 0.3027499587 | O126: 0.3027499587 | Q126: 53.8788789 | R126: 3196 | S126: =IFERROR((1+'Simulación Cliente'!$E$21)^(R126/360),"") -> 3.90825791 | T126: 13.79 | X126: 105 | Y126: 2033-04-02 | Z126: 31 | AA126: 3196 | AB126: 2709.182678 | AC126: 0.0494036074 | AD126: 30.74077687 | AE126: 0.8398508289 | AF126: 14.7 | AG126: 0 | AH126: 46.3300313 | AI126: 2709.133274 | AJ126: 0.3027499587 | AK126: 0.3027499587 | AO126: 105 | AP126: 2033-04-02 | AQ126: 31 | AR126: 3196 | AS126: 2126.289668 | AT126: 17.26291928 | AU126: 24.12675852 | AV126: 0.6591530926 | AW126: 14.7 | AX126: 0 | AY126: 56.74883089 | AZ126: 2109.026749 | BA126: 0.3027499587 | BB126: 0.3027499587 | BF126: 105 | BG126: 2033-04-02 | BH126: 31 | BI126: 3196 | BJ126: 2142.002275 | BK126: 9.128806098 | BL126: 24.30504762 | BM126: 0.664024025 | BN126: 14.7 | BO126: 0 | BP126: 48.79787774 | BQ126: 2132.873469 | BR126: 0.3027499587 | BS126: 0.3027499587 | BW126: 105 | BX126: 2033-04-02 | BY126: 31 | BZ126: 3196 | CA126: 2694.265376 | CB126: 7.772140459 | CC126: 30.571512 | CD126: 0.8352264422 | CE126: 14.7 | CF126: 0 | CG126: 53.8788789 | CH126: 2686.493235 | CI126: 0.3027499587 | CJ126: 0.3027499587 | CN126: 105 | CO126: 2033-04-02 | CP126: 31 | CQ126: 3196 | CR126: 2709.182678 | CS126: 0.0494036074 | CT126: 30.74077687 | CU126: 0.8398508289 | CV126: 14.7 | CW126: 0 | CX126: 46.3300313 | CY126: 2709.133274 | CZ126: 0.3027499587 | DA126: 0.3027499587
B127: 106 | C127: 2033-05-02 | D127: 30 | E127: 3226 | F127: 2686.493235 | G127: 8.878319435 | H127: 29.4946115 | I127: 0.8059479706 | J127: 14.7 | K127: 0 | L127: 53.8788789 | M127: 2677.614916 | N127: 0.2993733707 | O127: 0.2993733707 | Q127: 53.8788789 | R127: 3226 | S127: =IFERROR((1+'Simulación Cliente'!$E$21)^(R127/360),"") -> 3.958585269 | T127: 13.61 | X127: 106 | Y127: 2033-05-02 | Z127: 30 | AA127: 3226 | AB127: 2709.133274 | AC127: 1.074118193 | AD127: 29.74317313 | AE127: 0.8127399822 | AF127: 14.7 | AG127: 0 | AH127: 46.3300313 | AI127: 2708.059156 | AJ127: 0.2993733707 | AK127: 0.2993733707 | AO127: 106 | AP127: 2033-05-02 | AQ127: 30 | AR127: 3226 | AS127: 2109.026749 | AT127: 18.26143043 | AU127: 23.15469244 | AV127: 0.6327080247 | AW127: 14.7 | AX127: 0 | AY127: 56.74883089 | AZ127: 2090.765319 | BA127: 0.2993733707 | BB127: 0.2993733707 | BF127: 106 | BG127: 2033-05-02 | BH127: 30 | BI127: 3226 | BJ127: 2132.873469 | BK127: 10.04151366 | BL127: 23.41650204 | BM127: 0.6398620406 | BN127: 14.7 | BO127: 0 | BP127: 48.79787774 | BQ127: 2122.831955 | BR127: 0.2993733707 | BS127: 0.2993733707 | BW127: 106 | BX127: 2033-05-02 | BY127: 30 | BZ127: 3226 | CA127: 2686.493235 | CB127: 8.878319435 | CC127: 29.4946115 | CD127: 0.8059479706 | CE127: 14.7 | CF127: 0 | CG127: 53.8788789 | CH127: 2677.614916 | CI127: 0.2993733707 | CJ127: 0.2993733707 | CN127: 106 | CO127: 2033-05-02 | CP127: 30 | CQ127: 3226 | CR127: 2709.133274 | CS127: 1.074118193 | CT127: 29.74317313 | CU127: 0.8127399822 | CV127: 14.7 | CW127: 0 | CX127: 46.3300313 | CY127: 2708.059156 | CZ127: 0.2993733707 | DA127: 0.2993733707
B128: 107 | C128: 2033-06-02 | D128: 31 | E128: 3257 | F128: 2677.614916 | G128: 7.966232936 | H128: 30.38258119 | I128: 0.8300647738 | J128: 14.7 | K128: 0 | L128: 53.8788789 | M128: 2669.648683 | N128: 0.2959237881 | O128: 0.2959237881 | Q128: 53.8788789 | R128: 3257 | S128: =IFERROR((1+'Simulación Cliente'!$E$21)^(R128/360),"") -> 4.011271142 | T128: 13.43 | X128: 107 | Y128: 2033-06-02 | Z128: 31 | AA128: 3257 | AB128: 2708.059156 | AC128: 0.06250037049 | AD128: 30.7280284 | AE128: 0.8395025354 | AF128: 14.7 | AG128: 0 | AH128: 46.3300313 | AI128: 2707.996656 | AJ128: 0.2959237881 | AK128: 0.2959237881 | AO128: 107 | AP128: 2033-06-02 | AQ128: 31 | AR128: 3257 | AS128: 2090.765319 | AT128: 17.67702249 | AU128: 23.72366791 | AV128: 0.6481404891 | AW128: 14.7 | AX128: 0 | AY128: 56.74883089 | AZ128: 2073.088296 | BA128: 0.2959237881 | BB128: 0.2959237881 | BF128: 107 | BG128: 2033-06-02 | BH128: 31 | BI128: 3257 | BJ128: 2122.831955 | BK128: 9.352272288 | BL128: 24.08752426 | BM128: 0.6580811962 | BN128: 14.7 | BO128: 0 | BP128: 48.79787774 | BQ128: 2113.479683 | BR128: 0.2959237881 | BS128: 0.2959237881 | BW128: 107 | BX128: 2033-06-02 | BY128: 31 | BZ128: 3257 | CA128: 2677.614916 | CB128: 7.966232936 | CC128: 30.38258119 | CD128: 0.8300647738 | CE128: 14.7 | CF128: 0 | CG128: 53.8788789 | CH128: 2669.648683 | CI128: 0.2959237881 | CJ128: 0.2959237881 | CN128: 107 | CO128: 2033-06-02 | CP128: 31 | CQ128: 3257 | CR128: 2708.059156 | CS128: 0.06250037049 | CT128: 30.7280284 | CU128: 0.8395025354 | CV128: 14.7 | CW128: 0 | CX128: 46.3300313 | CY128: 2707.996656 | CZ128: 0.2959237881 | DA128: 0.2959237881
B129: 108 | C129: 2033-07-02 | D129: 30 | E129: 3287 | F129: 2669.648683 | G129: 9.068306647 | H129: 29.30967765 | I129: 0.8008946049 | J129: 14.7 | K129: 0 | L129: 53.8788789 | M129: 2660.580376 | N129: 0.2926233329 | O129: 0.2926233329 | Q129: 53.8788789 | R129: 3287 | S129: =IFERROR((1+'Simulación Cliente'!$E$21)^(R129/360),"") -> 4.062925021 | T129: 13.26 | X129: 108 | Y129: 2033-07-02 | Z129: 30 | AA129: 3287 | AB129: 2707.996656 | AC129: 47.41696925 | AD129: 29.73069436 | AE129: 0.8123989967 | AF129: 14.7 | AG129: 0 | AH129: 92.66006261 | AI129: 2660.579686 | AJ129: 0.5852466658 | AK129: 0.2926233329 | AO129: 108 | AP129: 2033-07-02 | AQ129: 30 | AR129: 3287 | AS129: 2073.088296 | AT129: 18.66677492 | AU129: 22.76012948 | AV129: 0.6219264888 | AW129: 14.7 | AX129: 0 | AY129: 56.74883089 | AZ129: 2054.421521 | BA129: 0.2926233329 | BB129: 0.2926233329 | BF129: 108 | BG129: 2033-07-02 | BH129: 30 | BI129: 3287 | BJ129: 2113.479683 | BK129: 59.05813104 | BL129: 23.20358054 | BM129: 0.6340439049 | BN129: 14.7 | BO129: 0 | BP129: 97.59575548 | BQ129: 2054.421552 | BR129: 0.5852466658 | BS129: 0.2926233329 | BW129: 108 | BX129: 2033-07-02 | BY129: 30 | BZ129: 3287 | CA129: 2669.648683 | CB129: 9.068306647 | CC129: 29.30967765 | CD129: 0.8008946049 | CE129: 14.7 | CF129: 0 | CG129: 53.8788789 | CH129: 2660.580376 | CI129: 0.2926233329 | CJ129: 0.2926233329 | CN129: 108 | CO129: 2033-07-02 | CP129: 30 | CQ129: 3287 | CR129: 2707.996656 | CS129: 47.41696925 | CT129: 29.73069436 | CU129: 0.8123989967 | CV129: 14.7 | CW129: 0 | CX129: 92.66006261 | CY129: 2660.579686 | CZ129: 0.5852466658 | DA129: 0.2926233329
B130: 109 | C130: 2033-08-02 | D130: 31 | E130: 3318 | F130: 2660.580376 | G130: 8.164802584 | H130: 30.18929228 | I130: 0.8247840402 | J130: 14.7 | K130: 0 | L130: 53.8788789 | M130: 2652.415574 | N130: 0.2892515288 | O130: 0.2892515288 | Q130: 53.8788789 | R130: 3318 | S130: =IFERROR((1+'Simulación Cliente'!$E$21)^(R130/360),"") -> 4.11699958 | T130: 13.09 | X130: 109 | Y130: 2033-08-02 | Z130: 31 | AA130: 3318 | AB130: 2660.579686 | AC130: 0.6159630313 | AD130: 30.18928445 | AE130: 0.8247838262 | AF130: 14.7 | AG130: 0 | AH130: 46.3300313 | AI130: 2659.963723 | AJ130: 0.2892515288 | AK130: 0.2892515288 | AO130: 109 | AP130: 2033-08-02 | AQ130: 31 | AR130: 3318 | AS130: 2054.421521 | AT130: 18.10067792 | AU130: 23.31127912 | AV130: 0.6368738556 | AW130: 14.7 | AX130: 0 | AY130: 56.74883089 | AZ130: 2036.320843 | BA130: 0.2892515288 | BB130: 0.2892515288 | BF130: 109 | BG130: 2033-08-02 | BH130: 31 | BI130: 3318 | BJ130: 2054.421552 | BK130: 10.14972441 | BL130: 23.31127946 | BM130: 0.6368738651 | BN130: 14.7 | BO130: 0 | BP130: 48.79787774 | BQ130: 2044.271827 | BR130: 0.2892515288 | BS130: 0.2892515288 | BW130: 109 | BX130: 2033-08-02 | BY130: 31 | BZ130: 3318 | CA130: 2660.580376 | CB130: 8.164802584 | CC130: 30.18929228 | CD130: 0.8247840402 | CE130: 14.7 | CF130: 0 | CG130: 53.8788789 | CH130: 2652.415574 | CI130: 0.2892515288 | CJ130: 0.2892515288 | CN130: 109 | CO130: 2033-08-02 | CP130: 31 | CQ130: 3318 | CR130: 2660.579686 | CS130: 0.6159630313 | CT130: 30.18928445 | CU130: 0.8247838262 | CV130: 14.7 | CW130: 0 | CX130: 46.3300313 | CY130: 2659.963723 | CZ130: 0.2892515288 | DA130: 0.2892515288
B131: 110 | C131: 2033-09-02 | D131: 31 | E131: 3349 | F131: 2652.415574 | G131: 8.259978739 | H131: 30.09664722 | I131: 0.8222529387 | J131: 14.7 | K131: 0 | L131: 53.8788789 | M131: 2644.155595 | N131: 0.2859185769 | O131: 0.2859185769 | Q131: 53.8788789 | R131: 3349 | S131: =IFERROR((1+'Simulación Cliente'!$E$21)^(R131/360),"") -> 4.171793831 | T131: 12.92 | X131: 110 | Y131: 2033-09-02 | Z131: 31 | AA131: 3349 | AB131: 2659.963723 | AC131: 0.6231432408 | AD131: 30.18229519 | AE131: 0.8245928767 | AF131: 14.7 | AG131: 0 | AH131: 46.3300313 | AI131: 2659.34058 | AJ131: 0.2859185769 | AK131: 0.2859185769 | AO131: 110 | AP131: 2033-09-02 | AQ131: 31 | AR131: 3349 | AS131: 2036.320843 | AT131: 18.31167542 | AU131: 23.10589285 | AV131: 0.6312626174 | AW131: 14.7 | AX131: 0 | AY131: 56.74883089 | AZ131: 2018.009168 | BA131: 0.2859185769 | BB131: 0.2859185769 | BF131: 110 | BG131: 2033-09-02 | BH131: 31 | BI131: 3349 | BJ131: 2044.271827 | BK131: 10.26803857 | BL131: 23.19611174 | BM131: 0.6337274348 | BN131: 14.7 | BO131: 0 | BP131: 48.79787774 | BQ131: 2034.003789 | BR131: 0.2859185769 | BS131: 0.2859185769 | BW131: 110 | BX131: 2033-09-02 | BY131: 31 | BZ131: 3349 | CA131: 2652.415574 | CB131: 8.259978739 | CC131: 30.09664722 | CD131: 0.8222529387 | CE131: 14.7 | CF131: 0 | CG131: 53.8788789 | CH131: 2644.155595 | CI131: 0.2859185769 | CJ131: 0.2859185769 | CN131: 110 | CO131: 2033-09-02 | CP131: 31 | CQ131: 3349 | CR131: 2659.963723 | CS131: 0.6231432408 | CT131: 30.18229519 | CU131: 0.8245928767 | CV131: 14.7 | CW131: 0 | CX131: 46.3300313 | CY131: 2659.34058 | CZ131: 0.2859185769 | DA131: 0.2859185769
B132: 111 | C132: 2033-10-02 | D132: 30 | E132: 3379 | F132: 2644.155595 | G132: 9.355839412 | H132: 29.02979281 | I132: 0.7932466785 | J132: 14.7 | K132: 0 | L132: 53.8788789 | M132: 2634.799756 | N132: 0.2827297103 | O132: 0.2827297103 | Q132: 53.8788789 | R132: 3379 | S132: =IFERROR((1+'Simulación Cliente'!$E$21)^(R132/360),"") -> 4.225514791 | T132: 12.75 | X132: 111 | Y132: 2033-10-02 | Z132: 30 | AA132: 3379 | AB132: 2659.34058 | AC132: 1.635722618 | AD132: 29.19650651 | AE132: 0.797802174 | AF132: 14.7 | AG132: 0 | AH132: 46.3300313 | AI132: 2657.704857 | AJ132: 0.2827297103 | AK132: 0.2827297103 | AO132: 111 | AP132: 2033-10-02 | AQ132: 30 | AR132: 3379 | AS132: 2018.009168 | AT132: 19.28800425 | AU132: 22.15542389 | AV132: 0.6054027503 | AW132: 14.7 | AX132: 0 | AY132: 56.74883089 | AZ132: 1998.721164 | BA132: 0.2827297103 | BB132: 0.2827297103 | BF132: 111 | BG132: 2033-10-02 | BH132: 30 | BI132: 3379 | BJ132: 2034.003789 | BK132: 11.15665014 | BL132: 22.33102646 | BM132: 0.6102011367 | BN132: 14.7 | BO132: 0 | BP132: 48.79787774 | BQ132: 2022.847139 | BR132: 0.2827297103 | BS132: 0.2827297103 | BW132: 111 | BX132: 2033-10-02 | BY132: 30 | BZ132: 3379 | CA132: 2644.155595 | CB132: 9.355839412 | CC132: 29.02979281 | CD132: 0.7932466785 | CE132: 14.7 | CF132: 0 | CG132: 53.8788789 | CH132: 2634.799756 | CI132: 0.2827297103 | CJ132: 0.2827297103 | CN132: 111 | CO132: 2033-10-02 | CP132: 30 | CQ132: 3379 | CR132: 2659.34058 | CS132: 1.635722618 | CT132: 29.19650651 | CU132: 0.797802174 | CV132: 14.7 | CW132: 0 | CX132: 46.3300313 | CY132: 2657.704857 | CZ132: 0.2827297103 | DA132: 0.2827297103
B133: 112 | C133: 2033-11-02 | D133: 31 | E133: 3410 | F133: 2634.799756 | G133: 8.465324285 | H133: 29.89676261 | I133: 0.8167920078 | J133: 14.7 | K133: 0 | L133: 53.8788789 | M133: 2626.334431 | N133: 0.2794719073 | O133: 0.2794719073 | Q133: 53.8788789 | R133: 3410 | S133: =IFERROR((1+'Simulación Cliente'!$E$21)^(R133/360),"") -> 4.2817533 | T133: 12.58 | X133: 112 | Y133: 2033-11-02 | Z133: 31 | AA133: 3410 | AB133: 2657.704857 | AC133: 0.6494745776 | AD133: 30.1566641 | AE133: 0.8238926248 | AF133: 14.7 | AG133: 0 | AH133: 46.3300313 | AI133: 2657.055383 | AJ133: 0.2794719073 | AK133: 0.2794719073 | AO133: 112 | AP133: 2033-11-02 | AQ133: 31 | AR133: 3410 | AS133: 1998.721164 | AT133: 18.74997051 | AU133: 22.67925372 | AV133: 0.6196066584 | AW133: 14.7 | AX133: 0 | AY133: 56.74883089 | AZ133: 1979.971193 | BA133: 0.2794719073 | BB133: 0.2794719073 | BF133: 112 | BG133: 2033-11-02 | BH133: 31 | BI133: 3410 | BJ133: 2022.847139 | BK133: 10.51778368 | BL133: 22.95300832 | BM133: 0.6270857481 | BN133: 14.7 | BO133: 0 | BP133: 48.79787774 | BQ133: 2012.329355 | BR133: 0.2794719073 | BS133: 0.2794719073 | BW133: 112 | BX133: 2033-11-02 | BY133: 31 | BZ133: 3410 | CA133: 2634.799756 | CB133: 8.465324285 | CC133: 29.89676261 | CD133: 0.8167920078 | CE133: 14.7 | CF133: 0 | CG133: 53.8788789 | CH133: 2626.334431 | CI133: 0.2794719073 | CJ133: 0.2794719073 | CN133: 112 | CO133: 2033-11-02 | CP133: 31 | CQ133: 3410 | CR133: 2657.704857 | CS133: 0.6494745776 | CT133: 30.1566641 | CU133: 0.8238926248 | CV133: 14.7 | CW133: 0 | CX133: 46.3300313 | CY133: 2657.055383 | CZ133: 0.2794719073 | DA133: 0.2794719073
B134: 113 | C134: 2033-12-02 | D134: 30 | E134: 3440 | F134: 2626.334431 | G134: 9.556841679 | H134: 28.83413689 | I134: 0.7879003294 | J134: 14.7 | K134: 0 | L134: 53.8788789 | M134: 2616.77759 | N134: 0.2763549408 | O134: 0.2763549408 | Q134: 53.8788789 | R134: 3440 | S134: =IFERROR((1+'Simulación Cliente'!$E$21)^(R134/360),"") -> 4.336890228 | T134: 12.42 | X134: 113 | Y134: 2033-12-02 | Z134: 30 | AA134: 3440 | AB134: 2657.055383 | AC134: 47.99152832 | AD134: 29.17141767 | AE134: 0.7971166148 | AF134: 14.7 | AG134: 0 | AH134: 92.66006261 | AI134: 2609.063854 | AJ134: 0.5527098816 | AK134: 0.2763549408 | AO134: 113 | AP134: 2033-12-02 | AQ134: 30 | AR134: 3440 | AS134: 1979.971193 | AT134: 19.71702894 | AU134: 21.73781059 | AV134: 0.5939913579 | AW134: 14.7 | AX134: 0 | AY134: 56.74883089 | AZ134: 1960.254164 | BA134: 0.2763549408 | BB134: 0.2763549408 | BF134: 113 | BG134: 2033-12-02 | BH134: 30 | BI134: 3440 | BJ134: 2012.329355 | BK134: 60.19899061 | BL134: 22.09306606 | BM134: 0.6036988065 | BN134: 14.7 | BO134: 0 | BP134: 97.59575548 | BQ134: 1952.130364 | BR134: 0.5527098816 | BS134: 0.2763549408 | BW134: 113 | BX134: 2033-12-02 | BY134: 30 | BZ134: 3440 | CA134: 2626.334431 | CB134: 9.556841679 | CC134: 28.83413689 | CD134: 0.7879003294 | CE134: 14.7 | CF134: 0 | CG134: 53.8788789 | CH134: 2616.77759 | CI134: 0.2763549408 | CJ134: 0.2763549408 | CN134: 113 | CO134: 2033-12-02 | CP134: 30 | CQ134: 3440 | CR134: 2657.055383 | CS134: 47.99152832 | CT134: 29.17141767 | CU134: 0.7971166148 | CV134: 14.7 | CW134: 0 | CX134: 92.66006261 | CY134: 2609.063854 | CZ134: 0.5527098816 | DA134: 0.2763549408
B135: 114 | C135: 2034-01-02 | D135: 31 | E135: 3471 | F135: 2616.77759 | G135: 8.675406579 | H135: 29.69226721 | I135: 0.8112051084 | J135: 14.7 | K135: 0 | L135: 53.8788789 | M135: 2608.102183 | N135: 0.2731705921 | O135: 0.2731705921 | Q135: 53.8788789 | R135: 3471 | S135: =IFERROR((1+'Simulación Cliente'!$E$21)^(R135/360),"") -> 4.394611063 | T135: 12.26 | X135: 114 | Y135: 2034-01-02 | Z135: 31 | AA135: 3471 | AB135: 2609.063854 | AC135: 1.216477097 | AD135: 29.60474037 | AE135: 0.8088138385 | AF135: 14.7 | AG135: 0 | AH135: 46.3300313 | AI135: 2607.847377 | AJ135: 0.2731705921 | AK135: 0.2731705921 | AO135: 114 | AP135: 2034-01-02 | AQ135: 31 | AR135: 3471 | AS135: 1960.254164 | AT135: 19.19837586 | AU135: 22.2427732 | AV135: 0.607681829 | AW135: 14.7 | AX135: 0 | AY135: 56.74883089 | AZ135: 1941.055788 | BA135: 0.2731705921 | BB135: 0.2731705921 | BF135: 114 | BG135: 2034-01-02 | BH135: 31 | BI135: 3471 | BJ135: 1952.130364 | BK135: 11.3421209 | BL135: 22.1505934 | BM135: 0.6051634385 | BN135: 14.7 | BO135: 0 | BP135: 48.79787774 | BQ135: 1940.788244 | BR135: 0.2731705921 | BS135: 0.2731705921 | BW135: 114 | BX135: 2034-01-02 | BY135: 31 | BZ135: 3471 | CA135: 2616.77759 | CB135: 8.675406579 | CC135: 29.69226721 | CD135: 0.8112051084 | CE135: 14.7 | CF135: 0 | CG135: 53.8788789 | CH135: 2608.102183 | CI135: 0.2731705921 | CJ135: 0.2731705921 | CN135: 114 | CO135: 2034-01-02 | CP135: 31 | CQ135: 3471 | CR135: 2609.063854 | CS135: 1.216477097 | CT135: 29.60474037 | CU135: 0.8088138385 | CV135: 14.7 | CW135: 0 | CX135: 46.3300313 | CY135: 2607.847377 | CZ135: 0.2731705921 | DA135: 0.2731705921
B136: 115 | C136: 2034-02-02 | D136: 31 | E136: 3502 | F136: 2608.102183 | G136: 8.776534786 | H136: 29.5938284 | I136: 0.8085157189 | J136: 14.7 | K136: 0 | L136: 53.8788789 | M136: 2599.325648 | N136: 0.2700229357 | O136: 0.2700229357 | Q136: 53.8788789 | R136: 3502 | S136: =IFERROR((1+'Simulación Cliente'!$E$21)^(R136/360),"") -> 4.45310012 | T136: 12.1 | X136: 115 | Y136: 2034-02-02 | Z136: 31 | AA136: 3502 | AB136: 2607.847377 | AC136: 1.230657429 | AD136: 29.59093715 | AE136: 0.8084367288 | AF136: 14.7 | AG136: 0 | AH136: 46.3300313 | AI136: 2606.61672 | AJ136: 0.2700229357 | AK136: 0.2700229357 | AO136: 115 | AP136: 2034-02-02 | AQ136: 31 | AR136: 3502 | AS136: 1941.055788 | AT136: 19.42216909 | AU136: 22.02493149 | AV136: 0.6017303027 | AW136: 14.7 | AX136: 0 | AY136: 56.74883089 | AZ136: 1921.633619 | BA136: 0.2700229357 | BB136: 0.2700229357 | BF136: 115 | BG136: 2034-02-02 | BH136: 31 | BI136: 3502 | BJ136: 1940.788244 | BK136: 11.47433468 | BL136: 22.02189569 | BM136: 0.6016473634 | BN136: 14.7 | BO136: 0 | BP136: 48.79787774 | BQ136: 1929.313909 | BR136: 0.2700229357 | BS136: 0.2700229357 | BW136: 115 | BX136: 2034-02-02 | BY136: 31 | BZ136: 3502 | CA136: 2608.102183 | CB136: 8.776534786 | CC136: 29.5938284 | CD136: 0.8085157189 | CE136: 14.7 | CF136: 0 | CG136: 53.8788789 | CH136: 2599.325648 | CI136: 0.2700229357 | CJ136: 0.2700229357 | CN136: 115 | CO136: 2034-02-02 | CP136: 31 | CQ136: 3502 | CR136: 2607.847377 | CS136: 1.230657429 | CT136: 29.59093715 | CU136: 0.8084367288 | CV136: 14.7 | CW136: 0 | CX136: 46.3300313 | CY136: 2606.61672 | CZ136: 0.2700229357 | DA136: 0.2700229357
B137: 116 | C137: 2034-03-02 | D137: 28 | E137: 3530 | F137: 2599.325648 | G137: 11.82568056 | H137: 26.62539444 | I137: 0.7278039042 | J137: 14.7 | K137: 0 | L137: 53.8788789 | M137: 2587.499968 | N137: 0.2672110771 | O137: 0.2672110771 | Q137: 53.8788789 | R137: 3530 | S137: =IFERROR((1+'Simulación Cliente'!$E$21)^(R137/360),"") -> 4.506597751 | T137: 11.96 | X137: 116 | Y137: 2034-03-02 | Z137: 28 | AA137: 3530 | AB137: 2606.61672 | AC137: 4.200107627 | AD137: 26.70007829 | AE137: 0.7298453838 | AF137: 14.7 | AG137: 0 | AH137: 46.3300313 | AI137: 2602.416612 | AJ137: 0.2672110771 | AK137: 0.2672110771 | AO137: 116 | AP137: 2034-03-02 | AQ137: 28 | AR137: 3530 | AS137: 1921.633619 | AT137: 21.8271147 | AU137: 19.68366415 | AV137: 0.5380520334 | AW137: 14.7 | AX137: 0 | AY137: 56.74883089 | AZ137: 1899.806504 | BA137: 0.2672110771 | BB137: 0.2672110771 | BF137: 116 | BG137: 2034-03-02 | BH137: 28 | BI137: 3530 | BJ137: 1929.313909 | BK137: 13.79534041 | BL137: 19.76233484 | BM137: 0.540202493 | BN137: 14.7 | BO137: 0 | BP137: 48.79787774 | BQ137: 1915.518568 | BR137: 0.2672110771 | BS137: 0.2672110771 | BW137: 116 | BX137: 2034-03-02 | BY137: 28 | BZ137: 3530 | CA137: 2599.325648 | CB137: 11.82568056 | CC137: 26.62539444 | CD137: 0.7278039042 | CE137: 14.7 | CF137: 0 | CG137: 53.8788789 | CH137: 2587.499968 | CI137: 0.2672110771 | CJ137: 0.2672110771 | CN137: 116 | CO137: 2034-03-02 | CP137: 28 | CQ137: 3530 | CR137: 2606.61672 | CS137: 4.200107627 | CT137: 26.70007829 | CU137: 0.7298453838 | CV137: 14.7 | CW137: 0 | CX137: 46.3300313 | CY137: 2602.416612 | CZ137: 0.2672110771 | DA137: 0.2672110771
B138: 117 | C138: 2034-04-02 | D138: 31 | E138: 3561 | F138: 2587.499968 | G138: 9.016692417 | H138: 29.36005748 | I138: 0.8021290002 | J138: 14.7 | K138: 0 | L138: 53.8788789 | M138: 2578.483275 | N138: 0.2641320902 | O138: 0.2641320902 | Q138: 53.8788789 | R138: 3561 | S138: =IFERROR((1+'Simulación Cliente'!$E$21)^(R138/360),"") -> 4.566577269 | T138: 11.8 | X138: 117 | Y138: 2034-04-02 | Z138: 31 | AA138: 3561 | AB138: 2602.416612 | AC138: 1.293963226 | AD138: 29.5293149 | AE138: 0.8067531832 | AF138: 14.7 | AG138: 0 | AH138: 46.3300313 | AI138: 2601.122649 | AJ138: 0.2641320902 | AK138: 0.2641320902 | AO138: 117 | AP138: 2034-04-02 | AQ138: 31 | AR138: 3561 | AS138: 1899.806504 | AT138: 19.9030072 | AU138: 21.55688073 | AV138: 0.5889429608 | AW138: 14.7 | AX138: 0 | AY138: 56.74883089 | AZ138: 1879.903497 | BA138: 0.2641320902 | BB138: 0.2641320902 | BF138: 117 | BG138: 2034-04-02 | BH138: 31 | BI138: 3561 | BJ138: 1915.518568 | BK138: 11.76890035 | BL138: 21.73516367 | BM138: 0.593813725 | BN138: 14.7 | BO138: 0 | BP138: 48.79787774 | BQ138: 1903.749668 | BR138: 0.2641320902 | BS138: 0.2641320902 | BW138: 117 | BX138: 2034-04-02 | BY138: 31 | BZ138: 3561 | CA138: 2587.499968 | CB138: 9.016692417 | CC138: 29.36005748 | CD138: 0.8021290002 | CE138: 14.7 | CF138: 0 | CG138: 53.8788789 | CH138: 2578.483275 | CI138: 0.2641320902 | CJ138: 0.2641320902 | CN138: 117 | CO138: 2034-04-02 | CP138: 31 | CQ138: 3561 | CR138: 2602.416612 | CS138: 1.293963226 | CT138: 29.5293149 | CU138: 0.8067531832 | CV138: 14.7 | CW138: 0 | CX138: 46.3300313 | CY138: 2601.122649 | CZ138: 0.2641320902 | DA138: 0.2641320902
B139: 118 | C139: 2034-05-02 | D139: 30 | E139: 3591 | F139: 2578.483275 | G139: 10.09654778 | H139: 28.30878613 | I139: 0.7735449826 | J139: 14.7 | K139: 0 | L139: 53.8788789 | M139: 2568.386727 | N139: 0.2611862096 | O139: 0.2611862096 | Q139: 53.8788789 | R139: 3591 | S139: =IFERROR((1+'Simulación Cliente'!$E$21)^(R139/360),"") -> 4.625381928 | T139: 11.65 | X139: 118 | Y139: 2034-05-02 | Z139: 30 | AA139: 3591 | AB139: 2601.122649 | AC139: 2.292354041 | AD139: 28.55734047 | AE139: 0.7803367947 | AF139: 14.7 | AG139: 0 | AH139: 46.3300313 | AI139: 2598.830295 | AJ139: 0.2611862096 | AK139: 0.2611862096 | AO139: 118 | AP139: 2034-05-02 | AQ139: 30 | AR139: 3591 | AS139: 1879.903497 | AT139: 20.84567766 | AU139: 20.63918218 | AV139: 0.5639710492 | AW139: 14.7 | AX139: 0 | AY139: 56.74883089 | AZ139: 1859.05782 | BA139: 0.2611862096 | BB139: 0.2611862096 | BF139: 118 | BG139: 2034-05-02 | BH139: 30 | BI139: 3591 | BJ139: 1903.749668 | BK139: 12.62576708 | BL139: 20.90098576 | BM139: 0.5711249004 | BN139: 14.7 | BO139: 0 | BP139: 48.79787774 | BQ139: 1891.123901 | BR139: 0.2611862096 | BS139: 0.2611862096 | BW139: 118 | BX139: 2034-05-02 | BY139: 30 | BZ139: 3591 | CA139: 2578.483275 | CB139: 10.09654778 | CC139: 28.30878613 | CD139: 0.7735449826 | CE139: 14.7 | CF139: 0 | CG139: 53.8788789 | CH139: 2568.386727 | CI139: 0.2611862096 | CJ139: 0.2611862096 | CN139: 118 | CO139: 2034-05-02 | CP139: 30 | CQ139: 3591 | CR139: 2601.122649 | CS139: 2.292354041 | CT139: 28.55734047 | CU139: 0.7803367947 | CV139: 14.7 | CW139: 0 | CX139: 46.3300313 | CY139: 2598.830295 | CZ139: 0.2611862096 | DA139: 0.2611862096
B140: 119 | C140: 2034-06-02 | D140: 31 | E140: 3622 | F140: 2568.386727 | G140: 9.239493237 | H140: 29.1431818 | I140: 0.7962038661 | J140: 14.7 | K140: 0 | L140: 53.8788789 | M140: 2559.147234 | N140: 0.2581766453 | O140: 0.2581766453 | Q140: 53.8788789 | R140: 3622 | S140: =IFERROR((1+'Simulación Cliente'!$E$21)^(R140/360),"") -> 4.686942376 | T140: 11.5 | X140: 119 | Y140: 2034-06-02 | Z140: 31 | AA140: 3622 | AB140: 2598.830295 | AC140: 1.33576851 | AD140: 29.48862138 | AE140: 0.8056414193 | AF140: 14.7 | AG140: 0 | AH140: 46.3300313 | AI140: 2597.494527 | AJ140: 0.2581766453 | AK140: 0.2581766453 | AO140: 119 | AP140: 2034-06-02 | AQ140: 31 | AR140: 3622 | AS140: 1859.05782 | AT140: 20.37800989 | AU140: 21.0945102 | AV140: 0.5763108053 | AW140: 14.7 | AX140: 0 | AY140: 56.74883089 | AZ140: 1838.67981 | BA140: 0.2581766453 | BB140: 0.2581766453 | BF140: 119 | BG140: 2034-06-02 | BH140: 31 | BI140: 3622 | BJ140: 1891.123901 | BK140: 12.05326615 | BL140: 21.45836025 | BM140: 0.5862513403 | BN140: 14.7 | BO140: 0 | BP140: 48.79787774 | BQ140: 1879.070635 | BR140: 0.2581766453 | BS140: 0.2581766453 | BW140: 119 | BX140: 2034-06-02 | BY140: 31 | BZ140: 3622 | CA140: 2568.386727 | CB140: 9.239493237 | CC140: 29.1431818 | CD140: 0.7962038661 | CE140: 14.7 | CF140: 0 | CG140: 53.8788789 | CH140: 2559.147234 | CI140: 0.2581766453 | CJ140: 0.2581766453 | CN140: 119 | CO140: 2034-06-02 | CP140: 31 | CQ140: 3622 | CR140: 2598.830295 | CS140: 1.33576851 | CT140: 29.48862138 | CU140: 0.8056414193 | CV140: 14.7 | CW140: 0 | CX140: 46.3300313 | CY140: 2597.494527 | CZ140: 0.2581766453 | DA140: 0.2581766453
B141: 120 | C141: 2034-07-02 | D141: 30 | E141: 3652 | F141: 2559.147234 | G141: 10.31463613 | H141: 28.0964986 | I141: 0.7677441703 | J141: 14.7 | K141: 0 | L141: 53.8788789 | M141: 2548.832598 | N141: 0.2552971862 | O141: 0.2552971862 | Q141: 53.8788789 | R141: 3652 | S141: =IFERROR((1+'Simulación Cliente'!$E$21)^(R141/360),"") -> 4.747296999 | T141: 11.35 | X141: 120 | Y141: 2034-07-02 | Z141: 30 | AA141: 3652 | AB141: 2597.494527 | AC141: 48.6633064 | AD141: 28.51750785 | AE141: 0.779248358 | AF141: 14.7 | AG141: 0 | AH141: 92.66006261 | AI141: 2548.83122 | AJ141: 0.5105943723 | AK141: 0.2552971862 | AO141: 120 | AP141: 2034-07-02 | AQ141: 30 | AR141: 3652 | AS141: 1838.67981 | AT141: 21.31063353 | AU141: 20.18659341 | AV141: 0.5516039429 | AW141: 14.7 | AX141: 0 | AY141: 56.74883089 | AZ141: 1817.369176 | BA141: 0.2552971862 | BB141: 0.2552971862 | BF141: 120 | BG141: 2034-07-02 | BH141: 30 | BI141: 3652 | BJ141: 1879.070635 | BK141: 61.70199598 | BL141: 20.6300383 | BM141: 0.5637211905 | BN141: 14.7 | BO141: 0 | BP141: 97.59575548 | BQ141: 1817.368639 | BR141: 0.5105943723 | BS141: 0.2552971862 | BW141: 120 | BX141: 2034-07-02 | BY141: 30 | BZ141: 3652 | CA141: 2559.147234 | CB141: 10.31463613 | CC141: 28.0964986 | CD141: 0.7677441703 | CE141: 14.7 | CF141: 0 | CG141: 53.8788789 | CH141: 2548.832598 | CI141: 0.2552971862 | CJ141: 0.2552971862 | CN141: 120 | CO141: 2034-07-02 | CP141: 30 | CQ141: 3652 | CR141: 2597.494527 | CS141: 48.6633064 | CT141: 28.51750785 | CU141: 0.779248358 | CV141: 14.7 | CW141: 0 | CX141: 92.66006261 | CY141: 2548.83122 | CZ141: 0.5105943723 | DA141: 0.2552971862
B142: 121 | C142: 2034-08-02 | D142: 31 | E142: 3683 | F142: 2548.832598 | G142: 9.467433451 | H142: 28.92130339 | I142: 0.7901420557 | J142: 14.7 | K142: 0 | L142: 53.8788789 | M142: 2539.365165 | N142: 0.2523554792 | O142: 0.2523554792 | Q142: 53.8788789 | R142: 3683 | S142: =IFERROR((1+'Simulación Cliente'!$E$21)^(R142/360),"") -> 4.810480048 | T142: 11.2 | X142: 121 | Y142: 2034-08-02 | Z142: 31 | AA142: 3683 | AB142: 2548.83122 | AC142: 1.918601917 | AD142: 28.92128776 | AE142: 0.7901416286 | AF142: 14.7 | AG142: 0 | AH142: 46.3300313 | AI142: 2546.912618 | AJ142: 0.2523554792 | AK142: 0.2523554792 | AO142: 121 | AP142: 2034-08-02 | AQ142: 31 | AR142: 3683 | AS142: 1817.369176 | AT142: 20.86396956 | AU142: 20.62147407 | AV142: 0.5633872613 | AW142: 14.7 | AX142: 0 | AY142: 56.74883089 | AZ142: 1796.505207 | BA142: 0.2523554792 | BB142: 0.2523554792 | BF142: 121 | BG142: 2034-08-02 | BH142: 31 | BI142: 3683 | BJ142: 1817.368639 | BK142: 12.91302267 | BL142: 20.62146797 | BM142: 0.5633870947 | BN142: 14.7 | BO142: 0 | BP142: 48.79787774 | BQ142: 1804.455616 | BR142: 0.2523554792 | BS142: 0.2523554792 | BW142: 121 | BX142: 2034-08-02 | BY142: 31 | BZ142: 3683 | CA142: 2548.832598 | CB142: 9.467433451 | CC142: 28.92130339 | CD142: 0.7901420557 | CE142: 14.7 | CF142: 0 | CG142: 53.8788789 | CH142: 2539.365165 | CI142: 0.2523554792 | CJ142: 0.2523554792 | CN142: 121 | CO142: 2034-08-02 | CP142: 31 | CQ142: 3683 | CR142: 2548.83122 | CS142: 1.918601917 | CT142: 28.92128776 | CU142: 0.7901416286 | CV142: 14.7 | CW142: 0 | CX142: 46.3300313 | CY142: 2546.912618 | CZ142: 0.2523554792 | DA142: 0.2523554792
B143: 122 | C143: 2034-09-02 | D143: 31 | E143: 3714 | F143: 2539.365165 | G143: 9.577794223 | H143: 28.81387754 | I143: 0.7872071367 | J143: 14.7 | K143: 0 | L143: 53.8788789 | M143: 2529.78737 | N143: 0.2494476686 | O143: 0.2494476686 | Q143: 53.8788789 | R143: 3714 | S143: =IFERROR((1+'Simulación Cliente'!$E$21)^(R143/360),"") -> 4.874504017 | T143: 11.05 | X143: 122 | Y143: 2034-09-02 | Z143: 31 | AA143: 3714 | AB143: 2546.912618 | AC143: 1.940966837 | AD143: 28.89951761 | AE143: 0.789546859 | AF143: 14.7 | AG143: 0 | AH143: 46.3300313 | AI143: 2544.971651 | AJ143: 0.2494476686 | AK143: 0.2494476686 | AO143: 122 | AP143: 2034-09-02 | AQ143: 31 | AR143: 3714 | AS143: 1796.505207 | AT143: 21.10717843 | AU143: 20.38473306 | AV143: 0.5569193984 | AW143: 14.7 | AX143: 0 | AY143: 56.74883089 | AZ143: 1775.398028 | BA143: 0.2494476686 | BB143: 0.2494476686 | BF143: 122 | BG143: 2034-09-02 | BH143: 31 | BI143: 3714 | BJ143: 1804.455616 | BK143: 13.06354828 | BL143: 20.47494542 | BM143: 0.5593840377 | BN143: 14.7 | BO143: 0 | BP143: 48.79787774 | BQ143: 1791.392068 | BR143: 0.2494476686 | BS143: 0.2494476686 | BW143: 122 | BX143: 2034-09-02 | BY143: 31 | BZ143: 3714 | CA143: 2539.365165 | CB143: 9.577794223 | CC143: 28.81387754 | CD143: 0.7872071367 | CE143: 14.7 | CF143: 0 | CG143: 53.8788789 | CH143: 2529.78737 | CI143: 0.2494476686 | CJ143: 0.2494476686 | CN143: 122 | CO143: 2034-09-02 | CP143: 31 | CQ143: 3714 | CR143: 2546.912618 | CS143: 1.940966837 | CT143: 28.89951761 | CU143: 0.789546859 | CV143: 14.7 | CW143: 0 | CX143: 46.3300313 | CY143: 2544.971651 | CZ143: 0.2494476686 | DA143: 0.2494476686
B144: 123 | C144: 2034-10-02 | D144: 30 | E144: 3744 | F144: 2529.78737 | G144: 10.64578168 | H144: 27.77416101 | I144: 0.7589362111 | J144: 14.7 | K144: 0 | L144: 53.8788789 | M144: 2519.141589 | N144: 0.2466655642 | O144: 0.2466655642 | Q144: 53.8788789 | R144: 3744 | S144: =IFERROR((1+'Simulación Cliente'!$E$21)^(R144/360),"") -> 4.937273905 | T144: 10.91 | X144: 123 | Y144: 2034-10-02 | Z144: 30 | AA144: 3744 | AB144: 2544.971651 | AC144: 2.925672831 | AD144: 27.94086698 | AE144: 0.7634914954 | AF144: 14.7 | AG144: 0 | AH144: 46.3300313 | AI144: 2542.045979 | AJ144: 0.2466655642 | AK144: 0.2466655642 | AO144: 123 | AP144: 2034-10-02 | AQ144: 30 | AR144: 3744 | AS144: 1775.398028 | AT144: 22.02437937 | AU144: 19.4918321 | AV144: 0.5326194085 | AW144: 14.7 | AX144: 0 | AY144: 56.74883089 | AZ144: 1753.373649 | BA144: 0.2466655642 | BB144: 0.2466655642 | BF144: 123 | BG144: 2034-10-02 | BH144: 30 | BI144: 3744 | BJ144: 1791.392068 | BK144: 13.89303182 | BL144: 19.6674283 | BM144: 0.5374176204 | BN144: 14.7 | BO144: 0 | BP144: 48.79787774 | BQ144: 1777.499036 | BR144: 0.2466655642 | BS144: 0.2466655642 | BW144: 123 | BX144: 2034-10-02 | BY144: 30 | BZ144: 3744 | CA144: 2529.78737 | CB144: 10.64578168 | CC144: 27.77416101 | CD144: 0.7589362111 | CE144: 14.7 | CF144: 0 | CG144: 53.8788789 | CH144: 2519.141589 | CI144: 0.2466655642 | CJ144: 0.2466655642 | CN144: 123 | CO144: 2034-10-02 | CP144: 30 | CQ144: 3744 | CR144: 2544.971651 | CS144: 2.925672831 | CT144: 27.94086698 | CU144: 0.7634914954 | CV144: 14.7 | CW144: 0 | CX144: 46.3300313 | CY144: 2542.045979 | CZ144: 0.2466655642 | DA144: 0.2466655642
B145: 124 | C145: 2034-11-02 | D145: 31 | E145: 3775 | F145: 2519.141589 | G145: 9.813538097 | H145: 28.58440301 | I145: 0.7809377968 | J145: 14.7 | K145: 0 | L145: 53.8788789 | M145: 2509.328051 | N145: 0.2438233166 | O145: 0.2438233166 | Q145: 53.8788789 | R145: 3775 | S145: =IFERROR((1+'Simulación Cliente'!$E$21)^(R145/360),"") -> 5.002985407 | T145: 10.77 | X145: 124 | Y145: 2034-11-02 | Z145: 31 | AA145: 3775 | AB145: 2542.045979 | AC145: 1.99769669 | AD145: 28.84429642 | AE145: 0.7880381931 | AF145: 14.7 | AG145: 0 | AH145: 46.3300313 | AI145: 2540.048282 | AJ145: 0.2438233166 | AK145: 0.2438233166 | AO145: 124 | AP145: 2034-11-02 | AQ145: 31 | AR145: 3775 | AS145: 1753.373649 | AT145: 21.60995799 | AU145: 19.89532435 | AV145: 0.5435485486 | AW145: 14.7 | AX145: 0 | AY145: 56.74883089 | AZ145: 1731.763691 | BA145: 0.2438233166 | BB145: 0.2438233166 | BF145: 124 | BG145: 2034-11-02 | BH145: 31 | BI145: 3775 | BJ145: 1777.499036 | BK145: 13.377778 | BL145: 20.16907228 | BM145: 0.551027456 | BN145: 14.7 | BO145: 0 | BP145: 48.79787774 | BQ145: 1764.121258 | BR145: 0.2438233166 | BS145: 0.2438233166 | BW145: 124 | BX145: 2034-11-02 | BY145: 31 | BZ145: 3775 | CA145: 2519.141589 | CB145: 9.813538097 | CC145: 28.58440301 | CD145: 0.7809377968 | CE145: 14.7 | CF145: 0 | CG145: 53.8788789 | CH145: 2509.328051 | CI145: 0.2438233166 | CJ145: 0.2438233166 | CN145: 124 | CO145: 2034-11-02 | CP145: 31 | CQ145: 3775 | CR145: 2542.045979 | CS145: 1.99769669 | CT145: 28.84429642 | CU145: 0.7880381931 | CV145: 14.7 | CW145: 0 | CX145: 46.3300313 | CY145: 2540.048282 | CZ145: 0.2438233166 | DA145: 0.2438233166
B146: 125 | C146: 2034-12-02 | D146: 30 | E146: 3805 | F146: 2509.328051 | G146: 10.87653932 | H146: 27.54954116 | I146: 0.7527984152 | J146: 14.7 | K146: 0 | L146: 53.8788789 | M146: 2498.451511 | N146: 0.2411039409 | O146: 0.2411039409 | Q146: 53.8788789 | R146: 3805 | S146: =IFERROR((1+'Simulación Cliente'!$E$21)^(R146/360),"") -> 5.067409774 | T146: 10.63 | X146: 125 | Y146: 2034-12-02 | Z146: 30 | AA146: 3805 | AB146: 2540.048282 | AC146: 49.31123409 | AD146: 27.88681403 | AE146: 0.7620144846 | AF146: 14.7 | AG146: 0 | AH146: 92.66006261 | AI146: 2490.737048 | AJ146: 0.4822078819 | AK146: 0.2411039409 | AO146: 125 | AP146: 2034-12-02 | AQ146: 30 | AR146: 3805 | AS146: 1731.763691 | AT146: 22.51652461 | AU146: 19.01277717 | AV146: 0.5195291073 | AW146: 14.7 | AX146: 0 | AY146: 56.74883089 | AZ146: 1709.247166 | BA146: 0.2411039409 | BB146: 0.2411039409 | BF146: 125 | BG146: 2034-12-02 | BH146: 30 | BI146: 3805 | BJ146: 1764.121258 | BK146: 62.99849299 | BL146: 19.36802611 | BM146: 0.5292363774 | BN146: 14.7 | BO146: 0 | BP146: 97.59575548 | BQ146: 1701.122765 | BR146: 0.4822078819 | BS146: 0.2411039409 | BW146: 125 | BX146: 2034-12-02 | BY146: 30 | BZ146: 3805 | CA146: 2509.328051 | CB146: 10.87653932 | CC146: 27.54954116 | CD146: 0.7527984152 | CE146: 14.7 | CF146: 0 | CG146: 53.8788789 | CH146: 2498.451511 | CI146: 0.2411039409 | CJ146: 0.2411039409 | CN146: 125 | CO146: 2034-12-02 | CP146: 30 | CQ146: 3805 | CR146: 2540.048282 | CS146: 49.31123409 | CT146: 27.88681403 | CU146: 0.7620144846 | CV146: 14.7 | CW146: 0 | CX146: 92.66006261 | CY146: 2490.737048 | CZ146: 0.4822078819 | DA146: 0.2411039409
B147: 126 | C147: 2035-01-02 | D147: 31 | E147: 3836 | F147: 2498.451511 | G147: 10.05471993 | H147: 28.34963513 | I147: 0.7745238407 | J147: 14.7 | K147: 0 | L147: 53.8788789 | M147: 2488.396791 | N147: 0.2383257781 | O147: 0.2383257781 | Q147: 53.8788789 | R147: 3836 | S147: =IFERROR((1+'Simulación Cliente'!$E$21)^(R147/360),"") -> 5.13485329 | T147: 10.49 | X147: 126 | Y147: 2035-01-02 | Z147: 31 | AA147: 3836 | AB147: 2490.737048 | AC147: 2.595798934 | AD147: 28.26210003 | AE147: 0.7721323451 | AF147: 14.7 | AG147: 0 | AH147: 46.3300313 | AI147: 2488.141249 | AJ147: 0.2383257781 | AK147: 0.2383257781 | AO147: 126 | AP147: 2035-01-02 | AQ147: 31 | AR147: 3836 | AS147: 1709.247166 | AT147: 22.12433527 | AU147: 19.39462635 | AV147: 0.5298692706 | AW147: 14.7 | AX147: 0 | AY147: 56.74883089 | AZ147: 1687.122831 | BA147: 0.2383257781 | BB147: 0.2383257781 | BF147: 126 | BG147: 2035-01-02 | BH147: 31 | BI147: 3836 | BJ147: 1701.122765 | BK147: 14.26808732 | BL147: 19.30243973 | BM147: 0.5273506937 | BN147: 14.7 | BO147: 0 | BP147: 48.79787774 | BQ147: 1686.854678 | BR147: 0.2383257781 | BS147: 0.2383257781 | BW147: 126 | BX147: 2035-01-02 | BY147: 31 | BZ147: 3836 | CA147: 2498.451511 | CB147: 10.05471993 | CC147: 28.34963513 | CD147: 0.7745238407 | CE147: 14.7 | CF147: 0 | CG147: 53.8788789 | CH147: 2488.396791 | CI147: 0.2383257781 | CJ147: 0.2383257781 | CN147: 126 | CO147: 2035-01-02 | CP147: 31 | CQ147: 3836 | CR147: 2490.737048 | CS147: 2.595798934 | CT147: 28.26210003 | CU147: 0.7721323451 | CV147: 14.7 | CW147: 0 | CX147: 46.3300313 | CY147: 2488.141249 | CZ147: 0.2383257781 | DA147: 0.2383257781
B148: 127 | C148: 2035-02-02 | D148: 31 | E148: 3867 | F148: 2488.396791 | G148: 10.17192663 | H148: 28.23554541 | I148: 0.771406862 | J148: 14.7 | K148: 0 | L148: 53.8788789 | M148: 2478.224865 | N148: 0.2355796272 | O148: 0.2355796272 | Q148: 53.8788789 | R148: 3867 | S148: =IFERROR((1+'Simulación Cliente'!$E$21)^(R148/360),"") -> 5.203194429 | T148: 10.35 | X148: 127 | Y148: 2035-02-02 | Z148: 31 | AA148: 3867 | AB148: 2488.141249 | AC148: 2.626057861 | AD148: 28.2326458 | AE148: 0.7713276434 | AF148: 14.7 | AG148: 0 | AH148: 46.3300313 | AI148: 2485.515191 | AJ148: 0.2355796272 | AK148: 0.2355796272 | AO148: 127 | AP148: 2035-02-02 | AQ148: 31 | AR148: 3867 | AS148: 1687.122831 | AT148: 22.38223607 | AU148: 19.14358412 | AV148: 0.5230106924 | AW148: 14.7 | AX148: 0 | AY148: 56.74883089 | AZ148: 1664.740595 | BA148: 0.2355796272 | BB148: 0.2355796272 | BF148: 127 | BG148: 2035-02-02 | BH148: 31 | BI148: 3867 | BJ148: 1686.854678 | BK148: 14.43440875 | BL148: 19.14054142 | BM148: 0.5229275645 | BN148: 14.7 | BO148: 0 | BP148: 48.79787774 | BQ148: 1672.420269 | BR148: 0.2355796272 | BS148: 0.2355796272 | BW148: 127 | BX148: 2035-02-02 | BY148: 31 | BZ148: 3867 | CA148: 2488.396791 | CB148: 10.17192663 | CC148: 28.23554541 | CD148: 0.771406862 | CE148: 14.7 | CF148: 0 | CG148: 53.8788789 | CH148: 2478.224865 | CI148: 0.2355796272 | CJ148: 0.2355796272 | CN148: 127 | CO148: 2035-02-02 | CP148: 31 | CQ148: 3867 | CR148: 2488.141249 | CS148: 2.626057861 | CT148: 28.2326458 | CU148: 0.7713276434 | CV148: 14.7 | CW148: 0 | CX148: 46.3300313 | CY148: 2485.515191 | CZ148: 0.2355796272 | DA148: 0.2355796272
B149: 128 | C149: 2035-03-02 | D149: 28 | E149: 3895 | F149: 2478.224865 | G149: 13.10004714 | H149: 25.38493573 | I149: 0.6938960238 | J149: 14.7 | K149: 0 | L149: 53.8788789 | M149: 2465.124818 | N149: 0.2331264408 | O149: 0.2331264408 | Q149: 53.8788789 | R149: 3895 | S149: =IFERROR((1+'Simulación Cliente'!$E$21)^(R149/360),"") -> 5.265703371 | T149: 10.23 | X149: 128 | Y149: 2035-03-02 | Z149: 28 | AA149: 3895 | AB149: 2485.515191 | AC149: 5.474482057 | AD149: 25.45961195 | AE149: 0.6959372948 | AF149: 14.7 | AG149: 0 | AH149: 46.3300313 | AI149: 2480.040709 | AJ149: 0.2331264408 | AK149: 0.2331264408 | AO149: 128 | AP149: 2035-03-02 | AQ149: 28 | AR149: 3895 | AS149: 1664.740595 | AT149: 24.53044887 | AU149: 17.05225931 | AV149: 0.4661227058 | AW149: 14.7 | AX149: 0 | AY149: 56.74883089 | AZ149: 1640.210146 | BA149: 0.2331264408 | BB149: 0.2331264408 | BF149: 128 | BG149: 2035-03-02 | BH149: 28 | BI149: 3895 | BJ149: 1672.420269 | BK149: 16.49868105 | BL149: 17.13092369 | BM149: 0.468272993 | BN149: 14.7 | BO149: 0 | BP149: 48.79787774 | BQ149: 1655.921588 | BR149: 0.2331264408 | BS149: 0.2331264408 | BW149: 128 | BX149: 2035-03-02 | BY149: 28 | BZ149: 3895 | CA149: 2478.224865 | CB149: 13.10004714 | CC149: 25.38493573 | CD149: 0.6938960238 | CE149: 14.7 | CF149: 0 | CG149: 53.8788789 | CH149: 2465.124818 | CI149: 0.2331264408 | CJ149: 0.2331264408 | CN149: 128 | CO149: 2035-03-02 | CP149: 28 | CQ149: 3895 | CR149: 2485.515191 | CS149: 5.474482057 | CT149: 25.45961195 | CU149: 0.6959372948 | CV149: 14.7 | CW149: 0 | CX149: 46.3300313 | CY149: 2480.040709 | CZ149: 0.2331264408 | DA149: 0.2331264408
B150: 129 | C150: 2035-04-02 | D150: 31 | E150: 3926 | F150: 2465.124818 | G150: =IF(B150>C$6,"",L150-K150-J150-I150-H150) -> 10.44320532 | H150: 27.97148107 | I150: =IF(B150>C$6,"",((1+C$12)^(D150/30)-1)*F150) -> 0.764192514 | J150: 14.7 | K150: =IF(B150>C$6,"",C$15) -> 0 | L150: =IF(B150>C$6,"",IF(B150=C$6,F150+H150+I150+J150+K150,IF(AND(C$9=2,MONTH(C150)=7),2*C$17,IF(AND(C$10=2,MONTH(C150)=12),2*C$17,C$17)))) -> 53.8788789 | M150: =IF(B150>C$6,"",F150-G150) -> 2454.681612 | N150: 0.2304402002 | O150: 0.2304402002 | Q150: 53.8788789 | R150: 3926 | S150: =IFERROR((1+'Simulación Cliente'!$E$21)^(R150/360),"") -> 5.335786029 | T150: 10.1 | X150: 129 | Y150: 2035-04-02 | Z150: 31 | AA150: 3926 | AB150: 2480.040709 | AC150: 2.720484914 | AD150: 28.14072993 | AE150: =IF(X150>Y$6,"",((1+Y$12)^(Z150/30)-1)*AB150) -> 0.7688164635 | AF150: 14.7 | AG150: =IF(X150>Y$6,"",Y$15) -> 0 | AH150: =IF(X150>Y$6,"",IF(X150=Y$6,AB150+AD150+AE150+AF150+AG150,IF(AND(Y$9=2,MONTH(Y150)=7),2*Y$17,IF(AND(Y$10=2,MONTH(Y150)=12),2*Y$17,Y$17)))) -> 46.3300313 | AI150: =IF(X150>Y$6,"",AB150-AC150) -> 2477.320224 | AJ150: 0.2304402002 | AK150: 0.2304402002 | AO150: 129 | AP150: 2035-04-02 | AQ150: 31 | AR150: 3926 | AS150: 1640.210146 | AT150: 22.92909179 | AU150: 18.61127141 | AV150: =IF(AO150>AP$6,"",((1+AP$12)^(AQ150/30)-1)*AS150) -> 0.5084676873 | AW150: 14.7 | AX150: =IF(AO150>AP$6,"",AP$15) -> 0 | AY150: =IF(AO150>AP$6,"",IF(AO150=AP$6,AS150+AU150+AV150+AW150+AX150,IF(AND(AP$9=2,MONTH(AP150)=7),2*AP$17,IF(AND(AP$10=2,MONTH(AP150)=12),2*AP$17,AP$17)))) -> 56.74883089 | AZ150: =IF(AO150>AP$6,"",AS150-AT150) -> 1617.281054 | BA150: 0.2304402002 | BB150: 0.2304402002 | BF150: 129 | BG150: 2035-04-02 | BH150: 31 | BI150: 3926 | BJ150: 1655.921588 | BK150: 14.79499219 | BL150: 18.78954729 | BM150: =IF(BF150>BG$6,"",((1+BG$12)^(BH150/30)-1)*BJ150) -> 0.5133382587 | BN150: 14.7 | BO150: =IF(BF150>BG$6,"",BG$15) -> 0 | BP150: =IF(BF150>BG$6,"",IF(BF150=BG$6,BJ150+BL150+BM150+BN150+BO150,IF(AND(BG$9=2,MONTH(BG150)=7),2*BG$17,IF(AND(BG$10=2,MONTH(BG150)=12),2*BG$17,BG$17)))) -> 48.79787774 | BQ150: =IF(BF150>BG$6,"",BJ150-BK150) -> 1641.126596 | BR150: 0.2304402002 | BS150: 0.2304402002 | BW150: 129 | BX150: 2035-04-02 | BY150: 31 | BZ150: 3926 | CA150: 2465.124818 | CB150: 10.44320532 | CC150: 27.97148107 | CD150: =IF(BW150>BX$6,"",((1+BX$12)^(BY150/30)-1)*CA150) -> 0.764192514 | CE150: 14.7 | CF150: =IF(BW150>BX$6,"",BX$15) -> 0 | CG150: =IF(BW150>BX$6,"",IF(BW150=BX$6,CA150+CC150+CD150+CE150+CF150,IF(AND(BX$9=2,MONTH(BX150)=7),2*BX$17,IF(AND(BX$10=2,MONTH(BX150)=12),2*BX$17,BX$17)))) -> 53.8788789 | CH150: =IF(BW150>BX$6,"",CA150-CB150) -> 2454.681612 | CI150: 0.2304402002 | CJ150: 0.2304402002 | CN150: 129 | CO150: 2035-04-02 | CP150: 31 | CQ150: 3926 | CR150: 2480.040709 | CS150: 2.720484914 | CT150: 28.14072993 | CU150: =IF(CN150>CO$6,"",((1+CO$12)^(CP150/30)-1)*CR150) -> 0.7688164635 | CV150: 14.7 | CW150: =IF(CN150>CO$6,"",CO$15) -> 0 | CX150: =IF(CN150>CO$6,"",IF(CN150=CO$6,CR150+CT150+CU150+CV150+CW150,IF(AND(CO$9=2,MONTH(CO150)=7),2*CO$17,IF(AND(CO$10=2,MONTH(CO150)=12),2*CO$17,CO$17)))) -> 46.3300313 | CY150: =IF(CN150>CO$6,"",CR150-CS150) -> 2477.320224 | CZ150: 0.2304402002 | DA150: 0.2304402002
B151: 130 | C151: =IF(B151>C$6,"",EDATE(C$22,B150)) -> 2035-05-02 | D151: =IF(B151>C$6,"",C151-C150) -> 30 | E151: =IFERROR(D151+E150,"") -> 3956 | F151: =IF(B151>C$6,"",M150) -> 2454.681612 | G151: 11.49288841 | H151: 26.94958601 | I151: 0.7364044837 | J151: =IF(B151>C$6,"",D$4*C$14) -> 14.7 | K151: 0 | L151: 53.8788789 | M151: 2443.188724 | N151: =IFERROR(IF(AND(MONTH(C151)=7,C$9=2),2/(1+C$13)^(E151/360),IF(AND(MONTH(C151)=12,C$10=2),2/(1+C$13)^(E151/360),1/(1+C$13)^(E151/360))),"") -> 0.2278700872 | O151: =IFERROR(1/(1+C$13)^(E151/360),"") -> 0.2278700872 | Q151: =IFERROR(G151+H151+I151+J151+K151,"") -> 53.8788789 | R151: =E151 -> 3956 | S151: =IFERROR((1+'Simulación Cliente'!$E$21)^(R151/360),"") -> 5.404495931 | T151: =IFERROR(ROUND(Q151/S151,2),"") -> 9.97 | X151: 130 | Y151: =IF(X151>Y$6,"",EDATE(Y$22,X150)) -> 2035-05-02 | Z151: 30 | AA151: =IFERROR(Z151+AA150,"") -> 3956 | AB151: =IF(X151>Y$6,"",AI150) -> 2477.320224 | AC151: 3.688703265 | AD151: 27.19813197 | AE151: 0.7431960672 | AF151: =IF(X151>Y$6,"",Z$4*Y$14) -> 14.7 | AG151: 0 | AH151: 46.3300313 | AI151: 2473.631521 | AJ151: =IFERROR(IF(AND(MONTH(Y151)=7,Y$9=2),2/(1+Y$13)^(AA151/360),IF(AND(MONTH(Y151)=12,Y$10=2),2/(1+Y$13)^(AA151/360),1/(1+Y$13)^(AA151/360))),"") -> 0.2278700872 | AK151: =IFERROR(1/(1+Y$13)^(AA151/360),"") -> 0.2278700872 | AO151: 130 | AP151: =IF(AO151>AP$6,"",EDATE(AP$22,AO150)) -> 2035-05-02 | AQ151: 30 | AR151: =IFERROR(AQ151+AR150,"") -> 3956 | AS151: =IF(AO151>AP$6,"",AZ150) -> 1617.281054 | AT151: 23.80775731 | AU151: 17.75588926 | AV151: 0.4851843163 | AW151: =IF(AO151>AP$6,"",AQ$4*AP$14) -> 14.7 | AX151: 0 | AY151: 56.74883089 | AZ151: 1593.473297 | BA151: =IFERROR(IF(AND(MONTH(AP151)=7,AP$9=2),2/(1+AP$13)^(AR151/360),IF(AND(MONTH(AP151)=12,AP$10=2),2/(1+AP$13)^(AR151/360),1/(1+AP$13)^(AR151/360))),"") -> 0.2278700872 | BB151: =IFERROR(1/(1+AP$13)^(AR151/360),"") -> 0.2278700872 | BF151: 130 | BG151: =IF(BF151>BG$6,"",EDATE(BG$22,BF150)) -> 2035-05-02 | BH151: 30 | BI151: =IFERROR(BH151+BI150,"") -> 3956 | BJ151: =IF(BF151>BG$6,"",BQ150) -> 1641.126596 | BK151: 15.58785383 | BL151: 18.01768593 | BM151: 0.4923379787 | BN151: =IF(BF151>BG$6,"",BH$4*BG$14) -> 14.7 | BO151: 0 | BP151: 48.79787774 | BQ151: 1625.538742 | BR151: =IFERROR(IF(AND(MONTH(BG151)=7,BG$9=2),2/(1+BG$13)^(BI151/360),IF(AND(MONTH(BG151)=12,BG$10=2),2/(1+BG$13)^(BI151/360),1/(1+BG$13)^(BI151/360))),"") -> 0.2278700872 | BS151: =IFERROR(1/(1+BG$13)^(BI151/360),"") -> 0.2278700872 | BW151: 130 | BX151: =IF(BW151>BX$6,"",EDATE(BX$22,BW150)) -> 2035-05-02 | BY151: 30 | BZ151: =IFERROR(BY151+BZ150,"") -> 3956 | CA151: =IF(BW151>BX$6,"",CH150) -> 2454.681612 | CB151: 11.49288841 | CC151: 26.94958601 | CD151: 0.7364044837 | CE151: =IF(BW151>BX$6,"",BY$4*BX$14) -> 14.7 | CF151: 0 | CG151: 53.8788789 | CH151: 2443.188724 | CI151: =IFERROR(IF(AND(MONTH(BX151)=7,BX$9=2),2/(1+BX$13)^(BZ151/360),IF(AND(MONTH(BX151)=12,BX$10=2),2/(1+BX$13)^(BZ151/360),1/(1+BX$13)^(BZ151/360))),"") -> 0.2278700872 | CJ151: =IFERROR(1/(1+BX$13)^(BZ151/360),"") -> 0.2278700872 | CN151: 130 | CO151: =IF(CN151>CO$6,"",EDATE(CO$22,CN150)) -> 2035-05-02 | CP151: 30 | CQ151: =IFERROR(CP151+CQ150,"") -> 3956 | CR151: =IF(CN151>CO$6,"",CY150) -> 2477.320224 | CS151: 3.688703265 | CT151: 27.19813197 | CU151: 0.7431960672 | CV151: =IF(CN151>CO$6,"",CP$4*CO$14) -> 14.7 | CW151: 0 | CX151: 46.3300313 | CY151: 2473.631521 | CZ151: =IFERROR(IF(AND(MONTH(CO151)=7,CO$9=2),2/(1+CO$13)^(CQ151/360),IF(AND(MONTH(CO151)=12,CO$10=2),2/(1+CO$13)^(CQ151/360),1/(1+CO$13)^(CQ151/360))),"") -> 0.2278700872 | DA151: =IFERROR(1/(1+CO$13)^(CQ151/360),"") -> 0.2278700872
B152: 131 | C152: 2035-06-02 | D152: 31 | E152: 3987 | F152: 2443.188724 | G152: 10.69891182 | H152: =IF(B152>C$6,"",((1+C$11)^(D152/360)-1)*F152) -> 27.72257479 | I152: 0.757392291 | J152: 14.7 | K152: 0 | L152: 53.8788789 | M152: 2432.489812 | N152: 0.2252444138 | O152: 0.2252444138 | Q152: 53.8788789 | R152: 3987 | S152: =IFERROR((1+'Simulación Cliente'!$E$21)^(R152/360),"") -> 5.476425817 | T152: 9.84 | X152: 131 | Y152: 2035-06-02 | Z152: 31 | AA152: 3987 | AB152: 2473.631521 | AC152: 2.795196075 | AD152: =IF(X152>Y$6,"",((1+Y$11)^(Z152/360)-1)*AB152) -> 28.06800562 | AE152: 0.7668296052 | AF152: 14.7 | AG152: 0 | AH152: 46.3300313 | AI152: 2470.836325 | AJ152: 0.2252444138 | AK152: 0.2252444138 | AO152: 131 | AP152: 2035-06-02 | AQ152: 31 | AR152: 3987 | AS152: 1593.473297 | AT152: 23.47389781 | AU152: =IF(AO152>AP$6,"",((1+AP$11)^(AQ152/360)-1)*AS152) -> 18.08095389 | AV152: 0.4939791917 | AW152: 14.7 | AX152: 0 | AY152: 56.74883089 | AZ152: 1569.999399 | BA152: 0.2252444138 | BB152: 0.2252444138 | BF152: 131 | BG152: 2035-06-02 | BH152: 31 | BI152: 3987 | BJ152: 1625.538742 | BK152: 15.14916149 | BL152: =IF(BF152>BG$6,"",((1+BG$11)^(BH152/360)-1)*BJ152) -> 18.44479672 | BM152: 0.5039195293 | BN152: 14.7 | BO152: 0 | BP152: 48.79787774 | BQ152: 1610.38958 | BR152: 0.2252444138 | BS152: 0.2252444138 | BW152: 131 | BX152: 2035-06-02 | BY152: 31 | BZ152: 3987 | CA152: 2443.188724 | CB152: 10.69891182 | CC152: =IF(BW152>BX$6,"",((1+BX$11)^(BY152/360)-1)*CA152) -> 27.72257479 | CD152: 0.757392291 | CE152: 14.7 | CF152: 0 | CG152: 53.8788789 | CH152: 2432.489812 | CI152: 0.2252444138 | CJ152: 0.2252444138 | CN152: 131 | CO152: 2035-06-02 | CP152: 31 | CQ152: 3987 | CR152: 2473.631521 | CS152: 2.795196075 | CT152: =IF(CN152>CO$6,"",((1+CO$11)^(CP152/360)-1)*CR152) -> 28.06800562 | CU152: 0.7668296052 | CV152: 14.7 | CW152: 0 | CX152: 46.3300313 | CY152: 2470.836325 | CZ152: 0.2252444138 | DA152: 0.2252444138
B153: 132 | C153: 2035-07-02 | D153: 30 | E153: 4017 | F153: 2432.489812 | G153: 11.74318644 | H153: 26.70594552 | I153: 0.7297469436 | J153: 14.7 | K153: 0 | L153: 53.8788789 | M153: 2420.746626 | N153: 0.2227322497 | O153: 0.2227322497 | Q153: 53.8788789 | R153: 4017 | S153: =IFERROR((1+'Simulación Cliente'!$E$21)^(R153/360),"") -> 5.546946763 | T153: 9.71 | X153: 132 | Y153: 2035-07-02 | Z153: =IF(X153>Y$6,"",Y153-Y152) -> 30 | AA153: 4017 | AB153: 2470.836325 | AC153: =IF(X153>Y$6,"",AH153-AG153-AF153-AE153-AD153) -> 50.09186551 | AD153: 27.1269462 | AE153: 0.7412508974 | AF153: 14.7 | AG153: 0 | AH153: 92.66006261 | AI153: 2420.744459 | AJ153: 0.4454644995 | AK153: 0.2227322497 | AO153: 132 | AP153: 2035-07-02 | AQ153: =IF(AO153>AP$6,"",AP153-AP152) -> 30 | AR153: 4017 | AS153: 1569.999399 | AT153: =IF(AO153>AP$6,"",AY153-AX153-AW153-AV153-AU153) -> 24.3410401 | AU153: 17.23679096 | AV153: 0.4709998197 | AW153: 14.7 | AX153: 0 | AY153: 56.74883089 | AZ153: 1545.658359 | BA153: 0.2227322497 | BB153: 0.2227322497 | BF153: 132 | BG153: 2035-07-02 | BH153: =IF(BF153>BG$6,"",BG153-BG152) -> 30 | BI153: 4017 | BJ153: 1610.38958 | BK153: =IF(BF153>BG$6,"",BP153-BO153-BN153-BM153-BL153) -> 64.73240982 | BL153: 17.68022879 | BM153: 0.4831168741 | BN153: 14.7 | BO153: 0 | BP153: 97.59575548 | BQ153: 1545.657171 | BR153: 0.4454644995 | BS153: 0.2227322497 | BW153: 132 | BX153: 2035-07-02 | BY153: =IF(BW153>BX$6,"",BX153-BX152) -> 30 | BZ153: 4017 | CA153: 2432.489812 | CB153: =IF(BW153>BX$6,"",CG153-CF153-CE153-CD153-CC153) -> 11.74318644 | CC153: 26.70594552 | CD153: 0.7297469436 | CE153: 14.7 | CF153: 0 | CG153: 53.8788789 | CH153: 2420.746626 | CI153: 0.2227322497 | CJ153: 0.2227322497 | CN153: 132 | CO153: 2035-07-02 | CP153: =IF(CN153>CO$6,"",CO153-CO152) -> 30 | CQ153: 4017 | CR153: 2470.836325 | CS153: =IF(CN153>CO$6,"",CX153-CW153-CV153-CU153-CT153) -> 50.09186551 | CT153: 27.1269462 | CU153: 0.7412508974 | CV153: 14.7 | CW153: 0 | CX153: 92.66006261 | CY153: 2420.744459 | CZ153: 0.4454644995 | DA153: 0.2227322497
B154: 133 | C154: 2035-08-02 | D154: 31 | E154: 4048 | F154: 2420.746626 | G154: 10.96051675 | H154: 27.46792695 | I154: 0.7504352057 | J154: 14.7 | K154: 0 | L154: 53.8788789 | M154: 2409.786109 | N154: 0.220165778 | O154: 0.220165778 | Q154: 53.8788789 | R154: 4048 | S154: =IFERROR((1+'Simulación Cliente'!$E$21)^(R154/360),"") -> 5.620772565 | T154: 9.59 | X154: 133 | Y154: 2035-08-02 | Z154: 31 | AA154: 4048 | AB154: 2420.744459 | AC154: 3.411694407 | AD154: 27.46790236 | AE154: 0.7504345341 | AF154: 14.7 | AG154: 0 | AH154: 46.3300313 | AI154: 2417.332765 | AJ154: 0.220165778 | AK154: 0.220165778 | AO154: 133 | AP154: 2035-08-02 | AQ154: 31 | AR154: 4048 | AS154: 1545.658359 | AT154: 24.03127098 | AU154: 17.53840342 | AV154: 0.4791564868 | AW154: 14.7 | AX154: 0 | AY154: 56.74883089 | AZ154: 1521.627088 | BA154: 0.220165778 | BB154: 0.220165778 | BF154: 133 | BG154: 2035-08-02 | BH154: 31 | BI154: 4048 | BJ154: 1545.657171 | BK154: 16.08033169 | BL154: 17.53838993 | BM154: 0.4791561184 | BN154: 14.7 | BO154: 0 | BP154: 48.79787774 | BQ154: 1529.576839 | BR154: 0.220165778 | BS154: 0.220165778 | BW154: 133 | BX154: 2035-08-02 | BY154: 31 | BZ154: 4048 | CA154: 2420.746626 | CB154: 10.96051675 | CC154: 27.46792695 | CD154: 0.7504352057 | CE154: 14.7 | CF154: 0 | CG154: 53.8788789 | CH154: 2409.786109 | CI154: 0.220165778 | CJ154: 0.220165778 | CN154: 133 | CO154: 2035-08-02 | CP154: 31 | CQ154: 4048 | CR154: 2420.744459 | CS154: 3.411694407 | CT154: 27.46790236 | CU154: 0.7504345341 | CV154: 14.7 | CW154: 0 | CX154: 46.3300313 | CY154: 2417.332765 | CZ154: 0.220165778 | DA154: 0.220165778
B155: 134 | C155: 2035-09-02 | D155: 31 | E155: 4079 | F155: 2409.786109 | G155: 11.08828222 | H155: 27.34355925 | I155: 0.7470374286 | J155: 14.7 | K155: 0 | L155: 53.8788789 | M155: 2398.697827 | N155: 0.2176288789 | O155: 0.2176288789 | Q155: 53.8788789 | R155: 4079 | S155: =IFERROR((1+'Simulación Cliente'!$E$21)^(R155/360),"") -> 5.695580935 | T155: 9.46 | X155: 134 | Y155: 2035-09-02 | Z155: 31 | AA155: 4079 | AB155: 2417.332765 | AC155: 3.451464133 | AD155: 27.42919027 | AE155: 0.7493769036 | AF155: 14.7 | AG155: 0 | AH155: 46.3300313 | AI155: 2413.881301 | AJ155: 0.2176288789 | AK155: 0.2176288789 | AO155: 134 | AP155: 2035-09-02 | AQ155: 31 | AR155: 4079 | AS155: 1521.627088 | AT155: 24.31140072 | AU155: 17.26572341 | AV155: 0.4717067556 | AW155: 14.7 | AX155: 0 | AY155: 56.74883089 | AZ155: 1497.315687 | BA155: 0.2176288789 | BB155: 0.2176288789 | BF155: 134 | BG155: 2035-09-02 | BH155: 31 | BI155: 4079 | BJ155: 1529.576839 | BK155: 16.26777825 | BL155: 17.3559283 | BM155: 0.4741711907 | BN155: 14.7 | BO155: 0 | BP155: 48.79787774 | BQ155: 1513.309061 | BR155: 0.2176288789 | BS155: 0.2176288789 | BW155: 134 | BX155: 2035-09-02 | BY155: 31 | BZ155: 4079 | CA155: 2409.786109 | CB155: 11.08828222 | CC155: 27.34355925 | CD155: 0.7470374286 | CE155: 14.7 | CF155: 0 | CG155: 53.8788789 | CH155: 2398.697827 | CI155: 0.2176288789 | CJ155: 0.2176288789 | CN155: 134 | CO155: 2035-09-02 | CP155: 31 | CQ155: 4079 | CR155: 2417.332765 | CS155: 3.451464133 | CT155: 27.42919027 | CU155: 0.7493769036 | CV155: 14.7 | CW155: 0 | CX155: 46.3300313 | CY155: 2413.881301 | CZ155: 0.2176288789 | DA155: 0.2176288789
B156: 135 | C156: 2035-10-02 | D156: 30 | E156: 4109 | F156: 2398.697827 | G156: 12.12432124 | H156: 26.33494831 | I156: 0.719609348 | J156: 14.7 | K156: 0 | L156: 53.8788789 | M156: 2386.573505 | N156: 0.2152016513 | O156: 0.2152016513 | Q156: 53.8788789 | R156: 4109 | S156: =IFERROR((1+'Simulación Cliente'!$E$21)^(R156/360),"") -> 5.768923982 | T156: 9.34 | X156: 135 | Y156: 2035-10-02 | Z156: 30 | AA156: 4109 | AB156: 2413.881301 | AC156: 4.40422149 | AD156: 26.50164542 | AE156: 0.7241643902 | AF156: 14.7 | AG156: 0 | AH156: 46.3300313 | AI156: 2409.477079 | AJ156: 0.2152016513 | AK156: 0.2152016513 | AO156: 135 | AP156: 2035-10-02 | AQ156: 30 | AR156: 4109 | AS156: 1497.315687 | AT156: 25.16082893 | AU156: 16.43880725 | AV156: 0.4491947062 | AW156: 14.7 | AX156: 0 | AY156: 56.74883089 | AZ156: 1472.154858 | BA156: 0.2152016513 | BB156: 0.2152016513 | BF156: 135 | BG156: 2035-10-02 | BH156: 30 | BI156: 4109 | BJ156: 1513.309061 | BK156: 17.02948889 | BL156: 16.61439613 | BM156: 0.4539927182 | BN156: 14.7 | BO156: 0 | BP156: 48.79787774 | BQ156: 1496.279572 | BR156: 0.2152016513 | BS156: 0.2152016513 | BW156: 135 | BX156: 2035-10-02 | BY156: 30 | BZ156: 4109 | CA156: 2398.697827 | CB156: 12.12432124 | CC156: 26.33494831 | CD156: 0.719609348 | CE156: 14.7 | CF156: 0 | CG156: 53.8788789 | CH156: 2386.573505 | CI156: 0.2152016513 | CJ156: 0.2152016513 | CN156: 135 | CO156: 2035-10-02 | CP156: 30 | CQ156: 4109 | CR156: 2413.881301 | CS156: 4.40422149 | CT156: 26.50164542 | CU156: 0.7241643902 | CV156: 14.7 | CW156: 0 | CX156: 46.3300313 | CY156: 2409.477079 | CZ156: 0.2152016513 | DA156: 0.2152016513
B157: 136 | C157: 2035-11-02 | D157: 31 | E157: 4140 | F157: 2386.573505 | G157: 11.35886884 | H157: 27.08016857 | I157: 0.7398414855 | J157: 14.7 | K157: 0 | L157: 53.8788789 | M157: 2375.214637 | N157: 0.2127219523 | O157: 0.2127219523 | Q157: 53.8788789 | R157: 4140 | S157: =IFERROR((1+'Simulación Cliente'!$E$21)^(R157/360),"") -> 5.845704138 | T157: 9.22 | X157: 136 | Y157: 2035-11-02 | Z157: 31 | AA157: 4140 | AB157: 2409.477079 | AC157: 3.543036947 | AD157: 27.34005273 | AE157: 0.7469416289 | AF157: 14.7 | AG157: 0 | AH157: 46.3300313 | AI157: 2405.934042 | AJ157: 0.2127219523 | AK157: 0.2127219523 | AO157: 136 | AP157: 2035-11-02 | AQ157: 31 | AR157: 4140 | AS157: 1472.154858 | AT157: 24.88809275 | AU157: 16.70436785 | AV157: 0.4563702877 | AW157: 14.7 | AX157: 0 | AY157: 56.74883089 | AZ157: 1447.266766 | BA157: 0.2127219523 | BB157: 0.2127219523 | BF157: 136 | BG157: 2035-11-02 | BH157: 31 | BI157: 4140 | BJ157: 1496.279572 | BK157: 16.65592062 | BL157: 16.97810813 | BM157: 0.4638489863 | BN157: 14.7 | BO157: 0 | BP157: 48.79787774 | BQ157: 1479.623651 | BR157: 0.2127219523 | BS157: 0.2127219523 | BW157: 136 | BX157: 2035-11-02 | BY157: 31 | BZ157: 4140 | CA157: 2386.573505 | CB157: 11.35886884 | CC157: 27.08016857 | CD157: 0.7398414855 | CE157: 14.7 | CF157: 0 | CG157: 53.8788789 | CH157: 2375.214637 | CI157: 0.2127219523 | CJ157: 0.2127219523 | CN157: 136 | CO157: 2035-11-02 | CP157: 31 | CQ157: 4140 | CR157: 2409.477079 | CS157: 3.543036947 | CT157: 27.34005273 | CU157: 0.7469416289 | CV157: 14.7 | CW157: 0 | CX157: 46.3300313 | CY157: 2405.934042 | CZ157: 0.2127219523 | DA157: 0.2127219523
B158: 137 | C158: 2035-12-02 | D158: 30 | E158: 4170 | F158: 2375.214637 | G158: 12.38918467 | H158: 26.07712984 | I158: 0.712564391 | J158: 14.7 | K158: 0 | L158: 53.8788789 | M158: 2362.825452 | N158: 0.2103494519 | O158: 0.2103494519 | Q158: 53.8788789 | R158: 4170 | S158: =IFERROR((1+'Simulación Cliente'!$E$21)^(R158/360),"") -> 5.92098035 | T158: 9.1 | X158: 137 | Y158: 2035-12-02 | Z158: 30 | AA158: 4170 | AB158: 2405.934042 | AC158: 50.82388875 | AD158: 26.41439365 | AE158: 0.7217802127 | AF158: 14.7 | AG158: 0 | AH158: 92.66006261 | AI158: 2355.110153 | AJ158: 0.4206989039 | AK158: 0.2103494519 | AO158: 137 | AP158: 2035-12-02 | AQ158: 30 | AR158: 4170 | AS158: 1447.266766 | AT158: 25.72532331 | AU158: 15.88932755 | AV158: 0.4341800297 | AW158: 14.7 | AX158: 0 | AY158: 56.74883089 | AZ158: 1421.541442 | BA158: 0.2103494519 | BB158: 0.2103494519 | BF158: 137 | BG158: 2035-12-02 | BH158: 30 | BI158: 4170 | BJ158: 1479.623651 | BK158: 66.20729937 | BL158: 16.24456901 | BM158: 0.4438870954 | BN158: 14.7 | BO158: 0 | BP158: 97.59575548 | BQ158: 1413.416352 | BR158: 0.4206989039 | BS158: 0.2103494519 | BW158: 137 | BX158: 2035-12-02 | BY158: 30 | BZ158: 4170 | CA158: 2375.214637 | CB158: 12.38918467 | CC158: 26.07712984 | CD158: 0.712564391 | CE158: 14.7 | CF158: 0 | CG158: 53.8788789 | CH158: 2362.825452 | CI158: 0.2103494519 | CJ158: 0.2103494519 | CN158: 137 | CO158: 2035-12-02 | CP158: 30 | CQ158: 4170 | CR158: 2405.934042 | CS158: 50.82388875 | CT158: 26.41439365 | CU158: 0.7217802127 | CV158: 14.7 | CW158: 0 | CX158: 92.66006261 | CY158: 2355.110153 | CZ158: 0.4206989039 | DA158: 0.2103494519
B159: 138 | C159: 2036-01-02 | D159: 31 | E159: 4201 | F159: 2362.825452 | G159: 11.63569714 | H159: 26.81070221 | I159: 0.7324795521 | J159: 14.7 | K159: 0 | L159: 53.8788789 | M159: 2351.189755 | N159: 0.2079256632 | O159: 0.2079256632 | Q159: 53.8788789 | R159: 4201 | S159: =IFERROR((1+'Simulación Cliente'!$E$21)^(R159/360),"") -> 5.999784265 | T159: 8.98 | X159: 138 | Y159: 2036-01-02 | Z159: 31 | AA159: 4201 | AB159: 2355.110153 | AC159: 4.176785883 | AD159: 26.72315762 | AE159: 0.7300877976 | AF159: 14.7 | AG159: 0 | AH159: 46.3300313 | AI159: 2350.933368 | AJ159: 0.2079256632 | AK159: 0.2079256632 | AO159: 138 | AP159: 2036-01-02 | AQ159: 31 | AR159: 4201 | AS159: 1421.541442 | AT159: 25.47808746 | AU159: 16.13006338 | AV159: 0.4406800503 | AW159: 14.7 | AX159: 0 | AY159: 56.74883089 | AZ159: 1396.063355 | BA159: 0.2079256632 | BB159: 0.2079256632 | BF159: 138 | BG159: 2036-01-02 | BH159: 31 | BI159: 4201 | BJ159: 1413.416352 | BK159: 17.62184755 | BL159: 16.03786893 | BM159: 0.4381612596 | BN159: 14.7 | BO159: 0 | BP159: 48.79787774 | BQ159: 1395.794504 | BR159: 0.2079256632 | BS159: 0.2079256632 | BW159: 138 | BX159: 2036-01-02 | BY159: 31 | BZ159: 4201 | CA159: 2362.825452 | CB159: 11.63569714 | CC159: 26.81070221 | CD159: 0.7324795521 | CE159: 14.7 | CF159: 0 | CG159: 53.8788789 | CH159: 2351.189755 | CI159: 0.2079256632 | CJ159: 0.2079256632 | CN159: 138 | CO159: 2036-01-02 | CP159: 31 | CQ159: 4201 | CR159: 2355.110153 | CS159: 4.176785883 | CT159: 26.72315762 | CU159: 0.7300877976 | CV159: 14.7 | CW159: 0 | CX159: 46.3300313 | CY159: 2350.933368 | CZ159: 0.2079256632 | DA159: 0.2079256632
B160: 139 | C160: 2036-02-02 | D160: 31 | E160: 4232 | F160: 2351.189755 | G160: 11.77133311 | H160: 26.67867332 | I160: 0.728872468 | J160: 14.7 | K160: 0 | L160: 53.8788789 | M160: 2339.418422 | N160: 0.2055298029 | O160: 0.2055298029 | Q160: 53.8788789 | R160: 4232 | S160: =IFERROR((1+'Simulación Cliente'!$E$21)^(R160/360),"") -> 6.079637003 | T160: 8.86 | X160: 139 | Y160: 2036-02-02 | Z160: 31 | AA160: 4232 | AB160: 2350.933368 | AC160: 4.225474191 | AD160: 26.67576413 | AE160: 0.7287929875 | AF160: 14.7 | AG160: 0 | AH160: 46.3300313 | AI160: 2346.707893 | AJ160: 0.2055298029 | AK160: 0.2055298029 | AO160: 139 | AP160: 2036-02-02 | AQ160: 31 | AR160: 4232 | AS160: 1396.063355 | AT160: 25.77508257 | AU160: 15.84096652 | AV160: 0.4327818037 | AW160: 14.7 | AX160: 0 | AY160: 56.74883089 | AZ160: 1370.288272 | BA160: 0.2055298029 | BB160: 0.2055298029 | BF160: 139 | BG160: 2036-02-02 | BH160: 31 | BI160: 4232 | BJ160: 1395.794504 | BK160: 17.82726338 | BL160: 15.8379159 | BM160: 0.4326984596 | BN160: 14.7 | BO160: 0 | BP160: 48.79787774 | BQ160: 1377.967241 | BR160: 0.2055298029 | BS160: 0.2055298029 | BW160: 139 | BX160: 2036-02-02 | BY160: 31 | BZ160: 4232 | CA160: 2351.189755 | CB160: 11.77133311 | CC160: 26.67867332 | CD160: 0.728872468 | CE160: 14.7 | CF160: 0 | CG160: 53.8788789 | CH160: 2339.418422 | CI160: 0.2055298029 | CJ160: 0.2055298029 | CN160: 139 | CO160: 2036-02-02 | CP160: 31 | CQ160: 4232 | CR160: 2350.933368 | CS160: 4.225474191 | CT160: 26.67576413 | CU160: 0.7287929875 | CV160: 14.7 | CW160: 0 | CX160: 46.3300313 | CY160: 2346.707893 | CZ160: 0.2055298029 | DA160: 0.2055298029
B161: 140 | C161: 2036-03-02 | D161: 29 | E161: 4261 | F161: 2339.418422 | G161: 13.67698603 | H161: 24.82346492 | I161: 0.6784279505 | J161: 14.7 | K161: 0 | L161: 53.8788789 | M161: 2325.741436 | N161: 0.2033135131 | O161: 0.2033135131 | Q161: 53.8788789 | R161: 4261 | S161: =IFERROR((1+'Simulación Cliente'!$E$21)^(R161/360),"") -> 6.15529982 | T161: 8.75 | X161: 140 | Y161: 2036-03-02 | Z161: 29 | AA161: 4261 | AB161: 2346.707893 | AC161: 6.048676236 | AD161: 24.90081318 | AE161: 0.6805418867 | AF161: 14.7 | AG161: 0 | AH161: 46.3300313 | AI161: 2340.659217 | AJ161: 0.2033135131 | AK161: 0.2033135131 | AO161: 140 | AP161: 2036-03-02 | AQ161: 29 | AR161: 4261 | AS161: 1370.288272 | AT161: 27.11138131 | AU161: 14.54006797 | AV161: 0.3973816123 | AW161: 14.7 | AX161: 0 | AY161: 56.74883089 | AZ161: 1343.176891 | BA161: 0.2033135131 | BB161: 0.2033135131 | BF161: 140 | BG161: 2036-03-02 | BH161: 29 | BI161: 4261 | BJ161: 1377.967241 | BK161: 19.07672007 | BL161: 14.62154916 | BM161: 0.399608502 | BN161: 14.7 | BO161: 0 | BP161: 48.79787774 | BQ161: 1358.890521 | BR161: 0.2033135131 | BS161: 0.2033135131 | BW161: 140 | BX161: 2036-03-02 | BY161: 29 | BZ161: 4261 | CA161: 2339.418422 | CB161: 13.67698603 | CC161: 24.82346492 | CD161: 0.6784279505 | CE161: 14.7 | CF161: 0 | CG161: 53.8788789 | CH161: 2325.741436 | CI161: 0.2033135131 | CJ161: 0.2033135131 | CN161: 140 | CO161: 2036-03-02 | CP161: 29 | CQ161: 4261 | CR161: 2346.707893 | CS161: 6.048676236 | CT161: 24.90081318 | CU161: 0.6805418867 | CV161: 14.7 | CW161: 0 | CX161: 46.3300313 | CY161: 2340.659217 | CZ161: 0.2033135131 | DA161: 0.2033135131
B162: 141 | C162: 2036-04-02 | D162: 31 | E162: 4292 | F162: 2325.741436 | G162: 12.06798121 | H162: 26.38991424 | I162: 0.7209834496 | J162: 14.7 | K162: 0 | L162: 53.8788789 | M162: 2313.673454 | N162: 0.2009707972 | O162: 0.2009707972 | Q162: 53.8788789 | R162: 4292 | S162: =IFERROR((1+'Simulación Cliente'!$E$21)^(R162/360),"") -> 6.237222356 | T162: 8.64 | X162: 141 | Y162: 2036-04-02 | Z162: 31 | AA162: 4292 | AB162: 2340.659217 | AC162: 4.345238769 | AD162: 26.55918455 | AE162: 0.725607985 | AF162: 14.7 | AG162: 0 | AH162: 46.3300313 | AI162: 2336.313978 | AJ162: 0.2009707972 | AK162: 0.2009707972 | AO162: 141 | AP162: 2036-04-02 | AQ162: 31 | AR162: 4292 | AS162: 1343.176891 | AT162: 26.39157393 | AU162: 15.24087004 | AV162: 0.4163869179 | AW162: 14.7 | AX162: 0 | AY162: 56.74883089 | AZ162: 1316.785317 | BA162: 0.2009707972 | BB162: 0.2009707972 | BF162: 141 | BG162: 2036-04-02 | BH162: 31 | BI162: 4292 | BJ162: 1358.890521 | BK162: 18.25744883 | BL162: 15.41917075 | BM162: 0.4212581675 | BN162: 14.7 | BO162: 0 | BP162: 48.79787774 | BQ162: 1340.633072 | BR162: 0.2009707972 | BS162: 0.2009707972 | BW162: 141 | BX162: 2036-04-02 | BY162: 31 | BZ162: 4292 | CA162: 2325.741436 | CB162: 12.06798121 | CC162: 26.38991424 | CD162: 0.7209834496 | CE162: 14.7 | CF162: 0 | CG162: 53.8788789 | CH162: 2313.673454 | CI162: 0.2009707972 | CJ162: 0.2009707972 | CN162: 141 | CO162: 2036-04-02 | CP162: 31 | CQ162: 4292 | CR162: 2340.659217 | CS162: 4.345238769 | CT162: 26.55918455 | CU162: 0.725607985 | CV162: 14.7 | CW162: 0 | CX162: 46.3300313 | CY162: 2336.313978 | CZ162: 0.2009707972 | DA162: 0.2009707972
B163: 142 | C163: 2036-05-02 | D163: 30 | E163: 4322 | F163: 2313.673454 | G163: 13.08329855 | H163: 25.40147832 | I163: 0.6941020363 | J163: 14.7 | K163: 0 | L163: 53.8788789 | M163: 2300.590156 | N163: 0.1987293582 | O163: 0.1987293582 | Q163: 53.8788789 | R163: 4322 | S163: =IFERROR((1+'Simulación Cliente'!$E$21)^(R163/360),"") -> 6.31754022 | T163: 8.53 | X163: 142 | Y163: 2036-05-02 | Z163: 30 | AA163: 4322 | AB163: 2336.313978 | AC163: 5.279091833 | AD163: 25.65004528 | AE163: 0.7008941935 | AF163: 14.7 | AG163: 0 | AH163: 46.3300313 | AI163: 2331.034887 | AJ163: 0.1987293582 | AK163: 0.1987293582 | AO163: 142 | AP163: 2036-05-02 | AQ163: 30 | AR163: 4322 | AS163: 1316.785317 | AT163: 27.19700425 | AU163: 14.45679105 | AV163: 0.3950355951 | AW163: 14.7 | AX163: 0 | AY163: 56.74883089 | AZ163: 1289.588313 | BA163: 0.1987293582 | BB163: 0.1987293582 | BF163: 142 | BG163: 2036-05-02 | BH163: 30 | BI163: 4322 | BJ163: 1340.633072 | BK163: 18.9770758 | BL163: 14.71861202 | BM163: 0.4021899216 | BN163: 14.7 | BO163: 0 | BP163: 48.79787774 | BQ163: 1321.655996 | BR163: 0.1987293582 | BS163: 0.1987293582 | BW163: 142 | BX163: 2036-05-02 | BY163: 30 | BZ163: 4322 | CA163: 2313.673454 | CB163: 13.08329855 | CC163: 25.40147832 | CD163: 0.6941020363 | CE163: 14.7 | CF163: 0 | CG163: 53.8788789 | CH163: 2300.590156 | CI163: 0.1987293582 | CJ163: 0.1987293582 | CN163: 142 | CO163: 2036-05-02 | CP163: 30 | CQ163: 4322 | CR163: 2336.313978 | CS163: 5.279091833 | CT163: 25.65004528 | CU163: 0.7008941935 | CV163: 14.7 | CW163: 0 | CX163: 46.3300313 | CY163: 2331.034887 | CZ163: 0.1987293582 | DA163: 0.1987293582
B164: 143 | C164: 2036-06-02 | D164: 31 | E164: 4353 | F164: 2300.590156 | G164: 12.36116676 | H164: 26.10452563 | I164: 0.7131865139 | J164: 14.7 | K164: 0 | L164: 53.8788789 | M164: 2288.228989 | N164: 0.196439464 | O164: 0.196439464 | Q164: 53.8788789 | R164: 4353 | S164: =IFERROR((1+'Simulación Cliente'!$E$21)^(R164/360),"") -> 6.401622057 | T164: 8.42 | X164: 143 | Y164: 2036-06-02 | Z164: 31 | AA164: 4353 | AB164: 2331.034887 | AC164: 4.457428472 | AD164: 26.4499784 | AE164: 0.7226244276 | AF164: 14.7 | AG164: 0 | AH164: 46.3300313 | AI164: 2326.577458 | AJ164: 0.196439464 | AK164: 0.196439464 | AO164: 143 | AP164: 2036-06-02 | AQ164: 31 | AR164: 4353 | AS164: 1289.588313 | AT164: 27.01624976 | AU164: 14.63280675 | AV164: 0.3997743756 | AW164: 14.7 | AX164: 0 | AY164: 56.74883089 | AZ164: 1262.572063 | BA164: 0.196439464 | BB164: 0.196439464 | BF164: 143 | BG164: 2036-06-02 | BH164: 31 | BI164: 4353 | BJ164: 1321.655996 | BK164: 18.69148735 | BL164: 14.99667498 | BM164: 0.4097154072 | BN164: 14.7 | BO164: 0 | BP164: 48.79787774 | BQ164: 1302.964509 | BR164: 0.196439464 | BS164: 0.196439464 | BW164: 143 | BX164: 2036-06-02 | BY164: 31 | BZ164: 4353 | CA164: 2300.590156 | CB164: 12.36116676 | CC164: 26.10452563 | CD164: 0.7131865139 | CE164: 14.7 | CF164: 0 | CG164: 53.8788789 | CH164: 2288.228989 | CI164: 0.196439464 | CJ164: 0.196439464 | CN164: 143 | CO164: 2036-06-02 | CP164: 31 | CQ164: 4353 | CR164: 2331.034887 | CS164: 4.457428472 | CT164: 26.4499784 | CU164: 0.7226244276 | CV164: 14.7 | CW164: 0 | CX164: 46.3300313 | CY164: 2326.577458 | CZ164: 0.196439464 | DA164: 0.196439464
B165: 144 | C165: 2036-07-02 | D165: 30 | E165: 4383 | F165: 2288.228989 | G165: 13.3702829 | H165: 25.1221273 | I165: 0.6864686967 | J165: 14.7 | K165: 0 | L165: 53.8788789 | M165: 2274.858706 | N165: 0.1942485632 | O165: 0.1942485632 | Q165: 53.8788789 | R165: 4383 | S165: =IFERROR((1+'Simulación Cliente'!$E$21)^(R165/360),"") -> 6.484056927 | T165: 8.31 | X165: 144 | Y165: 2036-07-02 | Z165: 30 | AA165: 4383 | AB165: 2326.577458 | AC165: 51.71893991 | AD165: 25.54314946 | AE165: 0.6979732374 | AF165: 14.7 | AG165: 0 | AH165: 92.66006261 | AI165: 2274.858518 | AJ165: 0.3884971265 | AK165: 0.1942485632 | AO165: 144 | AP165: 2036-07-02 | AQ165: 30 | AR165: 4383 | AS165: 1262.572063 | AT165: 27.80846751 | AU165: 13.86159176 | AV165: 0.3787716189 | AW165: 14.7 | AX165: 0 | AY165: 56.74883089 | AZ165: 1234.763596 | BA165: 0.1942485632 | BB165: 0.1942485632 | BF165: 144 | BG165: 2036-07-02 | BH165: 30 | BI165: 4383 | BJ165: 1302.964509 | BK165: 68.19981169 | BL165: 14.30505444 | BM165: 0.3908893526 | BN165: 14.7 | BO165: 0 | BP165: 97.59575548 | BQ165: 1234.764697 | BR165: 0.3884971265 | BS165: 0.1942485632 | BW165: 144 | BX165: 2036-07-02 | BY165: 30 | BZ165: 4383 | CA165: 2288.228989 | CB165: 13.3702829 | CC165: 25.1221273 | CD165: 0.6864686967 | CE165: 14.7 | CF165: 0 | CG165: 53.8788789 | CH165: 2274.858706 | CI165: 0.1942485632 | CJ165: 0.1942485632 | CN165: 144 | CO165: 2036-07-02 | CP165: 30 | CQ165: 4383 | CR165: 2326.577458 | CS165: 51.71893991 | CT165: 25.54314946 | CU165: 0.6979732374 | CV165: 14.7 | CW165: 0 | CX165: 92.66006261 | CY165: 2274.858518 | CZ165: 0.3884971265 | DA165: 0.1942485632
B166: 145 | C166: 2036-08-02 | D166: 31 | E166: 4414 | F166: 2274.858706 | G166: 12.66111528 | H166: 25.8125539 | I166: 0.7052097246 | J166: 14.7 | K166: 0 | L166: 53.8788789 | M166: 2262.197591 | N166: 0.1920102998 | O166: 0.1920102998 | Q166: 53.8788789 | R166: 4414 | S166: =IFERROR((1+'Simulación Cliente'!$E$21)^(R166/360),"") -> 6.570354979 | T166: 8.2 | X166: 145 | Y166: 2036-08-02 | Z166: 31 | AA166: 4414 | AB166: 2274.858518 | AC166: 5.112269872 | AD166: 25.81255177 | AE166: 0.7052096663 | AF166: 14.7 | AG166: 0 | AH166: 46.3300313 | AI166: 2269.746248 | AJ166: 0.1920102998 | AK166: 0.1920102998 | AO166: 145 | AP166: 2036-08-02 | AQ166: 31 | AR166: 4414 | AS166: 1234.763596 | AT166: 27.65533512 | AU166: 14.01071714 | AV166: 0.3827786283 | AW166: 14.7 | AX166: 0 | AY166: 56.74883089 | AZ166: 1207.10826 | BA166: 0.1920102998 | BB166: 0.1920102998 | BF166: 145 | BG166: 2036-08-02 | BH166: 31 | BI166: 4414 | BJ166: 1234.764697 | BK166: 19.70436913 | BL166: 14.01072964 | BM166: 0.3827789698 | BN166: 14.7 | BO166: 0 | BP166: 48.79787774 | BQ166: 1215.060328 | BR166: 0.1920102998 | BS166: 0.1920102998 | BW166: 145 | BX166: 2036-08-02 | BY166: 31 | BZ166: 4414 | CA166: 2274.858706 | CB166: 12.66111528 | CC166: 25.8125539 | CD166: 0.7052097246 | CE166: 14.7 | CF166: 0 | CG166: 53.8788789 | CH166: 2262.197591 | CI166: 0.1920102998 | CJ166: 0.1920102998 | CN166: 145 | CO166: 2036-08-02 | CP166: 31 | CQ166: 4414 | CR166: 2274.858518 | CS166: 5.112269872 | CT166: 25.81255177 | CU166: 0.7052096663 | CV166: 14.7 | CW166: 0 | CX166: 46.3300313 | CY166: 2269.746248 | CZ166: 0.1920102998 | DA166: 0.1920102998
B167: 146 | C167: 2036-09-02 | D167: 31 | E167: 4445 | F167: 2262.197591 | G167: 12.80870443 | H167: 25.66888972 | I167: 0.7012847593 | J167: 14.7 | K167: 0 | L167: 53.8788789 | M167: 2249.388887 | N167: 0.1897978272 | O167: 0.1897978272 | Q167: 53.8788789 | R167: 4445 | S167: =IFERROR((1+'Simulación Cliente'!$E$21)^(R167/360),"") -> 6.657801596 | T167: 8.09 | X167: 146 | Y167: 2036-09-02 | Z167: 31 | AA167: 4445 | AB167: 2269.746248 | AC167: 5.171863008 | AD167: 25.75454344 | AE167: 0.7036248547 | AF167: 14.7 | AG167: 0 | AH167: 46.3300313 | AI167: 2264.574385 | AJ167: 0.1897978272 | AK167: 0.1897978272 | AO167: 146 | AP167: 2036-09-02 | AQ167: 31 | AR167: 4445 | AS167: 1207.10826 | AT167: 27.97771015 | AU167: 13.69691531 | AV167: 0.3742054316 | AW167: 14.7 | AX167: 0 | AY167: 56.74883089 | AZ167: 1179.13055 | BA167: 0.1897978272 | BB167: 0.1897978272 | BF167: 146 | BG167: 2036-09-02 | BH167: 31 | BI167: 4445 | BJ167: 1215.060328 | BK167: 19.93406067 | BL167: 13.78714648 | BM167: 0.3766705848 | BN167: 14.7 | BO167: 0 | BP167: 48.79787774 | BQ167: 1195.126267 | BR167: 0.1897978272 | BS167: 0.1897978272 | BW167: 146 | BX167: 2036-09-02 | BY167: 31 | BZ167: 4445 | CA167: 2262.197591 | CB167: 12.80870443 | CC167: 25.66888972 | CD167: 0.7012847593 | CE167: 14.7 | CF167: 0 | CG167: 53.8788789 | CH167: 2249.388887 | CI167: 0.1897978272 | CJ167: 0.1897978272 | CN167: 146 | CO167: 2036-09-02 | CP167: 31 | CQ167: 4445 | CR167: 2269.746248 | CS167: 5.171863008 | CT167: 25.75454344 | CU167: 0.7036248547 | CV167: 14.7 | CW167: 0 | CX167: 46.3300313 | CY167: 2264.574385 | CZ167: 0.1897978272 | DA167: 0.1897978272
B168: 147 | C168: 2036-10-02 | D168: 30 | E168: 4475 | F168: 2249.388887 | G168: 13.80835467 | H168: 24.69570756 | I168: 0.674816666 | J168: 14.7 | K168: 0 | L168: 53.8788789 | M168: 2235.580532 | N168: 0.187681001 | O168: 0.187681001 | Q168: 53.8788789 | R168: 4475 | S168: =IFERROR((1+'Simulación Cliente'!$E$21)^(R168/360),"") -> 6.743535336 | T168: 7.99 | X168: 147 | Y168: 2036-10-02 | Z168: 30 | AA168: 4475 | AB168: 2264.574385 | AC168: 6.088232083 | AD168: 24.86242691 | AE168: 0.6793723156 | AF168: 14.7 | AG168: 0 | AH168: 46.3300313 | AI168: 2258.486153 | AJ168: 0.187681001 | AK168: 0.187681001 | AO168: 147 | AP168: 2036-10-02 | AQ168: 30 | AR168: 4475 | AS168: 1179.13055 | AT168: 28.74959198 | AU168: 12.94549974 | AV168: 0.3537391651 | AW168: 14.7 | AX168: 0 | AY168: 56.74883089 | AZ168: 1150.380958 | BA168: 0.187681001 | BB168: 0.187681001 | BF168: 147 | BG168: 2036-10-02 | BH168: 30 | BI168: 4475 | BJ168: 1195.126267 | BK168: 20.61822551 | BL168: 13.12111435 | BM168: 0.3585378802 | BN168: 14.7 | BO168: 0 | BP168: 48.79787774 | BQ168: 1174.508042 | BR168: 0.187681001 | BS168: 0.187681001 | BW168: 147 | BX168: 2036-10-02 | BY168: 30 | BZ168: 4475 | CA168: 2249.388887 | CB168: 13.80835467 | CC168: 24.69570756 | CD168: 0.674816666 | CE168: 14.7 | CF168: 0 | CG168: 53.8788789 | CH168: 2235.580532 | CI168: 0.187681001 | CJ168: 0.187681001 | CN168: 147 | CO168: 2036-10-02 | CP168: 30 | CQ168: 4475 | CR168: 2264.574385 | CS168: 6.088232083 | CT168: 24.86242691 | CU168: 0.6793723156 | CV168: 14.7 | CW168: 0 | CX168: 46.3300313 | CY168: 2258.486153 | CZ168: 0.187681001 | DA168: 0.187681001
B169: 148 | C169: 2036-11-02 | D169: 31 | E169: 4506 | F169: 2235.580532 | G169: 13.11897639 | H169: 25.36686908 | I169: 0.6930334297 | J169: 14.7 | K169: 0 | L169: 53.8788789 | M169: 2222.461555 | N169: 0.1855184134 | O169: 0.1855184134 | Q169: 53.8788789 | R169: 4506 | S169: =IFERROR((1+'Simulación Cliente'!$E$21)^(R169/360),"") -> 6.833286856 | T169: 7.88 | X169: 148 | Y169: 2036-11-02 | Z169: 31 | AA169: 4506 | AB169: 2258.486153 | AC169: 5.303120628 | AD169: 25.62677647 | AE169: 0.7001342078 | AF169: 14.7 | AG169: 0 | AH169: 46.3300313 | AI169: 2253.183033 | AJ169: 0.1855184134 | AK169: 0.1855184134 | AO169: 148 | AP169: 2036-11-02 | AQ169: 31 | AR169: 4506 | AS169: 1150.380958 | AT169: 28.63897372 | AU169: 13.05323729 | AV169: 0.35661988 | AW169: 14.7 | AX169: 0 | AY169: 56.74883089 | AZ169: 1121.741985 | BA169: 0.1855184134 | BB169: 0.1855184134 | BF169: 148 | BG169: 2036-11-02 | BH169: 31 | BI169: 4506 | BJ169: 1174.508042 | BK169: 20.40677396 | BL169: 13.32700447 | BM169: 0.3640993133 | BN169: 14.7 | BO169: 0 | BP169: 48.79787774 | BQ169: 1154.101268 | BR169: 0.1855184134 | BS169: 0.1855184134 | BW169: 148 | BX169: 2036-11-02 | BY169: 31 | BZ169: 4506 | CA169: 2235.580532 | CB169: 13.11897639 | CC169: 25.36686908 | CD169: 0.6930334297 | CE169: 14.7 | CF169: 0 | CG169: 53.8788789 | CH169: 2222.461555 | CI169: 0.1855184134 | CJ169: 0.1855184134 | CN169: 148 | CO169: 2036-11-02 | CP169: 31 | CQ169: 4506 | CR169: 2258.486153 | CS169: 5.303120628 | CT169: 25.62677647 | CU169: 0.7001342078 | CV169: 14.7 | CW169: 0 | CX169: 46.3300313 | CY169: 2253.183033 | CZ169: 0.1855184134 | DA169: 0.1855184134
B170: 149 | C170: 2036-12-02 | D170: 30 | E170: 4536 | F170: 2222.461555 | G170: 14.11206405 | H170: 24.40007638 | I170: 0.6667384666 | J170: 14.7 | K170: 0 | L170: 53.8788789 | M170: 2208.349491 | N170: 0.1834493158 | O170: 0.1834493158 | Q170: 53.8788789 | R170: 4536 | S170: =IFERROR((1+'Simulación Cliente'!$E$21)^(R170/360),"") -> 6.921280353 | T170: 7.78 | X170: 149 | Y170: 2036-12-02 | Z170: 30 | AA170: 4536 | AB170: 2253.183033 | AC170: 52.54674477 | AD170: 24.73736293 | AE170: 0.6759549098 | AF170: 14.7 | AG170: 0 | AH170: 92.66006261 | AI170: 2200.636288 | AJ170: 0.3668986315 | AK170: 0.1834493158 | AO170: 149 | AP170: 2036-12-02 | AQ170: 30 | AR170: 4536 | AS170: 1121.741985 | AT170: 29.39686912 | AU170: 12.31543918 | AV170: 0.3365225954 | AW170: 14.7 | AX170: 0 | AY170: 56.74883089 | AZ170: 1092.345115 | BA170: 0.1834493158 | BB170: 0.1834493158 | BF170: 149 | BG170: 2036-12-02 | BH170: 30 | BI170: 4536 | BJ170: 1154.101268 | BK170: 69.87881814 | BL170: 12.67070696 | BM170: 0.3462303804 | BN170: 14.7 | BO170: 0 | BP170: 97.59575548 | BQ170: 1084.22245 | BR170: 0.3668986315 | BS170: 0.1834493158 | BW170: 149 | BX170: 2036-12-02 | BY170: 30 | BZ170: 4536 | CA170: 2222.461555 | CB170: 14.11206405 | CC170: 24.40007638 | CD170: 0.6667384666 | CE170: 14.7 | CF170: 0 | CG170: 53.8788789 | CH170: 2208.349491 | CI170: 0.1834493158 | CJ170: 0.1834493158 | CN170: 149 | CO170: 2036-12-02 | CP170: 30 | CQ170: 4536 | CR170: 2253.183033 | CS170: 52.54674477 | CT170: 24.73736293 | CU170: 0.6759549098 | CV170: 14.7 | CW170: 0 | CX170: 92.66006261 | CY170: 2200.636288 | CZ170: 0.3668986315 | DA170: 0.1834493158
B171: 150 | C171: 2037-01-02 | D171: 31 | E171: 4567 | F171: 2208.349491 | G171: 13.43640547 | H171: 25.05788167 | I171: 0.6845917649 | J171: 14.7 | K171: 0 | L171: 53.8788789 | M171: 2194.913086 | N171: 0.1813354886 | O171: 0.1813354886 | Q171: 53.8788789 | R171: 4567 | S171: =IFERROR((1+'Simulación Cliente'!$E$21)^(R171/360),"") -> 7.013397529 | T171: 7.68 | X171: 150 | Y171: 2037-01-02 | Z171: 31 | AA171: 4567 | AB171: 2200.636288 | AC171: 5.977469787 | AD171: 24.97036086 | AE171: 0.6822006599 | AF171: 14.7 | AG171: 0 | AH171: 46.3300313 | AI171: 2194.658818 | AJ171: 0.1813354886 | AK171: 0.1813354886 | AO171: 150 | AP171: 2037-01-02 | AQ171: 31 | AR171: 4567 | AS171: 1092.345115 | AT171: 29.31549079 | AU171: 12.39471141 | AV171: 0.3386286788 | AW171: 14.7 | AX171: 0 | AY171: 56.74883089 | AZ171: 1063.029625 | BA171: 0.1813354886 | BB171: 0.1813354886 | BF171: 150 | BG171: 2037-01-02 | BH171: 31 | BI171: 4567 | BJ171: 1084.22245 | BK171: 21.45922262 | BL171: 12.30254448 | BM171: 0.3361106398 | BN171: 14.7 | BO171: 0 | BP171: 48.79787774 | BQ171: 1062.763227 | BR171: 0.1813354886 | BS171: 0.1813354886 | BW171: 150 | BX171: 2037-01-02 | BY171: 31 | BZ171: 4567 | CA171: 2208.349491 | CB171: 13.43640547 | CC171: 25.05788167 | CD171: 0.6845917649 | CE171: 14.7 | CF171: 0 | CG171: 53.8788789 | CH171: 2194.913086 | CI171: 0.1813354886 | CJ171: 0.1813354886 | CN171: 150 | CO171: 2037-01-02 | CP171: 31 | CQ171: 4567 | CR171: 2200.636288 | CS171: 5.977469787 | CT171: 24.97036086 | CU171: 0.6822006599 | CV171: 14.7 | CW171: 0 | CX171: 46.3300313 | CY171: 2194.658818 | CZ171: 0.1813354886 | DA171: 0.1813354886
B172: 151 | C172: 2037-02-02 | D172: 31 | E172: 4598 | F172: 2194.913086 | G172: 13.59303208 | H172: 24.90542036 | I172: 0.6804264584 | J172: 14.7 | K172: 0 | L172: 53.8788789 | M172: 2181.320054 | N172: 0.1792460184 | O172: 0.1792460184 | Q172: 53.8788789 | R172: 4598 | S172: =IFERROR((1+'Simulación Cliente'!$E$21)^(R172/360),"") -> 7.106740718 | T172: 7.58 | X172: 151 | Y172: 2037-02-02 | Z172: 31 | AA172: 4598 | AB172: 2194.658818 | AC172: 6.047148458 | AD172: 24.90253521 | AE172: 0.680347635 | AF172: 14.7 | AG172: 0 | AH172: 46.3300313 | AI172: 2188.61167 | AJ172: 0.1792460184 | AK172: 0.1792460184 | AO172: 151 | AP172: 2037-02-02 | AQ172: 31 | AR172: 4598 | AS172: 1063.029625 | AT172: 29.65721806 | AU172: 12.06207199 | AV172: 0.3295408312 | AW172: 14.7 | AX172: 0 | AY172: 56.74883089 | AZ172: 1033.372407 | BA172: 0.1792460184 | BB172: 0.1792460184 | BF172: 151 | BG172: 2037-02-02 | BH172: 31 | BI172: 4598 | BJ172: 1062.763227 | BK172: 21.70937028 | BL172: 12.05904921 | BM172: 0.3294582475 | BN172: 14.7 | BO172: 0 | BP172: 48.79787774 | BQ172: 1041.053857 | BR172: 0.1792460184 | BS172: 0.1792460184 | BW172: 151 | BX172: 2037-02-02 | BY172: 31 | BZ172: 4598 | CA172: 2194.913086 | CB172: 13.59303208 | CC172: 24.90542036 | CD172: 0.6804264584 | CE172: 14.7 | CF172: 0 | CG172: 53.8788789 | CH172: 2181.320054 | CI172: 0.1792460184 | CJ172: 0.1792460184 | CN172: 151 | CO172: 2037-02-02 | CP172: 31 | CQ172: 4598 | CR172: 2194.658818 | CS172: 6.047148458 | CT172: 24.90253521 | CU172: 0.680347635 | CV172: 14.7 | CW172: 0 | CX172: 46.3300313 | CY172: 2188.61167 | CZ172: 0.1792460184 | DA172: 0.1792460184
B173: 152 | C173: 2037-03-02 | D173: 28 | E173: 4626 | F173: 2181.320054 | G173: 16.22443296 | H173: 22.34368244 | I173: 0.610763508 | J173: 14.7 | K173: 0 | L173: 53.8788789 | M173: 2165.095621 | N173: 0.1773794567 | O173: 0.1773794567 | Q173: 53.8788789 | R173: 4626 | S173: =IFERROR((1+'Simulación Cliente'!$E$21)^(R173/360),"") -> 7.192118046 | T173: 7.49 | X173: 152 | Y173: 2037-03-02 | Z173: 28 | AA173: 4626 | AB173: 2188.61167 | AC173: 8.598854302 | AD173: 22.41837186 | AE173: 0.61280514 | AF173: 14.7 | AG173: 0 | AH173: 46.3300313 | AI173: 2180.012815 | AJ173: 0.1773794567 | AK173: 0.1773794567 | AO173: 152 | AP173: 2037-03-02 | AQ173: 28 | AR173: 4626 | AS173: 1033.372407 | AT173: 31.17445644 | AU173: 10.58503306 | AV173: 0.2893413807 | AW173: 14.7 | AX173: 0 | AY173: 56.74883089 | AZ173: 1002.19795 | BA173: 0.1773794567 | BB173: 0.1773794567 | BF173: 152 | BG173: 2037-03-02 | BH173: 28 | BI173: 4626 | BJ173: 1041.053857 | BK173: 23.14266993 | BL173: 10.66371564 | BM173: 0.2914921653 | BN173: 14.7 | BO173: 0 | BP173: 48.79787774 | BQ173: 1017.911187 | BR173: 0.1773794567 | BS173: 0.1773794567 | BW173: 152 | BX173: 2037-03-02 | BY173: 28 | BZ173: 4626 | CA173: 2181.320054 | CB173: 16.22443296 | CC173: 22.34368244 | CD173: 0.610763508 | CE173: 14.7 | CF173: 0 | CG173: 53.8788789 | CH173: 2165.095621 | CI173: 0.1773794567 | CJ173: 0.1773794567 | CN173: 152 | CO173: 2037-03-02 | CP173: 28 | CQ173: 4626 | CR173: 2188.61167 | CS173: 8.598854302 | CT173: 22.41837186 | CU173: 0.61280514 | CV173: 14.7 | CW173: 0 | CX173: 46.3300313 | CY173: 2180.012815 | CZ173: 0.1773794567 | DA173: 0.1773794567
B174: 153 | C174: 2037-04-02 | D174: 31 | E174: 4657 | F174: 2165.095621 | G174: 13.94061081 | H174: 24.56708509 | I174: 0.671182998 | J174: 14.7 | K174: 0 | L174: 53.8788789 | M174: 2151.15501 | N174: 0.1753355706 | O174: 0.1753355706 | Q174: 53.8788789 | R174: 4657 | S174: =IFERROR((1+'Simulación Cliente'!$E$21)^(R174/360),"") -> 7.287839874 | T174: 7.39 | X174: 153 | Y174: 2037-04-02 | Z174: 31 | AA174: 4657 | AB174: 2180.012815 | AC174: 6.21787521 | AD174: 24.73634874 | AE174: 0.6758073514 | AF174: 14.7 | AG174: 0 | AH174: 46.3300313 | AI174: 2173.79494 | AJ174: 0.1753355706 | AK174: 0.1753355706 | AO174: 153 | AP174: 2037-04-02 | AQ174: 31 | AR174: 4657 | AS174: 1002.19795 | AT174: 30.36632583 | AU174: 11.37182214 | AV174: 0.3106829178 | AW174: 14.7 | AX174: 0 | AY174: 56.74883089 | AZ174: 971.8316243 | BA174: 0.1753355706 | BB174: 0.1753355706 | BF174: 153 | BG174: 2037-04-02 | BH174: 31 | BI174: 4657 | BJ174: 1017.911187 | BK174: 22.2322053 | BL174: 11.55011839 | BM174: 0.3155540455 | BN174: 14.7 | BO174: 0 | BP174: 48.79787774 | BQ174: 995.6789816 | BR174: 0.1753355706 | BS174: 0.1753355706 | BW174: 153 | BX174: 2037-04-02 | BY174: 31 | BZ174: 4657 | CA174: 2165.095621 | CB174: 13.94061081 | CC174: 24.56708509 | CD174: 0.671182998 | CE174: 14.7 | CF174: 0 | CG174: 53.8788789 | CH174: 2151.15501 | CI174: 0.1753355706 | CJ174: 0.1753355706 | CN174: 153 | CO174: 2037-04-02 | CP174: 31 | CQ174: 4657 | CR174: 2180.012815 | CS174: 6.21787521 | CT174: 24.73634874 | CU174: 0.6758073514 | CV174: 14.7 | CW174: 0 | CX174: 46.3300313 | CY174: 2173.79494 | CZ174: 0.1753355706 | DA174: 0.1753355706
B175: 154 | C175: 2037-05-02 | D175: 30 | E175: 4687 | F175: 2151.15501 | G175: 14.91632002 | H175: 23.61721238 | I175: 0.645346503 | J175: 14.7 | K175: 0 | L175: 53.8788789 | M175: 2136.23869 | N175: 0.1733800427 | O175: 0.1733800427 | Q175: 53.8788789 | R175: 4687 | S175: =IFERROR((1+'Simulación Cliente'!$E$21)^(R175/360),"") -> 7.381686734 | T175: 7.3 | X175: 154 | Y175: 2037-05-02 | Z175: 30 | AA175: 4687 | AB175: 2173.79494 | AC175: 7.112120006 | AD175: 23.86577282 | AE175: 0.652138482 | AF175: 14.7 | AG175: 0 | AH175: 46.3300313 | AI175: 2166.68282 | AJ175: 0.1733800427 | AK175: 0.1733800427 | AO175: 154 | AP175: 2037-05-02 | AQ175: 30 | AR175: 4687 | AS175: 971.8316243 | AT175: 31.08768588 | AU175: 10.66959552 | AV175: 0.2915494873 | AW175: 14.7 | AX175: 0 | AY175: 56.74883089 | AZ175: 940.7439385 | BA175: 0.1733800427 | BB175: 0.1733800427 | BF175: 154 | BG175: 2037-05-02 | BH175: 30 | BI175: 4687 | BJ175: 995.6789816 | BK175: 22.86776192 | BL175: 10.93141213 | BM175: 0.2987036945 | BN175: 14.7 | BO175: 0 | BP175: 48.79787774 | BQ175: 972.8112197 | BR175: 0.1733800427 | BS175: 0.1733800427 | BW175: 154 | BX175: 2037-05-02 | BY175: 30 | BZ175: 4687 | CA175: 2151.15501 | CB175: 14.91632002 | CC175: 23.61721238 | CD175: 0.645346503 | CE175: 14.7 | CF175: 0 | CG175: 53.8788789 | CH175: 2136.23869 | CI175: 0.1733800427 | CJ175: 0.1733800427 | CN175: 154 | CO175: 2037-05-02 | CP175: 30 | CQ175: 4687 | CR175: 2173.79494 | CS175: 7.112120006 | CT175: 23.86577282 | CU175: 0.652138482 | CV175: 14.7 | CW175: 0 | CX175: 46.3300313 | CY175: 2166.68282 | CZ175: 0.1733800427 | DA175: 0.1733800427
B176: 155 | C176: 2037-06-02 | D176: 31 | E176: 4718 | F176: 2136.23869 | G176: 14.2769927 | H176: 24.2396489 | I176: 0.6622373048 | J176: 14.7 | K176: 0 | L176: 53.8788789 | M176: 2121.961697 | N176: 0.1713822405 | O176: 0.1713822405 | Q176: 53.8788789 | R176: 4718 | S176: =IFERROR((1+'Simulación Cliente'!$E$21)^(R176/360),"") -> 7.479931582 | T176: 7.2 | X176: 155 | Y176: 2037-06-02 | Z176: 31 | AA176: 4718 | AB176: 2166.68282 | AC176: 6.373261416 | AD176: 24.58509486 | AE176: 0.6716750322 | AF176: 14.7 | AG176: 0 | AH176: 46.3300313 | AI176: 2160.309559 | AJ176: 0.1713822405 | AK176: 0.1713822405 | AO176: 155 | AP176: 2037-06-02 | AQ176: 31 | AR176: 4718 | AS176: 940.7439385 | AT176: 31.0826881 | AU176: 10.67451071 | AV176: 0.2916320789 | AW176: 14.7 | AX176: 0 | AY176: 56.74883089 | AZ176: 909.6612504 | BA176: 0.1713822405 | BB176: 0.1713822405 | BF176: 155 | BG176: 2037-06-02 | BH176: 31 | BI176: 4718 | BJ176: 972.8112197 | BK176: 22.75793038 | BL176: 11.03837437 | BM176: 0.3015729858 | BN176: 14.7 | BO176: 0 | BP176: 48.79787774 | BQ176: 950.0532893 | BR176: 0.1713822405 | BS176: 0.1713822405 | BW176: 155 | BX176: 2037-06-02 | BY176: 31 | BZ176: 4718 | CA176: 2136.23869 | CB176: 14.2769927 | CC176: 24.2396489 | CD176: 0.6622373048 | CE176: 14.7 | CF176: 0 | CG176: 53.8788789 | CH176: 2121.961697 | CI176: 0.1713822405 | CJ176: 0.1713822405 | CN176: 155 | CO176: 2037-06-02 | CP176: 31 | CQ176: 4718 | CR176: 2166.68282 | CS176: 6.373261416 | CT176: 24.58509486 | CU176: 0.6716750322 | CV176: 14.7 | CW176: 0 | CX176: 46.3300313 | CY176: 2160.309559 | CZ176: 0.1713822405 | DA176: 0.1713822405
B177: 156 | C177: 2037-07-02 | D177: 30 | E177: 4748 | F177: 2121.961697 | G177: 15.24558707 | H177: 23.29670332 | I177: 0.6365885092 | J177: 14.7 | K177: 0 | L177: 53.8788789 | M177: 2106.71611 | N177: 0.1694708044 | O177: 0.1694708044 | Q177: 53.8788789 | R177: 4748 | S177: =IFERROR((1+'Simulación Cliente'!$E$21)^(R177/360),"") -> 7.576252042 | T177: 7.11 | X177: 156 | Y177: 2037-07-02 | Z177: 30 | AA177: 4748 | AB177: 2160.309559 | AC177: 53.59425093 | AD177: 23.71771881 | AE177: 0.6480928676 | AF177: 14.7 | AG177: 0 | AH177: 92.66006261 | AI177: 2106.715308 | AJ177: 0.3389416088 | AK177: 0.1694708044 | AO177: 156 | AP177: 2037-07-02 | AQ177: 30 | AR177: 4748 | AS177: 909.6612504 | AT177: 31.78889632 | AU177: 9.987036193 | AV177: 0.2728983751 | AW177: 14.7 | AX177: 0 | AY177: 56.74883089 | AZ177: 877.872354 | BA177: 0.1694708044 | BB177: 0.1694708044 | BF177: 156 | BG177: 2037-07-02 | BH177: 30 | BI177: 4748 | BJ177: 950.0532893 | BK177: 72.18024508 | BL177: 10.43049441 | BM177: 0.2850159868 | BN177: 14.7 | BO177: 0 | BP177: 97.59575548 | BQ177: 877.8730442 | BR177: 0.3389416088 | BS177: 0.1694708044 | BW177: 156 | BX177: 2037-07-02 | BY177: 30 | BZ177: 4748 | CA177: 2121.961697 | CB177: 15.24558707 | CC177: 23.29670332 | CD177: 0.6365885092 | CE177: 14.7 | CF177: 0 | CG177: 53.8788789 | CH177: 2106.71611 | CI177: 0.1694708044 | CJ177: 0.1694708044 | CN177: 156 | CO177: 2037-07-02 | CP177: 30 | CQ177: 4748 | CR177: 2160.309559 | CS177: 53.59425093 | CT177: 23.71771881 | CU177: 0.6480928676 | CV177: 14.7 | CW177: 0 | CX177: 92.66006261 | CY177: 2106.715308 | CZ177: 0.3389416088 | DA177: 0.1694708044
B178: 157 | C178: 2037-08-02 | D178: 31 | E178: 4779 | F178: 2106.71611 | G178: 14.62113398 | H178: 23.90465966 | I178: 0.6530852593 | J178: 14.7 | K178: 0 | L178: 53.8788789 | M178: 2092.094976 | N178: 0.1675180471 | O178: 0.1675180471 | Q178: 53.8788789 | R178: 4779 | S178: =IFERROR((1+'Simulación Cliente'!$E$21)^(R178/360),"") -> 7.677086412 | T178: 7.02 | X178: 157 | Y178: 2037-08-02 | Z178: 31 | AA178: 4779 | AB178: 2106.715308 | AC178: 7.07229574 | AD178: 23.90465055 | AE178: 0.6530850105 | AF178: 14.7 | AG178: 0 | AH178: 46.3300313 | AI178: 2099.643012 | AJ178: 0.1675180471 | AK178: 0.1675180471 | AO178: 157 | AP178: 2037-08-02 | AQ178: 31 | AR178: 4779 | AS178: 877.872354 | AT178: 31.81557486 | AU178: 9.961114242 | AV178: 0.2721417903 | AW178: 14.7 | AX178: 0 | AY178: 56.74883089 | AZ178: 846.0567792 | BA178: 0.1675180471 | BB178: 0.1675180471 | BF178: 157 | BG178: 2037-08-02 | BH178: 31 | BI178: 4779 | BJ178: 877.8730442 | BK178: 23.86461366 | BL178: 9.961122073 | BM178: 0.2721420043 | BN178: 14.7 | BO178: 0 | BP178: 48.79787774 | BQ178: 854.0084306 | BR178: 0.1675180471 | BS178: 0.1675180471 | BW178: 157 | BX178: 2037-08-02 | BY178: 31 | BZ178: 4779 | CA178: 2106.71611 | CB178: 14.62113398 | CC178: 23.90465966 | CD178: 0.6530852593 | CE178: 14.7 | CF178: 0 | CG178: 53.8788789 | CH178: 2092.094976 | CI178: 0.1675180471 | CJ178: 0.1675180471 | CN178: 157 | CO178: 2037-08-02 | CP178: 31 | CQ178: 4779 | CR178: 2106.715308 | CS178: 7.07229574 | CT178: 23.90465055 | CU178: 0.6530850105 | CV178: 14.7 | CW178: 0 | CX178: 46.3300313 | CY178: 2099.643012 | CZ178: 0.1675180471 | DA178: 0.1675180471
B179: 158 | C179: 2037-09-02 | D179: 31 | E179: 4810 | F179: 2092.094976 | G179: 14.79157084 | H179: 23.73875538 | I179: 0.6485526851 | J179: 14.7 | K179: 0 | L179: 53.8788789 | M179: 2077.303405 | N179: 0.1655877908 | O179: 0.1655877908 | Q179: 53.8788789 | R179: 4810 | S179: =IFERROR((1+'Simulación Cliente'!$E$21)^(R179/360),"") -> 7.779262814 | T179: 6.93 | X179: 158 | Y179: 2037-09-02 | Z179: 31 | AA179: 4810 | AB179: 2099.643012 | AC179: 7.154736669 | AD179: 23.82440205 | AE179: 0.6508925878 | AF179: 14.7 | AG179: 0 | AH179: 46.3300313 | AI179: 2092.488275 | AJ179: 0.1655877908 | AK179: 0.1655877908 | AO179: 158 | AP179: 2037-09-02 | AQ179: 31 | AR179: 4810 | AS179: 846.0567792 | AT179: 32.18644531 | AU179: 9.60010666 | AV179: 0.2622789128 | AW179: 14.7 | AX179: 0 | AY179: 56.74883089 | AZ179: 813.8703339 | BA179: 0.1655877908 | BB179: 0.1655877908 | BF179: 158 | BG179: 2037-09-02 | BH179: 31 | BI179: 4810 | BJ179: 854.0084306 | BK179: 24.14280069 | BL179: 9.690333112 | BM179: 0.2647439371 | BN179: 14.7 | BO179: 0 | BP179: 48.79787774 | BQ179: 829.8656299 | BR179: 0.1655877908 | BS179: 0.1655877908 | BW179: 158 | BX179: 2037-09-02 | BY179: 31 | BZ179: 4810 | CA179: 2092.094976 | CB179: 14.79157084 | CC179: 23.73875538 | CD179: 0.6485526851 | CE179: 14.7 | CF179: 0 | CG179: 53.8788789 | CH179: 2077.303405 | CI179: 0.1655877908 | CJ179: 0.1655877908 | CN179: 158 | CO179: 2037-09-02 | CP179: 31 | CQ179: 4810 | CR179: 2099.643012 | CS179: 7.154736669 | CT179: 23.82440205 | CU179: 0.6508925878 | CV179: 14.7 | CW179: 0 | CX179: 46.3300313 | CY179: 2092.488275 | CZ179: 0.1655877908 | DA179: 0.1655877908
B180: 159 | C180: 2037-10-02 | D180: 30 | E180: 4840 | F180: 2077.303405 | G180: 15.74928134 | H180: 22.80640654 | I180: 0.6231910216 | J180: 14.7 | K180: 0 | L180: 53.8788789 | M180: 2061.554124 | N180: 0.1637409805 | O180: 0.1637409805 | Q180: 53.8788789 | R180: 4840 | S180: =IFERROR((1+'Simulación Cliente'!$E$21)^(R180/360),"") -> 7.879437818 | T180: 6.84 | X180: 159 | Y180: 2037-10-02 | Z180: 30 | AA180: 4840 | AB180: 2092.488275 | AC180: 8.02916584 | AD180: 22.97311898 | AE180: 0.6277464826 | AF180: 14.7 | AG180: 0 | AH180: 46.3300313 | AI180: 2084.459109 | AJ180: 0.1637409805 | AK180: 0.1637409805 | AO180: 159 | AP180: 2037-10-02 | AQ180: 30 | AR180: 4840 | AS180: 813.8703339 | AT180: 32.86930788 | AU180: 8.935361902 | AV180: 0.2441611002 | AW180: 14.7 | AX180: 0 | AY180: 56.74883089 | AZ180: 781.001026 | BA180: 0.1637409805 | BB180: 0.1637409805 | BF180: 159 | BG180: 2037-10-02 | BH180: 30 | BI180: 4840 | BJ180: 829.8656299 | BK180: 24.73794616 | BL180: 9.110971889 | BM180: 0.248959689 | BN180: 14.7 | BO180: 0 | BP180: 48.79787774 | BQ180: 805.1276837 | BR180: 0.1637409805 | BS180: 0.1637409805 | BW180: 159 | BX180: 2037-10-02 | BY180: 30 | BZ180: 4840 | CA180: 2077.303405 | CB180: 15.74928134 | CC180: 22.80640654 | CD180: 0.6231910216 | CE180: 14.7 | CF180: 0 | CG180: 53.8788789 | CH180: 2061.554124 | CI180: 0.1637409805 | CJ180: 0.1637409805 | CN180: 159 | CO180: 2037-10-02 | CP180: 30 | CQ180: 4840 | CR180: 2092.488275 | CS180: 8.02916584 | CT180: 22.97311898 | CU180: 0.6277464826 | CV180: 14.7 | CW180: 0 | CX180: 46.3300313 | CY180: 2084.459109 | CZ180: 0.1637409805 | DA180: 0.1637409805
B181: 160 | C181: 2037-11-02 | D181: 31 | E181: 4871 | F181: 2061.554124 | G181: 15.14758201 | H181: 23.39221192 | I181: 0.6390849736 | J181: 14.7 | K181: 0 | L181: 53.8788789 | M181: 2046.406542 | N181: 0.1618542461 | O181: 0.1618542461 | Q181: 53.8788789 | R181: 4871 | S181: =IFERROR((1+'Simulación Cliente'!$E$21)^(R181/360),"") -> 7.984307369 | T181: 6.75 | X181: 160 | Y181: 2037-11-02 | Z181: 31 | AA181: 4871 | AB181: 2084.459109 | AC181: 7.331733657 | AD181: 23.65211209 | AE181: 0.6461855545 | AF181: 14.7 | AG181: 0 | AH181: 46.3300313 | AI181: 2077.127376 | AJ181: 0.1618542461 | AK181: 0.1618542461 | AO181: 160 | AP181: 2037-11-02 | AQ181: 31 | AR181: 4871 | AS181: 781.001026 | AT181: 32.94479267 | AU181: 8.861926688 | AV181: 0.2421115285 | AW181: 14.7 | AX181: 0 | AY181: 56.74883089 | AZ181: 748.0562333 | BA181: 0.1618542461 | BB181: 0.1618542461 | BF181: 160 | BG181: 2037-11-02 | BH181: 31 | BI181: 4871 | BJ181: 805.1276837 | BK181: 24.71259788 | BL181: 9.135689032 | BM181: 0.2495908298 | BN181: 14.7 | BO181: 0 | BP181: 48.79787774 | BQ181: 780.4150858 | BR181: 0.1618542461 | BS181: 0.1618542461 | BW181: 160 | BX181: 2037-11-02 | BY181: 31 | BZ181: 4871 | CA181: 2061.554124 | CB181: 15.14758201 | CC181: 23.39221192 | CD181: 0.6390849736 | CE181: 14.7 | CF181: 0 | CG181: 53.8788789 | CH181: 2046.406542 | CI181: 0.1618542461 | CJ181: 0.1618542461 | CN181: 160 | CO181: 2037-11-02 | CP181: 31 | CQ181: 4871 | CR181: 2084.459109 | CS181: 7.331733657 | CT181: 23.65211209 | CU181: 0.6461855545 | CV181: 14.7 | CW181: 0 | CX181: 46.3300313 | CY181: 2077.127376 | CZ181: 0.1618542461 | DA181: 0.1618542461
B182: 161 | C182: 2037-12-02 | D182: 30 | E182: 4901 | F182: 2046.406542 | G182: 16.09776248 | H182: 22.46719446 | I182: 0.6139219626 | J182: 14.7 | K182: 0 | L182: 53.8788789 | M182: 2030.30878 | N182: 0.1600490763 | O182: 0.1600490763 | Q182: 53.8788789 | R182: 4901 | S182: =IFERROR((1+'Simulación Cliente'!$E$21)^(R182/360),"") -> 8.087122769 | T182: 6.66 | X182: 161 | Y182: 2037-12-02 | Z182: 30 | AA182: 4901 | AB182: 2077.127376 | AC182: 54.53245046 | AD182: 22.80447394 | AE182: 0.6231382127 | AF182: 14.7 | AG182: 0 | AH182: 92.66006261 | AI182: 2022.594925 | AJ182: 0.3200981525 | AK182: 0.1600490763 | AO182: 161 | AP182: 2037-12-02 | AQ182: 30 | AR182: 4901 | AS182: 748.0562333 | AT182: 33.61161538 | AU182: 8.212798636 | AV182: 0.22441687 | AW182: 14.7 | AX182: 0 | AY182: 56.74883089 | AZ182: 714.4446179 | BA182: 0.1600490763 | BB182: 0.1600490763 | BF182: 161 | BG182: 2037-12-02 | BH182: 30 | BI182: 4901 | BJ182: 780.4150858 | BK182: 74.09356927 | BL182: 8.568061687 | BM182: 0.2341245257 | BN182: 14.7 | BO182: 0 | BP182: 97.59575548 | BQ182: 706.3215166 | BR182: 0.3200981525 | BS182: 0.1600490763 | BW182: 161 | BX182: 2037-12-02 | BY182: 30 | BZ182: 4901 | CA182: 2046.406542 | CB182: 16.09776248 | CC182: 22.46719446 | CD182: 0.6139219626 | CE182: 14.7 | CF182: 0 | CG182: 53.8788789 | CH182: 2030.30878 | CI182: 0.1600490763 | CJ182: 0.1600490763 | CN182: 161 | CO182: 2037-12-02 | CP182: 30 | CQ182: 4901 | CR182: 2077.127376 | CS182: 54.53245046 | CT182: 22.80447394 | CU182: 0.6231382127 | CV182: 14.7 | CW182: 0 | CX182: 92.66006261 | CY182: 2022.594925 | CZ182: 0.3200981525 | DA182: 0.1600490763
B183: 162 | C183: 2038-01-02 | D183: 31 | E183: 4932 | F183: 2030.30878 | G183: 15.51180536 | H183: 23.03767468 | I183: 0.6293988684 | J183: 14.7 | K183: 0 | L183: 53.8788789 | M183: 2014.796974 | N183: 0.1582048825 | O183: 0.1582048825 | Q183: 53.8788789 | R183: 4932 | S183: =IFERROR((1+'Simulación Cliente'!$E$21)^(R183/360),"") -> 8.194756455 | T183: 6.57 | X183: 162 | Y183: 2038-01-02 | Z183: 31 | AA183: 4932 | AB183: 2022.594925 | AC183: 8.052877263 | AD183: 22.95014648 | AE183: 0.6270075616 | AF183: 14.7 | AG183: 0 | AH183: 46.3300313 | AI183: 2014.542048 | AJ183: 0.1582048825 | AK183: 0.1582048825 | AO183: 162 | AP183: 2038-01-02 | AQ183: 31 | AR183: 4932 | AS183: 714.4446179 | AT183: 33.72063299 | AU183: 8.106718962 | AV183: 0.2214789388 | AW183: 14.7 | AX183: 0 | AY183: 56.74883089 | AZ183: 680.7239849 | BA183: 0.1582048825 | BB183: 0.1582048825 | BF183: 162 | BG183: 2038-01-02 | BH183: 31 | BI183: 4932 | BJ183: 706.3215166 | BK183: 25.86436989 | BL183: 8.014547087 | BM183: 0.2189607648 | BN183: 14.7 | BO183: 0 | BP183: 48.79787774 | BQ183: 680.4571467 | BR183: 0.1582048825 | BS183: 0.1582048825 | BW183: 162 | BX183: 2038-01-02 | BY183: 31 | BZ183: 4932 | CA183: 2030.30878 | CB183: 15.51180536 | CC183: 23.03767468 | CD183: 0.6293988684 | CE183: 14.7 | CF183: 0 | CG183: 53.8788789 | CH183: 2014.796974 | CI183: 0.1582048825 | CJ183: 0.1582048825 | CN183: 162 | CO183: 2038-01-02 | CP183: 31 | CQ183: 4932 | CR183: 2022.594925 | CS183: 8.052877263 | CT183: 22.95014648 | CU183: 0.6270075616 | CV183: 14.7 | CW183: 0 | CX183: 46.3300313 | CY183: 2014.542048 | CZ183: 0.1582048825 | DA183: 0.1582048825
B184: 163 | C184: 2038-02-02 | D184: 31 | E184: 4963 | F184: 2014.796974 | G184: 15.69262467 | H184: 22.86166405 | I184: 0.6245901847 | J184: 14.7 | K184: 0 | L184: 53.8788789 | M184: 1999.10435 | N184: 0.1563819387 | O184: 0.1563819387 | Q184: 53.8788789 | R184: 4963 | S184: =IFERROR((1+'Simulación Cliente'!$E$21)^(R184/360),"") -> 8.303822666 | T184: 6.49 | X184: 163 | Y184: 2038-02-02 | Z184: 31 | AA184: 4963 | AB184: 2014.542048 | AC184: 8.146748718 | AD184: 22.85877143 | AE184: 0.6245111571 | AF184: 14.7 | AG184: 0 | AH184: 46.3300313 | AI184: 2006.395299 | AJ184: 0.1563819387 | AK184: 0.1563819387 | AO184: 163 | AP184: 2038-02-02 | AQ184: 31 | AR184: 4963 | AS184: 680.7239849 | AT184: 34.11371049 | AU184: 7.72409491 | AV184: 0.2110254904 | AW184: 14.7 | AX184: 0 | AY184: 56.74883089 | AZ184: 646.6102745 | BA184: 0.1563819387 | BB184: 0.1563819387 | BF184: 163 | BG184: 2038-02-02 | BH184: 31 | BI184: 4963 | BJ184: 680.4571467 | BK184: 26.16586784 | BL184: 7.721067127 | BM184: 0.2109427701 | BN184: 14.7 | BO184: 0 | BP184: 48.79787774 | BQ184: 654.2912788 | BR184: 0.1563819387 | BS184: 0.1563819387 | BW184: 163 | BX184: 2038-02-02 | BY184: 31 | BZ184: 4963 | CA184: 2014.796974 | CB184: 15.69262467 | CC184: 22.86166405 | CD184: 0.6245901847 | CE184: 14.7 | CF184: 0 | CG184: 53.8788789 | CH184: 1999.10435 | CI184: 0.1563819387 | CJ184: 0.1563819387 | CN184: 163 | CO184: 2038-02-02 | CP184: 31 | CQ184: 4963 | CR184: 2014.542048 | CS184: 8.146748718 | CT184: 22.85877143 | CU184: 0.6245111571 | CV184: 14.7 | CW184: 0 | CX184: 46.3300313 | CY184: 2006.395299 | CZ184: 0.1563819387 | DA184: 0.1563819387
B185: 164 | C185: 2038-03-02 | D185: 28 | E185: 4991 | F185: 1999.10435 | G185: 18.14192348 | H185: 20.4772118 | I185: 0.559743621 | J185: 14.7 | K185: 0 | L185: 53.8788789 | M185: 1980.962426 | N185: 0.1547534701 | O185: 0.1547534701 | Q185: 53.8788789 | R185: 4991 | S185: =IFERROR((1+'Simulación Cliente'!$E$21)^(R185/360),"") -> 8.403581223 | T185: 6.41 | X185: 164 | Y185: 2038-03-02 | Z185: 28 | AA185: 4991 | AB185: 2006.395299 | AC185: 10.51635183 | AD185: 20.5518944 | AE185: 0.5617850665 | AF185: 14.7 | AG185: 0 | AH185: 46.3300313 | AI185: 1995.878947 | AJ185: 0.1547534701 | AK185: 0.1547534701 | AO185: 164 | AP185: 2038-03-02 | AQ185: 28 | AR185: 4991 | AS185: 646.6102745 | AT185: 35.24442795 | AU185: 6.623353875 | AV185: 0.1810490665 | AW185: 14.7 | AX185: 0 | AY185: 56.74883089 | AZ185: 611.3658465 | BA185: 0.1547534701 | BB185: 0.1547534701 | BF185: 164 | BG185: 2038-03-02 | BH185: 28 | BI185: 4991 | BJ185: 654.2912788 | BK185: 27.21264613 | BL185: 6.702031886 | BM185: 0.1831997263 | BN185: 14.7 | BO185: 0 | BP185: 48.79787774 | BQ185: 627.0786327 | BR185: 0.1547534701 | BS185: 0.1547534701 | BW185: 164 | BX185: 2038-03-02 | BY185: 28 | BZ185: 4991 | CA185: 1999.10435 | CB185: 18.14192348 | CC185: 20.4772118 | CD185: 0.559743621 | CE185: 14.7 | CF185: 0 | CG185: 53.8788789 | CH185: 1980.962426 | CI185: 0.1547534701 | CJ185: 0.1547534701 | CN185: 164 | CO185: 2038-03-02 | CP185: 28 | CQ185: 4991 | CR185: 2006.395299 | CS185: 10.51635183 | CT185: 20.5518944 | CU185: 0.5617850665 | CV185: 14.7 | CW185: 0 | CX185: 46.3300313 | CY185: 1995.878947 | CZ185: 0.1547534701 | DA185: 0.1547534701
B186: 165 | C186: 2038-04-02 | D186: 31 | E186: 5022 | F186: 1980.962426 | G186: 16.08703007 | H186: 22.47774741 | I186: 0.6141014223 | J186: 14.7 | K186: 0 | L186: 53.8788789 | M186: 1964.875396 | N186: 0.1529702958 | O186: 0.1529702958 | Q186: 53.8788789 | R186: 5022 | S186: =IFERROR((1+'Simulación Cliente'!$E$21)^(R186/360),"") -> 8.515426739 | T186: 6.33 | X186: 165 | Y186: 2038-04-02 | Z186: 31 | AA186: 5022 | AB186: 1995.878947 | AC186: 8.364302312 | AD186: 22.64700343 | AE186: 0.618725567 | AF186: 14.7 | AG186: 0 | AH186: 46.3300313 | AI186: 1987.514645 | AJ186: 0.1529702958 | AK186: 0.1529702958 | AO186: 165 | AP186: 2038-04-02 | AQ186: 31 | AR186: 5022 | AS186: 611.3658465 | AT186: 34.92221025 | AU186: 6.937096279 | AV186: 0.1895243599 | AW186: 14.7 | AX186: 0 | AY186: 56.74883089 | AZ186: 576.4436363 | BA186: 0.1529702958 | BB186: 0.1529702958 | BF186: 165 | BG186: 2038-04-02 | BH186: 31 | BI186: 5022 | BJ186: 627.0786327 | BK186: 26.78809498 | BL186: 7.115387414 | BM186: 0.194395348 | BN186: 14.7 | BO186: 0 | BP186: 48.79787774 | BQ186: 600.2905377 | BR186: 0.1529702958 | BS186: 0.1529702958 | BW186: 165 | BX186: 2038-04-02 | BY186: 31 | BZ186: 5022 | CA186: 1980.962426 | CB186: 16.08703007 | CC186: 22.47774741 | CD186: 0.6141014223 | CE186: 14.7 | CF186: 0 | CG186: 53.8788789 | CH186: 1964.875396 | CI186: 0.1529702958 | CJ186: 0.1529702958 | CN186: 165 | CO186: 2038-04-02 | CP186: 31 | CQ186: 5022 | CR186: 1995.878947 | CS186: 8.364302312 | CT186: 22.64700343 | CU186: 0.618725567 | CV186: 14.7 | CW186: 0 | CX186: 46.3300313 | CY186: 1987.514645 | CZ186: 0.1529702958 | DA186: 0.1529702958
B187: 166 | C187: 2038-05-02 | D187: 30 | E187: 5052 | F187: 1964.875396 | G187: 17.01734021 | H187: 21.57207607 | I187: 0.5894626188 | J187: 14.7 | K187: 0 | L187: 53.8788789 | M187: 1947.858056 | N187: 0.1512642092 | O187: 0.1512642092 | Q187: 53.8788789 | R187: 5052 | S187: =IFERROR((1+'Simulación Cliente'!$E$21)^(R187/360),"") -> 8.625081461 | T187: 6.25 | X187: 166 | Y187: 2038-05-02 | Z187: 30 | AA187: 5052 | AB187: 1987.514645 | AC187: 9.213147873 | AD187: 21.82062904 | AE187: 0.5962543936 | AF187: 14.7 | AG187: 0 | AH187: 46.3300313 | AI187: 1978.301497 | AJ187: 0.1512642092 | AK187: 0.1512642092 | AO187: 166 | AP187: 2038-05-02 | AQ187: 30 | AR187: 5052 | AS187: 576.4436363 | AT187: 35.54720846 | AU187: 6.32868934 | AV187: 0.1729330909 | AW187: 14.7 | AX187: 0 | AY187: 56.74883089 | AZ187: 540.8964278 | BA187: 0.1512642092 | BB187: 0.1512642092 | BF187: 166 | BG187: 2038-05-02 | BH187: 30 | BI187: 5052 | BJ187: 600.2905377 | BK187: 27.32728964 | BL187: 6.590500941 | BM187: 0.1800871613 | BN187: 14.7 | BO187: 0 | BP187: 48.79787774 | BQ187: 572.9632481 | BR187: 0.1512642092 | BS187: 0.1512642092 | BW187: 166 | BX187: 2038-05-02 | BY187: 30 | BZ187: 5052 | CA187: 1964.875396 | CB187: 17.01734021 | CC187: 21.57207607 | CD187: 0.5894626188 | CE187: 14.7 | CF187: 0 | CG187: 53.8788789 | CH187: 1947.858056 | CI187: 0.1512642092 | CJ187: 0.1512642092 | CN187: 166 | CO187: 2038-05-02 | CP187: 30 | CQ187: 5052 | CR187: 1987.514645 | CS187: 9.213147873 | CT187: 21.82062904 | CU187: 0.5962543936 | CV187: 14.7 | CW187: 0 | CX187: 46.3300313 | CY187: 1978.301497 | CZ187: 0.1512642092 | DA187: 0.1512642092
B188: 167 | C188: 2038-06-02 | D188: 31 | E188: 5083 | F188: 1947.858056 | G188: 16.47292386 | H188: 22.10211602 | I188: 0.6038390162 | J188: 14.7 | K188: 0 | L188: 53.8788789 | M188: 1931.385132 | N188: 0.1495212406 | O188: 0.1495212406 | Q188: 53.8788789 | R188: 5083 | S188: =IFERROR((1+'Simulación Cliente'!$E$21)^(R188/360),"") -> 8.739874984 | T188: 6.16 | X188: 167 | Y188: 2038-06-02 | Z188: 31 | AA188: 5083 | AB188: 1978.301497 | AC188: 8.569200607 | AD188: 22.44755417 | AE188: 0.6132765302 | AF188: 14.7 | AG188: 0 | AH188: 46.3300313 | AI188: 1969.732297 | AJ188: 0.1495212406 | AK188: 0.1495212406 | AO188: 167 | AP188: 2038-06-02 | AQ188: 31 | AR188: 5083 | AS188: 540.8964278 | AT188: 35.74366407 | AU188: 6.137488082 | AV188: 0.1676787309 | AW188: 14.7 | AX188: 0 | AY188: 56.74883089 | AZ188: 505.1527637 | BA188: 0.1495212406 | BB188: 0.1495212406 | BF188: 167 | BG188: 2038-06-02 | BH188: 31 | BI188: 5083 | BJ188: 572.9632481 | BK188: 27.41891173 | BL188: 6.501346516 | BM188: 0.1776194949 | BN188: 14.7 | BO188: 0 | BP188: 48.79787774 | BQ188: 545.5443364 | BR188: 0.1495212406 | BS188: 0.1495212406 | BW188: 167 | BX188: 2038-06-02 | BY188: 31 | BZ188: 5083 | CA188: 1947.858056 | CB188: 16.47292386 | CC188: 22.10211602 | CD188: 0.6038390162 | CE188: 14.7 | CF188: 0 | CG188: 53.8788789 | CH188: 1931.385132 | CI188: 0.1495212406 | CJ188: 0.1495212406 | CN188: 167 | CO188: 2038-06-02 | CP188: 31 | CQ188: 5083 | CR188: 1978.301497 | CS188: 8.569200607 | CT188: 22.44755417 | CU188: 0.6132765302 | CV188: 14.7 | CW188: 0 | CX188: 46.3300313 | CY188: 1969.732297 | CZ188: 0.1495212406 | DA188: 0.1495212406
